Workbook

Sheet Introduction
C4: Joint Monitoring Programme for Water Supply, Sanitation and Hygiene
C6: Estimates on household water, sanitation and hygiene by wealth quintile and sub-national region in
C7: =+Water!B5 -> Jamaica
C9: Updated May 2021
C11: Follow the links below to find the following information:
C13: JMP Estimates
C14: WASH status and trends by wealth quintile (customized quintiles made without water and sanitation assets)
C15: Water
C16: Sanitation
C17: Hygiene
C19: Data inputs
C20: customized wealth quintiles and subnational data:
C21: =IF(INDIRECT(CONCATENATE("Water","!B105"))=0,"",INDIRECT(CONCATENATE("Water","!B105"))) -> SLC97
C22: =IF(INDIRECT(CONCATENATE("Water","!B106"))=0,"",INDIRECT(CONCATENATE("Water","!B106"))) -> SLC07
C23: =IF(INDIRECT(CONCATENATE("Water","!B107"))=0,"",INDIRECT(CONCATENATE("Water","!B107"))) -> MICS11
C24: =IF(INDIRECT(CONCATENATE("Water","!B108"))=0,"",INDIRECT(CONCATENATE("Water","!B108"))) -> 
C25: =IF(INDIRECT(CONCATENATE("Water","!B109"))=0,"",INDIRECT(CONCATENATE("Water","!B109"))) -> 
C26: =IF(INDIRECT(CONCATENATE("Water","!B110"))=0,"",INDIRECT(CONCATENATE("Water","!B110"))) -> 
C27: =IF(INDIRECT(CONCATENATE("Water","!B111"))=0,"",INDIRECT(CONCATENATE("Water","!B111"))) -> 
C28: =IF(INDIRECT(CONCATENATE("Water","!B112"))=0,"",INDIRECT(CONCATENATE("Water","!B112"))) -> 
C29: =IF(INDIRECT(CONCATENATE("Water","!B113"))=0,"",INDIRECT(CONCATENATE("Water","!B113"))) -> 
C30: =IF(INDIRECT(CONCATENATE("Water","!B114"))=0,"",INDIRECT(CONCATENATE("Water","!B114"))) -> 
C31: =IF(INDIRECT(CONCATENATE("Water","!B115"))=0,"",INDIRECT(CONCATENATE("Water","!B115"))) -> 
C32: =IF(INDIRECT(CONCATENATE("Water","!B116"))=0,"",INDIRECT(CONCATENATE("Water","!B116"))) -> 
L55: =+IF(ISNUMBER(M48), "", "Insufficient data to estimate safely managed sanitation services at national level") -> Insufficient data to estimate safely managed sanitation services at national level

Sheet Water
A1: BGD
B4: Summary of trends in use of drinking water by wealth quintile (%)
B5: =IF(ISERROR(INDIRECT(CONCATENATE($B105,"!A2"))),"",INDIRECT(CONCATENATE($B105,"!A2"))) -> Jamaica
B7: =B118 -> National use of drinking water sources, 2000–2017 | J7: =B218 -> Urban use of drinking water sources, 2000–2017 | R7: =B318 -> Rural use of drinking water sources, 2000–2017
B31: =IF(ISERROR(INDIRECT(CONCATENATE($B105,"!A2"))),"",INDIRECT(CONCATENATE($B105,"!A2"))) -> Jamaica | F31: Poorest | J31: Poor | N31: Middle | R31: Rich | V31: Richest
F32: Basic | G32: Limited | H32: Unimproved | I32: Surface water | J32: Basic | K32: Limited | L32: Unimproved | M32: Surface water | N32: Basic | O32: Limited | P32: Unimproved | Q32: Surface water | R32: Basic | S32: Limited | T32: Unimproved | U32: Surface water | V32: Basic | W32: Limited | X32: Unimproved | Y32: Surface water
B33: NATIONAL | D33: Estimate | E33: =C99 -> 2000 | F33: =E99 -> 87.40527127 | G33: =F99 -> 3.452599073 | H33: 5.991198297 | I33: 3.150931359 | J33: =J99 -> 90.05410708 | K33: =K99 -> 2.976995275 | L33: 2.506326626 | M33: 4.462571024 | N33: =O99 -> 92.67827161 | O33: =P99 -> 0 | P33: 3.630873038 | Q33: 3.69085535 | R33: =T99 -> 90.34714851 | S33: =U99 -> 1.282819553 | T33: 3.748938536 | U33: 4.621093402 | V33: =Y99 -> 94.88474158 | W33: =Z99 -> 0.9584317332 | X33: 1.413566179 | Y33: 2.743260504
E34: =C100 -> 2017 | F34: =E100 -> 85.98134388 | G34: 3.396352461 | H34: 6.964640335 | I34: 3.657663322 | J34: =J100 -> 91.39784679 | K34: 3.021416423 | L34: 3.447441087 | M34: 2.133295703 | N34: =O100 -> 98.40908605 | O34: 0 | P34: 0.6745078013 | Q34: 0.9164061536 | R34: =T100 -> 94.95654468 | S34: 1.348267369 | T34: 2.755894254 | U34: 0.9392936973 | V34: =Y100 -> 97.97588151 | W34: 0.9896553687 | X34: 1.034463126 | Y34: 0
B36: URBAN | D36: Estimate | E36: =C199 -> 2000 | F36: =E199 -> 94.2208844 | G36: =F199 -> 0.9517261051 | H36: 4.693914129 | I36: 0.1334753643 | J36: =J199 -> 98.05766108 | K36: =K199 -> 0.1965083388 | L36: 1.213854003 | M36: 0.5319765797 | N36: =O199 -> 97.51382861 | O36: =P199 -> 0.8855948108 | P36: 1.60057658 | Q36: 0 | R36: =T199 -> 96.61301333 | S36: =U199 -> 0.9758890235 | T36: 2.309673241 | U36: 0.1014244057 | V36: =Y199 -> 98.60515743 | W36: =Z199 -> 0 | X36: 1.394842574 | Y36: 0
E37: =C200 -> 2017 | F37: =E200 -> 94.70819133 | G37: 0.9566483972 | H37: 4.060994663 | I37: 0.2741656132 | J37: =J200 -> 99.2640443 | K37: 0.1989259405 | L37: 0.5370297584 | M37: 0 | N37: =O200 -> 97.58244296 | O37: 0.8862179481 | P37: 1.531339095 | Q37: 0 | R37: =T200 -> 98.79418089 | S37: 0.997921019 | T37: 0 | U37: 0.2078980951 | V37: =Y200 -> 97.82302998 | W37: 0 | X37: 2.176970024 | Y37: 0
B39: RURAL | D39: Estimate | E39: =C299 -> 2000 | F39: =E299 -> 78.85942694 | G39: =F299 -> 4.325622575 | H39: 7.767815846 | I39: 9.047134638 | J39: =J299 -> 85.64067003 | K39: =K299 -> 2.467015186 | L39: 5.239765372 | M39: 6.652549413 | N39: =O299 -> 79.61007825 | O39: =P299 -> 4.101886261 | P39: 5.735573831 | Q39: 10.55246166 | R39: =T299 -> 87.07920527 | S39: =U299 -> 1.415922037 | T39: 4.098492387 | U39: 7.406380303 | V39: =Y299 -> 91.83926275 | W39: =Z299 -> 1.304005759 | X39: 1.568319222 | Y39: 5.288412271
E40: =C300 -> 2017 | F40: =E300 -> 83.09891018 | G40: 4.558168069 | H40: 7.692677001 | I40: 4.650244751 | J40: =J300 -> 88.11939858 | K40: 2.538418889 | L40: 4.684635597 | M40: 4.657546934 | N40: =O300 -> 87.55725494 | O40: 4.511362242 | P40: 5.428082649 | Q40: 2.503300167 | R40: =T300 -> 93.72687572 | S40: 1.524014239 | T40: 2.143349486 | U40: 2.605760551 | V40: =Y300 -> 96.86130615 | W40: 1.375312663 | X40: 1.667266281 | Y40: 0.09611490278
A97: NATIONAL | D97: Poorest | I97: Poor | N97: Middle | S97: Rich | X97: Richest
D98: Improved | E98: Basic | F98: Limited | G98: Unimproved | H98: Surface water | I98: Improved | J98: Basic | K98: Limited | L98: Unimproved | M98: Surface water | N98: Improved | O98: Basic | P98: Limited | Q98: Unimproved | R98: Surface water | S98: Improved | T98: Basic | U98: Limited | V98: Unimproved | W98: Surface water | X98: Improved | Y98: Basic | Z98: Limited | AA98: Unimproved | AB98: Surface water
A99: Forecast period: | C99: 2000 | D99: =IF((D101+H101)>100,D101*100/(D101+H101),D101) -> 90.85787034 | E99: =D99*AVERAGEIF(E105:E116,">0")/100 -> 87.40527127 | F99: =D99*(100-AVERAGEIF(E105:E116,">0"))/100 -> 3.452599073 | G99: =100-(E99+F99+H99) -> 5.991198297 | H99: =IF((D101+H101)>100,H101*100/(D101+H101),H101) -> 3.150931359 | I99: =IF((I101+M101)>100,I101*100/(I101+M101),I101) -> 93.03110235 | J99: =I99*AVERAGEIF(J105:J116,">0")/100 -> 90.05410708 | K99: =I99*(100-AVERAGEIF(J105:J116,">0"))/100 -> 2.976995275 | L99: =100-(J99+K99+M99) -> 2.506326626 | M99: =IF((I101+M101)>100,M101*100/(I101+M101),M101) -> 4.462571024 | N99: =IF((N101+R101)>100,N101*100/(N101+R101),N101) -> 92.67827161 | O99: =N99*AVERAGEIF(O105:O116,">0")/100 -> 92.67827161 | P99: =N99*(100-AVERAGEIF(O105:O116,">0"))/100 -> 0 | Q99: =100-(O99+P99+R99) -> 3.630873038 | R99: =IF((N101+R101)>100,R101*100/(N101+R101),R101) -> 3.69085535 | S99: =IF((S101+W101)>100,S101*100/(S101+W101),S101) -> 91.62996806 | T99: =S99*AVERAGEIF(T105:T116,">0")/100 -> 90.34714851 | U99: =S99*(100-AVERAGEIF(T105:T116,">0"))/100 -> 1.282819553 | V99: =100-(T99+U99+W99) -> 3.748938536 | W99: =IF((S101+W101)>100,W101*100/(S101+W101),W101) -> 4.621093402 | X99: =IF((X101+AB101)>100,X101*100/(X101+AB101),X101) -> 95.84317332 | Y99: =X99*AVERAGEIF(Y105:Y116,">0")/100 -> 94.88474158 | Z99: =X99*(100-AVERAGEIF(Y105:Y116,">0"))/100 -> 0.9584317332 | AA99: =100-(Y99+Z99+AB99) -> 1.413566179 | AB99: =IF((X101+AB101)>100,AB101*100/(X101+AB101),AB101) -> 2.743260504
C100: 2017 | D100: =IF((D102+H102)>100,D102*100/(D102+H102),D102) -> 89.37769634 | E100: =D100*AVERAGEIF(E105:E116,">0")/100 -> 85.98134388 | F100: =D100*(100-AVERAGEIF(E105:E116,">0"))/100 -> 3.396352461 | G100: =100-(E100+F100+H100) -> 6.964640335 | H100: =IF((D102+H102)>100,H102*100/(D102+H102),H102) -> 3.657663322 | I100: =IF((I102+M102)>100,I102*100/(I102+M102),I102) -> 94.41926321 | J100: =I100*AVERAGEIF(J105:J116,">0")/100 -> 91.39784679 | K100: =I100*(100-AVERAGEIF(J105:J116,">0"))/100 -> 3.021416423 | L100: =100-(J100+K100+M100) -> 3.447441087 | M100: =IF((I102+M102)>100,M102*100/(I102+M102),M102) -> 2.133295703 | N100: =IF((N102+R102)>100,N102*100/(N102+R102),N102) -> 98.40908605 | O100: =N100*AVERAGEIF(O105:O116,">0")/100 -> 98.40908605 | P100: =N100*(100-AVERAGEIF(O105:O116,">0"))/100 -> 0 | Q100: =100-(O100+P100+R100) -> 0.6745078013 | R100: =IF((N102+R102)>100,R102*100/(N102+R102),R102) -> 0.9164061536 | S100: =IF((S102+W102)>100,S102*100/(S102+W102),S102) -> 96.30481205 | T100: =S100*AVERAGEIF(T105:T116,">0")/100 -> 94.95654468 | U100: =S100*(100-AVERAGEIF(T105:T116,">0"))/100 -> 1.348267369 | V100: =100-(T100+U100+W100) -> 2.755894254 | W100: =IF((S102+W102)>100,W102*100/(S102+W102),W102) -> 0.9392936973 | X100: =IF((X102+AB102)>100,X102*100/(X102+AB102),X102) -> 98.96553687 | Y100: =X100*AVERAGEIF(Y105:Y116,">0")/100 -> 97.97588151 | Z100: =X100*(100-AVERAGEIF(Y105:Y116,">0"))/100 -> 0.9896553687 | AA100: =100-(Y100+Z100+AB100) -> 1.034463126 | AB100: =IF((X102+AB102)>100,AB102*100/(X102+AB102),AB102) -> 0
A101: Regression period: | C101: =MinRegYear(C99,C105:C116) -> 2000 | D101: =IF(MAX(C105:C116)-MIN(C105:C116)<5,AVERAGEIF(C105:C116,">0",D105:D116), IF(FORECAST($C101,D$105:D$116,$C$105:$C$116)<0,0, IF(FORECAST($C101,D$105:D$116,$C$105:$C$116)>100,100, FORECAST($C101,D$105:D$116,$C$105:$C$116)))) -> 90.85787034 | H101: =IF(MAX(C105:C116)-MIN(C105:C116)<5,AVERAGEIF(C105:C116,">0",H105:H116), IF(FORECAST($C101,H$105:H$116,$C$105:$C$116)<0,0, IF(FORECAST($C101,H$105:H$116,$C$105:$C$116)>100,100, FORECAST($C101,H$105:H$116,$C$105:$C$116)))) -> 3.150931359 | I101: =IF(MAX(C105:C116)-MIN(C105:C116)<5,AVERAGEIF(C105:C116,">0",I105:I116), IF(FORECAST($C101,I$105:I$116,$C$105:$C$116)<0,0, IF(FORECAST($C101,I$105:I$116,$C$105:$C$116)>100,100, FORECAST($C101,I$105:I$116,$C$105:$C$116)))) -> 93.03110235 | M101: =IF(MAX(C105:C116)-MIN(C105:C116)<5,AVERAGEIF(C105:C116,">0",M105:M116), IF(FORECAST($C101,M$105:M$116,$C$105:$C$116)<0,0, IF(FORECAST($C101,M$105:M$116,$C$105:$C$116)>100,100, FORECAST($C101,M$105:M$116,$C$105:$C$116)))) -> 4.462571024 | N101: =IF(MAX(C105:C116)-MIN(C105:C116)<5,AVERAGEIF(C105:C116,">0",N105:N116), IF(FORECAST($C101,N$105:N$116,$C$105:$C$116)<0,0, IF(FORECAST($C101,N$105:N$116,$C$105:$C$116)>100,100, FORECAST($C101,N$105:N$116,$C$105:$C$116)))) -> 92.67827161 | R101: =IF(MAX(C105:C116)-MIN(C105:C116)<5,AVERAGEIF(C105:C116,">0",R105:R116), IF(FORECAST($C101,R$105:R$116,$C$105:$C$116)<0,0, IF(FORECAST($C101,R$105:R$116,$C$105:$C$116)>100,100, FORECAST($C101,R$105:R$116,$C$105:$C$116)))) -> 3.69085535 | S101: =IF(MAX(C105:C116)-MIN(C105:C116)<5,AVERAGEIF(C105:C116,">0",S105:S116), IF(FORECAST($C101,S$105:S$116,$C$105:$C$116)<0,0, IF(FORECAST($C101,S$105:S$116,$C$105:$C$116)>100,100, FORECAST($C101,S$105:S$116,$C$105:$C$116)))) -> 91.62996806 | W101: =IF(MAX(C105:C116)-MIN(C105:C116)<5,AVERAGEIF(C105:C116,">0",W105:W116), IF(FORECAST($C101,W$105:W$116,$C$105:$C$116)<0,0, IF(FORECAST($C101,W$105:W$116,$C$105:$C$116)>100,100, FORECAST($C101,W$105:W$116,$C$105:$C$116)))) -> 4.621093402 | X101: =IF(MAX(C105:C116)-MIN(C105:C116)<5,AVERAGEIF(C105:C116,">0",X105:X116), IF(FORECAST($C101,X$105:X$116,$C$105:$C$116)<0,0, IF(FORECAST($C101,X$105:X$116,$C$105:$C$116)>100,100, FORECAST($C101,X$105:X$116,$C$105:$C$116)))) -> 95.84317332 | AB101: =IF(MAX(C105:C116)-MIN(C105:C116)<5,AVERAGEIF(C105:C116,">0",AB105:AB116), IF(FORECAST($C101,AB$105:AB$116,$C$105:$C$116)<0,0, IF(FORECAST($C101,AB$105:AB$116,$C$105:$C$116)>100,100, FORECAST($C101,AB$105:AB$116,$C$105:$C$116)))) -> 2.743260504
C102: =MaxRegYear(C100,C105:C116) -> 2013 | D102: =IF(MAX(C105:C116)-MIN(C105:C116)<5,AVERAGEIF(C105:C116,">0",D105:D116), IF(FORECAST($C102,D$105:D$116,$C$105:$C$116)<0,0, IF(FORECAST($C102,D$105:D$116,$C$105:$C$116)>100,100, FORECAST($C102,D$105:D$116,$C$105:$C$116)))) -> 89.37769634 | H102: =IF(MAX(C105:C116)-MIN(C105:C116)<5,AVERAGEIF(C105:C116,">0",H105:H116), IF(FORECAST($C102,H$105:H$116,$C$105:$C$116)<0,0, IF(FORECAST($C102,H$105:H$116,$C$105:$C$116)>100,100, FORECAST($C102,H$105:H$116,$C$105:$C$116)))) -> 3.657663322 | I102: =IF(MAX(C105:C116)-MIN(C105:C116)<5,AVERAGEIF(C105:C116,">0",I105:I116), IF(FORECAST($C102,I$105:I$116,$C$105:$C$116)<0,0, IF(FORECAST($C102,I$105:I$116,$C$105:$C$116)>100,100, FORECAST($C102,I$105:I$116,$C$105:$C$116)))) -> 94.41926321 | M102: =IF(MAX(C105:C116)-MIN(C105:C116)<5,AVERAGEIF(C105:C116,">0",M105:M116), IF(FORECAST($C102,M$105:M$116,$C$105:$C$116)<0,0, IF(FORECAST($C102,M$105:M$116,$C$105:$C$116)>100,100, FORECAST($C102,M$105:M$116,$C$105:$C$116)))) -> 2.133295703 | N102: =IF(MAX(C105:C116)-MIN(C105:C116)<5,AVERAGEIF(C105:C116,">0",N105:N116), IF(FORECAST($C102,N$105:N$116,$C$105:$C$116)<0,0, IF(FORECAST($C102,N$105:N$116,$C$105:$C$116)>100,100, FORECAST($C102,N$105:N$116,$C$105:$C$116)))) -> 98.40908605 | R102: =IF(MAX(C105:C116)-MIN(C105:C116)<5,AVERAGEIF(C105:C116,">0",R105:R116), IF(FORECAST($C102,R$105:R$116,$C$105:$C$116)<0,0, IF(FORECAST($C102,R$105:R$116,$C$105:$C$116)>100,100, FORECAST($C102,R$105:R$116,$C$105:$C$116)))) -> 0.9164061536 | S102: =IF(MAX(C105:C116)-MIN(C105:C116)<5,AVERAGEIF(C105:C116,">0",S105:S116), IF(FORECAST($C102,S$105:S$116,$C$105:$C$116)<0,0, IF(FORECAST($C102,S$105:S$116,$C$105:$C$116)>100,100, FORECAST($C102,S$105:S$116,$C$105:$C$116)))) -> 96.30481205 | W102: =IF(MAX(C105:C116)-MIN(C105:C116)<5,AVERAGEIF(C105:C116,">0",W105:W116), IF(FORECAST($C102,W$105:W$116,$C$105:$C$116)<0,0, IF(FORECAST($C102,W$105:W$116,$C$105:$C$116)>100,100, FORECAST($C102,W$105:W$116,$C$105:$C$116)))) -> 0.9392936973 | X102: =IF(MAX(C105:C116)-MIN(C105:C116)<5,AVERAGEIF(C105:C116,">0",X105:X116), IF(FORECAST($C102,X$105:X$116,$C$105:$C$116)<0,0, IF(FORECAST($C102,X$105:X$116,$C$105:$C$116)>100,100, FORECAST($C102,X$105:X$116,$C$105:$C$116)))) -> 98.96553687 | AB102: =IF(MAX(C105:C116)-MIN(C105:C116)<5,AVERAGEIF(C105:C116,">0",AB105:AB116), IF(FORECAST($C102,AB$105:AB$116,$C$105:$C$116)<0,0, IF(FORECAST($C102,AB$105:AB$116,$C$105:$C$116)>100,100, FORECAST($C102,AB$105:AB$116,$C$105:$C$116)))) -> 0
B104: Survey | C104: Year | D104: Improved | E104: Basic | H104: Surface water | I104: Improved | J104: Basic | M104: Surface water | N104: Improved | O104: Basic | R104: Surface water | S104: Improved | T104: Basic | W104: Surface water | X104: Improved | Y104: Basic | AB104: Surface water
B105: SLC97 | C105: 1997 | D105: =IF(ISERROR(INDIRECT(CONCATENATE($B105,"!C16"))),"",INDIRECT(CONCATENATE($B105,"!C16"))) -> 92.15728279 | E105: =IF(ISERROR(INDIRECT(CONCATENATE($B105,"!C23"))),"",INDIRECT(CONCATENATE($B105,"!C23"))) -> N/A | H105: =IF(ISERROR(INDIRECT(CONCATENATE($B105,"!C21"))),"",INDIRECT(CONCATENATE($B105,"!C21"))) -> 2.642111391 | I105: =IF(ISERROR(INDIRECT(CONCATENATE($B105,"!D16"))),"",INDIRECT(CONCATENATE($B105,"!D16"))) -> 93.46847754 | J105: =IF(ISERROR(INDIRECT(CONCATENATE($B105,"!D23"))),"",INDIRECT(CONCATENATE($B105,"!D23"))) -> N/A | M105: =IF(ISERROR(INDIRECT(CONCATENATE($B105,"!D21"))),"",INDIRECT(CONCATENATE($B105,"!D21"))) -> 4.243437797 | N105: =IF(ISERROR(INDIRECT(CONCATENATE($B105,"!E16"))),"",INDIRECT(CONCATENATE($B105,"!E16"))) -> 92.30480706 | O105: =IF(ISERROR(INDIRECT(CONCATENATE($B105,"!E23"))),"",INDIRECT(CONCATENATE($B105,"!E23"))) -> N/A | R105: =IF(ISERROR(INDIRECT(CONCATENATE($B105,"!E21"))),"",INDIRECT(CONCATENATE($B105,"!E21"))) -> 3.79381506 | S105: =IF(ISERROR(INDIRECT(CONCATENATE($B105,"!F16"))),"",INDIRECT(CONCATENATE($B105,"!F16"))) -> 91.0369158 | T105: =IF(ISERROR(INDIRECT(CONCATENATE($B105,"!F23"))),"",INDIRECT(CONCATENATE($B105,"!F23"))) -> N/A | W105: =IF(ISERROR(INDIRECT(CONCATENATE($B105,"!F21"))),"",INDIRECT(CONCATENATE($B105,"!F21"))) -> 4.98844972 | X105: =IF(ISERROR(INDIRECT(CONCATENATE($B105,"!G16"))),"",INDIRECT(CONCATENATE($B105,"!G16"))) -> 95.36855858 | Y105: =IF(ISERROR(INDIRECT(CONCATENATE($B105,"!G23"))),"",INDIRECT(CONCATENATE($B105,"!G23"))) -> N/A | AB105: =IF(ISERROR(INDIRECT(CONCATENATE($B105,"!G221"))),"",INDIRECT(CONCATENATE($B105,"!G21"))) -> 3.562160169
B106: SLC07 | C106: 2007 | D106: 86.70843516 | E106: N/A | H106: 4.795373414 | I106: 91.12655358 | J106: N/A | M106: 5.856649904 | N106: 92.44248597 | O106: N/A | R106: 4.077463456 | S106: 92.44703914 | T106: N/A | W106: 4.326600058 | X106: 96.66368855 | Y106: N/A | AB106: 0.7455864773
B107: MICS11 | C107: 2011 | D107: 92 | E107: 96.2 | H107: 2.6 | I107: 96.1 | J107: 96.8 | M107: 0.6 | N107: 99.9 | O107: 100 | R107: 0 | S107: 96.8 | T107: 98.6 | W107: 0.3 | X107: 99.1 | Y107: 99 | AB107: 0.2
D111: =IF(ISERROR(INDIRECT(CONCATENATE($B111,"!C16"))),"",INDIRECT(CONCATENATE($B111,"!C16"))) ->  | E111: =IF(ISERROR(INDIRECT(CONCATENATE($B111,"!C23"))),"",INDIRECT(CONCATENATE($B111,"!C23"))) ->  | H111: =IF(ISERROR(INDIRECT(CONCATENATE($B111,"!C21"))),"",INDIRECT(CONCATENATE($B111,"!C21"))) ->  | I111: =IF(ISERROR(INDIRECT(CONCATENATE($B111,"!D16"))),"",INDIRECT(CONCATENATE($B111,"!D16"))) ->  | J111: =IF(ISERROR(INDIRECT(CONCATENATE($B111,"!D23"))),"",INDIRECT(CONCATENATE($B111,"!D23"))) ->  | M111: =IF(ISERROR(INDIRECT(CONCATENATE($B111,"!D21"))),"",INDIRECT(CONCATENATE($B111,"!D21"))) ->  | N111: =IF(ISERROR(INDIRECT(CONCATENATE($B111,"!E16"))),"",INDIRECT(CONCATENATE($B111,"!E16"))) ->  | O111: =IF(ISERROR(INDIRECT(CONCATENATE($B111,"!E23"))),"",INDIRECT(CONCATENATE($B111,"!E23"))) ->  | R111: =IF(ISERROR(INDIRECT(CONCATENATE($B111,"!E21"))),"",INDIRECT(CONCATENATE($B111,"!E21"))) ->  | S111: =IF(ISERROR(INDIRECT(CONCATENATE($B111,"!F16"))),"",INDIRECT(CONCATENATE($B111,"!F16"))) ->  | T111: =IF(ISERROR(INDIRECT(CONCATENATE($B111,"!F23"))),"",INDIRECT(CONCATENATE($B111,"!F23"))) ->  | W111: =IF(ISERROR(INDIRECT(CONCATENATE($B111,"!F21"))),"",INDIRECT(CONCATENATE($B111,"!F21"))) ->  | X111: =IF(ISERROR(INDIRECT(CONCATENATE($B111,"!G16"))),"",INDIRECT(CONCATENATE($B111,"!G16"))) ->  | Y111: =IF(ISERROR(INDIRECT(CONCATENATE($B111,"!G23"))),"",INDIRECT(CONCATENATE($B111,"!G23"))) ->  | AB111: =IF(ISERROR(INDIRECT(CONCATENATE($B111,"!G221"))),"",INDIRECT(CONCATENATE($B111,"!G21"))) -> 
D112: =IF(ISERROR(INDIRECT(CONCATENATE($B112,"!C16"))),"",INDIRECT(CONCATENATE($B112,"!C16"))) ->  | E112: =IF(ISERROR(INDIRECT(CONCATENATE($B112,"!C23"))),"",INDIRECT(CONCATENATE($B112,"!C23"))) ->  | H112: =IF(ISERROR(INDIRECT(CONCATENATE($B112,"!C21"))),"",INDIRECT(CONCATENATE($B112,"!C21"))) ->  | I112: =IF(ISERROR(INDIRECT(CONCATENATE($B112,"!D16"))),"",INDIRECT(CONCATENATE($B112,"!D16"))) ->  | J112: =IF(ISERROR(INDIRECT(CONCATENATE($B112,"!D23"))),"",INDIRECT(CONCATENATE($B112,"!D23"))) ->  | M112: =IF(ISERROR(INDIRECT(CONCATENATE($B112,"!D21"))),"",INDIRECT(CONCATENATE($B112,"!D21"))) ->  | N112: =IF(ISERROR(INDIRECT(CONCATENATE($B112,"!E16"))),"",INDIRECT(CONCATENATE($B112,"!E16"))) ->  | O112: =IF(ISERROR(INDIRECT(CONCATENATE($B112,"!E23"))),"",INDIRECT(CONCATENATE($B112,"!E23"))) ->  | R112: =IF(ISERROR(INDIRECT(CONCATENATE($B112,"!E21"))),"",INDIRECT(CONCATENATE($B112,"!E21"))) ->  | S112: =IF(ISERROR(INDIRECT(CONCATENATE($B112,"!F16"))),"",INDIRECT(CONCATENATE($B112,"!F16"))) ->  | T112: =IF(ISERROR(INDIRECT(CONCATENATE($B112,"!F23"))),"",INDIRECT(CONCATENATE($B112,"!F23"))) ->  | W112: =IF(ISERROR(INDIRECT(CONCATENATE($B112,"!F21"))),"",INDIRECT(CONCATENATE($B112,"!F21"))) ->  | X112: =IF(ISERROR(INDIRECT(CONCATENATE($B112,"!G16"))),"",INDIRECT(CONCATENATE($B112,"!G16"))) ->  | Y112: =IF(ISERROR(INDIRECT(CONCATENATE($B112,"!G23"))),"",INDIRECT(CONCATENATE($B112,"!G23"))) ->  | AB112: =IF(ISERROR(INDIRECT(CONCATENATE($B112,"!G221"))),"",INDIRECT(CONCATENATE($B112,"!G21"))) -> 
B118: =CONCATENATE("National use of drinking water sources, ",C99,"–",C100) -> National use of drinking water sources, 2000–2017 | S118: Data points used for regression
E153: =IF(ISERROR(INDIRECT(CONCATENATE($B153,"!M18"))),"",INDIRECT(CONCATENATE($B153,"!M18"))) ->  | F153: =IF(ISERROR(INDIRECT(CONCATENATE($B153,"!M19"))),"",INDIRECT(CONCATENATE($B153,"!M19"))) ->  | G153: =IF(ISERROR(INDIRECT(CONCATENATE($B153,"!M20"))),"",INDIRECT(CONCATENATE($B153,"!M20"))) ->  | H153: =IF(ISERROR(INDIRECT(CONCATENATE($B153,"!M21"))),"",INDIRECT(CONCATENATE($B153,"!M21"))) ->  | J153: =IF(ISERROR(INDIRECT(CONCATENATE($B153,"!N18"))),"",INDIRECT(CONCATENATE($B153,"!N18"))) ->  | K153: =IF(ISERROR(INDIRECT(CONCATENATE($B153,"!N19"))),"",INDIRECT(CONCATENATE($B153,"!N19"))) ->  | L153: =IF(ISERROR(INDIRECT(CONCATENATE($B153,"!N20"))),"",INDIRECT(CONCATENATE($B153,"!N20"))) ->  | M153: =IF(ISERROR(INDIRECT(CONCATENATE($B153,"!N21"))),"",INDIRECT(CONCATENATE($B153,"!N21"))) ->  | O153: =IF(ISERROR(INDIRECT(CONCATENATE($B153,"!O18"))),"",INDIRECT(CONCATENATE($B153,"!O18"))) ->  | P153: =IF(ISERROR(INDIRECT(CONCATENATE($B153,"!O19"))),"",INDIRECT(CONCATENATE($B153,"!O19"))) ->  | Q153: =IF(ISERROR(INDIRECT(CONCATENATE($B153,"!O20"))),"",INDIRECT(CONCATENATE($B153,"!O20"))) ->  | R153: =IF(ISERROR(INDIRECT(CONCATENATE($B153,"!O21"))),"",INDIRECT(CONCATENATE($B153,"!O21"))) ->  | T153: =IF(ISERROR(INDIRECT(CONCATENATE($B153,"!P18"))),"",INDIRECT(CONCATENATE($B153,"!P18"))) ->  | U153: =IF(ISERROR(INDIRECT(CONCATENATE($B153,"!P19"))),"",INDIRECT(CONCATENATE($B153,"!P19"))) ->  | V153: =IF(ISERROR(INDIRECT(CONCATENATE($B153,"!P20"))),"",INDIRECT(CONCATENATE($B153,"!P20"))) ->  | W153: =IF(ISERROR(INDIRECT(CONCATENATE($B153,"!P21"))),"",INDIRECT(CONCATENATE($B153,"!P21"))) ->  | Y153: =IF(ISERROR(INDIRECT(CONCATENATE($B153,"!Q18"))),"",INDIRECT(CONCATENATE($B153,"!Q18"))) ->  | Z153: =IF(ISERROR(INDIRECT(CONCATENATE($B153,"!Q19"))),"",INDIRECT(CONCATENATE($B153,"!Q19"))) ->  | AA153: =IF(ISERROR(INDIRECT(CONCATENATE($B153,"!Q20"))),"",INDIRECT(CONCATENATE($B153,"!Q20"))) ->  | AB153: =IF(ISERROR(INDIRECT(CONCATENATE($B153,"!Q21"))),"",INDIRECT(CONCATENATE($B153,"!Q1"))) -> 
A197: URBAN | D197: Poorest | I197: Poor | N197: Middle | S197: Rich | X197: Richest
D198: Improved | E198: Basic | F198: Limited | G198: Unimproved | H198: Surface water | I198: Improved | J198: Basic | K198: Limited | L198: Unimproved | M198: Surface water | N198: Improved | O198: Basic | P198: Limited | Q198: Unimproved | R198: Surface water | S198: Improved | T198: Basic | U198: Limited | V198: Unimproved | W198: Surface water | X198: Improved | Y198: Basic | Z198: Limited | AA198: Unimproved | AB198: Surface water
A199: Forecast period: | C199: 2000 | D199: =IF((D201+H201)>100,D201*100/(D201+H201),D201) -> 95.17261051 | E199: =D199*AVERAGEIF(E205:E216,">0")/100 -> 94.2208844 | F199: =D199*(100-AVERAGEIF(E205:E216,">0"))/100 -> 0.9517261051 | G199: =100-(E199+F199+H199) -> 4.693914129 | H199: =IF((D201+H201)>100,H201*100/(D201+H201),H201) -> 0.1334753643 | I199: =IF((I201+M201)>100,I201*100/(I201+M201),I201) -> 98.25416942 | J199: =I199*AVERAGEIF(J205:J216,">0")/100 -> 98.05766108 | K199: =I199*(100-AVERAGEIF(J205:J216,">0"))/100 -> 0.1965083388 | L199: =100-(J199+K199+M199) -> 1.213854003 | M199: =IF((I201+M201)>100,M201*100/(I201+M201),M201) -> 0.5319765797 | N199: =IF((N201+R201)>100,N201*100/(N201+R201),N201) -> 98.39942342 | O199: =N199*AVERAGEIF(O205:O216,">0")/100 -> 97.51382861 | P199: =N199*(100-AVERAGEIF(O205:O216,">0"))/100 -> 0.8855948108 | Q199: =100-(O199+P199+R199) -> 1.60057658 | R199: =IF((N201+R201)>100,R201*100/(N201+R201),R201) -> 0 | S199: =IF((S201+W201)>100,S201*100/(S201+W201),S201) -> 97.58890235 | T199: =S199*AVERAGEIF(T205:T216,">0")/100 -> 96.61301333 | U199: =S199*(100-AVERAGEIF(T205:T216,">0"))/100 -> 0.9758890235 | V199: =100-(T199+U199+W199) -> 2.309673241 | W199: =IF((S201+W201)>100,W201*100/(S201+W201),W201) -> 0.1014244057 | X199: =IF((X201+AB201)>100,X201*100/(X201+AB201),X201) -> 98.60515743 | Y199: =X199*AVERAGEIF(Y205:Y216,">0")/100 -> 98.60515743 | Z199: =X199*(100-AVERAGEIF(Y205:Y216,">0"))/100 -> 0 | AA199: =100-(Y199+Z199+AB199) -> 1.394842574 | AB199: =IF((X201+AB201)>100,AB201*100/(X201+AB201),AB201) -> 0
C200: 2017 | D200: =IF((D202+H202)>100,D202*100/(D202+H202),D202) -> 95.66483972 | E200: =D200*AVERAGEIF(E205:E216,">0")/100 -> 94.70819133 | F200: =D200*(100-AVERAGEIF(E205:E216,">0"))/100 -> 0.9566483972 | G200: =100-(E200+F200+H200) -> 4.060994663 | H200: =IF((D202+H202)>100,H202*100/(D202+H202),H202) -> 0.2741656132 | I200: =IF((I202+M202)>100,I202*100/(I202+M202),I202) -> 99.46297024 | J200: =I200*AVERAGEIF(J205:J216,">0")/100 -> 99.2640443 | K200: =I200*(100-AVERAGEIF(J205:J216,">0"))/100 -> 0.1989259405 | L200: =100-(J200+K200+M200) -> 0.5370297584 | M200: =IF((I202+M202)>100,M202*100/(I202+M202),M202) -> 0 | N200: =IF((N202+R202)>100,N202*100/(N202+R202),N202) -> 98.4686609 | O200: =N200*AVERAGEIF(O205:O216,">0")/100 -> 97.58244296 | P200: =N200*(100-AVERAGEIF(O205:O216,">0"))/100 -> 0.8862179481 | Q200: =100-(O200+P200+R200) -> 1.531339095 | R200: =IF((N202+R202)>100,R202*100/(N202+R202),R202) -> 0 | S200: =IF((S202+W202)>100,S202*100/(S202+W202),S202) -> 99.7921019 | T200: =S200*AVERAGEIF(T205:T216,">0")/100 -> 98.79418089 | U200: =S200*(100-AVERAGEIF(T205:T216,">0"))/100 -> 0.997921019 | V200: =100-(T200+U200+W200) -> 0 | W200: =IF((S202+W202)>100,W202*100/(S202+W202),W202) -> 0.2078980951 | X200: =IF((X202+AB202)>100,X202*100/(X202+AB202),X202) -> 97.82302998 | Y200: =X200*AVERAGEIF(Y205:Y216,">0")/100 -> 97.82302998 | Z200: =X200*(100-AVERAGEIF(Y205:Y216,">0"))/100 -> 0 | AA200: =100-(Y200+Z200+AB200) -> 2.176970024 | AB200: =IF((X202+AB202)>100,AB202*100/(X202+AB202),AB202) -> 0
A201: Regression period: | C201: =MinRegYear(C199,C205:C216) -> 2000 | D201: =IF(MAX(C205:C216)-MIN(C205:C216)<5,AVERAGEIF(C205:C216,">0",D205:D216), IF(FORECAST($C201,D$205:D$216,$C$205:$C$216)<0,0, IF(FORECAST($C201,D$205:D$216,$C$205:$C$216)>100,100, FORECAST($C201,D$205:D$216,$C$205:$C$216)))) -> 95.17261051 | H201: =IF(MAX(C205:C216)-MIN(C205:C216)<5,AVERAGEIF(C205:C216,">0",H205:H216), IF(FORECAST($C201,H$205:H$216,$C$205:$C$216)<0,0, IF(FORECAST($C201,H$205:H$216,$C$205:$C$216)>100,100, FORECAST($C201,H$205:H$216,$C$205:$C$216)))) -> 0.1334753643 | I201: =IF(MAX(C205:C216)-MIN(C205:C216)<5,AVERAGEIF(C205:C216,">0",I205:I216), IF(FORECAST($C201,I$205:I$216,$C$205:$C$216)<0,0, IF(FORECAST($C201,I$205:I$216,$C$205:$C$216)>100,100, FORECAST($C201,I$205:I$216,$C$205:$C$216)))) -> 98.25416942 | M201: =IF(MAX(C205:C216)-MIN(C205:C216)<5,AVERAGEIF(C205:C216,">0",M205:M216), IF(FORECAST($C201,M$205:M$216,$C$205:$C$216)<0,0, IF(FORECAST($C201,M$205:M$216,$C$205:$C$216)>100,100, FORECAST($C201,M$205:M$216,$C$205:$C$216)))) -> 0.5319765797 | N201: =IF(MAX(C205:C216)-MIN(C205:C216)<5,AVERAGEIF(C205:C216,">0",N205:N216), IF(FORECAST($C201,N$205:N$216,$C$205:$C$216)<0,0, IF(FORECAST($C201,N$205:N$216,$C$205:$C$216)>100,100, FORECAST($C201,N$205:N$216,$C$205:$C$216)))) -> 98.39942342 | R201: =IF(MAX(C205:C216)-MIN(C205:C216)<5,AVERAGEIF(C205:C216,">0",R205:R216), IF(FORECAST($C201,R$205:R$216,$C$205:$C$216)<0,0, IF(FORECAST($C201,R$205:R$216,$C$205:$C$216)>100,100, FORECAST($C201,R$205:R$216,$C$205:$C$216)))) -> 0 | S201: =IF(MAX(C205:C216)-MIN(C205:C216)<5,AVERAGEIF(C205:C216,">0",S205:S216), IF(FORECAST($C201,S$205:S$216,$C$205:$C$216)<0,0, IF(FORECAST($C201,S$205:S$216,$C$205:$C$216)>100,100, FORECAST($C201,S$205:S$216,$C$205:$C$216)))) -> 97.58890235 | W201: =IF(MAX(C205:C216)-MIN(C205:C216)<5,AVERAGEIF(C205:C216,">0",W205:W216), IF(FORECAST($C201,W$205:W$216,$C$205:$C$216)<0,0, IF(FORECAST($C201,W$205:W$216,$C$205:$C$216)>100,100, FORECAST($C201,W$205:W$216,$C$205:$C$216)))) -> 0.1014244057 | X201: =IF(MAX(C205:C216)-MIN(C205:C216)<5,AVERAGEIF(C205:C216,">0",X205:X216), IF(FORECAST($C201,X$205:X$216,$C$205:$C$216)<0,0, IF(FORECAST($C201,X$205:X$216,$C$205:$C$216)>100,100, FORECAST($C201,X$205:X$216,$C$205:$C$216)))) -> 98.60515743 | AB201: =IF(MAX(C205:C216)-MIN(C205:C216)<5,AVERAGEIF(C205:C216,">0",AB205:AB216), IF(FORECAST($C201,AB$205:AB$216,$C$205:$C$216)<0,0, IF(FORECAST($C201,AB$205:AB$216,$C$205:$C$216)>100,100, FORECAST($C201,AB$205:AB$216,$C$205:$C$216)))) -> 0
C202: =MaxRegYear(C200,C205:C216) -> 2013 | D202: =IF(MAX(C205:C216)-MIN(C205:C216)<5,AVERAGEIF(C205:C216,">0",D205:D216), IF(FORECAST($C202,D$205:D$216,$C$205:$C$216)<0,0, IF(FORECAST($C202,D$205:D$216,$C$205:$C$216)>100,100, FORECAST($C202,D$205:D$216,$C$205:$C$216)))) -> 95.66483972 | H202: =IF(MAX(C205:C216)-MIN(C205:C216)<5,AVERAGEIF(C205:C216,">0",H205:H216), IF(FORECAST($C202,H$205:H$216,$C$205:$C$216)<0,0, IF(FORECAST($C202,H$205:H$216,$C$205:$C$216)>100,100, FORECAST($C202,H$205:H$216,$C$205:$C$216)))) -> 0.2741656132 | I202: =IF(MAX(C205:C216)-MIN(C205:C216)<5,AVERAGEIF(C205:C216,">0",I205:I216), IF(FORECAST($C202,I$205:I$216,$C$205:$C$216)<0,0, IF(FORECAST($C202,I$205:I$216,$C$205:$C$216)>100,100, FORECAST($C202,I$205:I$216,$C$205:$C$216)))) -> 99.46297024 | M202: =IF(MAX(C205:C216)-MIN(C205:C216)<5,AVERAGEIF(C205:C216,">0",M205:M216), IF(FORECAST($C202,M$205:M$216,$C$205:$C$216)<0,0, IF(FORECAST($C202,M$205:M$216,$C$205:$C$216)>100,100, FORECAST($C202,M$205:M$216,$C$205:$C$216)))) -> 0 | N202: =IF(MAX(C205:C216)-MIN(C205:C216)<5,AVERAGEIF(C205:C216,">0",N205:N216), IF(FORECAST($C202,N$205:N$216,$C$205:$C$216)<0,0, IF(FORECAST($C202,N$205:N$216,$C$205:$C$216)>100,100, FORECAST($C202,N$205:N$216,$C$205:$C$216)))) -> 98.4686609 | R202: =IF(MAX(C205:C216)-MIN(C205:C216)<5,AVERAGEIF(C205:C216,">0",R205:R216), IF(FORECAST($C202,R$205:R$216,$C$205:$C$216)<0,0, IF(FORECAST($C202,R$205:R$216,$C$205:$C$216)>100,100, FORECAST($C202,R$205:R$216,$C$205:$C$216)))) -> 0 | S202: =IF(MAX(C205:C216)-MIN(C205:C216)<5,AVERAGEIF(C205:C216,">0",S205:S216), IF(FORECAST($C202,S$205:S$216,$C$205:$C$216)<0,0, IF(FORECAST($C202,S$205:S$216,$C$205:$C$216)>100,100, FORECAST($C202,S$205:S$216,$C$205:$C$216)))) -> 100 | W202: =IF(MAX(C205:C216)-MIN(C205:C216)<5,AVERAGEIF(C205:C216,">0",W205:W216), IF(FORECAST($C202,W$205:W$216,$C$205:$C$216)<0,0, IF(FORECAST($C202,W$205:W$216,$C$205:$C$216)>100,100, FORECAST($C202,W$205:W$216,$C$205:$C$216)))) -> 0.2083312117 | X202: =IF(MAX(C205:C216)-MIN(C205:C216)<5,AVERAGEIF(C205:C216,">0",X205:X216), IF(FORECAST($C202,X$205:X$216,$C$205:$C$216)<0,0, IF(FORECAST($C202,X$205:X$216,$C$205:$C$216)>100,100, FORECAST($C202,X$205:X$216,$C$205:$C$216)))) -> 97.82302998 | AB202: =IF(MAX(C205:C216)-MIN(C205:C216)<5,AVERAGEIF(C205:C216,">0",AB205:AB216), IF(FORECAST($C202,AB$205:AB$216,$C$205:$C$216)<0,0, IF(FORECAST($C202,AB$205:AB$216,$C$205:$C$216)>100,100, FORECAST($C202,AB$205:AB$216,$C$205:$C$216)))) -> 0
B204: Survey | C204: Year | D204: Improved | E204: Basic | H204: Surface water | I204: Improved | J204: Basic | M204: Surface water | N204: Improved | O204: Basic | R204: Surface water | S204: Improved | T204: Basic | W204: Surface water | X204: Improved | Y204: Basic | AB204: Surface water
B205: SLC97 | C205: 1997 | D205: =IF(ISERROR(INDIRECT(CONCATENATE($B205,"!H16"))),"",INDIRECT(CONCATENATE($B205,"!H16"))) -> 96.30337429 | E205: =IF(ISERROR(INDIRECT(CONCATENATE($B205,"!H23"))),"",INDIRECT(CONCATENATE($B205,"!H23"))) -> N/A | H205: =IF(ISERROR(INDIRECT(CONCATENATE($B205,"!H21"))),"",INDIRECT(CONCATENATE($B205,"!H21"))) -> 0 | I205: =IF(ISERROR(INDIRECT(CONCATENATE($B205,"!I16"))),"",INDIRECT(CONCATENATE($B205,"!I16"))) -> 98.14441503 | J205: =IF(ISERROR(INDIRECT(CONCATENATE($B205,"!I23"))),"",INDIRECT(CONCATENATE($B205,"!I23"))) -> N/A | M205: =IF(ISERROR(INDIRECT(CONCATENATE($B205,"!I21"))),"",INDIRECT(CONCATENATE($B205,"!I21"))) -> 0.7409673789 | N205: =IF(ISERROR(INDIRECT(CONCATENATE($B205,"!J16"))),"",INDIRECT(CONCATENATE($B205,"!J16"))) -> 99.00024194 | O205: =IF(ISERROR(INDIRECT(CONCATENATE($B205,"!J23"))),"",INDIRECT(CONCATENATE($B205,"!J23"))) -> N/A | R205: =IF(ISERROR(INDIRECT(CONCATENATE($B205,"!J21"))),"",INDIRECT(CONCATENATE($B205,"!J21"))) -> 0 | S205: =IF(ISERROR(INDIRECT(CONCATENATE($B205,"!K16"))),"",INDIRECT(CONCATENATE($B205,"!K16"))) -> 96.78295513 | T205: =IF(ISERROR(INDIRECT(CONCATENATE($B205,"!K23"))),"",INDIRECT(CONCATENATE($B205,"!K23"))) -> N/A | W205: =IF(ISERROR(INDIRECT(CONCATENATE($B205,"!K21"))),"",INDIRECT(CONCATENATE($B205,"!K21"))) -> 0 | X205: =IF(ISERROR(INDIRECT(CONCATENATE($B205,"!L16"))),"",INDIRECT(CONCATENATE($B205,"!L16"))) -> 99.32830547 | Y205: =IF(ISERROR(INDIRECT(CONCATENATE($B205,"!L23"))),"",INDIRECT(CONCATENATE($B205,"!L23"))) -> N/A | AB205: =IF(ISERROR(INDIRECT(CONCATENATE($B205,"!L221"))),"",INDIRECT(CONCATENATE($B205,"!L21"))) -> 0
B206: SLC07 | C206: 2007 | D206: 91.08241402 | E206: N/A | H206: 0.5627609955 | I206: 98.31286341 | J206: N/A | M206: 0 | N206: 96.27791772 | O206: N/A | R206: 0 | S206: 99.57237278 | T206: N/A | W206: 0.427627224 | X206: 96.28471206 | Y206: N/A | AB206: 0
B207: MICS11 | C207: 2011 | D207: 98.7 | E207: 99 | H207: 0 | I207: 99.7 | J207: 99.8 | M207: 0 | N207: 100 | O207: 99.1 | R207: 0 | S207: 100 | T207: 99 | W207: 0 | X207: 99.3 | Y207: 100 | AB207: 0
B218: =CONCATENATE("Urban use of drinking water sources, ",C199,"–",C200) -> Urban use of drinking water sources, 2000–2017 | S218: Data points used for regression
E253: =IF(ISERROR(INDIRECT(CONCATENATE($B253,"!M18"))),"",INDIRECT(CONCATENATE($B253,"!M18"))) ->  | F253: =IF(ISERROR(INDIRECT(CONCATENATE($B253,"!M19"))),"",INDIRECT(CONCATENATE($B253,"!M19"))) ->  | G253: =IF(ISERROR(INDIRECT(CONCATENATE($B253,"!M20"))),"",INDIRECT(CONCATENATE($B253,"!M20"))) ->  | H253: =IF(ISERROR(INDIRECT(CONCATENATE($B253,"!M21"))),"",INDIRECT(CONCATENATE($B253,"!M21"))) ->  | J253: =IF(ISERROR(INDIRECT(CONCATENATE($B253,"!N18"))),"",INDIRECT(CONCATENATE($B253,"!N18"))) ->  | K253: =IF(ISERROR(INDIRECT(CONCATENATE($B253,"!N19"))),"",INDIRECT(CONCATENATE($B253,"!N19"))) ->  | L253: =IF(ISERROR(INDIRECT(CONCATENATE($B253,"!N20"))),"",INDIRECT(CONCATENATE($B253,"!N20"))) ->  | M253: =IF(ISERROR(INDIRECT(CONCATENATE($B253,"!N21"))),"",INDIRECT(CONCATENATE($B253,"!N21"))) ->  | O253: =IF(ISERROR(INDIRECT(CONCATENATE($B253,"!O18"))),"",INDIRECT(CONCATENATE($B253,"!O18"))) ->  | P253: =IF(ISERROR(INDIRECT(CONCATENATE($B253,"!O19"))),"",INDIRECT(CONCATENATE($B253,"!O19"))) ->  | Q253: =IF(ISERROR(INDIRECT(CONCATENATE($B253,"!O20"))),"",INDIRECT(CONCATENATE($B253,"!O20"))) ->  | R253: =IF(ISERROR(INDIRECT(CONCATENATE($B253,"!O21"))),"",INDIRECT(CONCATENATE($B253,"!O21"))) ->  | T253: =IF(ISERROR(INDIRECT(CONCATENATE($B253,"!P18"))),"",INDIRECT(CONCATENATE($B253,"!P18"))) ->  | U253: =IF(ISERROR(INDIRECT(CONCATENATE($B253,"!P19"))),"",INDIRECT(CONCATENATE($B253,"!P19"))) ->  | V253: =IF(ISERROR(INDIRECT(CONCATENATE($B253,"!P20"))),"",INDIRECT(CONCATENATE($B253,"!P20"))) ->  | W253: =IF(ISERROR(INDIRECT(CONCATENATE($B253,"!P21"))),"",INDIRECT(CONCATENATE($B253,"!P21"))) ->  | Y253: =IF(ISERROR(INDIRECT(CONCATENATE($B253,"!Q18"))),"",INDIRECT(CONCATENATE($B253,"!Q18"))) ->  | Z253: =IF(ISERROR(INDIRECT(CONCATENATE($B253,"!Q19"))),"",INDIRECT(CONCATENATE($B253,"!Q19"))) ->  | AA253: =IF(ISERROR(INDIRECT(CONCATENATE($B253,"!Q20"))),"",INDIRECT(CONCATENATE($B253,"!Q20"))) ->  | AB253: =IF(ISERROR(INDIRECT(CONCATENATE($B253,"!Q21"))),"",INDIRECT(CONCATENATE($B253,"!Q1"))) -> 
E254: =IF(ISERROR(INDIRECT(CONCATENATE($B254,"!M18"))),"",INDIRECT(CONCATENATE($B254,"!M18"))) ->  | F254: =IF(ISERROR(INDIRECT(CONCATENATE($B254,"!M19"))),"",INDIRECT(CONCATENATE($B254,"!M19"))) ->  | G254: =IF(ISERROR(INDIRECT(CONCATENATE($B254,"!M20"))),"",INDIRECT(CONCATENATE($B254,"!M20"))) ->  | H254: =IF(ISERROR(INDIRECT(CONCATENATE($B254,"!M21"))),"",INDIRECT(CONCATENATE($B254,"!M21"))) ->  | J254: =IF(ISERROR(INDIRECT(CONCATENATE($B254,"!N18"))),"",INDIRECT(CONCATENATE($B254,"!N18"))) ->  | K254: =IF(ISERROR(INDIRECT(CONCATENATE($B254,"!N19"))),"",INDIRECT(CONCATENATE($B254,"!N19"))) ->  | L254: =IF(ISERROR(INDIRECT(CONCATENATE($B254,"!N20"))),"",INDIRECT(CONCATENATE($B254,"!N20"))) ->  | M254: =IF(ISERROR(INDIRECT(CONCATENATE($B254,"!N21"))),"",INDIRECT(CONCATENATE($B254,"!N21"))) ->  | O254: =IF(ISERROR(INDIRECT(CONCATENATE($B254,"!O18"))),"",INDIRECT(CONCATENATE($B254,"!O18"))) ->  | P254: =IF(ISERROR(INDIRECT(CONCATENATE($B254,"!O19"))),"",INDIRECT(CONCATENATE($B254,"!O19"))) ->  | Q254: =IF(ISERROR(INDIRECT(CONCATENATE($B254,"!O20"))),"",INDIRECT(CONCATENATE($B254,"!O20"))) ->  | R254: =IF(ISERROR(INDIRECT(CONCATENATE($B254,"!O21"))),"",INDIRECT(CONCATENATE($B254,"!O21"))) ->  | T254: =IF(ISERROR(INDIRECT(CONCATENATE($B254,"!P18"))),"",INDIRECT(CONCATENATE($B254,"!P18"))) ->  | U254: =IF(ISERROR(INDIRECT(CONCATENATE($B254,"!P19"))),"",INDIRECT(CONCATENATE($B254,"!P19"))) ->  | V254: =IF(ISERROR(INDIRECT(CONCATENATE($B254,"!P20"))),"",INDIRECT(CONCATENATE($B254,"!P20"))) ->  | W254: =IF(ISERROR(INDIRECT(CONCATENATE($B254,"!P21"))),"",INDIRECT(CONCATENATE($B254,"!P21"))) ->  | Y254: =IF(ISERROR(INDIRECT(CONCATENATE($B254,"!Q18"))),"",INDIRECT(CONCATENATE($B254,"!Q18"))) ->  | Z254: =IF(ISERROR(INDIRECT(CONCATENATE($B254,"!Q19"))),"",INDIRECT(CONCATENATE($B254,"!Q19"))) ->  | AA254: =IF(ISERROR(INDIRECT(CONCATENATE($B254,"!Q20"))),"",INDIRECT(CONCATENATE($B254,"!Q20"))) ->  | AB254: =IF(ISERROR(INDIRECT(CONCATENATE($B254,"!Q21"))),"",INDIRECT(CONCATENATE($B254,"!Q1"))) -> 
E255: =IF(ISERROR(INDIRECT(CONCATENATE($B255,"!M18"))),"",INDIRECT(CONCATENATE($B255,"!M18"))) ->  | F255: =IF(ISERROR(INDIRECT(CONCATENATE($B255,"!M19"))),"",INDIRECT(CONCATENATE($B255,"!M19"))) ->  | G255: =IF(ISERROR(INDIRECT(CONCATENATE($B255,"!M20"))),"",INDIRECT(CONCATENATE($B255,"!M20"))) ->  | H255: =IF(ISERROR(INDIRECT(CONCATENATE($B255,"!M21"))),"",INDIRECT(CONCATENATE($B255,"!M21"))) ->  | J255: =IF(ISERROR(INDIRECT(CONCATENATE($B255,"!N18"))),"",INDIRECT(CONCATENATE($B255,"!N18"))) ->  | K255: =IF(ISERROR(INDIRECT(CONCATENATE($B255,"!N19"))),"",INDIRECT(CONCATENATE($B255,"!N19"))) ->  | L255: =IF(ISERROR(INDIRECT(CONCATENATE($B255,"!N20"))),"",INDIRECT(CONCATENATE($B255,"!N20"))) ->  | M255: =IF(ISERROR(INDIRECT(CONCATENATE($B255,"!N21"))),"",INDIRECT(CONCATENATE($B255,"!N21"))) ->  | O255: =IF(ISERROR(INDIRECT(CONCATENATE($B255,"!O18"))),"",INDIRECT(CONCATENATE($B255,"!O18"))) ->  | P255: =IF(ISERROR(INDIRECT(CONCATENATE($B255,"!O19"))),"",INDIRECT(CONCATENATE($B255,"!O19"))) ->  | Q255: =IF(ISERROR(INDIRECT(CONCATENATE($B255,"!O20"))),"",INDIRECT(CONCATENATE($B255,"!O20"))) ->  | R255: =IF(ISERROR(INDIRECT(CONCATENATE($B255,"!O21"))),"",INDIRECT(CONCATENATE($B255,"!O21"))) ->  | T255: =IF(ISERROR(INDIRECT(CONCATENATE($B255,"!P18"))),"",INDIRECT(CONCATENATE($B255,"!P18"))) ->  | U255: =IF(ISERROR(INDIRECT(CONCATENATE($B255,"!P19"))),"",INDIRECT(CONCATENATE($B255,"!P19"))) ->  | V255: =IF(ISERROR(INDIRECT(CONCATENATE($B255,"!P20"))),"",INDIRECT(CONCATENATE($B255,"!P20"))) ->  | W255: =IF(ISERROR(INDIRECT(CONCATENATE($B255,"!P21"))),"",INDIRECT(CONCATENATE($B255,"!P21"))) ->  | Y255: =IF(ISERROR(INDIRECT(CONCATENATE($B255,"!Q18"))),"",INDIRECT(CONCATENATE($B255,"!Q18"))) ->  | Z255: =IF(ISERROR(INDIRECT(CONCATENATE($B255,"!Q19"))),"",INDIRECT(CONCATENATE($B255,"!Q19"))) ->  | AA255: =IF(ISERROR(INDIRECT(CONCATENATE($B255,"!Q20"))),"",INDIRECT(CONCATENATE($B255,"!Q20"))) ->  | AB255: =IF(ISERROR(INDIRECT(CONCATENATE($B255,"!Q21"))),"",INDIRECT(CONCATENATE($B255,"!Q1"))) -> 
E256: =IF(ISERROR(INDIRECT(CONCATENATE($B256,"!M18"))),"",INDIRECT(CONCATENATE($B256,"!M18"))) ->  | F256: =IF(ISERROR(INDIRECT(CONCATENATE($B256,"!M19"))),"",INDIRECT(CONCATENATE($B256,"!M19"))) ->  | G256: =IF(ISERROR(INDIRECT(CONCATENATE($B256,"!M20"))),"",INDIRECT(CONCATENATE($B256,"!M20"))) ->  | H256: =IF(ISERROR(INDIRECT(CONCATENATE($B256,"!M21"))),"",INDIRECT(CONCATENATE($B256,"!M21"))) ->  | J256: =IF(ISERROR(INDIRECT(CONCATENATE($B256,"!N18"))),"",INDIRECT(CONCATENATE($B256,"!N18"))) ->  | K256: =IF(ISERROR(INDIRECT(CONCATENATE($B256,"!N19"))),"",INDIRECT(CONCATENATE($B256,"!N19"))) ->  | L256: =IF(ISERROR(INDIRECT(CONCATENATE($B256,"!N20"))),"",INDIRECT(CONCATENATE($B256,"!N20"))) ->  | M256: =IF(ISERROR(INDIRECT(CONCATENATE($B256,"!N21"))),"",INDIRECT(CONCATENATE($B256,"!N21"))) ->  | O256: =IF(ISERROR(INDIRECT(CONCATENATE($B256,"!O18"))),"",INDIRECT(CONCATENATE($B256,"!O18"))) ->  | P256: =IF(ISERROR(INDIRECT(CONCATENATE($B256,"!O19"))),"",INDIRECT(CONCATENATE($B256,"!O19"))) ->  | Q256: =IF(ISERROR(INDIRECT(CONCATENATE($B256,"!O20"))),"",INDIRECT(CONCATENATE($B256,"!O20"))) ->  | R256: =IF(ISERROR(INDIRECT(CONCATENATE($B256,"!O21"))),"",INDIRECT(CONCATENATE($B256,"!O21"))) ->  | T256: =IF(ISERROR(INDIRECT(CONCATENATE($B256,"!P18"))),"",INDIRECT(CONCATENATE($B256,"!P18"))) ->  | U256: =IF(ISERROR(INDIRECT(CONCATENATE($B256,"!P19"))),"",INDIRECT(CONCATENATE($B256,"!P19"))) ->  | V256: =IF(ISERROR(INDIRECT(CONCATENATE($B256,"!P20"))),"",INDIRECT(CONCATENATE($B256,"!P20"))) ->  | W256: =IF(ISERROR(INDIRECT(CONCATENATE($B256,"!P21"))),"",INDIRECT(CONCATENATE($B256,"!P21"))) ->  | Y256: =IF(ISERROR(INDIRECT(CONCATENATE($B256,"!Q18"))),"",INDIRECT(CONCATENATE($B256,"!Q18"))) ->  | Z256: =IF(ISERROR(INDIRECT(CONCATENATE($B256,"!Q19"))),"",INDIRECT(CONCATENATE($B256,"!Q19"))) ->  | AA256: =IF(ISERROR(INDIRECT(CONCATENATE($B256,"!Q20"))),"",INDIRECT(CONCATENATE($B256,"!Q20"))) ->  | AB256: =IF(ISERROR(INDIRECT(CONCATENATE($B256,"!Q21"))),"",INDIRECT(CONCATENATE($B256,"!Q1"))) -> 
E257: =IF(ISERROR(INDIRECT(CONCATENATE($B257,"!M18"))),"",INDIRECT(CONCATENATE($B257,"!M18"))) ->  | F257: =IF(ISERROR(INDIRECT(CONCATENATE($B257,"!M19"))),"",INDIRECT(CONCATENATE($B257,"!M19"))) ->  | G257: =IF(ISERROR(INDIRECT(CONCATENATE($B257,"!M20"))),"",INDIRECT(CONCATENATE($B257,"!M20"))) ->  | H257: =IF(ISERROR(INDIRECT(CONCATENATE($B257,"!M21"))),"",INDIRECT(CONCATENATE($B257,"!M21"))) ->  | J257: =IF(ISERROR(INDIRECT(CONCATENATE($B257,"!N18"))),"",INDIRECT(CONCATENATE($B257,"!N18"))) ->  | K257: =IF(ISERROR(INDIRECT(CONCATENATE($B257,"!N19"))),"",INDIRECT(CONCATENATE($B257,"!N19"))) ->  | L257: =IF(ISERROR(INDIRECT(CONCATENATE($B257,"!N20"))),"",INDIRECT(CONCATENATE($B257,"!N20"))) ->  | M257: =IF(ISERROR(INDIRECT(CONCATENATE($B257,"!N21"))),"",INDIRECT(CONCATENATE($B257,"!N21"))) ->  | O257: =IF(ISERROR(INDIRECT(CONCATENATE($B257,"!O18"))),"",INDIRECT(CONCATENATE($B257,"!O18"))) ->  | P257: =IF(ISERROR(INDIRECT(CONCATENATE($B257,"!O19"))),"",INDIRECT(CONCATENATE($B257,"!O19"))) ->  | Q257: =IF(ISERROR(INDIRECT(CONCATENATE($B257,"!O20"))),"",INDIRECT(CONCATENATE($B257,"!O20"))) ->  | R257: =IF(ISERROR(INDIRECT(CONCATENATE($B257,"!O21"))),"",INDIRECT(CONCATENATE($B257,"!O21"))) ->  | T257: =IF(ISERROR(INDIRECT(CONCATENATE($B257,"!P18"))),"",INDIRECT(CONCATENATE($B257,"!P18"))) ->  | U257: =IF(ISERROR(INDIRECT(CONCATENATE($B257,"!P19"))),"",INDIRECT(CONCATENATE($B257,"!P19"))) ->  | V257: =IF(ISERROR(INDIRECT(CONCATENATE($B257,"!P20"))),"",INDIRECT(CONCATENATE($B257,"!P20"))) ->  | W257: =IF(ISERROR(INDIRECT(CONCATENATE($B257,"!P21"))),"",INDIRECT(CONCATENATE($B257,"!P21"))) ->  | Y257: =IF(ISERROR(INDIRECT(CONCATENATE($B257,"!Q18"))),"",INDIRECT(CONCATENATE($B257,"!Q18"))) ->  | Z257: =IF(ISERROR(INDIRECT(CONCATENATE($B257,"!Q19"))),"",INDIRECT(CONCATENATE($B257,"!Q19"))) ->  | AA257: =IF(ISERROR(INDIRECT(CONCATENATE($B257,"!Q20"))),"",INDIRECT(CONCATENATE($B257,"!Q20"))) ->  | AB257: =IF(ISERROR(INDIRECT(CONCATENATE($B257,"!Q21"))),"",INDIRECT(CONCATENATE($B257,"!Q1"))) -> 
A297: RURAL | D297: Poorest | I297: Poor | N297: Middle | S297: Rich | X297: Richest
D298: Improved | E298: Basic | F298: Limited | G298: Unimproved | H298: Surface water | I298: Improved | J298: Basic | K298: Limited | L298: Unimproved | M298: Surface water | N298: Improved | O298: Basic | P298: Limited | Q298: Unimproved | R298: Surface water | S298: Improved | T298: Basic | U298: Limited | V298: Unimproved | W298: Surface water | X298: Improved | Y298: Basic | Z298: Limited | AA298: Unimproved | AB298: Surface water
A299: Forecast period: | C299: 2000 | D299: =IF((D301+H301)>100,D301*100/(D301+H301),D301) -> 83.18504952 | E299: =D299*AVERAGEIF(E305:E316,">0")/100 -> 78.85942694 | F299: =D299*(100-AVERAGEIF(E305:E316,">0"))/100 -> 4.325622575 | G299: =100-(E299+F299+H299) -> 7.767815846 | H299: =IF((D301+H301)>100,H301*100/(D301+H301),H301) -> 9.047134638 | I299: =IF((I301+M301)>100,I301*100/(I301+M301),I301) -> 88.10768521 | J299: =I299*AVERAGEIF(J305:J316,">0")/100 -> 85.64067003 | K299: =I299*(100-AVERAGEIF(J305:J316,">0"))/100 -> 2.467015186 | L299: =100-(J299+K299+M299) -> 5.239765372 | M299: =IF((I301+M301)>100,M301*100/(I301+M301),M301) -> 6.652549413 | N299: =IF((N301+R301)>100,N301*100/(N301+R301),N301) -> 83.71196451 | O299: =N299*AVERAGEIF(O305:O316,">0")/100 -> 79.61007825 | P299: =N299*(100-AVERAGEIF(O305:O316,">0"))/100 -> 4.101886261 | Q299: =100-(O299+P299+R299) -> 5.735573831 | R299: =IF((N301+R301)>100,R301*100/(N301+R301),R301) -> 10.55246166 | S299: =IF((S301+W301)>100,S301*100/(S301+W301),S301) -> 88.49512731 | T299: =S299*AVERAGEIF(T305:T316,">0")/100 -> 87.07920527 | U299: =S299*(100-AVERAGEIF(T305:T316,">0"))/100 -> 1.415922037 | V299: =100-(T299+U299+W299) -> 4.098492387 | W299: =IF((S301+W301)>100,W301*100/(S301+W301),W301) -> 7.406380303 | X299: =IF((X301+AB301)>100,X301*100/(X301+AB301),X301) -> 93.14326851 | Y299: =X299*AVERAGEIF(Y305:Y316,">0")/100 -> 91.83926275 | Z299: =X299*(100-AVERAGEIF(Y305:Y316,">0"))/100 -> 1.304005759 | AA299: =100-(Y299+Z299+AB299) -> 1.568319222 | AB299: =IF((X301+AB301)>100,AB301*100/(X301+AB301),AB301) -> 5.288412271
C300: 2017 | D300: =IF((D302+H302)>100,D302*100/(D302+H302),D302) -> 87.65707825 | E300: =D300*AVERAGEIF(E305:E316,">0")/100 -> 83.09891018 | F300: =D300*(100-AVERAGEIF(E305:E316,">0"))/100 -> 4.558168069 | G300: =100-(E300+F300+H300) -> 7.692677001 | H300: =IF((D302+H302)>100,H302*100/(D302+H302),H302) -> 4.650244751 | I300: =IF((I302+M302)>100,I302*100/(I302+M302),I302) -> 90.65781747 | J300: =I300*AVERAGEIF(J305:J316,">0")/100 -> 88.11939858 | K300: =I300*(100-AVERAGEIF(J305:J316,">0"))/100 -> 2.538418889 | L300: =100-(J300+K300+M300) -> 4.684635597 | M300: =IF((I302+M302)>100,M302*100/(I302+M302),M302) -> 4.657546934 | N300: =IF((N302+R302)>100,N302*100/(N302+R302),N302) -> 92.06861718 | O300: =N300*AVERAGEIF(O305:O316,">0")/100 -> 87.55725494 | P300: =N300*(100-AVERAGEIF(O305:O316,">0"))/100 -> 4.511362242 | Q300: =100-(O300+P300+R300) -> 5.428082649 | R300: =IF((N302+R302)>100,R302*100/(N302+R302),R302) -> 2.503300167 | S300: =IF((S302+W302)>100,S302*100/(S302+W302),S302) -> 95.25088996 | T300: =S300*AVERAGEIF(T305:T316,">0")/100 -> 93.72687572 | U300: =S300*(100-AVERAGEIF(T305:T316,">0"))/100 -> 1.524014239 | V300: =100-(T300+U300+W300) -> 2.143349486 | W300: =IF((S302+W302)>100,W302*100/(S302+W302),W302) -> 2.605760551 | X300: =IF((X302+AB302)>100,X302*100/(X302+AB302),X302) -> 98.23661882 | Y300: =X300*AVERAGEIF(Y305:Y316,">0")/100 -> 96.86130615 | Z300: =X300*(100-AVERAGEIF(Y305:Y316,">0"))/100 -> 1.375312663 | AA300: =100-(Y300+Z300+AB300) -> 1.667266281 | AB300: =IF((X302+AB302)>100,AB302*100/(X302+AB302),AB302) -> 0.09611490278
A301: Regression period: | C301: =MinRegYear(C299,C305:C316) -> 2000 | D301: =IF(MAX(C305:C316)-MIN(C305:C316)<5,AVERAGEIF(C305:C316,">0",D305:D316), IF(FORECAST($C301,D$305:D$316,$C$305:$C$316)<0,0, IF(FORECAST($C301,D$305:D$316,$C$305:$C$316)>100,100, FORECAST($C301,D$305:D$316,$C$305:$C$316)))) -> 83.18504952 | H301: =IF(MAX(C305:C316)-MIN(C305:C316)<5,AVERAGEIF(C305:C316,">0",H305:H316), IF(FORECAST($C301,H$305:H$316,$C$305:$C$316)<0,0, IF(FORECAST($C301,H$305:H$316,$C$305:$C$316)>100,100, FORECAST($C301,H$305:H$316,$C$305:$C$316)))) -> 9.047134638 | I301: =IF(MAX(C305:C316)-MIN(C305:C316)<5,AVERAGEIF(C305:C316,">0",I305:I316), IF(FORECAST($C301,I$305:I$316,$C$305:$C$316)<0,0, IF(FORECAST($C301,I$305:I$316,$C$305:$C$316)>100,100, FORECAST($C301,I$305:I$316,$C$305:$C$316)))) -> 88.10768521 | M301: =IF(MAX(C305:C316)-MIN(C305:C316)<5,AVERAGEIF(C305:C316,">0",M305:M316), IF(FORECAST($C301,M$305:M$316,$C$305:$C$316)<0,0, IF(FORECAST($C301,M$305:M$316,$C$305:$C$316)>100,100, FORECAST($C301,M$305:M$316,$C$305:$C$316)))) -> 6.652549413 | N301: =IF(MAX(C305:C316)-MIN(C305:C316)<5,AVERAGEIF(C305:C316,">0",N305:N316), IF(FORECAST($C301,N$305:N$316,$C$305:$C$316)<0,0, IF(FORECAST($C301,N$305:N$316,$C$305:$C$316)>100,100, FORECAST($C301,N$305:N$316,$C$305:$C$316)))) -> 83.71196451 | R301: =IF(MAX(C305:C316)-MIN(C305:C316)<5,AVERAGEIF(C305:C316,">0",R305:R316), IF(FORECAST($C301,R$305:R$316,$C$305:$C$316)<0,0, IF(FORECAST($C301,R$305:R$316,$C$305:$C$316)>100,100, FORECAST($C301,R$305:R$316,$C$305:$C$316)))) -> 10.55246166 | S301: =IF(MAX(C305:C316)-MIN(C305:C316)<5,AVERAGEIF(C305:C316,">0",S305:S316), IF(FORECAST($C301,S$305:S$316,$C$305:$C$316)<0,0, IF(FORECAST($C301,S$305:S$316,$C$305:$C$316)>100,100, FORECAST($C301,S$305:S$316,$C$305:$C$316)))) -> 88.49512731 | W301: =IF(MAX(C305:C316)-MIN(C305:C316)<5,AVERAGEIF(C305:C316,">0",W305:W316), IF(FORECAST($C301,W$305:W$316,$C$305:$C$316)<0,0, IF(FORECAST($C301,W$305:W$316,$C$305:$C$316)>100,100, FORECAST($C301,W$305:W$316,$C$305:$C$316)))) -> 7.406380303 | X301: =IF(MAX(C305:C316)-MIN(C305:C316)<5,AVERAGEIF(C305:C316,">0",X305:X316), IF(FORECAST($C301,X$305:X$316,$C$305:$C$316)<0,0, IF(FORECAST($C301,X$305:X$316,$C$305:$C$316)>100,100, FORECAST($C301,X$305:X$316,$C$305:$C$316)))) -> 93.14326851 | AB301: =IF(MAX(C305:C316)-MIN(C305:C316)<5,AVERAGEIF(C305:C316,">0",AB305:AB316), IF(FORECAST($C301,AB$305:AB$316,$C$305:$C$316)<0,0, IF(FORECAST($C301,AB$305:AB$316,$C$305:$C$316)>100,100, FORECAST($C301,AB$305:AB$316,$C$305:$C$316)))) -> 5.288412271
C302: =MaxRegYear(C300,C305:C316) -> 2013 | D302: =IF(MAX(C305:C316)-MIN(C305:C316)<5,AVERAGEIF(C305:C316,">0",D305:D316), IF(FORECAST($C302,D$305:D$316,$C$305:$C$316)<0,0, IF(FORECAST($C302,D$305:D$316,$C$305:$C$316)>100,100, FORECAST($C302,D$305:D$316,$C$305:$C$316)))) -> 87.65707825 | H302: =IF(MAX(C305:C316)-MIN(C305:C316)<5,AVERAGEIF(C305:C316,">0",H305:H316), IF(FORECAST($C302,H$305:H$316,$C$305:$C$316)<0,0, IF(FORECAST($C302,H$305:H$316,$C$305:$C$316)>100,100, FORECAST($C302,H$305:H$316,$C$305:$C$316)))) -> 4.650244751 | I302: =IF(MAX(C305:C316)-MIN(C305:C316)<5,AVERAGEIF(C305:C316,">0",I305:I316), IF(FORECAST($C302,I$305:I$316,$C$305:$C$316)<0,0, IF(FORECAST($C302,I$305:I$316,$C$305:$C$316)>100,100, FORECAST($C302,I$305:I$316,$C$305:$C$316)))) -> 90.65781747 | M302: =IF(MAX(C305:C316)-MIN(C305:C316)<5,AVERAGEIF(C305:C316,">0",M305:M316), IF(FORECAST($C302,M$305:M$316,$C$305:$C$316)<0,0, IF(FORECAST($C302,M$305:M$316,$C$305:$C$316)>100,100, FORECAST($C302,M$305:M$316,$C$305:$C$316)))) -> 4.657546934 | N302: =IF(MAX(C305:C316)-MIN(C305:C316)<5,AVERAGEIF(C305:C316,">0",N305:N316), IF(FORECAST($C302,N$305:N$316,$C$305:$C$316)<0,0, IF(FORECAST($C302,N$305:N$316,$C$305:$C$316)>100,100, FORECAST($C302,N$305:N$316,$C$305:$C$316)))) -> 92.06861718 | R302: =IF(MAX(C305:C316)-MIN(C305:C316)<5,AVERAGEIF(C305:C316,">0",R305:R316), IF(FORECAST($C302,R$305:R$316,$C$305:$C$316)<0,0, IF(FORECAST($C302,R$305:R$316,$C$305:$C$316)>100,100, FORECAST($C302,R$305:R$316,$C$305:$C$316)))) -> 2.503300167 | S302: =IF(MAX(C305:C316)-MIN(C305:C316)<5,AVERAGEIF(C305:C316,">0",S305:S316), IF(FORECAST($C302,S$305:S$316,$C$305:$C$316)<0,0, IF(FORECAST($C302,S$305:S$316,$C$305:$C$316)>100,100, FORECAST($C302,S$305:S$316,$C$305:$C$316)))) -> 95.25088996 | W302: =IF(MAX(C305:C316)-MIN(C305:C316)<5,AVERAGEIF(C305:C316,">0",W305:W316), IF(FORECAST($C302,W$305:W$316,$C$305:$C$316)<0,0, IF(FORECAST($C302,W$305:W$316,$C$305:$C$316)>100,100, FORECAST($C302,W$305:W$316,$C$305:$C$316)))) -> 2.605760551 | X302: =IF(MAX(C305:C316)-MIN(C305:C316)<5,AVERAGEIF(C305:C316,">0",X305:X316), IF(FORECAST($C302,X$305:X$316,$C$305:$C$316)<0,0, IF(FORECAST($C302,X$305:X$316,$C$305:$C$316)>100,100, FORECAST($C302,X$305:X$316,$C$305:$C$316)))) -> 98.23661882 | AB302: =IF(MAX(C305:C316)-MIN(C305:C316)<5,AVERAGEIF(C305:C316,">0",AB305:AB316), IF(FORECAST($C302,AB$305:AB$316,$C$305:$C$316)<0,0, IF(FORECAST($C302,AB$305:AB$316,$C$305:$C$316)>100,100, FORECAST($C302,AB$305:AB$316,$C$305:$C$316)))) -> 0.09611490278
B304: Survey | C304: Year | D304: Improved | E304: Basic | H304: Surface water | I304: Improved | J304: Basic | M304: Surface water | N304: Improved | O304: Basic | R304: Surface water | S304: Improved | T304: Basic | W304: Surface water | X304: Improved | Y304: Basic | AB304: Surface water
B305: SLC97 | C305: 1997 | D305: =IF(ISERROR(INDIRECT(CONCATENATE($B305,"!M16"))),"",INDIRECT(CONCATENATE($B305,"!M16"))) -> 82.20541336 | E305: =IF(ISERROR(INDIRECT(CONCATENATE($B305,"!M23"))),"",INDIRECT(CONCATENATE($B305,"!M23"))) -> N/A | H305: =IF(ISERROR(INDIRECT(CONCATENATE($B305,"!M21"))),"",INDIRECT(CONCATENATE($B305,"!M21"))) -> 9.651125795 | I305: =IF(ISERROR(INDIRECT(CONCATENATE($B305,"!N16"))),"",INDIRECT(CONCATENATE($B305,"!N16"))) -> 89.41299738 | J305: =IF(ISERROR(INDIRECT(CONCATENATE($B305,"!N23"))),"",INDIRECT(CONCATENATE($B305,"!N23"))) -> N/A | M305: =IF(ISERROR(INDIRECT(CONCATENATE($B305,"!N21"))),"",INDIRECT(CONCATENATE($B305,"!N21"))) -> 5.687146444 | N305: =IF(ISERROR(INDIRECT(CONCATENATE($B305,"!O16"))),"",INDIRECT(CONCATENATE($B305,"!O16"))) -> 82.83031488 | O305: =IF(ISERROR(INDIRECT(CONCATENATE($B305,"!O23"))),"",INDIRECT(CONCATENATE($B305,"!O23"))) -> N/A | R305: =IF(ISERROR(INDIRECT(CONCATENATE($B305,"!O21"))),"",INDIRECT(CONCATENATE($B305,"!O21"))) -> 11.23330738 | S305: =IF(ISERROR(INDIRECT(CONCATENATE($B305,"!P16"))),"",INDIRECT(CONCATENATE($B305,"!P16"))) -> 88.05148841 | T305: =IF(ISERROR(INDIRECT(CONCATENATE($B305,"!P23"))),"",INDIRECT(CONCATENATE($B305,"!P23"))) -> N/A | W305: =IF(ISERROR(INDIRECT(CONCATENATE($B305,"!P21"))),"",INDIRECT(CONCATENATE($B305,"!P21"))) -> 7.416488656 | X305: =IF(ISERROR(INDIRECT(CONCATENATE($B305,"!Q16"))),"",INDIRECT(CONCATENATE($B305,"!Q16"))) -> 92.42666939 | Y305: =IF(ISERROR(INDIRECT(CONCATENATE($B305,"!Q23"))),"",INDIRECT(CONCATENATE($B305,"!Q23"))) -> N/A | AB305: =IF(ISERROR(INDIRECT(CONCATENATE($B305,"!Q221"))),"",INDIRECT(CONCATENATE($B305,"!Q21"))) -> 6.208662788
B306: SLC07 | C306: 2007 | D306: 85.40976834 | E306: N/A | H306: 8.116943634 | I306: 82.85251855 | J306: N/A | M306: 10.56857586 | N306: 84.5478702 | O306: N/A | R306: 10.33658356 | S306: 88.22900427 | T306: N/A | W306: 8.663475616 | X306: 94.2800788 | Y306: N/A | AB306: 3.465461678
B307: MICS11 | C307: 2011 | D307: 87.1 | E307: 94.8 | H307: 4.3 | I307: 95 | J307: 97.2 | M307: 1.4 | N307: 93.4 | O307: 95.1 | R307: 0.8 | S307: 97 | T307: 98.4 | W307: 0.6 | X307: 98.6 | Y307: 98.6 | AB307: 0.2
B318: =CONCATENATE("Rural use of drinking water sources, ",C299,"–",C300) -> Rural use of drinking water sources, 2000–2017 | S318: Data points used for regression

Sheet Sanitation
B4: Summary of trends in use of sanitation facilities by wealth quintile (%)
B5: =IF(ISERROR(INDIRECT(CONCATENATE($B105,"!A2"))),"",INDIRECT(CONCATENATE($B105,"!A2"))) -> Jamaica
B7: =B118 -> National use of sanitation facilities, 2000–2017 | J7: =B218 -> Urban use of sanitation facilities, 2000–2017 | R7: =B318 -> Rural use of sanitation facilities, 2000–2017
B31: =IF(ISERROR(INDIRECT(CONCATENATE($B105,"!A2"))),"",INDIRECT(CONCATENATE($B105,"!A2"))) -> Jamaica | F31: Poorest | J31: Poor | N31: Middle | R31: Rich | V31: Richest
F32: Basic | G32: Limited | H32: Unimproved | I32: Open defecation | J32: Basic | K32: Limited | L32: Unimproved | M32: Open defecation | N32: Basic | O32: Limited | P32: Unimproved | Q32: Open defecation | R32: Basic | S32: Limited | T32: Unimproved | U32: Open defecation | V32: Basic | W32: Limited | X32: Unimproved | Y32: Open defecation
B33: NATIONAL | D33: Estimate | E33: =C99 -> 2000 | F33: =E99 -> 74.31154453 | G33: =F99 -> 20.95393802 | H33: 1.226790265 | I33: 3.507727187 | J33: =J99 -> 79.77206927 | K33: =K99 -> 15.17938869 | L33: 1.279123364 | M33: 3.76941868 | N33: =O99 -> 83.18333228 | O33: =P99 -> 15.30613819 | P33: 0.9430495798 | Q33: 0.5674799457 | R33: =T99 -> 94.04833146 | S33: =U99 -> 5.089504828 | T33: 0.4173961464 | U33: 0.4447675665 | V33: =Y99 -> 99.16338142 | W33: =Z99 -> 0.8231510085 | X33: 0.01346757016 | Y33: 0
E34: =C100 -> 2017 | F34: =E100 -> 74.25642583 | G34: 20.93839597 | H34: 2.142451716 | I34: 2.662726482 | J34: =J100 -> 83.24469118 | K34: 15.84017483 | L34: 0.9151339908 | M34: 0 | N34: =O100 -> 84.14200896 | O34: 15.48253937 | P34: 0.2528020568 | Q34: 0.1226496097 | R34: =T100 -> 94.81486176 | S34: 5.130986261 | T34: 0.05415198328 | U34: 0 | V34: =Y100 -> 98.94013378 | W34: 0.8212978393 | X34: 0.2385683857 | Y34: 0
B36: URBAN | D36: Estimate | E36: =C199 -> 2000 | F36: =E199 -> 65.3983313 | G36: =F199 -> 30.24844471 | H36: 1.332416049 | I36: 3.020807943 | J36: =J199 -> 80.74791595 | K36: =K199 -> 15.67020897 | L36: 1.210700679 | M36: 2.371174404 | N36: =O199 -> 91.65832712 | O36: =P199 -> 7.230385333 | P36: 0.3370746783 | Q36: 0.7742128678 | R36: =T199 -> 98.12237547 | S36: =U199 -> 0.7223360119 | T36: 0.5861486456 | U36: 0.569139868 | V36: =Y199 -> 99.77265618 | W36: =Z199 -> 0.2273438219 | X36: 0 | Y36: 0
E37: =C200 -> 2017 | F37: =E200 -> 64.28055002 | G37: 29.73144153 | H37: 3.038325161 | I37: 2.949683282 | J37: =J200 -> 82.12343947 | K37: 15.93714763 | L37: 1.939412903 | M37: 0 | N37: =O200 -> 92.66811307 | O37: 7.310041397 | P37: 0.02184553017 | Q37: 0 | R37: =T200 -> 99.26922139 | S37: 0.7307786133 | T37: 0 | U37: 0 | V37: =Y200 -> 99.77265618 | W37: 0.2273438219 | X37: 0 | Y37: 0
B39: RURAL | D39: Estimate | E39: =C299 -> 2000 | F39: =E299 -> 70.67253761 | G39: =F299 -> 20.21826695 | H39: 1.694722421 | I39: 7.414473022 | J39: =J299 -> 79.06191003 | K39: =K299 -> 18.22846271 | L39: 1.238741672 | M39: 1.47088559 | N39: =O299 -> 86.73688547 | O39: =P299 -> 10.87345636 | P39: 1.326698452 | Q39: 1.062959716 | R39: =T299 -> 97.29140246 | S39: =U299 -> 2.68360239 | T39: 0.02499515326 | U39: 0 | V39: =Y299 -> 98.9942455 | W39: =Z299 -> 0.9862997313 | X39: 0.01945476682 | Y39: 0
E40: =C300 -> 2017 | F40: =E300 -> 74.80417827 | G40: 21.40026234 | H40: 1.718967631 | I40: 2.076591758 | J40: =J300 -> 80.22180775 | K40: 18.49588798 | L40: 0.8101088256 | M40: 0.4721954407 | N40: =O300 -> 88.23872956 | O40: 11.06172962 | P40: 0.6995408259 | Q40: 0 | R40: =T300 -> 96.88484058 | S40: 2.672388137 | T40: 0.4427712863 | U40: 0 | V40: =Y300 -> 98.67228077 | W40: 0.9830919314 | X40: 0.344627298 | Y40: 0
A97: NATIONAL | D97: Poorest | I97: Poor | N97: Middle | S97: Rich | X97: Richest
D98: Improved | E98: Basic | F98: Limited | G98: Unimproved | H98: Open defecation | I98: Improved | J98: Basic | K98: Limited | L98: Unimproved | M98: Open defecation | N98: Improved | O98: Basic | P98: Limited | Q98: Unimproved | R98: Open defecation | S98: Improved | T98: Basic | U98: Limited | V98: Unimproved | W98: Open defecation | X98: Improved | Y98: Basic | Z98: Limited | AA98: Unimproved | AB98: Open defecation
A99: Forecast period: | C99: 2000 | D99: =IF((D101+H101)>100,D101*100/(D101+H101),D101) -> 95.26548255 | E99: =D99*AVERAGEIF(E105:E116,">0")/100 -> 74.31154453 | F99: =D99*(100-AVERAGEIF(E105:E116,">0"))/100 -> 20.95393802 | G99: =100-(E99+F99+H99) -> 1.226790265 | H99: =IF((D101+H101)>100,H101*100/(D101+H101),H101) -> 3.507727187 | I99: =IF((I101+M101)>100,I101*100/(I101+M101),I101) -> 94.95145796 | J99: =I99*AVERAGEIF(J105:J116,">0")/100 -> 79.77206927 | K99: =I99*(100-AVERAGEIF(J105:J116,">0"))/100 -> 15.17938869 | L99: =100-(J99+K99+M99) -> 1.279123364 | M99: =IF((I101+M101)>100,M101*100/(I101+M101),M101) -> 3.76941868 | N99: =IF((N101+R101)>100,N101*100/(N101+R101),N101) -> 98.48947047 | O99: =N99*AVERAGEIF(O105:O116,">0")/100 -> 83.18333228 | P99: =N99*(100-AVERAGEIF(O105:O116,">0"))/100 -> 15.30613819 | Q99: =100-(O99+P99+R99) -> 0.9430495798 | R99: =IF((N101+R101)>100,R101*100/(N101+R101),R101) -> 0.5674799457 | S99: =IF((S101+W101)>100,S101*100/(S101+W101),S101) -> 99.13783629 | T99: =S99*AVERAGEIF(T105:T116,">0")/100 -> 94.04833146 | U99: =S99*(100-AVERAGEIF(T105:T116,">0"))/100 -> 5.089504828 | V99: =100-(T99+U99+W99) -> 0.4173961464 | W99: =IF((S101+W101)>100,W101*100/(S101+W101),W101) -> 0.4447675665 | X99: =IF((X101+AB101)>100,X101*100/(X101+AB101),X101) -> 99.98653243 | Y99: =X99*AVERAGEIF(Y105:Y116,">0")/100 -> 99.16338142 | Z99: =X99*(100-AVERAGEIF(Y105:Y116,">0"))/100 -> 0.8231510085 | AA99: =100-(Y99+Z99+AB99) -> 0.01346757016 | AB99: =IF((X101+AB101)>100,AB101*100/(X101+AB101),AB101) -> 0
C100: 2017 | D100: =IF((D102+H102)>100,D102*100/(D102+H102),D102) -> 95.1948218 | E100: =D100*AVERAGEIF(E105:E116,">0")/100 -> 74.25642583 | F100: =D100*(100-AVERAGEIF(E105:E116,">0"))/100 -> 20.93839597 | G100: =100-(E100+F100+H100) -> 2.142451716 | H100: =IF((D102+H102)>100,H102*100/(D102+H102),H102) -> 2.662726482 | I100: =IF((I102+M102)>100,I102*100/(I102+M102),I102) -> 99.08486601 | J100: =I100*AVERAGEIF(J105:J116,">0")/100 -> 83.24469118 | K100: =I100*(100-AVERAGEIF(J105:J116,">0"))/100 -> 15.84017483 | L100: =100-(J100+K100+M100) -> 0.9151339908 | M100: =IF((I102+M102)>100,M102*100/(I102+M102),M102) -> 0 | N100: =IF((N102+R102)>100,N102*100/(N102+R102),N102) -> 99.62454833 | O100: =N100*AVERAGEIF(O105:O116,">0")/100 -> 84.14200896 | P100: =N100*(100-AVERAGEIF(O105:O116,">0"))/100 -> 15.48253937 | Q100: =100-(O100+P100+R100) -> 0.2528020568 | R100: =IF((N102+R102)>100,R102*100/(N102+R102),R102) -> 0.1226496097 | S100: =IF((S102+W102)>100,S102*100/(S102+W102),S102) -> 99.94584802 | T100: =S100*AVERAGEIF(T105:T116,">0")/100 -> 94.81486176 | U100: =S100*(100-AVERAGEIF(T105:T116,">0"))/100 -> 5.130986261 | V100: =100-(T100+U100+W100) -> 0.05415198328 | W100: =IF((S102+W102)>100,W102*100/(S102+W102),W102) -> 0 | X100: =IF((X102+AB102)>100,X102*100/(X102+AB102),X102) -> 99.76143161 | Y100: =X100*AVERAGEIF(Y105:Y116,">0")/100 -> 98.94013378 | Z100: =X100*(100-AVERAGEIF(Y105:Y116,">0"))/100 -> 0.8212978393 | AA100: =100-(Y100+Z100+AB100) -> 0.2385683857 | AB100: =IF((X102+AB102)>100,AB102*100/(X102+AB102),AB102) -> 0
A101: Regression period: | C101: =MinRegYear(C99,C105:C116) -> 2000 | D101: =IF(MAX(C105:C116)-MIN(C105:C116)<5,AVERAGEIF(C105:C116,">0",D105:D116), IF(FORECAST($C101,D$105:D$116,$C$105:$C$116)<0,0, IF(FORECAST($C101,D$105:D$116,$C$105:$C$116)>100,100, FORECAST($C101,D$105:D$116,$C$105:$C$116)))) -> 95.26548255 | H101: =IF(MAX(C105:C116)-MIN(C105:C116)<5,AVERAGEIF(C105:C116,">0",H105:H116), IF(FORECAST($C101,H$105:H$116,$C$105:$C$116)<0,0, IF(FORECAST($C101,H$105:H$116,$C$105:$C$116)>100,100, FORECAST($C101,H$105:H$116,$C$105:$C$116)))) -> 3.507727187 | I101: =IF(MAX(C105:C116)-MIN(C105:C116)<5,AVERAGEIF(C105:C116,">0",I105:I116), IF(FORECAST($C101,I$105:I$116,$C$105:$C$116)<0,0, IF(FORECAST($C101,I$105:I$116,$C$105:$C$116)>100,100, FORECAST($C101,I$105:I$116,$C$105:$C$116)))) -> 94.95145796 | M101: =IF(MAX(C105:C116)-MIN(C105:C116)<5,AVERAGEIF(C105:C116,">0",M105:M116), IF(FORECAST($C101,M$105:M$116,$C$105:$C$116)<0,0, IF(FORECAST($C101,M$105:M$116,$C$105:$C$116)>100,100, FORECAST($C101,M$105:M$116,$C$105:$C$116)))) -> 3.76941868 | N101: =IF(MAX(C105:C116)-MIN(C105:C116)<5,AVERAGEIF(C105:C116,">0",N105:N116), IF(FORECAST($C101,N$105:N$116,$C$105:$C$116)<0,0, IF(FORECAST($C101,N$105:N$116,$C$105:$C$116)>100,100, FORECAST($C101,N$105:N$116,$C$105:$C$116)))) -> 98.48947047 | R101: =IF(MAX(C105:C116)-MIN(C105:C116)<5,AVERAGEIF(C105:C116,">0",R105:R116), IF(FORECAST($C101,R$105:R$116,$C$105:$C$116)<0,0, IF(FORECAST($C101,R$105:R$116,$C$105:$C$116)>100,100, FORECAST($C101,R$105:R$116,$C$105:$C$116)))) -> 0.5674799457 | S101: =IF(MAX(C105:C116)-MIN(C105:C116)<5,AVERAGEIF(C105:C116,">0",S105:S116), IF(FORECAST($C101,S$105:S$116,$C$105:$C$116)<0,0, IF(FORECAST($C101,S$105:S$116,$C$105:$C$116)>100,100, FORECAST($C101,S$105:S$116,$C$105:$C$116)))) -> 99.13783629 | W101: =IF(MAX(C105:C116)-MIN(C105:C116)<5,AVERAGEIF(C105:C116,">0",W105:W116), IF(FORECAST($C101,W$105:W$116,$C$105:$C$116)<0,0, IF(FORECAST($C101,W$105:W$116,$C$105:$C$116)>100,100, FORECAST($C101,W$105:W$116,$C$105:$C$116)))) -> 0.4447675665 | X101: =IF(MAX(C105:C116)-MIN(C105:C116)<5,AVERAGEIF(C105:C116,">0",X105:X116), IF(FORECAST($C101,X$105:X$116,$C$105:$C$116)<0,0, IF(FORECAST($C101,X$105:X$116,$C$105:$C$116)>100,100, FORECAST($C101,X$105:X$116,$C$105:$C$116)))) -> 99.98653243 | AB101: =IF(MAX(C105:C116)-MIN(C105:C116)<5,AVERAGEIF(C105:C116,">0",AB105:AB116), IF(FORECAST($C101,AB$105:AB$116,$C$105:$C$116)<0,0, IF(FORECAST($C101,AB$105:AB$116,$C$105:$C$116)>100,100, FORECAST($C101,AB$105:AB$116,$C$105:$C$116)))) -> 0
C102: =MaxRegYear(C100,C105:C116) -> 2013 | D102: =IF(MAX(C105:C116)-MIN(C105:C116)<5,AVERAGEIF(C105:C116,">0",D105:D116), IF(FORECAST($C102,D$105:D$116,$C$105:$C$116)<0,0, IF(FORECAST($C102,D$105:D$116,$C$105:$C$116)>100,100, FORECAST($C102,D$105:D$116,$C$105:$C$116)))) -> 95.1948218 | H102: =IF(MAX(C105:C116)-MIN(C105:C116)<5,AVERAGEIF(C105:C116,">0",H105:H116), IF(FORECAST($C102,H$105:H$116,$C$105:$C$116)<0,0, IF(FORECAST($C102,H$105:H$116,$C$105:$C$116)>100,100, FORECAST($C102,H$105:H$116,$C$105:$C$116)))) -> 2.662726482 | I102: =IF(MAX(C105:C116)-MIN(C105:C116)<5,AVERAGEIF(C105:C116,">0",I105:I116), IF(FORECAST($C102,I$105:I$116,$C$105:$C$116)<0,0, IF(FORECAST($C102,I$105:I$116,$C$105:$C$116)>100,100, FORECAST($C102,I$105:I$116,$C$105:$C$116)))) -> 99.08486601 | M102: =IF(MAX(C105:C116)-MIN(C105:C116)<5,AVERAGEIF(C105:C116,">0",M105:M116), IF(FORECAST($C102,M$105:M$116,$C$105:$C$116)<0,0, IF(FORECAST($C102,M$105:M$116,$C$105:$C$116)>100,100, FORECAST($C102,M$105:M$116,$C$105:$C$116)))) -> 0 | N102: =IF(MAX(C105:C116)-MIN(C105:C116)<5,AVERAGEIF(C105:C116,">0",N105:N116), IF(FORECAST($C102,N$105:N$116,$C$105:$C$116)<0,0, IF(FORECAST($C102,N$105:N$116,$C$105:$C$116)>100,100, FORECAST($C102,N$105:N$116,$C$105:$C$116)))) -> 99.62454833 | R102: =IF(MAX(C105:C116)-MIN(C105:C116)<5,AVERAGEIF(C105:C116,">0",R105:R116), IF(FORECAST($C102,R$105:R$116,$C$105:$C$116)<0,0, IF(FORECAST($C102,R$105:R$116,$C$105:$C$116)>100,100, FORECAST($C102,R$105:R$116,$C$105:$C$116)))) -> 0.1226496097 | S102: =IF(MAX(C105:C116)-MIN(C105:C116)<5,AVERAGEIF(C105:C116,">0",S105:S116), IF(FORECAST($C102,S$105:S$116,$C$105:$C$116)<0,0, IF(FORECAST($C102,S$105:S$116,$C$105:$C$116)>100,100, FORECAST($C102,S$105:S$116,$C$105:$C$116)))) -> 99.94584802 | W102: =IF(MAX(C105:C116)-MIN(C105:C116)<5,AVERAGEIF(C105:C116,">0",W105:W116), IF(FORECAST($C102,W$105:W$116,$C$105:$C$116)<0,0, IF(FORECAST($C102,W$105:W$116,$C$105:$C$116)>100,100, FORECAST($C102,W$105:W$116,$C$105:$C$116)))) -> 0 | X102: =IF(MAX(C105:C116)-MIN(C105:C116)<5,AVERAGEIF(C105:C116,">0",X105:X116), IF(FORECAST($C102,X$105:X$116,$C$105:$C$116)<0,0, IF(FORECAST($C102,X$105:X$116,$C$105:$C$116)>100,100, FORECAST($C102,X$105:X$116,$C$105:$C$116)))) -> 99.76143161 | AB102: =IF(MAX(C105:C116)-MIN(C105:C116)<5,AVERAGEIF(C105:C116,">0",AB105:AB116), IF(FORECAST($C102,AB$105:AB$116,$C$105:$C$116)<0,0, IF(FORECAST($C102,AB$105:AB$116,$C$105:$C$116)>100,100, FORECAST($C102,AB$105:AB$116,$C$105:$C$116)))) -> 0
B104: Survey | C104: Year | D104: Improved | E104: Not shared | H104: Open defecation | I104: Improved | J104: Not shared | M104: Open defecation | N104: Improved | O104: Not shared | R104: Open defecation | S104: Improved | T104: Not shared | W104: Open defecation | X104: Improved | Y104: Not shared | AB104: Open defecation
B105: SLC97 | C105: 1997 | D105: =IF(ISERROR(INDIRECT(CONCATENATE($B105,"!C122"))),"",INDIRECT(CONCATENATE($B105,"!C122"))) -> 96.05014755 | E105: =IF(ISERROR(INDIRECT(CONCATENATE($B105,"!C129"))),"",INDIRECT(CONCATENATE($B105,"!C129"))) -> N/A | H105: =IF(ISERROR(INDIRECT(CONCATENATE($B105,"!C127"))),"",INDIRECT(CONCATENATE($B105,"!C127"))) -> 2.982923225 | I105: =IF(ISERROR(INDIRECT(CONCATENATE($B105,"!D122"))),"",INDIRECT(CONCATENATE($B105,"!D122"))) -> 94.09847759 | J105: =IF(ISERROR(INDIRECT(CONCATENATE($B105,"!D129"))),"",INDIRECT(CONCATENATE($B105,"!D129"))) -> N/A | M105: =IF(ISERROR(INDIRECT(CONCATENATE($B105,"!D127"))),"",INDIRECT(CONCATENATE($B105,"!D127"))) -> 4.710998081 | N105: =IF(ISERROR(INDIRECT(CONCATENATE($B105,"!E122"))),"",INDIRECT(CONCATENATE($B105,"!E122"))) -> 98.18285752 | O105: =IF(ISERROR(INDIRECT(CONCATENATE($B105,"!E129"))),"",INDIRECT(CONCATENATE($B105,"!E129"))) -> N/A | R105: =IF(ISERROR(INDIRECT(CONCATENATE($B105,"!E127"))),"",INDIRECT(CONCATENATE($B105,"!E127"))) -> 0.6492126277 | S105: =IF(ISERROR(INDIRECT(CONCATENATE($B105,"!F122"))),"",INDIRECT(CONCATENATE($B105,"!F122"))) -> 98.88142098 | T105: =IF(ISERROR(INDIRECT(CONCATENATE($B105,"!F129"))),"",INDIRECT(CONCATENATE($B105,"!F129"))) -> N/A | W105: =IF(ISERROR(INDIRECT(CONCATENATE($B105,"!F127"))),"",INDIRECT(CONCATENATE($B105,"!F127"))) -> 0.5592895085 | X105: =IF(ISERROR(INDIRECT(CONCATENATE($B105,"!G122"))),"",INDIRECT(CONCATENATE($B105,"!G122"))) -> 100 | Y105: =IF(ISERROR(INDIRECT(CONCATENATE($B105,"!G129"))),"",INDIRECT(CONCATENATE($B105,"!G129"))) -> N/A | AB105: =IF(ISERROR(INDIRECT(CONCATENATE($B105,"!G2127"))),"",INDIRECT(CONCATENATE($B105,"!G127"))) -> 0
B106: SLC07 | C106: 2007 | D106: 92.53817907 | E106: N/A | H106: 5.572041242 | I106: 96.82404861 | J106: N/A | M106: 1.600042755 | N106: 99.25701793 | O106: N/A | R106: 0.4011775723 | S106: 99.81774823 | T106: N/A | W106: 0.182251768 | X106: 100 | Y106: N/A | AB106: 0
B107: MICS11 | C107: 2011 | D107: 97.12658939 | E107: 78.0046902 | H107: 0.9932162807 | I107: 98.70116465 | J107: 84.01352753 | M107: 0.1708495786 | N107: 99.33824119 | O107: 84.45911211 | R107: 0.1387838648 | S107: 99.64666087 | T107: 94.8662337 | W107: 0 | X107: 99.69986558 | Y107: 99.17673812 | AB107: 0
B118: =CONCATENATE("National use of sanitation facilities, ",C99,"–",C100) -> National use of sanitation facilities, 2000–2017 | S118: Data points used for regression
A197: URBAN | D197: Poorest | I197: Poor | N197: Middle | S197: Rich | X197: Richest
D198: Improved | E198: Basic | F198: Limited | G198: Unimproved | H198: Open defecation | I198: Improved | J198: Basic | K198: Limited | L198: Unimproved | M198: Open defecation | N198: Improved | O198: Basic | P198: Limited | Q198: Unimproved | R198: Open defecation | S198: Improved | T198: Basic | U198: Limited | V198: Unimproved | W198: Open defecation | X198: Improved | Y198: Basic | Z198: Limited | AA198: Unimproved | AB198: Open defecation
A199: Forecast period: | C199: 2000 | D199: =IF((D201+H201)>100,D201*100/(D201+H201),D201) -> 95.64677601 | E199: =D199*AVERAGEIF(E205:E216,">0")/100 -> 65.3983313 | F199: =D199*(100-AVERAGEIF(E205:E216,">0"))/100 -> 30.24844471 | G199: =100-(E199+F199+H199) -> 1.332416049 | H199: =IF((D201+H201)>100,H201*100/(D201+H201),H201) -> 3.020807943 | I199: =IF((I201+M201)>100,I201*100/(I201+M201),I201) -> 96.41812492 | J199: =I199*AVERAGEIF(J205:J216,">0")/100 -> 80.74791595 | K199: =I199*(100-AVERAGEIF(J205:J216,">0"))/100 -> 15.67020897 | L199: =100-(J199+K199+M199) -> 1.210700679 | M199: =IF((I201+M201)>100,M201*100/(I201+M201),M201) -> 2.371174404 | N199: =IF((N201+R201)>100,N201*100/(N201+R201),N201) -> 98.88871245 | O199: =N199*AVERAGEIF(O205:O216,">0")/100 -> 91.65832712 | P199: =N199*(100-AVERAGEIF(O205:O216,">0"))/100 -> 7.230385333 | Q199: =100-(O199+P199+R199) -> 0.3370746783 | R199: =IF((N201+R201)>100,R201*100/(N201+R201),R201) -> 0.7742128678 | S199: =IF((S201+W201)>100,S201*100/(S201+W201),S201) -> 98.84471149 | T199: =S199*AVERAGEIF(T205:T216,">0")/100 -> 98.12237547 | U199: =S199*(100-AVERAGEIF(T205:T216,">0"))/100 -> 0.7223360119 | V199: =100-(T199+U199+W199) -> 0.5861486456 | W199: =IF((S201+W201)>100,W201*100/(S201+W201),W201) -> 0.569139868 | X199: =IF((X201+AB201)>100,X201*100/(X201+AB201),X201) -> 100 | Y199: =X199*AVERAGEIF(Y205:Y216,">0")/100 -> 99.77265618 | Z199: =X199*(100-AVERAGEIF(Y205:Y216,">0"))/100 -> 0.2273438219 | AA199: =100-(Y199+Z199+AB199) -> 0 | AB199: =IF((X201+AB201)>100,AB201*100/(X201+AB201),AB201) -> 0
C200: 2017 | D200: =IF((D202+H202)>100,D202*100/(D202+H202),D202) -> 94.01199156 | E200: =D200*AVERAGEIF(E205:E216,">0")/100 -> 64.28055002 | F200: =D200*(100-AVERAGEIF(E205:E216,">0"))/100 -> 29.73144153 | G200: =100-(E200+F200+H200) -> 3.038325161 | H200: =IF((D202+H202)>100,H202*100/(D202+H202),H202) -> 2.949683282 | I200: =IF((I202+M202)>100,I202*100/(I202+M202),I202) -> 98.0605871 | J200: =I200*AVERAGEIF(J205:J216,">0")/100 -> 82.12343947 | K200: =I200*(100-AVERAGEIF(J205:J216,">0"))/100 -> 15.93714763 | L200: =100-(J200+K200+M200) -> 1.939412903 | M200: =IF((I202+M202)>100,M202*100/(I202+M202),M202) -> 0 | N200: =IF((N202+R202)>100,N202*100/(N202+R202),N202) -> 99.97815447 | O200: =N200*AVERAGEIF(O205:O216,">0")/100 -> 92.66811307 | P200: =N200*(100-AVERAGEIF(O205:O216,">0"))/100 -> 7.310041397 | Q200: =100-(O200+P200+R200) -> 0.02184553017 | R200: =IF((N202+R202)>100,R202*100/(N202+R202),R202) -> 0 | S200: =IF((S202+W202)>100,S202*100/(S202+W202),S202) -> 100 | T200: =S200*AVERAGEIF(T205:T216,">0")/100 -> 99.26922139 | U200: =S200*(100-AVERAGEIF(T205:T216,">0"))/100 -> 0.7307786133 | V200: =100-(T200+U200+W200) -> 0 | W200: =IF((S202+W202)>100,W202*100/(S202+W202),W202) -> 0 | X200: =IF((X202+AB202)>100,X202*100/(X202+AB202),X202) -> 100 | Y200: =X200*AVERAGEIF(Y205:Y216,">0")/100 -> 99.77265618 | Z200: =X200*(100-AVERAGEIF(Y205:Y216,">0"))/100 -> 0.2273438219 | AA200: =100-(Y200+Z200+AB200) -> 0 | AB200: =IF((X202+AB202)>100,AB202*100/(X202+AB202),AB202) -> 0
A201: Regression period: | C201: =MinRegYear(C199,C205:C216) -> 2000 | D201: =IF(MAX(C205:C216)-MIN(C205:C216)<5,AVERAGEIF(C205:C216,">0",D205:D216), IF(FORECAST($C201,D$205:D$216,$C$205:$C$216)<0,0, IF(FORECAST($C201,D$205:D$216,$C$205:$C$216)>100,100, FORECAST($C201,D$205:D$216,$C$205:$C$216)))) -> 95.64677601 | H201: =IF(MAX(C205:C216)-MIN(C205:C216)<5,AVERAGEIF(C205:C216,">0",H205:H216), IF(FORECAST($C201,H$205:H$216,$C$205:$C$216)<0,0, IF(FORECAST($C201,H$205:H$216,$C$205:$C$216)>100,100, FORECAST($C201,H$205:H$216,$C$205:$C$216)))) -> 3.020807943 | I201: =IF(MAX(C205:C216)-MIN(C205:C216)<5,AVERAGEIF(C205:C216,">0",I205:I216), IF(FORECAST($C201,I$205:I$216,$C$205:$C$216)<0,0, IF(FORECAST($C201,I$205:I$216,$C$205:$C$216)>100,100, FORECAST($C201,I$205:I$216,$C$205:$C$216)))) -> 96.41812492 | M201: =IF(MAX(C205:C216)-MIN(C205:C216)<5,AVERAGEIF(C205:C216,">0",M205:M216), IF(FORECAST($C201,M$205:M$216,$C$205:$C$216)<0,0, IF(FORECAST($C201,M$205:M$216,$C$205:$C$216)>100,100, FORECAST($C201,M$205:M$216,$C$205:$C$216)))) -> 2.371174404 | N201: =IF(MAX(C205:C216)-MIN(C205:C216)<5,AVERAGEIF(C205:C216,">0",N205:N216), IF(FORECAST($C201,N$205:N$216,$C$205:$C$216)<0,0, IF(FORECAST($C201,N$205:N$216,$C$205:$C$216)>100,100, FORECAST($C201,N$205:N$216,$C$205:$C$216)))) -> 98.88871245 | R201: =IF(MAX(C205:C216)-MIN(C205:C216)<5,AVERAGEIF(C205:C216,">0",R205:R216), IF(FORECAST($C201,R$205:R$216,$C$205:$C$216)<0,0, IF(FORECAST($C201,R$205:R$216,$C$205:$C$216)>100,100, FORECAST($C201,R$205:R$216,$C$205:$C$216)))) -> 0.7742128678 | S201: =IF(MAX(C205:C216)-MIN(C205:C216)<5,AVERAGEIF(C205:C216,">0",S205:S216), IF(FORECAST($C201,S$205:S$216,$C$205:$C$216)<0,0, IF(FORECAST($C201,S$205:S$216,$C$205:$C$216)>100,100, FORECAST($C201,S$205:S$216,$C$205:$C$216)))) -> 98.84471149 | W201: =IF(MAX(C205:C216)-MIN(C205:C216)<5,AVERAGEIF(C205:C216,">0",W205:W216), IF(FORECAST($C201,W$205:W$216,$C$205:$C$216)<0,0, IF(FORECAST($C201,W$205:W$216,$C$205:$C$216)>100,100, FORECAST($C201,W$205:W$216,$C$205:$C$216)))) -> 0.569139868 | X201: =IF(MAX(C205:C216)-MIN(C205:C216)<5,AVERAGEIF(C205:C216,">0",X205:X216), IF(FORECAST($C201,X$205:X$216,$C$205:$C$216)<0,0, IF(FORECAST($C201,X$205:X$216,$C$205:$C$216)>100,100, FORECAST($C201,X$205:X$216,$C$205:$C$216)))) -> 100 | AB201: =IF(MAX(C205:C216)-MIN(C205:C216)<5,AVERAGEIF(C205:C216,">0",AB205:AB216), IF(FORECAST($C201,AB$205:AB$216,$C$205:$C$216)<0,0, IF(FORECAST($C201,AB$205:AB$216,$C$205:$C$216)>100,100, FORECAST($C201,AB$205:AB$216,$C$205:$C$216)))) -> 0
C202: =MaxRegYear(C200,C205:C216) -> 2013 | D202: =IF(MAX(C205:C216)-MIN(C205:C216)<5,AVERAGEIF(C205:C216,">0",D205:D216), IF(FORECAST($C202,D$205:D$216,$C$205:$C$216)<0,0, IF(FORECAST($C202,D$205:D$216,$C$205:$C$216)>100,100, FORECAST($C202,D$205:D$216,$C$205:$C$216)))) -> 94.01199156 | H202: =IF(MAX(C205:C216)-MIN(C205:C216)<5,AVERAGEIF(C205:C216,">0",H205:H216), IF(FORECAST($C202,H$205:H$216,$C$205:$C$216)<0,0, IF(FORECAST($C202,H$205:H$216,$C$205:$C$216)>100,100, FORECAST($C202,H$205:H$216,$C$205:$C$216)))) -> 2.949683282 | I202: =IF(MAX(C205:C216)-MIN(C205:C216)<5,AVERAGEIF(C205:C216,">0",I205:I216), IF(FORECAST($C202,I$205:I$216,$C$205:$C$216)<0,0, IF(FORECAST($C202,I$205:I$216,$C$205:$C$216)>100,100, FORECAST($C202,I$205:I$216,$C$205:$C$216)))) -> 98.0605871 | M202: =IF(MAX(C205:C216)-MIN(C205:C216)<5,AVERAGEIF(C205:C216,">0",M205:M216), IF(FORECAST($C202,M$205:M$216,$C$205:$C$216)<0,0, IF(FORECAST($C202,M$205:M$216,$C$205:$C$216)>100,100, FORECAST($C202,M$205:M$216,$C$205:$C$216)))) -> 0 | N202: =IF(MAX(C205:C216)-MIN(C205:C216)<5,AVERAGEIF(C205:C216,">0",N205:N216), IF(FORECAST($C202,N$205:N$216,$C$205:$C$216)<0,0, IF(FORECAST($C202,N$205:N$216,$C$205:$C$216)>100,100, FORECAST($C202,N$205:N$216,$C$205:$C$216)))) -> 99.97815447 | R202: =IF(MAX(C205:C216)-MIN(C205:C216)<5,AVERAGEIF(C205:C216,">0",R205:R216), IF(FORECAST($C202,R$205:R$216,$C$205:$C$216)<0,0, IF(FORECAST($C202,R$205:R$216,$C$205:$C$216)>100,100, FORECAST($C202,R$205:R$216,$C$205:$C$216)))) -> 0 | S202: =IF(MAX(C205:C216)-MIN(C205:C216)<5,AVERAGEIF(C205:C216,">0",S205:S216), IF(FORECAST($C202,S$205:S$216,$C$205:$C$216)<0,0, IF(FORECAST($C202,S$205:S$216,$C$205:$C$216)>100,100, FORECAST($C202,S$205:S$216,$C$205:$C$216)))) -> 100 | W202: =IF(MAX(C205:C216)-MIN(C205:C216)<5,AVERAGEIF(C205:C216,">0",W205:W216), IF(FORECAST($C202,W$205:W$216,$C$205:$C$216)<0,0, IF(FORECAST($C202,W$205:W$216,$C$205:$C$216)>100,100, FORECAST($C202,W$205:W$216,$C$205:$C$216)))) -> 0 | X202: =IF(MAX(C205:C216)-MIN(C205:C216)<5,AVERAGEIF(C205:C216,">0",X205:X216), IF(FORECAST($C202,X$205:X$216,$C$205:$C$216)<0,0, IF(FORECAST($C202,X$205:X$216,$C$205:$C$216)>100,100, FORECAST($C202,X$205:X$216,$C$205:$C$216)))) -> 100 | AB202: =IF(MAX(C205:C216)-MIN(C205:C216)<5,AVERAGEIF(C205:C216,">0",AB205:AB216), IF(FORECAST($C202,AB$205:AB$216,$C$205:$C$216)<0,0, IF(FORECAST($C202,AB$205:AB$216,$C$205:$C$216)>100,100, FORECAST($C202,AB$205:AB$216,$C$205:$C$216)))) -> 0
B204: Survey | C204: Year | D204: Improved | E204: Not shared | H204: Open defecation | I204: Improved | J204: Not shared | M204: Open defecation | N204: Improved | O204: Not shared | R204: Open defecation | S204: Improved | T204: Not shared | W204: Open defecation | X204: Improved | Y204: Not shared | AB204: Open defecation
B205: SLC97 | C205: 1997 | D205: =IF(ISERROR(INDIRECT(CONCATENATE($B205,"!H122"))),"",INDIRECT(CONCATENATE($B205,"!H122"))) -> 96.87620433 | E205: =IF(ISERROR(INDIRECT(CONCATENATE($B205,"!H129"))),"",INDIRECT(CONCATENATE($B205,"!H129"))) -> N/A | H205: =IF(ISERROR(INDIRECT(CONCATENATE($B205,"!H127"))),"",INDIRECT(CONCATENATE($B205,"!H127"))) -> 2.272131583 | I205: =IF(ISERROR(INDIRECT(CONCATENATE($B205,"!I122"))),"",INDIRECT(CONCATENATE($B205,"!I122"))) -> 96.16987029 | J205: =IF(ISERROR(INDIRECT(CONCATENATE($B205,"!I129"))),"",INDIRECT(CONCATENATE($B205,"!I129"))) -> N/A | M205: =IF(ISERROR(INDIRECT(CONCATENATE($B205,"!I127"))),"",INDIRECT(CONCATENATE($B205,"!I127"))) -> 2.886112264 | N205: =IF(ISERROR(INDIRECT(CONCATENATE($B205,"!J122"))),"",INDIRECT(CONCATENATE($B205,"!J122"))) -> 98.57940362 | O205: =IF(ISERROR(INDIRECT(CONCATENATE($B205,"!J129"))),"",INDIRECT(CONCATENATE($B205,"!J129"))) -> N/A | R205: =IF(ISERROR(INDIRECT(CONCATENATE($B205,"!J127"))),"",INDIRECT(CONCATENATE($B205,"!J127"))) -> 0.9719869982 | S205: =IF(ISERROR(INDIRECT(CONCATENATE($B205,"!K122"))),"",INDIRECT(CONCATENATE($B205,"!K122"))) -> 98.39084814 | T205: =IF(ISERROR(INDIRECT(CONCATENATE($B205,"!K129"))),"",INDIRECT(CONCATENATE($B205,"!K129"))) -> N/A | W205: =IF(ISERROR(INDIRECT(CONCATENATE($B205,"!K127"))),"",INDIRECT(CONCATENATE($B205,"!K127"))) -> 0.7927305304 | X205: =IF(ISERROR(INDIRECT(CONCATENATE($B205,"!L122"))),"",INDIRECT(CONCATENATE($B205,"!L122"))) -> 100 | Y205: =IF(ISERROR(INDIRECT(CONCATENATE($B205,"!L129"))),"",INDIRECT(CONCATENATE($B205,"!L129"))) -> N/A | AB205: =IF(ISERROR(INDIRECT(CONCATENATE($B205,"!L2127"))),"",INDIRECT(CONCATENATE($B205,"!L127"))) -> 0
B206: SLC07 | C206: 2007 | D206: 91.78391116 | E206: N/A | H206: 5.660324152 | I206: 96.84481476 | J206: N/A | M206: 1.261044149 | N206: 99.67798207 | O206: N/A | R206: 0.3220179345 | S206: 100 | T206: N/A | W206: 0 | X206: 100 | Y206: N/A | AB206: 0
B207: MICS11 | C207: 2011 | D207: 96.39392278 | E207: 68.37484129 | H207: 1.047901178 | I207: 98.13483837 | J207: 83.74765224 | M207: 0 | N207: 99.66580016 | O207: 92.68836134 | R207: 0 | S207: 100 | T207: 99.26922139 | W207: 0 | X207: 100 | Y207: 99.77265618 | AB207: 0
B218: =CONCATENATE("Urban use of sanitation facilities, ",C199,"–",C200) -> Urban use of sanitation facilities, 2000–2017 | S218: Data points used for regression
A297: RURAL | D297: Poorest | I297: Poor | N297: Middle | S297: Rich | X297: Richest
D298: Improved | E298: Basic | F298: Limited | G298: Unimproved | H298: Open defecation | I298: Improved | J298: Basic | K298: Limited | L298: Unimproved | M298: Open defecation | N298: Improved | O298: Basic | P298: Limited | Q298: Unimproved | R298: Open defecation | S298: Improved | T298: Basic | U298: Limited | V298: Unimproved | W298: Open defecation | X298: Improved | Y298: Basic | Z298: Limited | AA298: Unimproved | AB298: Open defecation
A299: Forecast period: | C299: 2000 | D299: =IF((D301+H301)>100,D301*100/(D301+H301),D301) -> 90.89080456 | E299: =D299*AVERAGEIF(E305:E316,">0")/100 -> 70.67253761 | F299: =D299*(100-AVERAGEIF(E305:E316,">0"))/100 -> 20.21826695 | G299: =100-(E299+F299+H299) -> 1.694722421 | H299: =IF((D301+H301)>100,H301*100/(D301+H301),H301) -> 7.414473022 | I299: =IF((I301+M301)>100,I301*100/(I301+M301),I301) -> 97.29037274 | J299: =I299*AVERAGEIF(J305:J316,">0")/100 -> 79.06191003 | K299: =I299*(100-AVERAGEIF(J305:J316,">0"))/100 -> 18.22846271 | L299: =100-(J299+K299+M299) -> 1.238741672 | M299: =IF((I301+M301)>100,M301*100/(I301+M301),M301) -> 1.47088559 | N299: =IF((N301+R301)>100,N301*100/(N301+R301),N301) -> 97.61034183 | O299: =N299*AVERAGEIF(O305:O316,">0")/100 -> 86.73688547 | P299: =N299*(100-AVERAGEIF(O305:O316,">0"))/100 -> 10.87345636 | Q299: =100-(O299+P299+R299) -> 1.326698452 | R299: =IF((N301+R301)>100,R301*100/(N301+R301),R301) -> 1.062959716 | S299: =IF((S301+W301)>100,S301*100/(S301+W301),S301) -> 99.97500485 | T299: =S299*AVERAGEIF(T305:T316,">0")/100 -> 97.29140246 | U299: =S299*(100-AVERAGEIF(T305:T316,">0"))/100 -> 2.68360239 | V299: =100-(T299+U299+W299) -> 0.02499515326 | W299: =IF((S301+W301)>100,W301*100/(S301+W301),W301) -> 0 | X299: =IF((X301+AB301)>100,X301*100/(X301+AB301),X301) -> 99.98054523 | Y299: =X299*AVERAGEIF(Y305:Y316,">0")/100 -> 98.9942455 | Z299: =X299*(100-AVERAGEIF(Y305:Y316,">0"))/100 -> 0.9862997313 | AA299: =100-(Y299+Z299+AB299) -> 0.01945476682 | AB299: =IF((X301+AB301)>100,AB301*100/(X301+AB301),AB301) -> 0
C300: 2017 | D300: =IF((D302+H302)>100,D302*100/(D302+H302),D302) -> 96.20444061 | E300: =D300*AVERAGEIF(E305:E316,">0")/100 -> 74.80417827 | F300: =D300*(100-AVERAGEIF(E305:E316,">0"))/100 -> 21.40026234 | G300: =100-(E300+F300+H300) -> 1.718967631 | H300: =IF((D302+H302)>100,H302*100/(D302+H302),H302) -> 2.076591758 | I300: =IF((I302+M302)>100,I302*100/(I302+M302),I302) -> 98.71769573 | J300: =I300*AVERAGEIF(J305:J316,">0")/100 -> 80.22180775 | K300: =I300*(100-AVERAGEIF(J305:J316,">0"))/100 -> 18.49588798 | L300: =100-(J300+K300+M300) -> 0.8101088256 | M300: =IF((I302+M302)>100,M302*100/(I302+M302),M302) -> 0.4721954407 | N300: =IF((N302+R302)>100,N302*100/(N302+R302),N302) -> 99.30045917 | O300: =N300*AVERAGEIF(O305:O316,">0")/100 -> 88.23872956 | P300: =N300*(100-AVERAGEIF(O305:O316,">0"))/100 -> 11.06172962 | Q300: =100-(O300+P300+R300) -> 0.6995408259 | R300: =IF((N302+R302)>100,R302*100/(N302+R302),R302) -> 0 | S300: =IF((S302+W302)>100,S302*100/(S302+W302),S302) -> 99.55722871 | T300: =S300*AVERAGEIF(T305:T316,">0")/100 -> 96.88484058 | U300: =S300*(100-AVERAGEIF(T305:T316,">0"))/100 -> 2.672388137 | V300: =100-(T300+U300+W300) -> 0.4427712863 | W300: =IF((S302+W302)>100,W302*100/(S302+W302),W302) -> 0 | X300: =IF((X302+AB302)>100,X302*100/(X302+AB302),X302) -> 99.6553727 | Y300: =X300*AVERAGEIF(Y305:Y316,">0")/100 -> 98.67228077 | Z300: =X300*(100-AVERAGEIF(Y305:Y316,">0"))/100 -> 0.9830919314 | AA300: =100-(Y300+Z300+AB300) -> 0.344627298 | AB300: =IF((X302+AB302)>100,AB302*100/(X302+AB302),AB302) -> 0
A301: Regression period: | C301: =MinRegYear(C299,C305:C316) -> 2000 | D301: =IF(MAX(C305:C316)-MIN(C305:C316)<5,AVERAGEIF(C305:C316,">0",D305:D316), IF(FORECAST($C301,D$305:D$316,$C$305:$C$316)<0,0, IF(FORECAST($C301,D$305:D$316,$C$305:$C$316)>100,100, FORECAST($C301,D$305:D$316,$C$305:$C$316)))) -> 90.89080456 | H301: =IF(MAX(C305:C316)-MIN(C305:C316)<5,AVERAGEIF(C305:C316,">0",H305:H316), IF(FORECAST($C301,H$305:H$316,$C$305:$C$316)<0,0, IF(FORECAST($C301,H$305:H$316,$C$305:$C$316)>100,100, FORECAST($C301,H$305:H$316,$C$305:$C$316)))) -> 7.414473022 | I301: =IF(MAX(C305:C316)-MIN(C305:C316)<5,AVERAGEIF(C305:C316,">0",I305:I316), IF(FORECAST($C301,I$305:I$316,$C$305:$C$316)<0,0, IF(FORECAST($C301,I$305:I$316,$C$305:$C$316)>100,100, FORECAST($C301,I$305:I$316,$C$305:$C$316)))) -> 97.29037274 | M301: =IF(MAX(C305:C316)-MIN(C305:C316)<5,AVERAGEIF(C305:C316,">0",M305:M316), IF(FORECAST($C301,M$305:M$316,$C$305:$C$316)<0,0, IF(FORECAST($C301,M$305:M$316,$C$305:$C$316)>100,100, FORECAST($C301,M$305:M$316,$C$305:$C$316)))) -> 1.47088559 | N301: =IF(MAX(C305:C316)-MIN(C305:C316)<5,AVERAGEIF(C305:C316,">0",N305:N316), IF(FORECAST($C301,N$305:N$316,$C$305:$C$316)<0,0, IF(FORECAST($C301,N$305:N$316,$C$305:$C$316)>100,100, FORECAST($C301,N$305:N$316,$C$305:$C$316)))) -> 97.61034183 | R301: =IF(MAX(C305:C316)-MIN(C305:C316)<5,AVERAGEIF(C305:C316,">0",R305:R316), IF(FORECAST($C301,R$305:R$316,$C$305:$C$316)<0,0, IF(FORECAST($C301,R$305:R$316,$C$305:$C$316)>100,100, FORECAST($C301,R$305:R$316,$C$305:$C$316)))) -> 1.062959716 | S301: =IF(MAX(C305:C316)-MIN(C305:C316)<5,AVERAGEIF(C305:C316,">0",S305:S316), IF(FORECAST($C301,S$305:S$316,$C$305:$C$316)<0,0, IF(FORECAST($C301,S$305:S$316,$C$305:$C$316)>100,100, FORECAST($C301,S$305:S$316,$C$305:$C$316)))) -> 99.97500485 | W301: =IF(MAX(C305:C316)-MIN(C305:C316)<5,AVERAGEIF(C305:C316,">0",W305:W316), IF(FORECAST($C301,W$305:W$316,$C$305:$C$316)<0,0, IF(FORECAST($C301,W$305:W$316,$C$305:$C$316)>100,100, FORECAST($C301,W$305:W$316,$C$305:$C$316)))) -> 0 | X301: =IF(MAX(C305:C316)-MIN(C305:C316)<5,AVERAGEIF(C305:C316,">0",X305:X316), IF(FORECAST($C301,X$305:X$316,$C$305:$C$316)<0,0, IF(FORECAST($C301,X$305:X$316,$C$305:$C$316)>100,100, FORECAST($C301,X$305:X$316,$C$305:$C$316)))) -> 99.98054523 | AB301: =IF(MAX(C305:C316)-MIN(C305:C316)<5,AVERAGEIF(C305:C316,">0",AB305:AB316), IF(FORECAST($C301,AB$305:AB$316,$C$305:$C$316)<0,0, IF(FORECAST($C301,AB$305:AB$316,$C$305:$C$316)>100,100, FORECAST($C301,AB$305:AB$316,$C$305:$C$316)))) -> 0
C302: =MaxRegYear(C300,C305:C316) -> 2013 | D302: =IF(MAX(C305:C316)-MIN(C305:C316)<5,AVERAGEIF(C305:C316,">0",D305:D316), IF(FORECAST($C302,D$305:D$316,$C$305:$C$316)<0,0, IF(FORECAST($C302,D$305:D$316,$C$305:$C$316)>100,100, FORECAST($C302,D$305:D$316,$C$305:$C$316)))) -> 96.20444061 | H302: =IF(MAX(C305:C316)-MIN(C305:C316)<5,AVERAGEIF(C305:C316,">0",H305:H316), IF(FORECAST($C302,H$305:H$316,$C$305:$C$316)<0,0, IF(FORECAST($C302,H$305:H$316,$C$305:$C$316)>100,100, FORECAST($C302,H$305:H$316,$C$305:$C$316)))) -> 2.076591758 | I302: =IF(MAX(C305:C316)-MIN(C305:C316)<5,AVERAGEIF(C305:C316,">0",I305:I316), IF(FORECAST($C302,I$305:I$316,$C$305:$C$316)<0,0, IF(FORECAST($C302,I$305:I$316,$C$305:$C$316)>100,100, FORECAST($C302,I$305:I$316,$C$305:$C$316)))) -> 98.71769573 | M302: =IF(MAX(C305:C316)-MIN(C305:C316)<5,AVERAGEIF(C305:C316,">0",M305:M316), IF(FORECAST($C302,M$305:M$316,$C$305:$C$316)<0,0, IF(FORECAST($C302,M$305:M$316,$C$305:$C$316)>100,100, FORECAST($C302,M$305:M$316,$C$305:$C$316)))) -> 0.4721954407 | N302: =IF(MAX(C305:C316)-MIN(C305:C316)<5,AVERAGEIF(C305:C316,">0",N305:N316), IF(FORECAST($C302,N$305:N$316,$C$305:$C$316)<0,0, IF(FORECAST($C302,N$305:N$316,$C$305:$C$316)>100,100, FORECAST($C302,N$305:N$316,$C$305:$C$316)))) -> 99.30045917 | R302: =IF(MAX(C305:C316)-MIN(C305:C316)<5,AVERAGEIF(C305:C316,">0",R305:R316), IF(FORECAST($C302,R$305:R$316,$C$305:$C$316)<0,0, IF(FORECAST($C302,R$305:R$316,$C$305:$C$316)>100,100, FORECAST($C302,R$305:R$316,$C$305:$C$316)))) -> 0 | S302: =IF(MAX(C305:C316)-MIN(C305:C316)<5,AVERAGEIF(C305:C316,">0",S305:S316), IF(FORECAST($C302,S$305:S$316,$C$305:$C$316)<0,0, IF(FORECAST($C302,S$305:S$316,$C$305:$C$316)>100,100, FORECAST($C302,S$305:S$316,$C$305:$C$316)))) -> 99.55722871 | W302: =IF(MAX(C305:C316)-MIN(C305:C316)<5,AVERAGEIF(C305:C316,">0",W305:W316), IF(FORECAST($C302,W$305:W$316,$C$305:$C$316)<0,0, IF(FORECAST($C302,W$305:W$316,$C$305:$C$316)>100,100, FORECAST($C302,W$305:W$316,$C$305:$C$316)))) -> 0 | X302: =IF(MAX(C305:C316)-MIN(C305:C316)<5,AVERAGEIF(C305:C316,">0",X305:X316), IF(FORECAST($C302,X$305:X$316,$C$305:$C$316)<0,0, IF(FORECAST($C302,X$305:X$316,$C$305:$C$316)>100,100, FORECAST($C302,X$305:X$316,$C$305:$C$316)))) -> 99.6553727 | AB302: =IF(MAX(C305:C316)-MIN(C305:C316)<5,AVERAGEIF(C305:C316,">0",AB305:AB316), IF(FORECAST($C302,AB$305:AB$316,$C$305:$C$316)<0,0, IF(FORECAST($C302,AB$305:AB$316,$C$305:$C$316)>100,100, FORECAST($C302,AB$305:AB$316,$C$305:$C$316)))) -> 0
B304: Survey | C304: Year | D304: Improved | E304: Not shared | H304: Open defecation | I304: Improved | J304: Not shared | M304: Open defecation | N304: Improved | O304: Not shared | R304: Open defecation | S304: Improved | T304: Not shared | W304: Open defecation | X304: Improved | Y304: Not shared | AB304: Open defecation
B305: SLC97 | C305: 1997 | D305: =IF(ISERROR(INDIRECT(CONCATENATE($B305,"!M122"))),"",INDIRECT(CONCATENATE($B305,"!M122"))) -> 90.12713866 | E305: =IF(ISERROR(INDIRECT(CONCATENATE($B305,"!M129"))),"",INDIRECT(CONCATENATE($B305,"!M129"))) -> N/A | H305: =IF(ISERROR(INDIRECT(CONCATENATE($B305,"!M127"))),"",INDIRECT(CONCATENATE($B305,"!M127"))) -> 8.096378144 | I305: =IF(ISERROR(INDIRECT(CONCATENATE($B305,"!N122"))),"",INDIRECT(CONCATENATE($B305,"!N122"))) -> 96.98537218 | J305: =IF(ISERROR(INDIRECT(CONCATENATE($B305,"!N129"))),"",INDIRECT(CONCATENATE($B305,"!N129"))) -> N/A | M305: =IF(ISERROR(INDIRECT(CONCATENATE($B305,"!N127"))),"",INDIRECT(CONCATENATE($B305,"!N127"))) -> 1.53138426 | N305: =IF(ISERROR(INDIRECT(CONCATENATE($B305,"!O122"))),"",INDIRECT(CONCATENATE($B305,"!O122"))) -> 97.23997096 | O305: =IF(ISERROR(INDIRECT(CONCATENATE($B305,"!O129"))),"",INDIRECT(CONCATENATE($B305,"!O129"))) -> N/A | R305: =IF(ISERROR(INDIRECT(CONCATENATE($B305,"!O127"))),"",INDIRECT(CONCATENATE($B305,"!O127"))) -> 1.364530527 | S305: =IF(ISERROR(INDIRECT(CONCATENATE($B305,"!P122"))),"",INDIRECT(CONCATENATE($B305,"!P122"))) -> 100 | T305: =IF(ISERROR(INDIRECT(CONCATENATE($B305,"!P129"))),"",INDIRECT(CONCATENATE($B305,"!P129"))) -> N/A | W305: =IF(ISERROR(INDIRECT(CONCATENATE($B305,"!P127"))),"",INDIRECT(CONCATENATE($B305,"!P127"))) -> 0 | X305: =IF(ISERROR(INDIRECT(CONCATENATE($B305,"!Q122"))),"",INDIRECT(CONCATENATE($B305,"!Q122"))) -> 100 | Y305: =IF(ISERROR(INDIRECT(CONCATENATE($B305,"!Q129"))),"",INDIRECT(CONCATENATE($B305,"!Q129"))) -> N/A | AB305: =IF(ISERROR(INDIRECT(CONCATENATE($B305,"!Q2127"))),"",INDIRECT(CONCATENATE($B305,"!Q127"))) -> 0
B306: SLC07 | C306: 2007 | D306: 92.13304088 | E306: N/A | H306: 6.464926975 | I306: 97.97359542 | J306: N/A | M306: 1.528018361 | N306: 98.45160829 | O306: N/A | R306: 0.3035437239 | S306: 100 | T306: N/A | W306: 0 | X306: 100 | Y306: N/A | AB306: 0
B307: MICS11 | C307: 2011 | D307: 96.54335266 | E307: 77.75543186 | H307: 1.523020181 | I307: 98.55906176 | J307: 81.26385767 | M307: 0.200919361 | N307: 99.08958164 | O307: 88.86034394 | R307: 0.2518827127 | S307: 99.44296516 | T307: 97.31572667 | W307: 0 | X307: 99.56643663 | Y307: 99.01350835 | AB307: 0
B318: =CONCATENATE("Rural use of sanitation facilities, ",C299,"–",C300) -> Rural use of sanitation facilities, 2000–2017 | S318: Data points used for regression

Sheet Hygiene
B4: Access to hygiene facilities by wealth quintile (%)
B5: =IF(ISERROR(INDIRECT(CONCATENATE($E$32,"!A2"))),"",INDIRECT(CONCATENATE($E$32,"!A2"))) -> Jamaica
B7: =CONCATENATE("National ",IF(ISERROR(INDIRECT(CONCATENATE($E$32,"!A2"))),"",INDIRECT(CONCATENATE($E$32,"!A210")))) -> National Access to hygiene facilities | K7: =CONCATENATE("Urban ",IF(ISERROR(INDIRECT(CONCATENATE($E$32,"!A2"))),"",INDIRECT(CONCATENATE($E$32,"!A210")))) -> Urban Access to hygiene facilities | S7: =CONCATENATE("Rural ",IF(ISERROR(INDIRECT(CONCATENATE($E$32,"!A2"))),"",INDIRECT(CONCATENATE($E$32,"!A210")))) -> Rural Access to hygiene facilities
E32: =INDEX(B88:B100,A88) -> MICS11 | G32: =IF(ISERROR(INDIRECT(CONCATENATE($E$32,"!A2"))),"",INDIRECT(CONCATENATE($E$32,"!A2"))) -> Jamaica | K32: Poorest | N32: Poor | Q32: Middle | T32: Rich | W32: Richest
K33: Basic | L33: Limited | M33: No facility | N33: Basic | O33: Limited | P33: No facility | Q33: Basic | R33: Limited | S33: No facility | T33: Basic | U33: Limited | V33: No facility | W33: Basic | X33: Limited | Y33: No facility
B34: >>> Select Survey : | G34: NATIONAL | J34: =IF(ISERROR(INDIRECT(CONCATENATE(#REF!,"!A2"))),"",INDIRECT(CONCATENATE(#REF!,"!A210"))) ->  | K34: =IF(ISERROR(INDIRECT(CONCATENATE($E$32,"!C222"))),"",INDIRECT(CONCATENATE($E$32,"!C222"))) -> 52.80439641 | L34: =IF(ISERROR(INDIRECT(CONCATENATE($E$32,"!C223"))),"",INDIRECT(CONCATENATE($E$32,"!C223"))) -> 24.30003277 | M34: =IF(ISERROR(INDIRECT(CONCATENATE($E$32,"!C224"))),"",INDIRECT(CONCATENATE($E$32,"!C224"))) -> 22.89557082 | N34: =IF(ISERROR(INDIRECT(CONCATENATE($E$32,"!D222"))),"",INDIRECT(CONCATENATE($E$32,"!D222"))) -> 60.32484007 | O34: =IF(ISERROR(INDIRECT(CONCATENATE($E$32,"!D223"))),"",INDIRECT(CONCATENATE($E$32,"!D223"))) -> 18.8654707 | P34: =IF(ISERROR(INDIRECT(CONCATENATE($E$32,"!D224"))),"",INDIRECT(CONCATENATE($E$32,"!D224"))) -> 20.80968923 | Q34: =IF(ISERROR(INDIRECT(CONCATENATE($E$32,"!E222"))),"",INDIRECT(CONCATENATE($E$32,"!E222"))) -> 66.78001081 | R34: =IF(ISERROR(INDIRECT(CONCATENATE($E$32,"!E223"))),"",INDIRECT(CONCATENATE($E$32,"!E223"))) -> 16.73556257 | S34: =IF(ISERROR(INDIRECT(CONCATENATE($E$32,"!E224"))),"",INDIRECT(CONCATENATE($E$32,"!E224"))) -> 16.48442662 | T34: =IF(ISERROR(INDIRECT(CONCATENATE($E$32,"!F222"))),"",INDIRECT(CONCATENATE($E$32,"!F222"))) -> 71.39163792 | U34: =IF(ISERROR(INDIRECT(CONCATENATE($E$32,"!F223"))),"",INDIRECT(CONCATENATE($E$32,"!F223"))) -> 13.7689961 | V34: =IF(ISERROR(INDIRECT(CONCATENATE($E$32,"!F224"))),"",INDIRECT(CONCATENATE($E$32,"!F224"))) -> 14.83936599 | W34: =IF(ISERROR(INDIRECT(CONCATENATE($E$32,"!G222"))),"",INDIRECT(CONCATENATE($E$32,"!G222"))) -> 81.91020626 | X34: =IF(ISERROR(INDIRECT(CONCATENATE($E$32,"!G223"))),"",INDIRECT(CONCATENATE($E$32,"!G223"))) -> 6.900567599 | Y34: =IF(ISERROR(INDIRECT(CONCATENATE($E$32,"!G224"))),"",INDIRECT(CONCATENATE($E$32,"!G224"))) -> 11.18922614
G37: URBAN | J37: =IF(ISERROR(INDIRECT(CONCATENATE(#REF!,"!A2"))),"",INDIRECT(CONCATENATE(#REF!,"!A210"))) ->  | K37: =IF(ISERROR(INDIRECT(CONCATENATE($E$32,"!H222"))),"",INDIRECT(CONCATENATE($E$32,"!H222"))) -> 66.58600344 | L37: =IF(ISERROR(INDIRECT(CONCATENATE($E$32,"!H223"))),"",INDIRECT(CONCATENATE($E$32,"!H223"))) -> 13.66696347 | M37: =IF(ISERROR(INDIRECT(CONCATENATE($E$32,"!H224"))),"",INDIRECT(CONCATENATE($E$32,"!H224"))) -> 19.7470331 | N37: =IF(ISERROR(INDIRECT(CONCATENATE($E$32,"!I222"))),"",INDIRECT(CONCATENATE($E$32,"!I222"))) -> 59.12173839 | O37: =IF(ISERROR(INDIRECT(CONCATENATE($E$32,"!I223"))),"",INDIRECT(CONCATENATE($E$32,"!I223"))) -> 19.8729108 | P37: =IF(ISERROR(INDIRECT(CONCATENATE($E$32,"!I224"))),"",INDIRECT(CONCATENATE($E$32,"!I224"))) -> 21.00535081 | Q37: =IF(ISERROR(INDIRECT(CONCATENATE($E$32,"!J222"))),"",INDIRECT(CONCATENATE($E$32,"!J222"))) -> 79.27732753 | R37: =IF(ISERROR(INDIRECT(CONCATENATE($E$32,"!J223"))),"",INDIRECT(CONCATENATE($E$32,"!J223"))) -> 8.828085525 | S37: =IF(ISERROR(INDIRECT(CONCATENATE($E$32,"!J224"))),"",INDIRECT(CONCATENATE($E$32,"!J224"))) -> 11.89458694 | T37: =IF(ISERROR(INDIRECT(CONCATENATE($E$32,"!K222"))),"",INDIRECT(CONCATENATE($E$32,"!K222"))) -> 79.08972494 | U37: =IF(ISERROR(INDIRECT(CONCATENATE($E$32,"!K223"))),"",INDIRECT(CONCATENATE($E$32,"!K223"))) -> 5.27339726 | V37: =IF(ISERROR(INDIRECT(CONCATENATE($E$32,"!K224"))),"",INDIRECT(CONCATENATE($E$32,"!K224"))) -> 15.6368778 | W37: =IF(ISERROR(INDIRECT(CONCATENATE($E$32,"!L222"))),"",INDIRECT(CONCATENATE($E$32,"!L222"))) -> 87.20010129 | X37: =IF(ISERROR(INDIRECT(CONCATENATE($E$32,"!L223"))),"",INDIRECT(CONCATENATE($E$32,"!L223"))) -> 2.976114023 | Y37: =IF(ISERROR(INDIRECT(CONCATENATE($E$32,"!L224"))),"",INDIRECT(CONCATENATE($E$32,"!L224"))) -> 9.823784684
G40: RURAL | J40: =IF(ISERROR(INDIRECT(CONCATENATE(#REF!,"!A2"))),"",INDIRECT(CONCATENATE(#REF!,"!A210"))) ->  | K40: =IF(ISERROR(INDIRECT(CONCATENATE($E$32,"!M222"))),"",INDIRECT(CONCATENATE($E$32,"!M222"))) -> 44.37245748 | L40: =IF(ISERROR(INDIRECT(CONCATENATE($E$32,"!M223"))),"",INDIRECT(CONCATENATE($E$32,"!M223"))) -> 30.23563676 | M40: =IF(ISERROR(INDIRECT(CONCATENATE($E$32,"!M224"))),"",INDIRECT(CONCATENATE($E$32,"!M224"))) -> 25.39190576 | N40: =IF(ISERROR(INDIRECT(CONCATENATE($E$32,"!N222"))),"",INDIRECT(CONCATENATE($E$32,"!N222"))) -> 56.8282106 | O40: =IF(ISERROR(INDIRECT(CONCATENATE($E$32,"!N223"))),"",INDIRECT(CONCATENATE($E$32,"!N223"))) -> 20.42964493 | P40: =IF(ISERROR(INDIRECT(CONCATENATE($E$32,"!N224"))),"",INDIRECT(CONCATENATE($E$32,"!N224"))) -> 22.74214447 | Q40: =IF(ISERROR(INDIRECT(CONCATENATE($E$32,"!O222"))),"",INDIRECT(CONCATENATE($E$32,"!O222"))) -> 64.52532157 | R40: =IF(ISERROR(INDIRECT(CONCATENATE($E$32,"!O223"))),"",INDIRECT(CONCATENATE($E$32,"!O223"))) -> 17.75084653 | S40: =IF(ISERROR(INDIRECT(CONCATENATE($E$32,"!O224"))),"",INDIRECT(CONCATENATE($E$32,"!O224"))) -> 17.7238319 | T40: =IF(ISERROR(INDIRECT(CONCATENATE($E$32,"!P222"))),"",INDIRECT(CONCATENATE($E$32,"!P222"))) -> 69.19613367 | U40: =IF(ISERROR(INDIRECT(CONCATENATE($E$32,"!P223"))),"",INDIRECT(CONCATENATE($E$32,"!P223"))) -> 14.46671372 | V40: =IF(ISERROR(INDIRECT(CONCATENATE($E$32,"!P224"))),"",INDIRECT(CONCATENATE($E$32,"!P224"))) -> 16.33715261 | W40: =IF(ISERROR(INDIRECT(CONCATENATE($E$32,"!Q222"))),"",INDIRECT(CONCATENATE($E$32,"!Q222"))) -> 82.78055211 | X40: =IF(ISERROR(INDIRECT(CONCATENATE($E$32,"!Q223"))),"",INDIRECT(CONCATENATE($E$32,"!Q223"))) -> 8.673892577 | Y40: =IF(ISERROR(INDIRECT(CONCATENATE($E$32,"!Q224"))),"",INDIRECT(CONCATENATE($E$32,"!Q224"))) -> 8.545555317
A88: 3 | B88: SLC97
B89: SLC07
B90: MICS11
B91: Template

Sheet SLC97
A2: =A1026 -> Jamaica
A3: =A1034 -> 1997
A4: Use of drinking water sources
A5: by wealth quintile and sub-national region
A6: Notes:
A7: WHO/UNICEF JMP customised wealth index excludes water,
A8: sanitation and hygiene assets.
A9: Survey used for analysis: | B9: =A1025 -> SLC97
A10: =B1028 -> Ratio of Improved wells based on: | B10: MICS11
A11: =B1027 -> Time to improved source based on: | B11: MICS11
A14: Use of drinking water sources | C14: NATIONAL wealth index quintile | H14: URBAN wealth index quintile | M14: RURAL wealth index quintile | R14: SUB-REGIONS: | BA14: Raw numbers of respondents: | BB14: Use of drinking water sources | BC14: NATIONAL wealth index quintile | BH14: URBAN wealth index quintile | BM14: RURAL wealth index quintile | BR14: SUB-REGIONS:
A15: Weighted percentage (used in graphs) | C15: Poorest | D15: Poor | E15: Middle | F15: Rich | G15: Richest | H15: Poorest | I15: Poor | J15: Middle | K15: Rich | L15: Richest | M15: Poorest | N15: Poor | O15: Middle | P15: Rich | Q15: Richest | R15: None valid | BA15: Water data, raw numbers (weighted) | BC15: Poorest | BD15: Poor | BE15: Middle | BF15: Rich | BG15: Richest | BH15: Poorest | BI15: Poor | BJ15: Middle | BK15: Rich | BL15: Richest | BM15: Poorest | BN15: Poor | BO15: Middle | BP15: Rich | BQ15: Richest | BR15: None valid
A16: Water | B16: Improved | C16: =C58+C59+C60+C63+C61*MICS11!C24/100 -> 92.15728279 | D16: =D58+D59+D60+D63+D61*MICS11!D24/100 -> 93.46847754 | E16: =E58+E59+E60+E63+E61*MICS11!E24/100 -> 92.30480706 | F16: =F58+F59+F60+F63+F61*MICS11!F24/100 -> 91.0369158 | G16: =G58+G59+G60+G63+G61*MICS11!G24/100 -> 95.36855858 | H16: =H58+H59+H60+H63+H61*MICS11!H24/100 -> 96.30337429 | I16: =I58+I59+I60+I63+I61*MICS11!I24/100 -> 98.14441503 | J16: =J58+J59+J60+J63+J61*MICS11!J24/100 -> 99.00024194 | K16: =K58+K59+K60+K63+K61*MICS11!K24/100 -> 96.78295513 | L16: =L58+L59+L60+L63+L61*MICS11!L24/100 -> 99.32830547 | M16: =M58+M59+M60+M63+M61*MICS11!M24/100 -> 82.20541336 | N16: =N58+N59+N60+N63+N61*MICS11!N24/100 -> 89.41299738 | O16: =O58+O59+O60+O63+O61*MICS11!O24/100 -> 82.83031488 | P16: =P58+P59+P60+P63+P61*MICS11!P24/100 -> 88.05148841 | Q16: =Q58+Q59+Q60+Q63+Q61*MICS11!Q24/100 -> 92.42666939 | R16: N/A | BA16: Water | BB16: Improved | BC16: N/A | BD16: N/A | BE16: N/A | BF16: N/A | BG16: N/A | BH16: N/A | BI16: N/A | BJ16: N/A | BK16: N/A | BL16: N/A | BM16: N/A | BN16: N/A | BO16: N/A | BP16: N/A | BQ16: N/A | BR16: N/A
B17: Not Improved | C17: =100-C16 -> 7.842717209 | D17: =100-D16 -> 6.531522464 | E17: 7.695192941 | F17: 8.963084202 | G17: 4.631441419 | H17: 3.696625712 | I17: 1.855584973 | J17: 0.999758055 | K17: 3.217044872 | L17: 0.6716945341 | M17: 17.79458664 | N17: 10.58700262 | O17: 17.16968512 | P17: 11.94851159 | Q17: 7.573330611 | R17: N/A | BB17: Not Improved | BC17: N/A | BD17: N/A | BE17: N/A | BF17: N/A | BG17: N/A | BH17: N/A | BI17: N/A | BJ17: N/A | BK17: N/A | BL17: N/A | BM17: N/A | BN17: N/A | BO17: N/A | BP17: N/A | BQ17: N/A | BR17: N/A
A18: Water ladder | B18: Basic | C18: =C16*MICS11!C23/100 -> 88.65530604 | D18: =D16*MICS11!D23/100 -> 90.47748626 | E18: =E16*MICS11!E23/100 -> 92.30480706 | F18: =F16*MICS11!F23/100 -> 89.76239898 | G18: =G16*MICS11!G23/100 -> 94.414873 | H18: =H16*MICS11!H23/100 -> 95.34034055 | I18: =I16*MICS11!I23/100 -> 97.9481262 | J18: =J16*MICS11!J23/100 -> 98.10923977 | K18: =K16*MICS11!K23/100 -> 95.81512558 | L18: =L16*MICS11!L23/100 -> 99.32830547 | M18: =M16*MICS11!M23/100 -> 77.93073186 | N18: =N16*MICS11!N23/100 -> 86.90943346 | O18: =O16*MICS11!O23/100 -> 78.77162945 | P18: =P16*MICS11!P23/100 -> 86.6426646 | Q18: =Q16*MICS11!Q23/100 -> 91.13269602 | R18: N/A | BA18: Water ladder | BB18: Basic | BC18: N/A | BD18: N/A | BE18: N/A | BF18: N/A | BG18: N/A | BH18: N/A | BI18: N/A | BJ18: N/A | BK18: N/A | BL18: N/A | BM18: N/A | BN18: N/A | BO18: N/A | BP18: N/A | BQ18: N/A | BR18: N/A
B19: Limited | C19: =C16*MICS11!C22/100 -> 3.501976746 | D19: =D16*MICS11!D22/100 -> 2.990991281 | E19: =E16*MICS11!E22/100 -> 0 | F19: =F16*MICS11!F22/100 -> 1.274516821 | G19: =G16*MICS11!G22/100 -> 0.9536855858 | H19: =H16*MICS11!H22/100 -> 0.9630337429 | I19: =I16*MICS11!I22/100 -> 0.1962888301 | J19: =J16*MICS11!J22/100 -> 0.8910021775 | K19: =K16*MICS11!K22/100 -> 0.9678295513 | L19: =L16*MICS11!L22/100 -> 0 | M19: =M16*MICS11!M22/100 -> 4.274681494 | N19: =N16*MICS11!N22/100 -> 2.503563927 | O19: =O16*MICS11!O22/100 -> 4.058685429 | P19: =P16*MICS11!P22/100 -> 1.408823815 | Q19: =Q16*MICS11!Q22/100 -> 1.293973371 | R19: N/A | BB19: Limited | BC19: N/A | BD19: N/A | BE19: N/A | BF19: N/A | BG19: N/A | BH19: N/A | BI19: N/A | BJ19: N/A | BK19: N/A | BL19: N/A | BM19: N/A | BN19: N/A | BO19: N/A | BP19: N/A | BQ19: N/A | BR19: N/A
B20: Unimproved | C20: =100-(C18+C19+C21) -> 5.200605818 | D20: =100-(D18+D19+D21) -> 2.288084667 | E20: 3.901377881 | F20: 3.974634482 | G20: 1.06928125 | H20: 3.696625712 | I20: 1.114617594 | J20: 0.999758055 | K20: 3.217044872 | L20: 0.6716945341 | M20: 8.14346085 | N20: 4.899856172 | O20: 5.93637774 | P20: 4.53202293 | Q20: 1.364667823 | R20: N/A | BB20: Unimproved | BC20: N/A | BD20: N/A | BE20: N/A | BF20: N/A | BG20: N/A | BH20: N/A | BI20: N/A | BJ20: N/A | BK20: N/A | BL20: N/A | BM20: N/A | BN20: N/A | BO20: N/A | BP20: N/A | BQ20: N/A | BR20: N/A
B21: Surface water | C21: =C62 -> 2.642111391 | D21: 4.243437797 | E21: 3.79381506 | F21: 4.98844972 | G21: 3.562160169 | H21: 0 | I21: 0.7409673789 | J21: 0 | K21: 0 | L21: 0 | M21: 9.651125795 | N21: 5.687146444 | O21: 11.23330738 | P21: 7.416488656 | Q21: 6.208662788 | R21: N/A | BB21: Surface water | BC21: N/A | BD21: N/A | BE21: N/A | BF21: N/A | BG21: N/A | BH21: N/A | BI21: N/A | BJ21: N/A | BK21: N/A | BL21: N/A | BM21: N/A | BN21: N/A | BO21: N/A | BP21: N/A | BQ21: N/A | BR21: N/A
A22: Improved water point at more than 30 minutes | B22: Yes | C22: N/A | D22: N/A | E22: N/A | F22: N/A | G22: N/A | H22: N/A | I22: N/A | J22: N/A | K22: N/A | L22: N/A | M22: N/A | N22: N/A | O22: N/A | P22: N/A | Q22: N/A | R22: N/A | BA22: Improved water point at more than 30 minutes | BB22: Yes | BC22: N/A | BD22: N/A | BE22: N/A | BF22: N/A | BG22: N/A | BH22: N/A | BI22: N/A | BJ22: N/A | BK22: N/A | BL22: N/A | BM22: N/A | BN22: N/A | BO22: N/A | BP22: N/A | BQ22: N/A | BR22: N/A
B23: No | C23: N/A | D23: N/A | E23: N/A | F23: N/A | G23: N/A | H23: N/A | I23: N/A | J23: N/A | K23: N/A | L23: N/A | M23: N/A | N23: N/A | O23: N/A | P23: N/A | Q23: N/A | R23: N/A | BB23: No | BC23: N/A | BD23: N/A | BE23: N/A | BF23: N/A | BG23: N/A | BH23: N/A | BI23: N/A | BJ23: N/A | BK23: N/A | BL23: N/A | BM23: N/A | BN23: N/A | BO23: N/A | BP23: N/A | BQ23: N/A | BR23: N/A
A24: Manually calculated ratios | B24: Improved wells
B25: Improved springs
B26: Other
C27: NATIONAL wealth index quintile | H27: URBAN wealth index quintile | M27: RURAL wealth index quintile | R27: SUB-REGIONS: | BA27: Raw numbers of respondents: | BB27: Use of drinking water sources | BC27: NATIONAL wealth index quintile | BH27: URBAN wealth index quintile | BM27: RURAL wealth index quintile | BR27: SUB-REGIONS:
A28: Percentage based on weighted population | C28: Poorest | D28: Poor | E28: Middle | F28: Rich | G28: Richest | H28: Poorest | I28: Poor | J28: Middle | K28: Rich | L28: Richest | M28: Poorest | N28: Poor | O28: Middle | P28: Rich | Q28: Richest | R28: None valid | BA28: Water data, raw numbers (weighted) | BC28: Poorest | BD28: Poor | BE28: Middle | BF28: Rich | BG28: Richest | BH28: Poorest | BI28: Poor | BJ28: Middle | BK28: Rich | BL28: Richest | BM28: Poorest | BN28: Poor | BO28: Middle | BP28: Rich | BQ28: Richest | BR28: None valid
A29: Piped water | B29: Yes | C29: =C58+C59+C60 -> 88.17399956 | D29: 82.56425076 | E29: 79.4450015 | F29: 75.03145592 | G29: 80.13777935 | H29: 95.76905443 | I29: 96.14570302 | J29: 96.14545496 | K29: 94.47795906 | L29: 97.93324759 | M29: 63.34832916 | N29: 67.41581346 | O29: 56.50542737 | P29: 69.51128184 | Q29: 66.9166576 | R29: N/A | BA29: Piped water | BB29: Yes | BC29: N/A | BD29: N/A | BE29: N/A | BF29: N/A | BG29: N/A | BH29: N/A | BI29: N/A | BJ29: N/A | BK29: N/A | BL29: N/A | BM29: N/A | BN29: N/A | BO29: N/A | BP29: N/A | BQ29: N/A | BR29: N/A
B30: No | C30: =100-C29 -> 11.82600044 | D30: =100-D29 -> 17.43574924 | E30: 20.5549985 | F30: 24.96854408 | G30: 19.86222065 | H30: 4.230945568 | I30: 3.854296976 | J30: 3.854545041 | K30: 5.522040939 | L30: 2.066752411 | M30: 36.65167084 | N30: 32.58418654 | O30: 43.49457263 | P30: 30.48871816 | Q30: 33.0833424 | R30: N/A | BB30: No | BC30: N/A | BD30: N/A | BE30: N/A | BF30: N/A | BG30: N/A | BH30: N/A | BI30: N/A | BJ30: N/A | BK30: N/A | BL30: N/A | BM30: N/A | BN30: N/A | BO30: N/A | BP30: N/A | BQ30: N/A | BR30: N/A
A31: Piped water on premises | B31: Yes | C31: =C58+C59 -> 76.32547515 | D31: 63.3010686 | E31: 58.76739763 | F31: 58.03455718 | G31: 71.49951869 | H31: 93.2240136 | I31: 84.85985444 | J31: 87.74956527 | K31: 90.08005972 | L31: 96.16285271 | M31: 31.66723099 | N31: 36.09234188 | O31: 27.72369878 | P31: 35.92059289 | Q31: 53.1759243 | R31: N/A | BA31: Piped water on premises | BB31: Yes | BC31: N/A | BD31: N/A | BE31: N/A | BF31: N/A | BG31: N/A | BH31: N/A | BI31: N/A | BJ31: N/A | BK31: N/A | BL31: N/A | BM31: N/A | BN31: N/A | BO31: N/A | BP31: N/A | BQ31: N/A | BR31: N/A
B32: No | C32: =100-C31 -> 23.67452485 | D32: =100-D31 -> 36.6989314 | E32: 41.23260237 | F32: 41.96544282 | G32: 28.50048131 | H32: 6.7759864 | I32: 15.14014556 | J32: 12.25043473 | K32: 9.919940276 | L32: 3.83714729 | M32: 68.33276901 | N32: 63.90765812 | O32: 72.27630122 | P32: 64.07940711 | Q32: 46.8240757 | R32: N/A | BB32: No | BC32: N/A | BD32: N/A | BE32: N/A | BF32: N/A | BG32: N/A | BH32: N/A | BI32: N/A | BJ32: N/A | BK32: N/A | BL32: N/A | BM32: N/A | BN32: N/A | BO32: N/A | BP32: N/A | BQ32: N/A | BR32: N/A
A33: Piped water into dwelling | B33: Yes | C33: N/A | D33: N/A | E33: N/A | F33: N/A | G33: N/A | H33: N/A | I33: N/A | J33: N/A | K33: N/A | L33: N/A | M33: N/A | N33: N/A | O33: N/A | P33: N/A | Q33: N/A | R33: N/A | BA33: Piped water into dwelling | BB33: Yes | BC33: N/A | BD33: N/A | BE33: N/A | BF33: N/A | BG33: N/A | BH33: N/A | BI33: N/A | BJ33: N/A | BK33: N/A | BL33: N/A | BM33: N/A | BN33: N/A | BO33: N/A | BP33: N/A | BQ33: N/A | BR33: N/A
B34: No | C34: N/A | D34: N/A | E34: N/A | F34: N/A | G34: N/A | H34: N/A | I34: N/A | J34: N/A | K34: N/A | L34: N/A | M34: N/A | N34: N/A | O34: N/A | P34: N/A | Q34: N/A | R34: N/A | BB34: No | BC34: N/A | BD34: N/A | BE34: N/A | BF34: N/A | BG34: N/A | BH34: N/A | BI34: N/A | BJ34: N/A | BK34: N/A | BL34: N/A | BM34: N/A | BN34: N/A | BO34: N/A | BP34: N/A | BQ34: N/A | BR34: N/A
A35: Water source on premises | B35: Yes | C35: N/A | D35: N/A | E35: N/A | F35: N/A | G35: N/A | H35: N/A | I35: N/A | J35: N/A | K35: N/A | L35: N/A | M35: N/A | N35: N/A | O35: N/A | P35: N/A | Q35: N/A | R35: N/A | BA35: Water source on premises | BB35: Yes | BC35: N/A | BD35: N/A | BE35: N/A | BF35: N/A | BG35: N/A | BH35: N/A | BI35: N/A | BJ35: N/A | BK35: N/A | BL35: N/A | BM35: N/A | BN35: N/A | BO35: N/A | BP35: N/A | BQ35: N/A | BR35: N/A
B36: No | C36: N/A | D36: N/A | E36: N/A | F36: N/A | G36: N/A | H36: N/A | I36: N/A | J36: N/A | K36: N/A | L36: N/A | M36: N/A | N36: N/A | O36: N/A | P36: N/A | Q36: N/A | R36: N/A | BB36: No | BC36: N/A | BD36: N/A | BE36: N/A | BF36: N/A | BG36: N/A | BH36: N/A | BI36: N/A | BJ36: N/A | BK36: N/A | BL36: N/A | BM36: N/A | BN36: N/A | BO36: N/A | BP36: N/A | BQ36: N/A | BR36: N/A
A37: Improved Water source on premises | B37: Yes | C37: N/A | D37: N/A | E37: N/A | F37: N/A | G37: N/A | H37: N/A | I37: N/A | J37: N/A | K37: N/A | L37: N/A | M37: N/A | N37: N/A | O37: N/A | P37: N/A | Q37: N/A | R37: N/A | BA37: Improved water source on premises | BB37: Yes | BC37: N/A | BD37: N/A | BE37: N/A | BF37: N/A | BG37: N/A | BH37: N/A | BI37: N/A | BJ37: N/A | BK37: N/A | BL37: N/A | BM37: N/A | BN37: N/A | BO37: N/A | BP37: N/A | BQ37: N/A | BR37: N/A
B38: No | C38: N/A | D38: N/A | E38: N/A | F38: N/A | G38: N/A | H38: N/A | I38: N/A | J38: N/A | K38: N/A | L38: N/A | M38: N/A | N38: N/A | O38: N/A | P38: N/A | Q38: N/A | R38: N/A | BB38: No | BC38: N/A | BD38: N/A | BE38: N/A | BF38: N/A | BG38: N/A | BH38: N/A | BI38: N/A | BJ38: N/A | BK38: N/A | BL38: N/A | BM38: N/A | BN38: N/A | BO38: N/A | BP38: N/A | BQ38: N/A | BR38: N/A
A39: Piped water on premises available when needed | B39: Yes | C39: N/A | D39: N/A | E39: N/A | F39: N/A | G39: N/A | H39: N/A | I39: N/A | J39: N/A | K39: N/A | L39: N/A | M39: N/A | N39: N/A | O39: N/A | P39: N/A | Q39: N/A | R39: N/A | BA39: Piped water on premises available when needed | BB39: Yes | BC39: N/A | BD39: N/A | BE39: N/A | BF39: N/A | BG39: N/A | BH39: N/A | BI39: N/A | BJ39: N/A | BK39: N/A | BL39: N/A | BM39: N/A | BN39: N/A | BO39: N/A | BP39: N/A | BQ39: N/A | BR39: N/A
B40: No | C40: N/A | D40: N/A | E40: N/A | F40: N/A | G40: N/A | H40: N/A | I40: N/A | J40: N/A | K40: N/A | L40: N/A | M40: N/A | N40: N/A | O40: N/A | P40: N/A | Q40: N/A | R40: N/A | BB40: No | BC40: N/A | BD40: N/A | BE40: N/A | BF40: N/A | BG40: N/A | BH40: N/A | BI40: N/A | BJ40: N/A | BK40: N/A | BL40: N/A | BM40: N/A | BN40: N/A | BO40: N/A | BP40: N/A | BQ40: N/A | BR40: N/A
A41: Water point at more than 30 minutes | B41: Yes | C41: N/A | D41: N/A | E41: N/A | F41: N/A | G41: N/A | H41: N/A | I41: N/A | J41: N/A | K41: N/A | L41: N/A | M41: N/A | N41: N/A | O41: N/A | P41: N/A | Q41: N/A | R41: N/A | BA41: Water point at more than 30 minutes | BB41: Yes | BC41: N/A | BD41: N/A | BE41: N/A | BF41: N/A | BG41: N/A | BH41: N/A | BI41: N/A | BJ41: N/A | BK41: N/A | BL41: N/A | BM41: N/A | BN41: N/A | BO41: N/A | BP41: N/A | BQ41: N/A | BR41: N/A
B42: No | C42: N/A | D42: N/A | E42: N/A | F42: N/A | G42: N/A | H42: N/A | I42: N/A | J42: N/A | K42: N/A | L42: N/A | M42: N/A | N42: N/A | O42: N/A | P42: N/A | Q42: N/A | R42: N/A | BB42: No | BC42: N/A | BD42: N/A | BE42: N/A | BF42: N/A | BG42: N/A | BH42: N/A | BI42: N/A | BJ42: N/A | BK42: N/A | BL42: N/A | BM42: N/A | BN42: N/A | BO42: N/A | BP42: N/A | BQ42: N/A | BR42: N/A
A43: Water source available when needed | B43: Yes | C43: N/A | D43: N/A | E43: N/A | F43: N/A | G43: N/A | H43: N/A | I43: N/A | J43: N/A | K43: N/A | L43: N/A | M43: N/A | N43: N/A | O43: N/A | P43: N/A | Q43: N/A | R43: N/A | BA43: Water source available when needed | BB43: Yes | BC43: N/A | BD43: N/A | BE43: N/A | BF43: N/A | BG43: N/A | BH43: N/A | BI43: N/A | BJ43: N/A | BK43: N/A | BL43: N/A | BM43: N/A | BN43: N/A | BO43: N/A | BP43: N/A | BQ43: N/A | BR43: N/A
B44: No | C44: N/A | D44: N/A | E44: N/A | F44: N/A | G44: N/A | H44: N/A | I44: N/A | J44: N/A | K44: N/A | L44: N/A | M44: N/A | N44: N/A | O44: N/A | P44: N/A | Q44: N/A | R44: N/A | BB44: No | BC44: N/A | BD44: N/A | BE44: N/A | BF44: N/A | BG44: N/A | BH44: N/A | BI44: N/A | BJ44: N/A | BK44: N/A | BL44: N/A | BM44: N/A | BN44: N/A | BO44: N/A | BP44: N/A | BQ44: N/A | BR44: N/A
A45: Improved water source available when needed | B45: Yes | C45: N/A | D45: N/A | E45: N/A | F45: N/A | G45: N/A | H45: N/A | I45: N/A | J45: N/A | K45: N/A | L45: N/A | M45: N/A | N45: N/A | O45: N/A | P45: N/A | Q45: N/A | R45: N/A | BA45: Improved water source available when needed | BB45: Yes | BC45: N/A | BD45: N/A | BE45: N/A | BF45: N/A | BG45: N/A | BH45: N/A | BI45: N/A | BJ45: N/A | BK45: N/A | BL45: N/A | BM45: N/A | BN45: N/A | BO45: N/A | BP45: N/A | BQ45: N/A | BR45: N/A
B46: No | C46: N/A | D46: N/A | E46: N/A | F46: N/A | G46: N/A | H46: N/A | I46: N/A | J46: N/A | K46: N/A | L46: N/A | M46: N/A | N46: N/A | O46: N/A | P46: N/A | Q46: N/A | R46: N/A | BB46: No | BC46: N/A | BD46: N/A | BE46: N/A | BF46: N/A | BG46: N/A | BH46: N/A | BI46: N/A | BJ46: N/A | BK46: N/A | BL46: N/A | BM46: N/A | BN46: N/A | BO46: N/A | BP46: N/A | BQ46: N/A | BR46: N/A
A47: Microbiological quality at point of collection | B47: Not contaminated (No E. coli in 100 mL) | C47: N/A | D47: N/A | E47: N/A | F47: N/A | G47: N/A | H47: N/A | I47: N/A | J47: N/A | K47: N/A | L47: N/A | M47: N/A | N47: N/A | O47: N/A | P47: N/A | Q47: N/A | R47: N/A | BA47: Microbiological quality at point of collection | BB47: Not contaminated (No E. coli in 100 mL) | BC47: N/A | BD47: N/A | BE47: N/A | BF47: N/A | BG47: N/A | BH47: N/A | BI47: N/A | BJ47: N/A | BK47: N/A | BL47: N/A | BM47: N/A | BN47: N/A | BO47: N/A | BP47: N/A | BQ47: N/A | BR47: N/A
B48: Contaminated (E. coli detected in 100 mL) | C48: N/A | D48: N/A | E48: N/A | F48: N/A | G48: N/A | H48: N/A | I48: N/A | J48: N/A | K48: N/A | L48: N/A | M48: N/A | N48: N/A | O48: N/A | P48: N/A | Q48: N/A | R48: N/A | BB48: Contaminated (E. coli detected in 100 mL) | BC48: N/A | BD48: N/A | BE48: N/A | BF48: N/A | BG48: N/A | BH48: N/A | BI48: N/A | BJ48: N/A | BK48: N/A | BL48: N/A | BM48: N/A | BN48: N/A | BO48: N/A | BP48: N/A | BQ48: N/A | BR48: N/A
B49: Highly contaminated (>100 CFU/100 mL) | C49: N/A | D49: N/A | E49: N/A | F49: N/A | G49: N/A | H49: N/A | I49: N/A | J49: N/A | K49: N/A | L49: N/A | M49: N/A | N49: N/A | O49: N/A | P49: N/A | Q49: N/A | R49: N/A | BB49: Highly contaminated (>100 CFU/100 mL) | BC49: N/A | BD49: N/A | BE49: N/A | BF49: N/A | BG49: N/A | BH49: N/A | BI49: N/A | BJ49: N/A | BK49: N/A | BL49: N/A | BM49: N/A | BN49: N/A | BO49: N/A | BP49: N/A | BQ49: N/A | BR49: N/A
A50: Microbiological quality of improved water sources at point of collection | B50: Not contaminated (No E. coli in 100 mL) | C50: N/A | D50: N/A | E50: N/A | F50: N/A | G50: N/A | H50: N/A | I50: N/A | J50: N/A | K50: N/A | L50: N/A | M50: N/A | N50: N/A | O50: N/A | P50: N/A | Q50: N/A | R50: N/A | BA50: Microbiological quality of improved water sources at point of collection | BB50: Not contaminated (No E. coli in 100 mL) | BC50: N/A | BD50: N/A | BE50: N/A | BF50: N/A | BG50: N/A | BH50: N/A | BI50: N/A | BJ50: N/A | BK50: N/A | BL50: N/A | BM50: N/A | BN50: N/A | BO50: N/A | BP50: N/A | BQ50: N/A | BR50: N/A
B51: Contaminated (E. coli detected in 100 mL) | C51: N/A | D51: N/A | E51: N/A | F51: N/A | G51: N/A | H51: N/A | I51: N/A | J51: N/A | K51: N/A | L51: N/A | M51: N/A | N51: N/A | O51: N/A | P51: N/A | Q51: N/A | R51: N/A | BB51: Contaminated (E. coli detected in 100 mL) | BC51: N/A | BD51: N/A | BE51: N/A | BF51: N/A | BG51: N/A | BH51: N/A | BI51: N/A | BJ51: N/A | BK51: N/A | BL51: N/A | BM51: N/A | BN51: N/A | BO51: N/A | BP51: N/A | BQ51: N/A | BR51: N/A
B52: Highly contaminated (>100 CFU/100 mL) | C52: N/A | D52: N/A | E52: N/A | F52: N/A | G52: N/A | H52: N/A | I52: N/A | J52: N/A | K52: N/A | L52: N/A | M52: N/A | N52: N/A | O52: N/A | P52: N/A | Q52: N/A | R52: N/A | BB52: Highly contaminated (>100 CFU/100 mL) | BC52: N/A | BD52: N/A | BE52: N/A | BF52: N/A | BG52: N/A | BH52: N/A | BI52: N/A | BJ52: N/A | BK52: N/A | BL52: N/A | BM52: N/A | BN52: N/A | BO52: N/A | BP52: N/A | BQ52: N/A | BR52: N/A
A53: Microbiological quality of piped on premises at point of collection | B53: Not contaminated (No E. coli in 100 mL) | C53: N/A | D53: N/A | E53: N/A | F53: N/A | G53: N/A | H53: N/A | I53: N/A | J53: N/A | K53: N/A | L53: N/A | M53: N/A | N53: N/A | O53: N/A | P53: N/A | Q53: N/A | R53: N/A | BA53: Microbiological quality of piped on premises at point of collection | BB53: Not contaminated (No E. coli in 100 mL) | BC53: N/A | BD53: N/A | BE53: N/A | BF53: N/A | BG53: N/A | BH53: N/A | BI53: N/A | BJ53: N/A | BK53: N/A | BL53: N/A | BM53: N/A | BN53: N/A | BO53: N/A | BP53: N/A | BQ53: N/A | BR53: N/A
B54: Contaminated (E. coli detected in 100 mL) | C54: N/A | D54: N/A | E54: N/A | F54: N/A | G54: N/A | H54: N/A | I54: N/A | J54: N/A | K54: N/A | L54: N/A | M54: N/A | N54: N/A | O54: N/A | P54: N/A | Q54: N/A | R54: N/A | BB54: Contaminated (E. coli detected in 100 mL) | BC54: N/A | BD54: N/A | BE54: N/A | BF54: N/A | BG54: N/A | BH54: N/A | BI54: N/A | BJ54: N/A | BK54: N/A | BL54: N/A | BM54: N/A | BN54: N/A | BO54: N/A | BP54: N/A | BQ54: N/A | BR54: N/A
B55: Highly contaminated (>100 CFU/100 mL) | C55: N/A | D55: N/A | E55: N/A | F55: N/A | G55: N/A | H55: N/A | I55: N/A | J55: N/A | K55: N/A | L55: N/A | M55: N/A | N55: N/A | O55: N/A | P55: N/A | Q55: N/A | R55: N/A | BB55: Highly contaminated (>100 CFU/100 mL) | BC55: N/A | BD55: N/A | BE55: N/A | BF55: N/A | BG55: N/A | BH55: N/A | BI55: N/A | BJ55: N/A | BK55: N/A | BL55: N/A | BM55: N/A | BN55: N/A | BO55: N/A | BP55: N/A | BQ55: N/A | BR55: N/A
C56: NATIONAL wealth index quintile | H56: URBAN wealth index quintile | M56: RURAL wealth index quintile | R56: SUB-REGIONS: | BA56: Raw numbers of respondents: | BB56: Use of drinking water sources | BC56: NATIONAL wealth index quintile | BH56: URBAN wealth index quintile | BM56: RURAL wealth index quintile | BR56: SUB-REGIONS:
A57: Percentage based on weighted population | C57: Poorest | D57: Poor | E57: Middle | F57: Rich | G57: Richest | H57: Poorest | I57: Poor | J57: Middle | K57: Rich | L57: Richest | M57: Poorest | N57: Poor | O57: Middle | P57: Rich | Q57: Richest | R57: None valid | BA57: Water data, raw numbers (weighted) | BC57: Poorest | BD57: Poor | BE57: Middle | BF57: Rich | BG57: Richest | BH57: Poorest | BI57: Poor | BJ57: Middle | BK57: Rich | BL57: Richest | BM57: Poorest | BN57: Poor | BO57: Middle | BP57: Rich | BQ57: Richest | BR57: None valid
A58: Water | B58: Indoor tap/pipe | C58: 37.31599392 | D58: 46.70676556 | E58: 40.48988738 | F58: 42.11284605 | G58: 60.46439588 | H58: 43.65597924 | I58: 66.11901372 | J58: 68.65409902 | K58: 72.18386177 | L58: 92.81914256 | M58: 9.870079635 | N58: 19.50418973 | O58: 11.5191694 | P58: 16.97864762 | Q58: 36.42647571 | R58: N/A
B59: Outside private pipe/tap | C59: 39.00948123 | D59: 16.59430304 | E59: 18.27751025 | F59: 15.92171113 | G59: 11.0351228 | H59: 49.56803436 | I59: 18.74084072 | J59: 19.09546625 | K59: 17.89619795 | L59: 3.343710153 | M59: 21.79715136 | N59: 16.58815215 | O59: 16.20452938 | P59: 18.94194526 | Q59: 16.74944859 | R59: N/A
B60: Public standpipe | C60: 11.84852441 | D60: 19.26318216 | E60: 20.67760388 | F60: 16.99689875 | G60: 8.638260665 | H60: 2.545040831 | I60: 11.28584858 | J60: 8.39588969 | K60: 4.397899337 | L60: 1.770394879 | M60: 31.68109817 | N60: 31.32347158 | O60: 28.7817286 | P60: 33.59068895 | Q60: 13.7407333 | R60: N/A
B61: Well | C61: 0.4944913126 | D61: 0.6581061963 | E61: 0.2246565249 | F61: 0.2790540955 | G61: 0.3681209543 | H61: 0 | I61: 0 | J61: 0 | K61: 0 | L61: 0 | M61: 1.981899514 | N61: 0.508213086 | O61: 0.9271200443 | P61: 0 | Q61: 0.641615975 | R61: N/A
B62: River, lake, spring, pond | C62: 2.642111391 | D62: 4.243437797 | E62: 3.79381506 | F62: 4.98844972 | G62: 3.562160169 | H62: 0 | I62: 0.7409673789 | J62: 0 | K62: 0 | L62: 0 | M62: 9.651125795 | N62: 5.687146444 | O62: 11.23330738 | P62: 7.416488656 | Q62: 6.208662788 | R62: N/A
B63: Rainwater (tank) | C63: 3.630075146 | D63: 10.35580495 | E63: 12.63514903 | F63: 15.72640578 | G63: 14.86265828 | H63: 0.5343198569 | I63: 1.998712003 | J63: 2.854786986 | K63: 2.304996068 | L63: 1.395057877 | M63: 17.53581785 | N63: 21.99718393 | O63: 25.39776746 | P63: 18.54020658 | Q63: 24.86839582 | R63: N/A
B64: Other | C64: 5.059322586 | D64: 2.178400301 | E64: 3.901377881 | F64: 3.974634482 | G64: 1.06928125 | H64: 3.696625712 | I64: 1.114617594 | J64: 0.999758055 | K64: 3.217044872 | L64: 0.6716945341 | M64: 7.482827678 | N64: 4.391643086 | O64: 5.93637774 | P64: 4.53202293 | Q64: 1.364667823 | R64: N/A
A108: =A1026 -> Jamaica
A109: =A1034 -> 1997
A110: Use of sanitation facilities
A111: by wealth quintile and sub-national region
A112: Notes:
A113: WHO/UNICEF JMP customised wealth index excludes water,
A114: sanitation and hygiene assets.
A115: Survey used for analysis: | B115: =A1025 -> SLC97
A116: =B1030 -> Ratio of Improved latrines based on:
A117: =B1029 -> Ratio of Shared improved based on:
A120: Use of sanitation facilities | C120: NATIONAL wealth index quintile | H120: URBAN wealth index quintile | M120: RURAL wealth index quintile | R120: SUB-REGIONS: | BA120: Raw numbers of respondents: | BB120: Use of sanitation facilities | BC120: NATIONAL wealth index quintile | BH120: URBAN wealth index quintile | BM120: RURAL wealth index quintile | BR120: SUB-REGIONS:
A121: Weighted percentage (used in graphs) | C121: Poorest | D121: Poor | E121: Middle | F121: Rich | G121: Richest | H121: Poorest | I121: Poor | J121: Middle | K121: Rich | L121: Richest | M121: Poorest | N121: Poor | O121: Middle | P121: Rich | Q121: Richest | R121: None valid | BA121: Sanitation data, raw numbers (weighted) | BC121: Poorest | BD121: Poor | BE121: Middle | BF121: Rich | BG121: Richest | BH121: Poorest | BI121: Poor | BJ121: Middle | BK121: Rich | BL121: Richest | BM121: Poorest | BN121: Poor | BO121: Middle | BP121: Rich | BQ121: Richest | BR121: None valid
A122: Sanitation | B122: Improved | C122: =C153+C154+C155*MICS11!C130/100 -> 96.05014755 | D122: =D153+D154+D155*MICS11!D130/100 -> 94.09847759 | E122: =E153+E154+E155*MICS11!E130/100 -> 98.18285752 | F122: =F153+F154+F155*MICS11!F130/100 -> 98.88142098 | G122: =G153+G154+G155*MICS11!G130/100 -> 100 | H122: =H153+H154+H155*MICS11!H130/100 -> 96.87620433 | I122: =I153+I154+I155*MICS11!I130/100 -> 96.16987029 | J122: =J153+J154+J155*MICS11!J130/100 -> 98.57940362 | K122: =K153+K154+K155*MICS11!K130/100 -> 98.39084814 | L122: =L153+L154+L155*MICS11!L130/100 -> 100 | M122: =M153+M154+M155*MICS11!M130/100 -> 90.12713866 | N122: =N153+N154+N155*MICS11!N130/100 -> 96.98537218 | O122: =O153+O154+O155*MICS11!O130/100 -> 97.23997096 | P122: =P153+P154+P155*MICS11!P130/100 -> 100 | Q122: =Q153+Q154+Q155*MICS11!Q130/100 -> 100 | R122: N/A | BA122: Sanitation | BB122: Improved | BC122: N/A | BD122: N/A | BE122: N/A | BF122: N/A | BG122: N/A | BH122: N/A | BI122: N/A | BJ122: N/A | BK122: N/A | BL122: N/A | BM122: N/A | BN122: N/A | BO122: N/A | BP122: N/A | BQ122: N/A | BR122: N/A
B123: Not Improved | C123: =100-C122 -> 3.949852446 | D123: =100-D122 -> 5.90152241 | E123: 1.817142481 | F123: 1.118579017 | G123: 0 | H123: 3.123795672 | I123: 3.830129711 | J123: 1.420596381 | K123: 1.609151858 | L123: 0 | M123: 9.872861342 | N123: 3.014627819 | O123: 2.760029041 | P123: 0 | Q123: 0 | R123: N/A | BB123: Not Improved | BC123: N/A | BD123: N/A | BE123: N/A | BF123: N/A | BG123: N/A | BH123: N/A | BI123: N/A | BJ123: N/A | BK123: N/A | BL123: N/A | BM123: N/A | BN123: N/A | BO123: N/A | BP123: N/A | BQ123: N/A | BR123: N/A
A124: Sanitation ladder | B124: Basic | C124: =C122*MICS11!C129/100 -> 74.92362004 | D124: =D122*MICS11!D129/100 -> 79.05545037 | E124: =E122*MICS11!E129/100 -> 82.9243697 | F124: =F122*MICS11!F129/100 -> 93.80507992 | G124: =G122*MICS11!G129/100 -> 99.17673812 | H124: =H122*MICS11!H129/100 -> 66.23895096 | I124: =I122*MICS11!I129/100 -> 80.54000853 | J124: =J122*MICS11!J129/100 -> 91.37163383 | K124: =K122*MICS11!K129/100 -> 97.67182887 | L124: =L122*MICS11!L129/100 -> 99.77265618 | M124: =M122*MICS11!M129/100 -> 70.07874589 | N124: =N122*MICS11!N129/100 -> 78.81405481 | O124: =O122*MICS11!O129/100 -> 86.40777264 | P124: =P122*MICS11!P129/100 -> 97.31572667 | Q124: =Q122*MICS11!Q129/100 -> 99.01350835 | R124: N/A | BA124: Sanitation ladder | BB124: Basic | BC124: N/A | BD124: N/A | BE124: N/A | BF124: N/A | BG124: N/A | BH124: N/A | BI124: N/A | BJ124: N/A | BK124: N/A | BL124: N/A | BM124: N/A | BN124: N/A | BO124: N/A | BP124: N/A | BQ124: N/A | BR124: N/A
B125: Limited | C125: =C122*MICS11!C128/100 -> 21.12652752 | D125: =D122*MICS11!D128/100 -> 15.04302722 | E125: =E122*MICS11!E128/100 -> 15.25848782 | F125: =F122*MICS11!F128/100 -> 5.076341065 | G125: =G122*MICS11!G128/100 -> 0.8232618819 | H125: =H122*MICS11!H128/100 -> 30.63725337 | I125: =I122*MICS11!I128/100 -> 15.62986176 | J125: =J122*MICS11!J128/100 -> 7.207769789 | K125: =K122*MICS11!K128/100 -> 0.7190192757 | L125: =L122*MICS11!L128/100 -> 0.2273438219 | M125: =M122*MICS11!M128/100 -> 20.04839277 | N125: =N122*MICS11!N128/100 -> 18.17131737 | O125: =O122*MICS11!O128/100 -> 10.83219832 | P125: =P122*MICS11!P128/100 -> 2.684273328 | Q125: =Q122*MICS11!Q128/100 -> 0.9864916509 | R125: N/A | BB125: Limited | BC125: N/A | BD125: N/A | BE125: N/A | BF125: N/A | BG125: N/A | BH125: N/A | BI125: N/A | BJ125: N/A | BK125: N/A | BL125: N/A | BM125: N/A | BN125: N/A | BO125: N/A | BP125: N/A | BQ125: N/A | BR125: N/A
B126: Unimproved | C126: =100-(C124+C125+C127) -> 0.9669292204 | D126: =100-(D124+D125+D127) -> 1.190524329 | E126: 1.167929853 | F126: 0.5592895085 | G126: 0 | H126: 0.8516640896 | I126: 0.9440174466 | J126: 0.4486093833 | K126: 0.8164213278 | L126: 0 | M126: 1.776483198 | N126: 1.483243559 | O126: 1.395498514 | P126: 0 | Q126: 0 | R126: N/A | BB126: Unimproved | BC126: N/A | BD126: N/A | BE126: N/A | BF126: N/A | BG126: N/A | BH126: N/A | BI126: N/A | BJ126: N/A | BK126: N/A | BL126: N/A | BM126: N/A | BN126: N/A | BO126: N/A | BP126: N/A | BQ126: N/A | BR126: N/A
B127: Open defecation | C127: =C157 -> 2.982923225 | D127: =D157 -> 4.710998081 | E127: 0.6492126277 | F127: 0.5592895085 | G127: 0 | H127: 2.272131583 | I127: 2.886112264 | J127: 0.9719869982 | K127: 0.7927305304 | L127: 0 | M127: 8.096378144 | N127: 1.53138426 | O127: 1.364530527 | P127: 0 | Q127: 0 | R127: N/A | BB127: Open defecation | BC127: N/A | BD127: N/A | BE127: N/A | BF127: N/A | BG127: N/A | BH127: N/A | BI127: N/A | BJ127: N/A | BK127: N/A | BL127: N/A | BM127: N/A | BN127: N/A | BO127: N/A | BP127: N/A | BQ127: N/A | BR127: N/A
A128: Shared among Improved Sanitation | B128: Yes | C128: N/A | D128: N/A | E128: N/A | F128: N/A | G128: N/A | H128: N/A | I128: N/A | J128: N/A | K128: N/A | L128: N/A | M128: N/A | N128: N/A | O128: N/A | P128: N/A | Q128: N/A | R128: N/A | BA128: Shared among improved sanitation facilities | BB128: Yes | BC128: N/A | BD128: N/A | BE128: N/A | BF128: N/A | BG128: N/A | BH128: N/A | BI128: N/A | BJ128: N/A | BK128: N/A | BL128: N/A | BM128: N/A | BN128: N/A | BO128: N/A | BP128: N/A | BQ128: N/A | BR128: N/A
B129: No | C129: N/A | D129: N/A | E129: N/A | F129: N/A | G129: N/A | H129: N/A | I129: N/A | J129: N/A | K129: N/A | L129: N/A | M129: N/A | N129: N/A | O129: N/A | P129: N/A | Q129: N/A | R129: N/A | BB129: No | BC129: N/A | BD129: N/A | BE129: N/A | BF129: N/A | BG129: N/A | BH129: N/A | BI129: N/A | BJ129: N/A | BK129: N/A | BL129: N/A | BM129: N/A | BN129: N/A | BO129: N/A | BP129: N/A | BQ129: N/A | BR129: N/A
A130: Manually calculated ratios | B130: Improved latrines
B131: Other
B132: Other
C133: NATIONAL wealth index quintile | H133: URBAN wealth index quintile | M133: RURAL wealth index quintile | R133: SUB-REGIONS: | BA133: Raw numbers of respondents: | BB133: Use of sanitation facilities | BC133: NATIONAL wealth index quintile | BH133: URBAN wealth index quintile | BM133: RURAL wealth index quintile | BR133: SUB-REGIONS:
A134: Percentage based on weighted population | C134: Poorest | D134: Poor | E134: Middle | F134: Rich | G134: Richest | H134: Poorest | I134: Poor | J134: Middle | K134: Rich | L134: Richest | M134: Poorest | N134: Poor | O134: Middle | P134: Rich | Q134: Richest | R134: None valid | BA134: Sanitation data, raw numbers (weighted) | BC134: Poorest | BD134: Poor | BE134: Middle | BF134: Rich | BG134: Richest | BH134: Poorest | BI134: Poor | BJ134: Middle | BK134: Rich | BL134: Richest | BM134: Poorest | BN134: Poor | BO134: Middle | BP134: Rich | BQ134: Richest | BR134: None valid
A135: Sanitation type | B135: Sewer connection | C135: =C153 -> 29.29387295 | D135: =D153 -> 28.91407601 | E135: 24.68792595 | F135: 22.00550318 | G135: 29.33726431 | H135: 36.37912505 | I135: 43.7510224 | J135: 40.73234025 | K135: 41.12317732 | L135: 53.39136121 | M135: 8.12677442 | N135: 9.136044044 | O135: 6.776593785 | P135: 8.485566247 | Q135: 11.34643014 | R135: N/A | BA135: Sanitation type | BB135: Sewer connection | BC135: N/A | BD135: N/A | BE135: N/A | BF135: N/A | BG135: N/A | BH135: N/A | BI135: N/A | BJ135: N/A | BK135: N/A | BL135: N/A | BM135: N/A | BN135: N/A | BO135: N/A | BP135: N/A | BQ135: N/A | BR135: N/A
B136: Septic tank connection | C136: N/A | D136: N/A | E136: N/A | F136: N/A | G136: N/A | H136: N/A | I136: N/A | J136: N/A | K136: N/A | L136: N/A | M136: N/A | N136: N/A | O136: N/A | P136: N/A | Q136: N/A | R136: N/A | BB136: Septic tank connection | BC136: N/A | BD136: N/A | BE136: N/A | BF136: N/A | BG136: N/A | BH136: N/A | BI136: N/A | BJ136: N/A | BK136: N/A | BL136: N/A | BM136: N/A | BN136: N/A | BO136: N/A | BP136: N/A | BQ136: N/A | BR136: N/A
B137: Improved latrines | C137: N/A | D137: N/A | E137: N/A | F137: N/A | G137: N/A | H137: N/A | I137: N/A | J137: N/A | K137: N/A | L137: N/A | M137: N/A | N137: N/A | O137: N/A | P137: N/A | Q137: N/A | R137: N/A | BB137: Improved latrines | BC137: N/A | BD137: N/A | BE137: N/A | BF137: N/A | BG137: N/A | BH137: N/A | BI137: N/A | BJ137: N/A | BK137: N/A | BL137: N/A | BM137: N/A | BN137: N/A | BO137: N/A | BP137: N/A | BQ137: N/A | BR137: N/A
B138: Unimproved facilities | C138: 68.05479279 | D138: 69.05479279 | E138: 70.05479279 | F138: 71.05479279 | G138: 72.05479279 | H138: 73.05479279 | I138: 74.05479279 | J138: 75.05479279 | K138: 76.05479279 | L138: 77.05479279 | M138: 78.05479279 | N138: 79.05479279 | O138: 80.05479279 | P138: 81.05479279 | Q138: 82.05479279 | R138: N/A | BB138: Unimproved facilities | BC138: N/A | BD138: N/A | BE138: N/A | BF138: N/A | BG138: N/A | BH138: N/A | BI138: N/A | BJ138: N/A | BK138: N/A | BL138: N/A | BM138: N/A | BN138: N/A | BO138: N/A | BP138: N/A | BQ138: N/A | BR138: N/A
B139: Open defecation | C139: =C157 -> 2.982923225 | D139: =D157 -> 4.710998081 | E139: 0.6492126277 | F139: 0.5592895085 | G139: 0 | H139: 2.272131583 | I139: 2.886112264 | J139: 0.9719869982 | K139: 0.7927305304 | L139: 0 | M139: 8.096378144 | N139: 1.53138426 | O139: 1.364530527 | P139: 0 | Q139: 0 | R139: N/A | BB139: Open defecation | BC139: N/A | BD139: N/A | BE139: N/A | BF139: N/A | BG139: N/A | BH139: N/A | BI139: N/A | BJ139: N/A | BK139: N/A | BL139: N/A | BM139: N/A | BN139: N/A | BO139: N/A | BP139: N/A | BQ139: N/A | BR139: N/A
A140: Septic tank emptying practices | B140: Not emptied/treated and disposed in situ | C140: N/A | D140: N/A | E140: N/A | F140: N/A | G140: N/A | H140: N/A | I140: N/A | J140: N/A | K140: N/A | L140: N/A | M140: N/A | N140: N/A | O140: N/A | P140: N/A | Q140: N/A | R140: N/A | BA140: Septic tank emptying practices | BB140: Not emptied/treated and disposed in situ | BC140: N/A | BD140: N/A | BE140: N/A | BF140: N/A | BG140: N/A | BH140: N/A | BI140: N/A | BJ140: N/A | BK140: N/A | BL140: N/A | BM140: N/A | BN140: N/A | BO140: N/A | BP140: N/A | BQ140: N/A | BR140: N/A
B141: Emptied and buried on site | C141: N/A | D141: N/A | E141: N/A | F141: N/A | G141: N/A | H141: N/A | I141: N/A | J141: N/A | K141: N/A | L141: N/A | M141: N/A | N141: N/A | O141: N/A | P141: N/A | Q141: N/A | R141: N/A | BB141: Emptied and buried on site | BC141: N/A | BD141: N/A | BE141: N/A | BF141: N/A | BG141: N/A | BH141: N/A | BI141: N/A | BJ141: N/A | BK141: N/A | BL141: N/A | BM141: N/A | BN141: N/A | BO141: N/A | BP141: N/A | BQ141: N/A | BR141: N/A
B142: Emptied and discharged locally | C142: N/A | D142: N/A | E142: N/A | F142: N/A | G142: N/A | H142: N/A | I142: N/A | J142: N/A | K142: N/A | L142: N/A | M142: N/A | N142: N/A | O142: N/A | P142: N/A | Q142: N/A | R142: N/A | BB142: Emptied and discharged locally | BC142: N/A | BD142: N/A | BE142: N/A | BF142: N/A | BG142: N/A | BH142: N/A | BI142: N/A | BJ142: N/A | BK142: N/A | BL142: N/A | BM142: N/A | BN142: N/A | BO142: N/A | BP142: N/A | BQ142: N/A | BR142: N/A
B143: Emptied and removed offsite | C143: N/A | D143: N/A | E143: N/A | F143: N/A | G143: N/A | H143: N/A | I143: N/A | J143: N/A | K143: N/A | L143: N/A | M143: N/A | N143: N/A | O143: N/A | P143: N/A | Q143: N/A | R143: N/A | BB143: Emptied and removed offsite | BC143: N/A | BD143: N/A | BE143: N/A | BF143: N/A | BG143: N/A | BH143: N/A | BI143: N/A | BJ143: N/A | BK143: N/A | BL143: N/A | BM143: N/A | BN143: N/A | BO143: N/A | BP143: N/A | BQ143: N/A | BR143: N/A
A144: Latrine emptying practices | B144: Not emptied/treated and disposed in situ | C144: N/A | D144: N/A | E144: N/A | F144: N/A | G144: N/A | H144: N/A | I144: N/A | J144: N/A | K144: N/A | L144: N/A | M144: N/A | N144: N/A | O144: N/A | P144: N/A | Q144: N/A | R144: N/A | BA144: Latrine emptying practices | BB144: Not emptied/treated and disposed in situ | BC144: N/A | BD144: N/A | BE144: N/A | BF144: N/A | BG144: N/A | BH144: N/A | BI144: N/A | BJ144: N/A | BK144: N/A | BL144: N/A | BM144: N/A | BN144: N/A | BO144: N/A | BP144: N/A | BQ144: N/A | BR144: N/A
B145: Emptied and buried on site | C145: N/A | D145: N/A | E145: N/A | F145: N/A | G145: N/A | H145: N/A | I145: N/A | J145: N/A | K145: N/A | L145: N/A | M145: N/A | N145: N/A | O145: N/A | P145: N/A | Q145: N/A | R145: N/A | BB145: Emptied and buried on site | BC145: N/A | BD145: N/A | BE145: N/A | BF145: N/A | BG145: N/A | BH145: N/A | BI145: N/A | BJ145: N/A | BK145: N/A | BL145: N/A | BM145: N/A | BN145: N/A | BO145: N/A | BP145: N/A | BQ145: N/A | BR145: N/A
B146: Emptied and discharged locally | C146: N/A | D146: N/A | E146: N/A | F146: N/A | G146: N/A | H146: N/A | I146: N/A | J146: N/A | K146: N/A | L146: N/A | M146: N/A | N146: N/A | O146: N/A | P146: N/A | Q146: N/A | R146: N/A | BB146: Emptied and discharged locally | BC146: N/A | BD146: N/A | BE146: N/A | BF146: N/A | BG146: N/A | BH146: N/A | BI146: N/A | BJ146: N/A | BK146: N/A | BL146: N/A | BM146: N/A | BN146: N/A | BO146: N/A | BP146: N/A | BQ146: N/A | BR146: N/A
B147: Emptied and removed offsite | C147: N/A | D147: N/A | E147: N/A | F147: N/A | G147: N/A | H147: N/A | I147: N/A | J147: N/A | K147: N/A | L147: N/A | M147: N/A | N147: N/A | O147: N/A | P147: N/A | Q147: N/A | R147: N/A | BB147: Emptied and removed offsite | BC147: N/A | BD147: N/A | BE147: N/A | BF147: N/A | BG147: N/A | BH147: N/A | BI147: N/A | BJ147: N/A | BK147: N/A | BL147: N/A | BM147: N/A | BN147: N/A | BO147: N/A | BP147: N/A | BQ147: N/A | BR147: N/A
A148: Shared among improved sanitation facilities | B148: Yes | C148: N/A | D148: N/A | E148: N/A | F148: N/A | G148: N/A | H148: N/A | I148: N/A | J148: N/A | K148: N/A | L148: N/A | M148: N/A | N148: N/A | O148: N/A | P148: N/A | Q148: N/A | R148: N/A | BA148: Shared among improved sanitation facilities | BB148: Yes | BC148: N/A | BD148: N/A | BE148: N/A | BF148: N/A | BG148: N/A | BH148: N/A | BI148: N/A | BJ148: N/A | BK148: N/A | BL148: N/A | BM148: N/A | BN148: N/A | BO148: N/A | BP148: N/A | BQ148: N/A | BR148: N/A
B149: No | C149: N/A | D149: N/A | E149: N/A | F149: N/A | G149: N/A | H149: N/A | I149: N/A | J149: N/A | K149: N/A | L149: N/A | M149: N/A | N149: N/A | O149: N/A | P149: N/A | Q149: N/A | R149: N/A | BB149: No | BC149: N/A | BD149: N/A | BE149: N/A | BF149: N/A | BG149: N/A | BH149: N/A | BI149: N/A | BJ149: N/A | BK149: N/A | BL149: N/A | BM149: N/A | BN149: N/A | BO149: N/A | BP149: N/A | BQ149: N/A | BR149: N/A
B150: DK/missing | C150: N/A | D150: N/A | E150: N/A | F150: N/A | G150: N/A | H150: N/A | I150: N/A | J150: N/A | K150: N/A | L150: N/A | M150: N/A | N150: N/A | O150: N/A | P150: N/A | Q150: N/A | R150: N/A | BB150: DK/missing | BC150: N/A | BD150: N/A | BE150: N/A | BF150: N/A | BG150: N/A | BH150: N/A | BI150: N/A | BJ150: N/A | BK150: N/A | BL150: N/A | BM150: N/A | BN150: N/A | BO150: N/A | BP150: N/A | BQ150: N/A | BR150: N/A
A151: Shared among all sanitation facilities | B151: Yes | C151: 81.77666603 | D151: 18.99088269 | E151: 8.64354285 | F151: 2.992633016 | G151: 0.6282964276 | H151: 88.03091248 | I151: 33.61929427 | J151: 9.738701151 | K151: 4.212053679 | L151: 0 | M151: 62.6702061 | N151: 18.3193282 | O151: 4.534170813 | P151: 1.031381224 | Q151: 1.098336344 | R151: N/A | BA151: Shared among all sanitation facilities | BB151: Yes | BC151: N/A | BD151: N/A | BE151: N/A | BF151: N/A | BG151: N/A | BH151: N/A | BI151: N/A | BJ151: N/A | BK151: N/A | BL151: N/A | BM151: N/A | BN151: N/A | BO151: N/A | BP151: N/A | BQ151: N/A | BR151: N/A
B152: No | C152: 18.22333397 | D152: 81.00911731 | E152: 91.35645715 | F152: 97.00736698 | G152: 99.37170357 | H152: 11.96908752 | I152: 66.38070573 | J152: 90.26129885 | K152: 95.78794632 | L152: 100 | M152: 37.3297939 | N152: 81.6806718 | O152: 95.46582919 | P152: 98.96861878 | Q152: 98.90166366 | R152: N/A | BB152: No | BC152: N/A | BD152: N/A | BE152: N/A | BF152: N/A | BG152: N/A | BH152: N/A | BI152: N/A | BJ152: N/A | BK152: N/A | BL152: N/A | BM152: N/A | BN152: N/A | BO152: N/A | BP152: N/A | BQ152: N/A | BR152: N/A
A153: sanitation | B153: WC linked to sewer | C153: 29.29387295 | D153: 28.91407601 | E153: 24.68792595 | F153: 22.00550318 | G153: 29.33726431 | H153: 36.37912505 | I153: 43.7510224 | J153: 40.73234025 | K153: 41.12317732 | L153: 53.39136121 | M153: 8.12677442 | N153: 9.136044044 | O153: 6.776593785 | P153: 8.485566247 | Q153: 11.34643014 | R153: N/A | BA153: sanitation | BB153: WC linked to sewer | BC153: 149.3576644 | BD153: 147.8502163 | BE153: 125.3932067 | BF153: 90.3936729 | BG153: 181.4628037 | BH153: 99.03261175 | BI153: 118.6301031 | BJ153: 111.7500276 | BK153: 115.7219446 | BL153: 141.311222 | BM153: 18.99926738 | BN153: 22.0278388 | BO153: 16.70695969 | BP153: 10.12600732 | BQ153: 40.15158169 | BR153: 0
B154: WC not linked | C154: 36.04406602 | D154: 22.24318593 | E154: 20.81328925 | F154: 24.66045839 | G154: 43.03012819 | H154: 46.77866779 | I154: 32.34912439 | J154: 34.10827152 | K154: 32.18029178 | L154: 42.34817632 | M154: 9.56160987 | N154: 17.484961 | O154: 9.67354677 | P154: 14.2256939 | Q154: 43.54018197 | R154: N/A | BB154: WC not linked | BC154: 183.7741812 | BD154: 113.7390608 | BE154: 105.7134198 | BF154: 101.2996336 | BG154: 266.1586855 | BH154: 127.3426351 | BI154: 87.71406362 | BJ154: 93.57675648 | BK154: 90.55637686 | BL154: 112.0831612 | BM154: 22.35371294 | BN154: 42.15784211 | BO154: 23.84908423 | BP154: 16.97582416 | BQ154: 154.0755243 | BR154: 0
B155: Pit | C155: 31.16970307 | D155: 43.89104669 | E155: 53.15723256 | F155: 52.21545941 | G155: 27.6326075 | H155: 14.03575571 | I155: 21.01374094 | J155: 23.73879185 | K155: 25.08737905 | L155: 4.260462472 | M155: 73.72639018 | N155: 70.86314938 | O155: 81.7217689 | P155: 77.28873986 | Q155: 45.11338789 | R155: N/A | BB155: Pit | BC155: 158.9217669 | BD155: 224.4339658 | BE155: 269.9925405 | BF155: 214.4893993 | BG155: 170.9188143 | BH155: 38.20865796 | BI155: 56.97837713 | BJ155: 65.12787207 | BK155: 70.59669213 | BL155: 11.27619046 | BM155: 172.3620378 | BN155: 170.8575423 | BO155: 201.4761903 | BP155: 92.23030293 | BQ155: 159.6426238 | BR155: 0
B156: Other | C156: 0.5094347312 | D156: 0.2406932902 | E156: 0.692339616 | F156: 0.5592895085 | G156: 0 | H156: 0.5343198569 | I156: 0 | J156: 0.4486093833 | K156: 0.8164213278 | L156: 0 | M156: 0.4888473856 | N156: 0.9844613109 | O156: 0.4635600221 | P156: 0 | Q156: 0 | R156: N/A | BB156: Other | BC156: 2.597402595 | BD156: 1.230769228 | BE156: 3.516483512 | BF156: 2.297435895 | BG156: 0 | BH156: 1.454545453 | BI156: 0 | BJ156: 1.230769228 | BK156: 2.297435895 | BL156: 0 | BM156: 1.142857142 | BN156: 2.37362637 | BO156: 1.142857142 | BP156: 0 | BQ156: 0 | BR156: 0
B157: None | C157: 2.982923225 | D157: 4.710998081 | E157: 0.6492126277 | F157: 0.5592895085 | G157: 0 | H157: 2.272131583 | I157: 2.886112264 | J157: 0.9719869982 | K157: 0.7927305304 | L157: 0 | M157: 8.096378144 | N157: 1.53138426 | O157: 1.364530527 | P157: 0 | Q157: 0 | R157: N/A | BB157: None | BC157: 15.2087246 | BD157: 24.08937727 | BE157: 3.297435895 | BF157: 2.297435895 | BG157: 0 | BH157: 6.185281381 | BI157: 7.825641017 | BJ157: 2.666666664 | BK157: 2.230769228 | BL157: 0 | BM157: 18.92820511 | BN157: 3.692307685 | BO157: 3.364102561 | BP157: 0 | BQ157: 0 | BR157: 0
BB158: Total | BC158: 509.8597398 | BD158: 511.3433894 | BE158: 507.9130864 | BF158: 410.7775776 | BG158: 618.5403035 | BH158: 272.2237316 | BI158: 271.1481849 | BJ158: 274.3520921 | BK158: 281.4032187 | BL158: 264.6705736 | BM158: 233.7860804 | BN158: 241.1091572 | BO158: 246.5391939 | BP158: 119.3321344 | BQ158: 353.8697299 | BR158: 0
A208: =A1026 -> Jamaica
A209: =A1034 -> 1997
A210: Access to hygiene facilities
A211: by wealth quintile and sub-national region
A212: Notes:
A213: WHO/UNICEF JMP customised wealth index excludes water,
A214: sanitation and hygiene assets.
A215: Survey used for analysis: | B215: =A1025 -> SLC97
A220: Access to handwashing | C220: NATIONAL wealth index quintile | H220: URBAN wealth index quintile | M220: RURAL wealth index quintile | R220: SUB-REGIONS: | BA220: Raw numbers of respondents: | BB220: Access to handwashing | BC220: NATIONAL wealth index quintile | BH220: URBAN wealth index quintile | BM220: RURAL wealth index quintile | BR220: SUB-REGIONS:
A221: Weighted percentage (used in graphs) | C221: Poorest | D221: Poor | E221: Middle | F221: Rich | G221: Richest | H221: Poorest | I221: Poor | J221: Middle | K221: Rich | L221: Richest | M221: Poorest | N221: Poor | O221: Middle | P221: Rich | Q221: Richest | R221: None valid | BA221: Hygiene data, raw numbers (weighted) | BC221: Poorest | BD221: Poor | BE221: Middle | BF221: Rich | BG221: Richest | BH221: Poorest | BI221: Poor | BJ221: Middle | BK221: Rich | BL221: Richest | BM221: Poorest | BN221: Poor | BO221: Middle | BP221: Rich | BQ221: Richest | BR221: None valid
A222: Hygiene ladder | B222: Basic | C222: N/A | D222: N/A | E222: N/A | F222: N/A | G222: N/A | H222: N/A | I222: N/A | J222: N/A | K222: N/A | L222: N/A | M222: N/A | N222: N/A | O222: N/A | P222: N/A | Q222: N/A | R222: N/A | BA222: Hygiene ladder | BB222: Basic | BC222: N/A | BD222: N/A | BE222: N/A | BF222: N/A | BG222: N/A | BH222: N/A | BI222: N/A | BJ222: N/A | BK222: N/A | BL222: N/A | BM222: N/A | BN222: N/A | BO222: N/A | BP222: N/A | BQ222: N/A | BR222: N/A
B223: Limited | C223: N/A | D223: N/A | E223: N/A | F223: N/A | G223: N/A | H223: N/A | I223: N/A | J223: N/A | K223: N/A | L223: N/A | M223: N/A | N223: N/A | O223: N/A | P223: N/A | Q223: N/A | R223: N/A | BB223: Limited | BC223: N/A | BD223: N/A | BE223: N/A | BF223: N/A | BG223: N/A | BH223: N/A | BI223: N/A | BJ223: N/A | BK223: N/A | BL223: N/A | BM223: N/A | BN223: N/A | BO223: N/A | BP223: N/A | BQ223: N/A | BR223: N/A
B224: No facility | C224: N/A | D224: N/A | E224: N/A | F224: N/A | G224: N/A | H224: N/A | I224: N/A | J224: N/A | K224: N/A | L224: N/A | M224: N/A | N224: N/A | O224: N/A | P224: N/A | Q224: N/A | R224: N/A | BB224: No facility | BC224: N/A | BD224: N/A | BE224: N/A | BF224: N/A | BG224: N/A | BH224: N/A | BI224: N/A | BJ224: N/A | BK224: N/A | BL224: N/A | BM224: N/A | BN224: N/A | BO224: N/A | BP224: N/A | BQ224: N/A | BR224: N/A
BA225: Observed handwashing place | BB225: Fixed | BC225: N/A | BD225: N/A | BE225: N/A | BF225: N/A | BG225: N/A | BH225: N/A | BI225: N/A | BJ225: N/A | BK225: N/A | BL225: N/A | BM225: N/A | BN225: N/A | BO225: N/A | BP225: N/A | BQ225: N/A | BR225: N/A
BB226: Mobile | BC226: N/A | BD226: N/A | BE226: N/A | BF226: N/A | BG226: N/A | BH226: N/A | BI226: N/A | BJ226: N/A | BK226: N/A | BL226: N/A | BM226: N/A | BN226: N/A | BO226: N/A | BP226: N/A | BQ226: N/A | BR226: N/A
BA227: Water / Soap | BB227: Water and soap | BC227: N/A | BD227: N/A | BE227: N/A | BF227: N/A | BG227: N/A | BH227: N/A | BI227: N/A | BJ227: N/A | BK227: N/A | BL227: N/A | BM227: N/A | BN227: N/A | BO227: N/A | BP227: N/A | BQ227: N/A | BR227: N/A
BB228: Water only | BC228: N/A | BD228: N/A | BE228: N/A | BF228: N/A | BG228: N/A | BH228: N/A | BI228: N/A | BJ228: N/A | BK228: N/A | BL228: N/A | BM228: N/A | BN228: N/A | BO228: N/A | BP228: N/A | BQ228: N/A | BR228: N/A
BB229: Soap only | BC229: N/A | BD229: N/A | BE229: N/A | BF229: N/A | BG229: N/A | BH229: N/A | BI229: N/A | BJ229: N/A | BK229: N/A | BL229: N/A | BM229: N/A | BN229: N/A | BO229: N/A | BP229: N/A | BQ229: N/A | BR229: N/A
BB230: Neither | BC230: N/A | BD230: N/A | BE230: N/A | BF230: N/A | BG230: N/A | BH230: N/A | BI230: N/A | BJ230: N/A | BK230: N/A | BL230: N/A | BM230: N/A | BN230: N/A | BO230: N/A | BP230: N/A | BQ230: N/A | BR230: N/A
BA259: Raw numbers of respondents: | BB259: Menstrual health and hygiene | BC259: NATIONAL wealth index quintile | BH259: URBAN wealth index quintile | BM259: RURAL wealth index quintile | BR259: SUB-REGIONS:
BA260: MHH data, raw numbers (weighted) | BC260: Poorest | BD260: Poor | BE260: Middle | BF260: Rich | BG260: Richest | BH260: Poorest | BI260: Poor | BJ260: Middle | BK260: Rich | BL260: Richest | BM260: Poorest | BN260: Poor | BO260: Middle | BP260: Rich | BQ260: Richest | BR260: None valid
BA261: Private place to wash and change | BB261: Yes | BC261: N/A | BD261: N/A | BE261: N/A | BF261: N/A | BG261: N/A | BH261: N/A | BI261: N/A | BJ261: N/A | BK261: N/A | BL261: N/A | BM261: N/A | BN261: N/A | BO261: N/A | BP261: N/A | BQ261: N/A | BR261: N/A
BB262: No | BC262: N/A | BD262: N/A | BE262: N/A | BF262: N/A | BG262: N/A | BH262: N/A | BI262: N/A | BJ262: N/A | BK262: N/A | BL262: N/A | BM262: N/A | BN262: N/A | BO262: N/A | BP262: N/A | BQ262: N/A | BR262: N/A
BB263: DK/not sure/missing | BC263: N/A | BD263: N/A | BE263: N/A | BF263: N/A | BG263: N/A | BH263: N/A | BI263: N/A | BJ263: N/A | BK263: N/A | BL263: N/A | BM263: N/A | BN263: N/A | BO263: N/A | BP263: N/A | BQ263: N/A | BR263: N/A
BA264: Use of menstrual materials | BB264: Materials reusable | BC264: N/A | BD264: N/A | BE264: N/A | BF264: N/A | BG264: N/A | BH264: N/A | BI264: N/A | BJ264: N/A | BK264: N/A | BL264: N/A | BM264: N/A | BN264: N/A | BO264: N/A | BP264: N/A | BQ264: N/A | BR264: N/A
BB265: Materials not reusable | BC265: N/A | BD265: N/A | BE265: N/A | BF265: N/A | BG265: N/A | BH265: N/A | BI265: N/A | BJ265: N/A | BK265: N/A | BL265: N/A | BM265: N/A | BN265: N/A | BO265: N/A | BP265: N/A | BQ265: N/A | BR265: N/A
BB266: No materials used | BC266: N/A | BD266: N/A | BE266: N/A | BF266: N/A | BG266: N/A | BH266: N/A | BI266: N/A | BJ266: N/A | BK266: N/A | BL266: N/A | BM266: N/A | BN266: N/A | BO266: N/A | BP266: N/A | BQ266: N/A | BR266: N/A
BB267: DK/not sure/missing | BC267: N/A | BD267: N/A | BE267: N/A | BF267: N/A | BG267: N/A | BH267: N/A | BI267: N/A | BJ267: N/A | BK267: N/A | BL267: N/A | BM267: N/A | BN267: N/A | BO267: N/A | BP267: N/A | BQ267: N/A | BR267: N/A
BA268: Use of menstrual materials with private place to wash and change | BB268: Materials reusable | BC268: N/A | BD268: N/A | BE268: N/A | BF268: N/A | BG268: N/A | BH268: N/A | BI268: N/A | BJ268: N/A | BK268: N/A | BL268: N/A | BM268: N/A | BN268: N/A | BO268: N/A | BP268: N/A | BQ268: N/A | BR268: N/A
BB269: Materials not reusable | BC269: N/A | BD269: N/A | BE269: N/A | BF269: N/A | BG269: N/A | BH269: N/A | BI269: N/A | BJ269: N/A | BK269: N/A | BL269: N/A | BM269: N/A | BN269: N/A | BO269: N/A | BP269: N/A | BQ269: N/A | BR269: N/A
BB270: No materials used | BC270: N/A | BD270: N/A | BE270: N/A | BF270: N/A | BG270: N/A | BH270: N/A | BI270: N/A | BJ270: N/A | BK270: N/A | BL270: N/A | BM270: N/A | BN270: N/A | BO270: N/A | BP270: N/A | BQ270: N/A | BR270: N/A
BA271: Awareness of menstruation before menarche | BB271: Yes | BC271: N/A | BD271: N/A | BE271: N/A | BF271: N/A | BG271: N/A | BH271: N/A | BI271: N/A | BJ271: N/A | BK271: N/A | BL271: N/A | BM271: N/A | BN271: N/A | BO271: N/A | BP271: N/A | BQ271: N/A | BR271: N/A
BB272: No | BC272: N/A | BD272: N/A | BE272: N/A | BF272: N/A | BG272: N/A | BH272: N/A | BI272: N/A | BJ272: N/A | BK272: N/A | BL272: N/A | BM272: N/A | BN272: N/A | BO272: N/A | BP272: N/A | BQ272: N/A | BR272: N/A
BB273: DK/not sure/missing | BC273: N/A | BD273: N/A | BE273: N/A | BF273: N/A | BG273: N/A | BH273: N/A | BI273: N/A | BJ273: N/A | BK273: N/A | BL273: N/A | BM273: N/A | BN273: N/A | BO273: N/A | BP273: N/A | BQ273: N/A | BR273: N/A
BA274: Participation in (all) activities during menstruation | BB274: Yes | BC274: N/A | BD274: N/A | BE274: N/A | BF274: N/A | BG274: N/A | BH274: N/A | BI274: N/A | BJ274: N/A | BK274: N/A | BL274: N/A | BM274: N/A | BN274: N/A | BO274: N/A | BP274: N/A | BQ274: N/A | BR274: N/A
BB275: No | BC275: N/A | BD275: N/A | BE275: N/A | BF275: N/A | BG275: N/A | BH275: N/A | BI275: N/A | BJ275: N/A | BK275: N/A | BL275: N/A | BM275: N/A | BN275: N/A | BO275: N/A | BP275: N/A | BQ275: N/A | BR275: N/A
BB276: DK/not sure/missing/no such activity | BC276: N/A | BD276: N/A | BE276: N/A | BF276: N/A | BG276: N/A | BH276: N/A | BI276: N/A | BJ276: N/A | BK276: N/A | BL276: N/A | BM276: N/A | BN276: N/A | BO276: N/A | BP276: N/A | BQ276: N/A | BR276: N/A
BA277: Participation in specific activities during menstruation | BB277: Did not go to school (amongst those usually attending school) | BC277: N/A | BD277: N/A | BE277: N/A | BF277: N/A | BG277: N/A | BH277: N/A | BI277: N/A | BJ277: N/A | BK277: N/A | BL277: N/A | BM277: N/A | BN277: N/A | BO277: N/A | BP277: N/A | BQ277: N/A | BR277: N/A
BB278: Did not go to work (amongst those who usually work) | BC278: N/A | BD278: N/A | BE278: N/A | BF278: N/A | BG278: N/A | BH278: N/A | BI278: N/A | BJ278: N/A | BK278: N/A | BL278: N/A | BM278: N/A | BN278: N/A | BO278: N/A | BP278: N/A | BQ278: N/A | BR278: N/A
BB279: Did not participate in social activities | BC279: N/A | BD279: N/A | BE279: N/A | BF279: N/A | BG279: N/A | BH279: N/A | BI279: N/A | BJ279: N/A | BK279: N/A | BL279: N/A | BM279: N/A | BN279: N/A | BO279: N/A | BP279: N/A | BQ279: N/A | BR279: N/A
BB280: Did not cook food | BC280: N/A | BD280: N/A | BE280: N/A | BF280: N/A | BG280: N/A | BH280: N/A | BI280: N/A | BJ280: N/A | BK280: N/A | BL280: N/A | BM280: N/A | BN280: N/A | BO280: N/A | BP280: N/A | BQ280: N/A | BR280: N/A
BB281: Did not eat with others | BC281: N/A | BD281: N/A | BE281: N/A | BF281: N/A | BG281: N/A | BH281: N/A | BI281: N/A | BJ281: N/A | BK281: N/A | BL281: N/A | BM281: N/A | BN281: N/A | BO281: N/A | BP281: N/A | BQ281: N/A | BR281: N/A
BB282: Did not bathe in regular place | BC282: N/A | BD282: N/A | BE282: N/A | BF282: N/A | BG282: N/A | BH282: N/A | BI282: N/A | BJ282: N/A | BK282: N/A | BL282: N/A | BM282: N/A | BN282: N/A | BO282: N/A | BP282: N/A | BQ282: N/A | BR282: N/A
BB283: Did not participate in other activities | BC283: N/A | BD283: N/A | BE283: N/A | BF283: N/A | BG283: N/A | BH283: N/A | BI283: N/A | BJ283: N/A | BK283: N/A | BL283: N/A | BM283: N/A | BN283: N/A | BO283: N/A | BP283: N/A | BQ283: N/A | BR283: N/A
BB284: DK/not sure/missing/no such activity | BC284: N/A | BD284: N/A | BE284: N/A | BF284: N/A | BG284: N/A | BH284: N/A | BI284: N/A | BJ284: N/A | BK284: N/A | BL284: N/A | BM284: N/A | BN284: N/A | BO284: N/A | BP284: N/A | BQ284: N/A | BR284: N/A
BA339: Raw numbers of respondents: | BB339: Basic water, sanitation and hygiene | BC339: NATIONAL wealth index quintile | BH339: URBAN wealth index quintile | BM339: RURAL wealth index quintile | BR339: SUB-REGIONS:
BA340: WatSan data, raw numbers (weighted) | BC340: Poorest | BD340: Poor | BE340: Middle | BF340: Rich | BG340: Richest | BH340: Poorest | BI340: Poor | BJ340: Middle | BK340: Rich | BL340: Richest | BM340: Poorest | BN340: Poor | BO340: Middle | BP340: Rich | BQ340: Richest | BR340: None valid
BA341: Use of Basic Water Sanitation and Hygiene | BB341: Yes | BC341: N/A | BD341: N/A | BE341: N/A | BF341: N/A | BG341: N/A | BH341: N/A | BI341: N/A | BJ341: N/A | BK341: N/A | BL341: N/A | BM341: N/A | BN341: N/A | BO341: N/A | BP341: N/A | BQ341: N/A | BR341: N/A
BB342: No | BC342: N/A | BD342: N/A | BE342: N/A | BF342: N/A | BG342: N/A | BH342: N/A | BI342: N/A | BJ342: N/A | BK342: N/A | BL342: N/A | BM342: N/A | BN342: N/A | BO342: N/A | BP342: N/A | BQ342: N/A | BR342: N/A
BA343: Use of Basic Water and Sanitation | BB343: Yes | BC343: N/A | BD343: N/A | BE343: N/A | BF343: N/A | BG343: N/A | BH343: N/A | BI343: N/A | BJ343: N/A | BK343: N/A | BL343: N/A | BM343: N/A | BN343: N/A | BO343: N/A | BP343: N/A | BQ343: N/A | BR343: N/A
BB344: No | BC344: N/A | BD344: N/A | BE344: N/A | BF344: N/A | BG344: N/A | BH344: N/A | BI344: N/A | BJ344: N/A | BK344: N/A | BL344: N/A | BM344: N/A | BN344: N/A | BO344: N/A | BP344: N/A | BQ344: N/A | BR344: N/A
BA345: Use of Basic Water and Hygiene | BB345: Yes | BC345: N/A | BD345: N/A | BE345: N/A | BF345: N/A | BG345: N/A | BH345: N/A | BI345: N/A | BJ345: N/A | BK345: N/A | BL345: N/A | BM345: N/A | BN345: N/A | BO345: N/A | BP345: N/A | BQ345: N/A | BR345: N/A
BB346: No | BC346: N/A | BD346: N/A | BE346: N/A | BF346: N/A | BG346: N/A | BH346: N/A | BI346: N/A | BJ346: N/A | BK346: N/A | BL346: N/A | BM346: N/A | BN346: N/A | BO346: N/A | BP346: N/A | BQ346: N/A | BR346: N/A
BA347: Use of Basic Sanitation and Hygiene | BB347: Yes | BC347: N/A | BD347: N/A | BE347: N/A | BF347: N/A | BG347: N/A | BH347: N/A | BI347: N/A | BJ347: N/A | BK347: N/A | BL347: N/A | BM347: N/A | BN347: N/A | BO347: N/A | BP347: N/A | BQ347: N/A | BR347: N/A
BB348: No | BC348: N/A | BD348: N/A | BE348: N/A | BF348: N/A | BG348: N/A | BH348: N/A | BI348: N/A | BJ348: N/A | BK348: N/A | BL348: N/A | BM348: N/A | BN348: N/A | BO348: N/A | BP348: N/A | BQ348: N/A | BR348: N/A
BA349: Use of Basic Water | BB349: Yes | BC349: N/A | BD349: N/A | BE349: N/A | BF349: N/A | BG349: N/A | BH349: N/A | BI349: N/A | BJ349: N/A | BK349: N/A | BL349: N/A | BM349: N/A | BN349: N/A | BO349: N/A | BP349: N/A | BQ349: N/A | BR349: N/A
BB350: No | BC350: N/A | BD350: N/A | BE350: N/A | BF350: N/A | BG350: N/A | BH350: N/A | BI350: N/A | BJ350: N/A | BK350: N/A | BL350: N/A | BM350: N/A | BN350: N/A | BO350: N/A | BP350: N/A | BQ350: N/A | BR350: N/A
BA351: Use of Basic Sanitation | BB351: Yes | BC351: N/A | BD351: N/A | BE351: N/A | BF351: N/A | BG351: N/A | BH351: N/A | BI351: N/A | BJ351: N/A | BK351: N/A | BL351: N/A | BM351: N/A | BN351: N/A | BO351: N/A | BP351: N/A | BQ351: N/A | BR351: N/A
BB352: No | BC352: N/A | BD352: N/A | BE352: N/A | BF352: N/A | BG352: N/A | BH352: N/A | BI352: N/A | BJ352: N/A | BK352: N/A | BL352: N/A | BM352: N/A | BN352: N/A | BO352: N/A | BP352: N/A | BQ352: N/A | BR352: N/A
BA353: Access to Basic Hygiene | BB353: Yes | BC353: N/A | BD353: N/A | BE353: N/A | BF353: N/A | BG353: N/A | BH353: N/A | BI353: N/A | BJ353: N/A | BK353: N/A | BL353: N/A | BM353: N/A | BN353: N/A | BO353: N/A | BP353: N/A | BQ353: N/A | BR353: N/A
BB354: No | BC354: N/A | BD354: N/A | BE354: N/A | BF354: N/A | BG354: N/A | BH354: N/A | BI354: N/A | BJ354: N/A | BK354: N/A | BL354: N/A | BM354: N/A | BN354: N/A | BO354: N/A | BP354: N/A | BQ354: N/A | BR354: N/A
C399: INITIAL (national) Wealth Index | H399: URBAN Wealth Index | M399: RURAL Wealth Index
C400: Component Matrix | H400: Component Matrix | M400: Component Matrix
E401: Component | J401: Component | O401: Component
B402: Note: The INITIAL (national) Wealth Index is based on the first component of the Principal Component Analysis (PCA) which has been obtained at national level. The final national-level (NATIONAL) Wealth Index is based on the URBAN and RURAL specific wealth indexes. Regression procedures are used to establish the relationships between the two sets of scores (urban and rural) and the initial (national) wealth factors. This allows best use of the available information for each area and a better precision of the FINAL (NATIONAL) Wealth Index. For dependency reasons, all WASH variables (contained in the generic MICS and DHS scripts) have been excluded from the sets of asset variables used in the PCAs. The PCA can extracts as many components as there are asset variables in the input. Only the first of the components is used to represent the Wealth Index. The scores represent the weights of the asset variables on the Wealth Index (correlations between the variables and the component). The communalities are the proportion of each variable's variance that can be explained by the component. Proportion of explained variance is the part of the model's total variance that is explained by the component. For more information on the procedure used: The DHS Wealth Index, DHS Comparative Reports No. 6, Shea Oscar Rutstein, Kiersten Johnson, ORC Macro International Inc., 2004. The DHS Wealth Index: Approaches for Rural and Urban Areas, Shea O. Rutstein, ORC Macro International Inc., 2008. MICS Methodological Paper No. 4, Review of options for reporting water, sanitation and hygiene coverage by wealth quintile, UNICEF, 2016. | E402: 1 | J402: 1 | O402: 1
C403: owner1 | E403: -0.8140676188 | H403: owner1 | J403: 0.7711215353 | M403: owner1 | O403: -0.7743148156
C404: land1 | E404: -0.7488702866 | H404: land1 | J404: 0.732760589 | M404: land1 | O404: -0.7491063456
C405: Household cooks in owm house | E405: -0.7037635572 | H405: Household cooks in owm house | J405: 0.7306142492 | M405: Household cooks in owm house | O405: -0.6497992992
C406: house1 | E406: -0.6782259858 | H406: house3 | J406: -0.6162120933 | M406: house1 | O406: -0.6148341116
C407: house3 | E407: 0.6512147379 | H407: house1 | J407: 0.5876421686 | M407: house3 | O407: 0.5993344444
C408: owner3 | E408: 0.6134641476 | H408: owner3 | J408: -0.5477495911 | M408: owner3 | O408: 0.5604760517
C409: Household cooks in other house | E409: 0.5451233051 | H409: Household cooks in other house | J409: -0.5091364007 | M409: Household cooks in other house | O409: 0.5145855366
C410: Household cooks outside house | E410: 0.3856406756 | H410: Household member owns: asset2a | J410: 0.4959131178 | M410: light1 | O410: -0.4513246377
C411: owner5 | E411: 0.3063948864 | H411: Household cooks outside house | J411: -0.4504207904 | M411: light2 | O411: 0.4367821697
C412: light4 | E412: 0.2830276488 | H412: light4 | J412: -0.3902577751 | M412: owner5 | O412: 0.393575625
C413: light1 | E413: -0.2383558584 | H413: light1 | J413: 0.3652144868 | M413: Household cooks outside house | O413: 0.3591598805
C414: Household member owns: asset2a | E414: -0.217383024 | H414: wall4 | J414: -0.2718010664 | M414: wall5 | O414: -0.3307137439
C415: wall4 | E415: 0.1940954307 | H415: owner5 | J415: -0.2580087152 | M415: wall1 | O415: 0.2064874151
C416: wall5 | E416: -0.1662637602 | H416: wall5 | J416: 0.2051728921 | M416: Household member owns: asset2a | O416: -0.1842096639
C417: house2 | E417: 0.1601865748 | H417: light2 | J417: -0.1450913053 | M417: wall4 | O417: 0.1514281308
C418: light2 | E418: 0.1246673566 | H418: wall7 | J418: 0.1429193913 | M418: owner6 | O418: 0.1409619666
C419: owner4 | E419: 0.1008452265 | H419: owner7 | J419: -0.128817275 | M419: house4 | O419: 0.1143422071
C420: house6 | E420: 0.09037807467 | H420: house6 | J420: -0.1101184665 | M420: wall7 | O420: 0.1017763086
C421: owner2 | E421: 0.08861394998 | H421: wall3 | J421: -0.1101018937 | M421: house2 | O421: 0.07867351711
C422: owner6 | E422: 0.081002153 | H422: house2 | J422: -0.1095250612 | M422: owner2 | O422: 0.07836598133
C423: wall2 | E423: 0.0776055303 | H423: owner4 | J423: -0.1041764527 | M423: wall2 | O423: 0.06255491132
C424: owner7 | E424: 0.07219639605 | H424: wall1 | J424: -0.1029449355 | M424: light4 | O424: 0.04843416192
C425: house4 | E425: 0.06122141555 | H425: wall2 | J425: -0.09450044187 | M425: house7 | O425: 0.04805527566
C426: land2 | E426: -0.05971722536 | H426: owner2 | J426: -0.07234474842 | M426: land6 | O426: 0.03412738785
C427: house5 | E427: 0.05513489979 | H427: owner6 | J427: -0.07193561156 | M427: wall6 | O427: 0.03247655162
... 151 more rows

Sheet SLC07
A2: =A1026 -> Jamaica
A3: =A1034 -> 2007
A4: Use of drinking water sources
A5: by wealth quintile and sub-national region
A6: Notes:
A7: WHO/UNICEF JMP customised wealth index excludes water,
A8: sanitation and hygiene assets.
A9: Survey used for analysis: | B9: =A1025 -> SLC07
A10: =B1028 -> Ratio of Improved wells based on: | B10: MICS11
A11: =B1027 -> Time to improved source based on: | B11: MICS11
A14: Use of drinking water sources | C14: NATIONAL wealth index quintile | H14: URBAN wealth index quintile | M14: RURAL wealth index quintile | R14: SUB-REGIONS: | BA14: Raw numbers of respondents: | BB14: Use of drinking water sources | BC14: NATIONAL wealth index quintile | BH14: URBAN wealth index quintile | BM14: RURAL wealth index quintile | BR14: SUB-REGIONS:
A15: Weighted percentage (used in graphs) | C15: Poorest | D15: Poor | E15: Middle | F15: Rich | G15: Richest | H15: Poorest | I15: Poor | J15: Middle | K15: Rich | L15: Richest | M15: Poorest | N15: Poor | O15: Middle | P15: Rich | Q15: Richest | R15: None valid | BA15: Water data, raw numbers (weighted) | BC15: Poorest | BD15: Poor | BE15: Middle | BF15: Rich | BG15: Richest | BH15: Poorest | BI15: Poor | BJ15: Middle | BK15: Rich | BL15: Richest | BM15: Poorest | BN15: Poor | BO15: Middle | BP15: Rich | BQ15: Richest | BR15: None valid
A16: Water | B16: Improved | C16: =C58+C59+C60+C63+C64+C65+C66+C67+C61*MICS11!C24/100 -> 86.70843516 | D16: =D58+D59+D60+D63+D64+D65+D66+D67+D61*MICS11!D24/100 -> 91.12655358 | E16: =E58+E59+E60+E63+E64+E65+E66+E67+E61*MICS11!E24/100 -> 92.44248597 | F16: =F58+F59+F60+F63+F64+F65+F66+F67+F61*MICS11!F24/100 -> 92.44703914 | G16: =G58+G59+G60+G63+G64+G65+G66+G67+G61*MICS11!G24/100 -> 96.66368855 | H16: =H58+H59+H60+H63+H64+H65+H66+H67+H61*MICS11!H24/100 -> 91.08241402 | I16: =I58+I59+I60+I63+I64+I65+I66+I67+I61*MICS11!I24/100 -> 98.31286341 | J16: =J58+J59+J60+J63+J64+J65+J66+J67+J61*MICS11!J24/100 -> 96.27791772 | K16: =K58+K59+K60+K63+K64+K65+K66+K67+K61*MICS11!K24/100 -> 99.57237278 | L16: =L58+L59+L60+L63+L64+L65+L66+L67+L61*MICS11!L24/100 -> 96.28471206 | M16: =M58+M59+M60+M63+M64+M65+M66+M67+M61*MICS11!M24/100 -> 85.40976834 | N16: =N58+N59+N60+N63+N64+N65+N66+N67+N61*MICS11!N24/100 -> 82.85251855 | O16: =O58+O59+O60+O63+O64+O65+O66+O67+O61*MICS11!O24/100 -> 84.5478702 | P16: =P58+P59+P60+P63+P64+P65+P66+P67+P61*MICS11!P24/100 -> 88.22900427 | Q16: =Q58+Q59+Q60+Q63+Q64+Q65+Q66+Q67+Q61*MICS11!Q24/100 -> 94.2800788 | R16: N/A | BA16: Water | BB16: Improved | BC16: N/A | BD16: N/A | BE16: N/A | BF16: N/A | BG16: N/A | BH16: N/A | BI16: N/A | BJ16: N/A | BK16: N/A | BL16: N/A | BM16: N/A | BN16: N/A | BO16: N/A | BP16: N/A | BQ16: N/A | BR16: N/A
B17: Not Improved | C17: =100-C16 -> 13.29156484 | D17: =100-D16 -> 8.873446415 | E17: 7.557514031 | F17: 7.552960859 | G17: 3.336311448 | H17: 8.917585979 | I17: 1.687136594 | J17: 3.72208228 | K17: 0.427627224 | L17: 3.715287938 | M17: 14.59023166 | N17: 17.14748145 | O17: 15.4521298 | P17: 11.77099573 | Q17: 5.719921204 | R17: N/A | BB17: Not Improved | BC17: N/A | BD17: N/A | BE17: N/A | BF17: N/A | BG17: N/A | BH17: N/A | BI17: N/A | BJ17: N/A | BK17: N/A | BL17: N/A | BM17: N/A | BN17: N/A | BO17: N/A | BP17: N/A | BQ17: N/A | BR17: N/A
A18: Water ladder | B18: Basic | C18: =C16*MICS11!C23/100 -> 83.41351463 | D18: =D16*MICS11!D23/100 -> 88.21050387 | E18: =E16*MICS11!E23/100 -> 92.44248597 | F18: =F16*MICS11!F23/100 -> 91.15278059 | G18: =G16*MICS11!G23/100 -> 95.69705167 | H18: =H16*MICS11!H23/100 -> 90.17158988 | I18: =I16*MICS11!I23/100 -> 98.11623768 | J18: =J16*MICS11!J23/100 -> 95.41141646 | K18: =K16*MICS11!K23/100 -> 98.57664905 | L18: =L16*MICS11!L23/100 -> 96.28471206 | M18: =M16*MICS11!M23/100 -> 80.96846039 | N18: =N16*MICS11!N23/100 -> 80.53264803 | O18: =O16*MICS11!O23/100 -> 80.40502456 | P18: =P16*MICS11!P23/100 -> 86.8173402 | Q18: =Q16*MICS11!Q23/100 -> 92.96015769 | R18: N/A | BA18: Water ladder | BB18: Basic | BC18: N/A | BD18: N/A | BE18: N/A | BF18: N/A | BG18: N/A | BH18: N/A | BI18: N/A | BJ18: N/A | BK18: N/A | BL18: N/A | BM18: N/A | BN18: N/A | BO18: N/A | BP18: N/A | BQ18: N/A | BR18: N/A
B19: Limited | C19: =C16*MICS11!C22/100 -> 3.294920536 | D19: =D16*MICS11!D22/100 -> 2.916049715 | E19: =E16*MICS11!E22/100 -> 0 | F19: =F16*MICS11!F22/100 -> 1.294258548 | G19: =G16*MICS11!G22/100 -> 0.9666368855 | H19: =H16*MICS11!H22/100 -> 0.9108241402 | I19: =I16*MICS11!I22/100 -> 0.1966257268 | J19: =J16*MICS11!J22/100 -> 0.8665012595 | K19: =K16*MICS11!K22/100 -> 0.9957237278 | L19: =L16*MICS11!L22/100 -> 0 | M19: =M16*MICS11!M22/100 -> 4.441307954 | N19: =N16*MICS11!N22/100 -> 2.319870519 | O19: =O16*MICS11!O22/100 -> 4.14284564 | P19: =P16*MICS11!P22/100 -> 1.411664068 | Q19: =Q16*MICS11!Q22/100 -> 1.319921103 | R19: N/A | BB19: Limited | BC19: N/A | BD19: N/A | BE19: N/A | BF19: N/A | BG19: N/A | BH19: N/A | BI19: N/A | BJ19: N/A | BK19: N/A | BL19: N/A | BM19: N/A | BN19: N/A | BO19: N/A | BP19: N/A | BQ19: N/A | BR19: N/A
B20: Unimproved | C20: =100-(C18+C19+C21) -> 8.496191424 | D20: =100-(D18+D19+D21) -> 3.016796511 | E20: 3.480050576 | F20: 3.226360801 | G20: 2.59072497 | H20: 8.354824983 | I20: 1.687136594 | J20: 3.72208228 | K20: 0 | L20: 3.715287938 | M20: 6.473288021 | N20: 6.578905587 | O20: 5.115546235 | P20: 3.107520115 | Q20: 2.254459526 | R20: N/A | BB20: Unimproved | BC20: N/A | BD20: N/A | BE20: N/A | BF20: N/A | BG20: N/A | BH20: N/A | BI20: N/A | BJ20: N/A | BK20: N/A | BL20: N/A | BM20: N/A | BN20: N/A | BO20: N/A | BP20: N/A | BQ20: N/A | BR20: N/A
B21: Surface water | C21: =C62 -> 4.795373414 | D21: 5.856649904 | E21: 4.077463456 | F21: 4.326600058 | G21: 0.7455864773 | H21: 0.5627609955 | I21: 0 | J21: 0 | K21: 0.427627224 | L21: 0 | M21: 8.116943634 | N21: 10.56857586 | O21: 10.33658356 | P21: 8.663475616 | Q21: 3.465461678 | R21: N/A | BB21: Surface water | BC21: N/A | BD21: N/A | BE21: N/A | BF21: N/A | BG21: N/A | BH21: N/A | BI21: N/A | BJ21: N/A | BK21: N/A | BL21: N/A | BM21: N/A | BN21: N/A | BO21: N/A | BP21: N/A | BQ21: N/A | BR21: N/A
A22: Improved water point at more than 30 minutes | B22: Yes | C22: N/A | D22: N/A | E22: N/A | F22: N/A | G22: N/A | H22: N/A | I22: N/A | J22: N/A | K22: N/A | L22: N/A | M22: N/A | N22: N/A | O22: N/A | P22: N/A | Q22: N/A | R22: N/A | BA22: Improved water point at more than 30 minutes | BB22: Yes | BC22: N/A | BD22: N/A | BE22: N/A | BF22: N/A | BG22: N/A | BH22: N/A | BI22: N/A | BJ22: N/A | BK22: N/A | BL22: N/A | BM22: N/A | BN22: N/A | BO22: N/A | BP22: N/A | BQ22: N/A | BR22: N/A
B23: No | C23: N/A | D23: N/A | E23: N/A | F23: N/A | G23: N/A | H23: N/A | I23: N/A | J23: N/A | K23: N/A | L23: N/A | M23: N/A | N23: N/A | O23: N/A | P23: N/A | Q23: N/A | R23: N/A | BB23: No | BC23: N/A | BD23: N/A | BE23: N/A | BF23: N/A | BG23: N/A | BH23: N/A | BI23: N/A | BJ23: N/A | BK23: N/A | BL23: N/A | BM23: N/A | BN23: N/A | BO23: N/A | BP23: N/A | BQ23: N/A | BR23: N/A
A24: Manually calculated ratios | B24: Improved wells
B25: Improved springs
B26: Other
C27: NATIONAL wealth index quintile | H27: URBAN wealth index quintile | M27: RURAL wealth index quintile | R27: SUB-REGIONS: | BA27: Raw numbers of respondents: | BB27: Use of drinking water sources | BC27: NATIONAL wealth index quintile | BH27: URBAN wealth index quintile | BM27: RURAL wealth index quintile | BR27: SUB-REGIONS:
A28: Percentage based on weighted population | C28: Poorest | D28: Poor | E28: Middle | F28: Rich | G28: Richest | H28: Poorest | I28: Poor | J28: Middle | K28: Rich | L28: Richest | M28: Poorest | N28: Poor | O28: Middle | P28: Rich | Q28: Richest | R28: None valid | BA28: Water data, raw numbers (weighted) | BC28: Poorest | BD28: Poor | BE28: Middle | BF28: Rich | BG28: Richest | BH28: Poorest | BI28: Poor | BJ28: Middle | BK28: Rich | BL28: Richest | BM28: Poorest | BN28: Poor | BO28: Middle | BP28: Rich | BQ28: Richest | BR28: None valid
A29: Piped water | B29: Yes | C29: =C58+C59+C60 -> 74.07869173 | D29: 75.2427508 | E29: 78.33637315 | F29: 67.04298634 | G29: 90.3210934 | H29: 89.30749464 | I29: 95.49596453 | J29: 93.29436182 | K29: 94.91835042 | L29: 95.50395835 | M29: 64.99651791 | N29: 57.47050796 | O29: 50.59809122 | P29: 46.61396868 | Q29: 65.19306993 | R29: N/A | BA29: Piped water | BB29: Yes | BC29: N/A | BD29: N/A | BE29: N/A | BF29: N/A | BG29: N/A | BH29: N/A | BI29: N/A | BJ29: N/A | BK29: N/A | BL29: N/A | BM29: N/A | BN29: N/A | BO29: N/A | BP29: N/A | BQ29: N/A | BR29: N/A
B30: No | C30: =100-C29 -> 25.92130827 | D30: =100-D29 -> 24.7572492 | E30: 21.66362685 | F30: 32.95701366 | G30: 9.6789066 | H30: 10.69250536 | I30: 4.504035469 | J30: 6.705638179 | K30: 5.081649579 | L30: 4.496041649 | M30: 35.00348209 | N30: 42.52949204 | O30: 49.40190878 | P30: 53.38603132 | Q30: 34.80693007 | R30: N/A | BB30: No | BC30: N/A | BD30: N/A | BE30: N/A | BF30: N/A | BG30: N/A | BH30: N/A | BI30: N/A | BJ30: N/A | BK30: N/A | BL30: N/A | BM30: N/A | BN30: N/A | BO30: N/A | BP30: N/A | BQ30: N/A | BR30: N/A
A31: Piped water on premises | B31: Yes | C31: =C58+C59 -> 62.32198739 | D31: 67.46151145 | E31: 73.87610595 | F31: 60.33366879 | G31: 89.67071821 | H31: 86.61969207 | I31: 91.62161047 | J31: 88.53335411 | K31: 94.91835042 | L31: 95.50395835 | M31: 46.58233862 | N31: 43.15510338 | O31: 39.94853554 | P31: 39.59693203 | Q31: 60.20113119 | R31: N/A | BA31: Piped water on premises | BB31: Yes | BC31: N/A | BD31: N/A | BE31: N/A | BF31: N/A | BG31: N/A | BH31: N/A | BI31: N/A | BJ31: N/A | BK31: N/A | BL31: N/A | BM31: N/A | BN31: N/A | BO31: N/A | BP31: N/A | BQ31: N/A | BR31: N/A
B32: No | C32: =100-C31 -> 37.67801261 | D32: =100-D31 -> 32.53848855 | E32: 26.12389405 | F32: 39.66633121 | G32: 10.32928179 | H32: 13.38030793 | I32: 8.378389528 | J32: 11.46664589 | K32: 5.081649579 | L32: 4.496041649 | M32: 53.41766138 | N32: 56.84489662 | O32: 60.05146446 | P32: 60.40306797 | Q32: 39.79886881 | R32: N/A | BB32: No | BC32: N/A | BD32: N/A | BE32: N/A | BF32: N/A | BG32: N/A | BH32: N/A | BI32: N/A | BJ32: N/A | BK32: N/A | BL32: N/A | BM32: N/A | BN32: N/A | BO32: N/A | BP32: N/A | BQ32: N/A | BR32: N/A
A33: Piped water into dwelling | B33: Yes | C33: N/A | D33: N/A | E33: N/A | F33: N/A | G33: N/A | H33: N/A | I33: N/A | J33: N/A | K33: N/A | L33: N/A | M33: N/A | N33: N/A | O33: N/A | P33: N/A | Q33: N/A | R33: N/A | BA33: Piped water into dwelling | BB33: Yes | BC33: N/A | BD33: N/A | BE33: N/A | BF33: N/A | BG33: N/A | BH33: N/A | BI33: N/A | BJ33: N/A | BK33: N/A | BL33: N/A | BM33: N/A | BN33: N/A | BO33: N/A | BP33: N/A | BQ33: N/A | BR33: N/A
B34: No | C34: N/A | D34: N/A | E34: N/A | F34: N/A | G34: N/A | H34: N/A | I34: N/A | J34: N/A | K34: N/A | L34: N/A | M34: N/A | N34: N/A | O34: N/A | P34: N/A | Q34: N/A | R34: N/A | BB34: No | BC34: N/A | BD34: N/A | BE34: N/A | BF34: N/A | BG34: N/A | BH34: N/A | BI34: N/A | BJ34: N/A | BK34: N/A | BL34: N/A | BM34: N/A | BN34: N/A | BO34: N/A | BP34: N/A | BQ34: N/A | BR34: N/A
A35: Water source on premises | B35: Yes | C35: N/A | D35: N/A | E35: N/A | F35: N/A | G35: N/A | H35: N/A | I35: N/A | J35: N/A | K35: N/A | L35: N/A | M35: N/A | N35: N/A | O35: N/A | P35: N/A | Q35: N/A | R35: N/A | BA35: Water source on premises | BB35: Yes | BC35: N/A | BD35: N/A | BE35: N/A | BF35: N/A | BG35: N/A | BH35: N/A | BI35: N/A | BJ35: N/A | BK35: N/A | BL35: N/A | BM35: N/A | BN35: N/A | BO35: N/A | BP35: N/A | BQ35: N/A | BR35: N/A
B36: No | C36: N/A | D36: N/A | E36: N/A | F36: N/A | G36: N/A | H36: N/A | I36: N/A | J36: N/A | K36: N/A | L36: N/A | M36: N/A | N36: N/A | O36: N/A | P36: N/A | Q36: N/A | R36: N/A | BB36: No | BC36: N/A | BD36: N/A | BE36: N/A | BF36: N/A | BG36: N/A | BH36: N/A | BI36: N/A | BJ36: N/A | BK36: N/A | BL36: N/A | BM36: N/A | BN36: N/A | BO36: N/A | BP36: N/A | BQ36: N/A | BR36: N/A
A37: Improved Water source on premises | B37: Yes | C37: N/A | D37: N/A | E37: N/A | F37: N/A | G37: N/A | H37: N/A | I37: N/A | J37: N/A | K37: N/A | L37: N/A | M37: N/A | N37: N/A | O37: N/A | P37: N/A | Q37: N/A | R37: N/A | BA37: Improved water source on premises | BB37: Yes | BC37: N/A | BD37: N/A | BE37: N/A | BF37: N/A | BG37: N/A | BH37: N/A | BI37: N/A | BJ37: N/A | BK37: N/A | BL37: N/A | BM37: N/A | BN37: N/A | BO37: N/A | BP37: N/A | BQ37: N/A | BR37: N/A
B38: No | C38: N/A | D38: N/A | E38: N/A | F38: N/A | G38: N/A | H38: N/A | I38: N/A | J38: N/A | K38: N/A | L38: N/A | M38: N/A | N38: N/A | O38: N/A | P38: N/A | Q38: N/A | R38: N/A | BB38: No | BC38: N/A | BD38: N/A | BE38: N/A | BF38: N/A | BG38: N/A | BH38: N/A | BI38: N/A | BJ38: N/A | BK38: N/A | BL38: N/A | BM38: N/A | BN38: N/A | BO38: N/A | BP38: N/A | BQ38: N/A | BR38: N/A
A39: Piped water on premises available when needed | B39: Yes | C39: N/A | D39: N/A | E39: N/A | F39: N/A | G39: N/A | H39: N/A | I39: N/A | J39: N/A | K39: N/A | L39: N/A | M39: N/A | N39: N/A | O39: N/A | P39: N/A | Q39: N/A | R39: N/A | BA39: Piped water on premises available when needed | BB39: Yes | BC39: N/A | BD39: N/A | BE39: N/A | BF39: N/A | BG39: N/A | BH39: N/A | BI39: N/A | BJ39: N/A | BK39: N/A | BL39: N/A | BM39: N/A | BN39: N/A | BO39: N/A | BP39: N/A | BQ39: N/A | BR39: N/A
B40: No | C40: N/A | D40: N/A | E40: N/A | F40: N/A | G40: N/A | H40: N/A | I40: N/A | J40: N/A | K40: N/A | L40: N/A | M40: N/A | N40: N/A | O40: N/A | P40: N/A | Q40: N/A | R40: N/A | BB40: No | BC40: N/A | BD40: N/A | BE40: N/A | BF40: N/A | BG40: N/A | BH40: N/A | BI40: N/A | BJ40: N/A | BK40: N/A | BL40: N/A | BM40: N/A | BN40: N/A | BO40: N/A | BP40: N/A | BQ40: N/A | BR40: N/A
A41: Water point at more than 30 minutes | B41: Yes | C41: N/A | D41: N/A | E41: N/A | F41: N/A | G41: N/A | H41: N/A | I41: N/A | J41: N/A | K41: N/A | L41: N/A | M41: N/A | N41: N/A | O41: N/A | P41: N/A | Q41: N/A | R41: N/A | BA41: Water point at more than 30 minutes | BB41: Yes | BC41: N/A | BD41: N/A | BE41: N/A | BF41: N/A | BG41: N/A | BH41: N/A | BI41: N/A | BJ41: N/A | BK41: N/A | BL41: N/A | BM41: N/A | BN41: N/A | BO41: N/A | BP41: N/A | BQ41: N/A | BR41: N/A
B42: No | C42: N/A | D42: N/A | E42: N/A | F42: N/A | G42: N/A | H42: N/A | I42: N/A | J42: N/A | K42: N/A | L42: N/A | M42: N/A | N42: N/A | O42: N/A | P42: N/A | Q42: N/A | R42: N/A | BB42: No | BC42: N/A | BD42: N/A | BE42: N/A | BF42: N/A | BG42: N/A | BH42: N/A | BI42: N/A | BJ42: N/A | BK42: N/A | BL42: N/A | BM42: N/A | BN42: N/A | BO42: N/A | BP42: N/A | BQ42: N/A | BR42: N/A
A43: Water source available when needed | B43: Yes | C43: N/A | D43: N/A | E43: N/A | F43: N/A | G43: N/A | H43: N/A | I43: N/A | J43: N/A | K43: N/A | L43: N/A | M43: N/A | N43: N/A | O43: N/A | P43: N/A | Q43: N/A | R43: N/A | BA43: Water source available when needed | BB43: Yes | BC43: N/A | BD43: N/A | BE43: N/A | BF43: N/A | BG43: N/A | BH43: N/A | BI43: N/A | BJ43: N/A | BK43: N/A | BL43: N/A | BM43: N/A | BN43: N/A | BO43: N/A | BP43: N/A | BQ43: N/A | BR43: N/A
B44: No | C44: N/A | D44: N/A | E44: N/A | F44: N/A | G44: N/A | H44: N/A | I44: N/A | J44: N/A | K44: N/A | L44: N/A | M44: N/A | N44: N/A | O44: N/A | P44: N/A | Q44: N/A | R44: N/A | BB44: No | BC44: N/A | BD44: N/A | BE44: N/A | BF44: N/A | BG44: N/A | BH44: N/A | BI44: N/A | BJ44: N/A | BK44: N/A | BL44: N/A | BM44: N/A | BN44: N/A | BO44: N/A | BP44: N/A | BQ44: N/A | BR44: N/A
A45: Improved water source available when needed | B45: Yes | C45: N/A | D45: N/A | E45: N/A | F45: N/A | G45: N/A | H45: N/A | I45: N/A | J45: N/A | K45: N/A | L45: N/A | M45: N/A | N45: N/A | O45: N/A | P45: N/A | Q45: N/A | R45: N/A | BA45: Improved water source available when needed | BB45: Yes | BC45: N/A | BD45: N/A | BE45: N/A | BF45: N/A | BG45: N/A | BH45: N/A | BI45: N/A | BJ45: N/A | BK45: N/A | BL45: N/A | BM45: N/A | BN45: N/A | BO45: N/A | BP45: N/A | BQ45: N/A | BR45: N/A
B46: No | C46: N/A | D46: N/A | E46: N/A | F46: N/A | G46: N/A | H46: N/A | I46: N/A | J46: N/A | K46: N/A | L46: N/A | M46: N/A | N46: N/A | O46: N/A | P46: N/A | Q46: N/A | R46: N/A | BB46: No | BC46: N/A | BD46: N/A | BE46: N/A | BF46: N/A | BG46: N/A | BH46: N/A | BI46: N/A | BJ46: N/A | BK46: N/A | BL46: N/A | BM46: N/A | BN46: N/A | BO46: N/A | BP46: N/A | BQ46: N/A | BR46: N/A
A47: Microbiological quality at point of collection | B47: Not contaminated (No E. coli in 100 mL) | C47: N/A | D47: N/A | E47: N/A | F47: N/A | G47: N/A | H47: N/A | I47: N/A | J47: N/A | K47: N/A | L47: N/A | M47: N/A | N47: N/A | O47: N/A | P47: N/A | Q47: N/A | R47: N/A | BA47: Microbiological quality at point of collection | BB47: Not contaminated (No E. coli in 100 mL) | BC47: N/A | BD47: N/A | BE47: N/A | BF47: N/A | BG47: N/A | BH47: N/A | BI47: N/A | BJ47: N/A | BK47: N/A | BL47: N/A | BM47: N/A | BN47: N/A | BO47: N/A | BP47: N/A | BQ47: N/A | BR47: N/A
B48: Contaminated (E. coli detected in 100 mL) | C48: N/A | D48: N/A | E48: N/A | F48: N/A | G48: N/A | H48: N/A | I48: N/A | J48: N/A | K48: N/A | L48: N/A | M48: N/A | N48: N/A | O48: N/A | P48: N/A | Q48: N/A | R48: N/A | BB48: Contaminated (E. coli detected in 100 mL) | BC48: N/A | BD48: N/A | BE48: N/A | BF48: N/A | BG48: N/A | BH48: N/A | BI48: N/A | BJ48: N/A | BK48: N/A | BL48: N/A | BM48: N/A | BN48: N/A | BO48: N/A | BP48: N/A | BQ48: N/A | BR48: N/A
B49: Highly contaminated (>100 CFU/100 mL) | C49: N/A | D49: N/A | E49: N/A | F49: N/A | G49: N/A | H49: N/A | I49: N/A | J49: N/A | K49: N/A | L49: N/A | M49: N/A | N49: N/A | O49: N/A | P49: N/A | Q49: N/A | R49: N/A | BB49: Highly contaminated (>100 CFU/100 mL) | BC49: N/A | BD49: N/A | BE49: N/A | BF49: N/A | BG49: N/A | BH49: N/A | BI49: N/A | BJ49: N/A | BK49: N/A | BL49: N/A | BM49: N/A | BN49: N/A | BO49: N/A | BP49: N/A | BQ49: N/A | BR49: N/A
A50: Microbiological quality of improved water sources at point of collection | B50: Not contaminated (No E. coli in 100 mL) | C50: N/A | D50: N/A | E50: N/A | F50: N/A | G50: N/A | H50: N/A | I50: N/A | J50: N/A | K50: N/A | L50: N/A | M50: N/A | N50: N/A | O50: N/A | P50: N/A | Q50: N/A | R50: N/A | BA50: Microbiological quality of improved water sources at point of collection | BB50: Not contaminated (No E. coli in 100 mL) | BC50: N/A | BD50: N/A | BE50: N/A | BF50: N/A | BG50: N/A | BH50: N/A | BI50: N/A | BJ50: N/A | BK50: N/A | BL50: N/A | BM50: N/A | BN50: N/A | BO50: N/A | BP50: N/A | BQ50: N/A | BR50: N/A
B51: Contaminated (E. coli detected in 100 mL) | C51: N/A | D51: N/A | E51: N/A | F51: N/A | G51: N/A | H51: N/A | I51: N/A | J51: N/A | K51: N/A | L51: N/A | M51: N/A | N51: N/A | O51: N/A | P51: N/A | Q51: N/A | R51: N/A | BB51: Contaminated (E. coli detected in 100 mL) | BC51: N/A | BD51: N/A | BE51: N/A | BF51: N/A | BG51: N/A | BH51: N/A | BI51: N/A | BJ51: N/A | BK51: N/A | BL51: N/A | BM51: N/A | BN51: N/A | BO51: N/A | BP51: N/A | BQ51: N/A | BR51: N/A
B52: Highly contaminated (>100 CFU/100 mL) | C52: N/A | D52: N/A | E52: N/A | F52: N/A | G52: N/A | H52: N/A | I52: N/A | J52: N/A | K52: N/A | L52: N/A | M52: N/A | N52: N/A | O52: N/A | P52: N/A | Q52: N/A | R52: N/A | BB52: Highly contaminated (>100 CFU/100 mL) | BC52: N/A | BD52: N/A | BE52: N/A | BF52: N/A | BG52: N/A | BH52: N/A | BI52: N/A | BJ52: N/A | BK52: N/A | BL52: N/A | BM52: N/A | BN52: N/A | BO52: N/A | BP52: N/A | BQ52: N/A | BR52: N/A
A53: Microbiological quality of piped on premises at point of collection | B53: Not contaminated (No E. coli in 100 mL) | C53: N/A | D53: N/A | E53: N/A | F53: N/A | G53: N/A | H53: N/A | I53: N/A | J53: N/A | K53: N/A | L53: N/A | M53: N/A | N53: N/A | O53: N/A | P53: N/A | Q53: N/A | R53: N/A | BA53: Microbiological quality of piped on premises at point of collection | BB53: Not contaminated (No E. coli in 100 mL) | BC53: N/A | BD53: N/A | BE53: N/A | BF53: N/A | BG53: N/A | BH53: N/A | BI53: N/A | BJ53: N/A | BK53: N/A | BL53: N/A | BM53: N/A | BN53: N/A | BO53: N/A | BP53: N/A | BQ53: N/A | BR53: N/A
B54: Contaminated (E. coli detected in 100 mL) | C54: N/A | D54: N/A | E54: N/A | F54: N/A | G54: N/A | H54: N/A | I54: N/A | J54: N/A | K54: N/A | L54: N/A | M54: N/A | N54: N/A | O54: N/A | P54: N/A | Q54: N/A | R54: N/A | BB54: Contaminated (E. coli detected in 100 mL) | BC54: N/A | BD54: N/A | BE54: N/A | BF54: N/A | BG54: N/A | BH54: N/A | BI54: N/A | BJ54: N/A | BK54: N/A | BL54: N/A | BM54: N/A | BN54: N/A | BO54: N/A | BP54: N/A | BQ54: N/A | BR54: N/A
B55: Highly contaminated (>100 CFU/100 mL) | C55: N/A | D55: N/A | E55: N/A | F55: N/A | G55: N/A | H55: N/A | I55: N/A | J55: N/A | K55: N/A | L55: N/A | M55: N/A | N55: N/A | O55: N/A | P55: N/A | Q55: N/A | R55: N/A | BB55: Highly contaminated (>100 CFU/100 mL) | BC55: N/A | BD55: N/A | BE55: N/A | BF55: N/A | BG55: N/A | BH55: N/A | BI55: N/A | BJ55: N/A | BK55: N/A | BL55: N/A | BM55: N/A | BN55: N/A | BO55: N/A | BP55: N/A | BQ55: N/A | BR55: N/A
C56: NATIONAL wealth index quintile | H56: URBAN wealth index quintile | M56: RURAL wealth index quintile | R56: SUB-REGIONS: | BA56: Raw numbers of respondents: | BB56: Use of drinking water sources | BC56: NATIONAL wealth index quintile | BH56: URBAN wealth index quintile | BM56: RURAL wealth index quintile | BR56: SUB-REGIONS:
A57: Percentage based on weighted population | C57: Poorest | D57: Poor | E57: Middle | F57: Rich | G57: Richest | H57: Poorest | I57: Poor | J57: Middle | K57: Rich | L57: Richest | M57: Poorest | N57: Poor | O57: Middle | P57: Rich | Q57: Richest | R57: None valid | BA57: Water data, raw numbers (weighted) | BC57: Poorest | BD57: Poor | BE57: Middle | BF57: Rich | BG57: Richest | BH57: Poorest | BI57: Poor | BJ57: Middle | BK57: Rich | BL57: Richest | BM57: Poorest | BN57: Poor | BO57: Middle | BP57: Rich | BQ57: Richest | BR57: None valid
A58: Water | B58: Indoor tap/pipe | C58: 20.56435173 | D58: 42.80820589 | E58: 55.5322358 | F58: 49.59482597 | G58: 86.33858411 | H58: 38.79118186 | I58: 64.37714719 | J58: 78.71888637 | K58: 89.07043642 | L58: 93.97634365 | M58: 9.620193207 | N58: 21.4936784 | O58: 17.79073881 | P58: 26.33588926 | Q58: 54.1050133 | R58: N/A
B59: Outside private pipe/tap | C59: 41.75763566 | D59: 24.65330557 | E59: 18.34387015 | F59: 10.73884282 | G59: 3.332134101 | H59: 47.82851021 | I59: 27.24446329 | J59: 9.814467741 | K59: 5.847914005 | L59: 1.527614704 | M59: 36.96214542 | N59: 21.66142498 | O59: 22.15779673 | P59: 13.26104277 | Q59: 6.096117891 | R59: N/A
B60: Public standpipe | C60: 11.75670433 | D60: 7.781239343 | E60: 4.460267196 | F60: 6.709317546 | G60: 0.6503751872 | H60: 2.687802568 | I60: 3.874354059 | J60: 4.76100771 | K60: 0 | L60: 0 | M60: 18.41417928 | N60: 14.31540458 | O60: 10.64955569 | P60: 7.01703665 | Q60: 4.991938735 | R60: N/A
B61: Well | C61: 0 | D61: 0.2300037673 | E61: 0.2455945072 | F61: 0 | G61: 0 | H61: 0 | I61: 0 | J61: 0 | K61: 0 | L61: 0 | M61: 0 | N61: 0 | O61: 0.9569705057 | P61: 0 | Q61: 0 | R61: N/A
B62: River, lake, spring, pond | C62: 4.795373414 | D62: 5.856649904 | E62: 4.077463456 | F62: 4.326600058 | G62: 0.7455864773 | H62: 0.5627609955 | I62: 0 | J62: 0 | K62: 0.427627224 | L62: 0 | M62: 8.116943634 | N62: 10.56857586 | O62: 10.33658356 | P62: 8.663475616 | Q62: 3.465461678 | R62: N/A
B63: Rainwater (tank) PID | C63: 2.047664026 | D63: 6.502633016 | E63: 4.046887086 | F63: 7.476193625 | G63: 3.83992259 | H63: 0.5515577652 | I63: 2.126230514 | J63: 1.607609236 | K63: 3.850169677 | L63: 0.7807537115 | M63: 2.865867998 | N63: 8.112456231 | O63: 9.841009417 | P63: 11.99950299 | Q63: 11.99399424 | R63: N/A
B64: Rainwater (tank) NPID | C64: 9.899088879 | D64: 8.55784594 | E64: 8.42794491 | F64: 15.84071407 | G64: 1.733927754 | H64: 1.223361619 | I64: 0.6906683612 | J64: 1.375946663 | K64: 0 | L64: 0 | M64: 16.52329048 | N64: 15.27083634 | O64: 21.25761776 | P64: 26.65887912 | Q64: 11.52345136 | R64: N/A
B65: Trucked water PID | C65: 0 | D65: 0.4143775093 | E65: 0.2106131719 | F65: 0.38131574 | G65: 0.5863083649 | H65: 0 | I65: 0 | J65: 0 | K65: 0.4744413118 | L65: 0 | M65: 0 | N65: 0.9754649822 | O65: 0.3852847157 | P65: 0 | Q65: 3.867473379 | R65: N/A
B66: Trucked water NPID | C66: 0.6829905281 | D66: 0.2172765173 | E66: 0.8248276737 | F66: 1.38455433 | G66: 0 | H66: 0 | I66: 0 | J66: 0 | K66: 0 | L66: 0 | M66: 1.024091955 | N66: 1.02325304 | O66: 1.508896584 | P66: 2.174380796 | Q66: 0.8510449464 | R66: N/A
B67: Bottled water | C67: 0 | D67: 0 | E67: 0.3502454708 | F67: 0.3212750392 | G67: 0.1824364436 | H67: 0 | I67: 0 | J67: 0 | K67: 0.3294113664 | L67: 0 | M67: 0 | N67: 0 | O67: 0 | P67: 0.7822726848 | Q67: 0.8510449464 | R67: N/A
B68: Other | C68: 0.5005369188 | D68: 0.3754079907 | E68: 0.7455575562 | F68: 0.1300104409 | G68: 0.3634516345 | H68: 0 | I68: 0 | J68: 0 | K68: 0 | L68: 0.640742431 | M68: 0.6559221827 | N68: 1.356562263 | O68: 1.363883979 | P68: 0.2289583075 | Q68: 0 | R68: N/A
B69: 12 | C69: 0 | D69: 0 | E69: 0.3331329798 | F69: 0.1799662188 | G69: 1.986875368 | H69: 0 | I69: 0 | J69: 0.4178527825 | K69: 0 | L69: 3.074545507 | M69: 0 | N69: 0 | O69: 0 | P69: 0.3169342445 | Q69: 1.133030762 | R69: N/A
B70: 13 | C70: 7.995654505 | D70: 2.60305456 | E70: 2.40136004 | F70: 2.916384141 | G70: 0.2403979676 | H70: 8.354824983 | I70: 1.687136594 | J70: 3.304229497 | K70: 0 | L70: 0 | M70: 5.817365838 | N70: 5.222343324 | O70: 3.751662255 | P70: 2.561627563 | Q70: 1.121428764 | R70: N/A
A108: =A1026 -> Jamaica
A109: =A1034 -> 2007
A110: Use of sanitation facilities
A111: by wealth quintile and sub-national region
A112: Notes:
A113: WHO/UNICEF JMP customised wealth index excludes water,
A114: sanitation and hygiene assets.
A115: Survey used for analysis: | B115: =A1025 -> SLC07
A116: =B1030 -> Ratio of Improved latrines based on:
A117: =B1029 -> Ratio of Shared improved based on:
A120: Use of sanitation facilities | C120: NATIONAL wealth index quintile | H120: URBAN wealth index quintile | M120: RURAL wealth index quintile | R120: SUB-REGIONS: | BA120: Raw numbers of respondents: | BB120: Use of sanitation facilities | BC120: NATIONAL wealth index quintile | BH120: URBAN wealth index quintile | BM120: RURAL wealth index quintile | BR120: SUB-REGIONS:
A121: Weighted percentage (used in graphs) | C121: Poorest | D121: Poor | E121: Middle | F121: Rich | G121: Richest | H121: Poorest | I121: Poor | J121: Middle | K121: Rich | L121: Richest | M121: Poorest | N121: Poor | O121: Middle | P121: Rich | Q121: Richest | R121: None valid | BA121: Sanitation data, raw numbers (weighted) | BC121: Poorest | BD121: Poor | BE121: Middle | BF121: Rich | BG121: Richest | BH121: Poorest | BI121: Poor | BJ121: Middle | BK121: Rich | BL121: Richest | BM121: Poorest | BN121: Poor | BO121: Middle | BP121: Rich | BQ121: Richest | BR121: None valid
A122: Sanitation | B122: Improved | C122: =C153+C154+C155*MICS11!C130/100 -> 92.53817907 | D122: =D153+D154+D155*MICS11!D130/100 -> 96.82404861 | E122: =E153+E154+E155*MICS11!E130/100 -> 99.25701793 | F122: =F153+F154+F155*MICS11!F130/100 -> 99.81774823 | G122: =G153+G154+G155*MICS11!G130/100 -> 100 | H122: =H153+H154+H155*MICS11!H130/100 -> 91.78391116 | I122: =I153+I154+I155*MICS11!I130/100 -> 96.84481476 | J122: =J153+J154+J155*MICS11!J130/100 -> 99.67798207 | K122: =K153+K154+K155*MICS11!K130/100 -> 100 | L122: =L153+L154+L155*MICS11!L130/100 -> 100 | M122: =M153+M154+M155*MICS11!M130/100 -> 92.13304088 | N122: =N153+N154+N155*MICS11!N130/100 -> 97.97359542 | O122: =O153+O154+O155*MICS11!O130/100 -> 98.45160829 | P122: =P153+P154+P155*MICS11!P130/100 -> 100 | Q122: =Q153+Q154+Q155*MICS11!Q130/100 -> 100 | R122: N/A | BA122: Sanitation | BB122: Improved | BC122: N/A | BD122: N/A | BE122: N/A | BF122: N/A | BG122: N/A | BH122: N/A | BI122: N/A | BJ122: N/A | BK122: N/A | BL122: N/A | BM122: N/A | BN122: N/A | BO122: N/A | BP122: N/A | BQ122: N/A | BR122: N/A
B123: Not Improved | C123: =100-C122 -> 7.461820928 | D123: =100-D122 -> 3.17595139 | E123: 0.7429820657 | F123: 0.182251768 | G123: 0 | H123: 8.216088836 | I123: 3.155185243 | J123: 0.3220179345 | K123: 0 | L123: 0 | M123: 7.866959119 | N123: 2.026404582 | O123: 1.548391706 | P123: 0 | Q123: 0 | R123: N/A | BB123: Not Improved | BC123: N/A | BD123: N/A | BE123: N/A | BF123: N/A | BG123: N/A | BH123: N/A | BI123: N/A | BJ123: N/A | BK123: N/A | BL123: N/A | BM123: N/A | BN123: N/A | BO123: N/A | BP123: N/A | BQ123: N/A | BR123: N/A
A124: Sanitation ladder | B124: Basic | C124: =C122*MICS11!C129/100 -> 72.1841199 | D124: =D122*MICS11!D129/100 -> 81.34529873 | E124: =E122*MICS11!E129/100 -> 83.83159605 | F124: =F122*MICS11!F129/100 -> 94.69333831 | G124: =G122*MICS11!G129/100 -> 99.17673812 | H124: =H122*MICS11!H129/100 -> 62.75710359 | I124: =I122*MICS11!I129/100 -> 81.10525867 | J124: =J122*MICS11!J129/100 -> 92.38988819 | K124: =K122*MICS11!K129/100 -> 99.26922139 | L124: =L122*MICS11!L129/100 -> 99.77265618 | M124: =M122*MICS11!M129/100 -> 71.63844382 | N124: =N122*MICS11!N129/100 -> 79.61712313 | O124: =O122*MICS11!O129/100 -> 87.48443775 | P124: =P122*MICS11!P129/100 -> 97.31572667 | Q124: =Q122*MICS11!Q129/100 -> 99.01350835 | R124: N/A | BA124: Sanitation ladder | BB124: Basic | BC124: N/A | BD124: N/A | BE124: N/A | BF124: N/A | BG124: N/A | BH124: N/A | BI124: N/A | BJ124: N/A | BK124: N/A | BL124: N/A | BM124: N/A | BN124: N/A | BO124: N/A | BP124: N/A | BQ124: N/A | BR124: N/A
B125: Limited | C125: =C122*MICS11!C128/100 -> 20.35405917 | D125: =D122*MICS11!D128/100 -> 15.47874988 | E125: =E122*MICS11!E128/100 -> 15.42542188 | F125: =F122*MICS11!F128/100 -> 5.124409918 | G125: =G122*MICS11!G128/100 -> 0.8232618819 | H125: =H122*MICS11!H128/100 -> 29.02680757 | I125: =I122*MICS11!I128/100 -> 15.73955608 | J125: =J122*MICS11!J128/100 -> 7.288093875 | K125: =K122*MICS11!K128/100 -> 0.7307786133 | L125: =L122*MICS11!L128/100 -> 0.2273438219 | M125: =M122*MICS11!M128/100 -> 20.49459706 | N125: =N122*MICS11!N128/100 -> 18.35647229 | O125: =O122*MICS11!O128/100 -> 10.96717055 | P125: =P122*MICS11!P128/100 -> 2.684273328 | Q125: =Q122*MICS11!Q128/100 -> 0.9864916509 | R125: N/A | BB125: Limited | BC125: N/A | BD125: N/A | BE125: N/A | BF125: N/A | BG125: N/A | BH125: N/A | BI125: N/A | BJ125: N/A | BK125: N/A | BL125: N/A | BM125: N/A | BN125: N/A | BO125: N/A | BP125: N/A | BQ125: N/A | BR125: N/A
B126: Unimproved | C126: =100-(C124+C125+C127) -> 1.889779686 | D126: =100-(D124+D125+D127) -> 1.575908636 | E126: 0.3418044934 | F126: 0 | G126: 0 | H126: 2.555764684 | I126: 1.894141094 | J126: 0 | K126: 0 | L126: 0 | M126: 1.402032144 | N126: 0.4983862213 | O126: 1.244847982 | P126: 0 | Q126: 0 | R126: N/A | BB126: Unimproved | BC126: N/A | BD126: N/A | BE126: N/A | BF126: N/A | BG126: N/A | BH126: N/A | BI126: N/A | BJ126: N/A | BK126: N/A | BL126: N/A | BM126: N/A | BN126: N/A | BO126: N/A | BP126: N/A | BQ126: N/A | BR126: N/A
B127: Open defecation | C127: =C157 -> 5.572041242 | D127: =D157 -> 1.600042755 | E127: 0.4011775723 | F127: 0.182251768 | G127: 0 | H127: 5.660324152 | I127: 1.261044149 | J127: 0.3220179345 | K127: 0 | L127: 0 | M127: 6.464926975 | N127: 1.528018361 | O127: 0.3035437239 | P127: 0 | Q127: 0 | R127: N/A | BB127: Open defecation | BC127: N/A | BD127: N/A | BE127: N/A | BF127: N/A | BG127: N/A | BH127: N/A | BI127: N/A | BJ127: N/A | BK127: N/A | BL127: N/A | BM127: N/A | BN127: N/A | BO127: N/A | BP127: N/A | BQ127: N/A | BR127: N/A
A128: Shared among Improved Sanitation | B128: Yes | C128: N/A | D128: N/A | E128: N/A | F128: N/A | G128: N/A | H128: N/A | I128: N/A | J128: N/A | K128: N/A | L128: N/A | M128: N/A | N128: N/A | O128: N/A | P128: N/A | Q128: N/A | R128: N/A | BA128: Shared among improved sanitation facilities | BB128: Yes | BC128: N/A | BD128: N/A | BE128: N/A | BF128: N/A | BG128: N/A | BH128: N/A | BI128: N/A | BJ128: N/A | BK128: N/A | BL128: N/A | BM128: N/A | BN128: N/A | BO128: N/A | BP128: N/A | BQ128: N/A | BR128: N/A
B129: No | C129: N/A | D129: N/A | E129: N/A | F129: N/A | G129: N/A | H129: N/A | I129: N/A | J129: N/A | K129: N/A | L129: N/A | M129: N/A | N129: N/A | O129: N/A | P129: N/A | Q129: N/A | R129: N/A | BB129: No | BC129: N/A | BD129: N/A | BE129: N/A | BF129: N/A | BG129: N/A | BH129: N/A | BI129: N/A | BJ129: N/A | BK129: N/A | BL129: N/A | BM129: N/A | BN129: N/A | BO129: N/A | BP129: N/A | BQ129: N/A | BR129: N/A
A130: Manually calculated ratios | B130: Improved latrines
B131: Other
B132: Other
C133: NATIONAL wealth index quintile | H133: URBAN wealth index quintile | M133: RURAL wealth index quintile | R133: SUB-REGIONS: | BA133: Raw numbers of respondents: | BB133: Use of sanitation facilities | BC133: NATIONAL wealth index quintile | BH133: URBAN wealth index quintile | BM133: RURAL wealth index quintile | BR133: SUB-REGIONS:
A134: Percentage based on weighted population | C134: Poorest | D134: Poor | E134: Middle | F134: Rich | G134: Richest | H134: Poorest | I134: Poor | J134: Middle | K134: Rich | L134: Richest | M134: Poorest | N134: Poor | O134: Middle | P134: Rich | Q134: Richest | R134: None valid | BA134: Sanitation data, raw numbers (weighted) | BC134: Poorest | BD134: Poor | BE134: Middle | BF134: Rich | BG134: Richest | BH134: Poorest | BI134: Poor | BJ134: Middle | BK134: Rich | BL134: Richest | BM134: Poorest | BN134: Poor | BO134: Middle | BP134: Rich | BQ134: Richest | BR134: None valid
A135: Sanitation type | B135: Sewer connection | C135: =C153 -> 12.10261974 | D135: =D153 -> 19.89160352 | E135: 18.88087629 | F135: 19.74786184 | G135: 38.58385046 | H135: 23.60185738 | I135: 32.39978103 | J135: 34.70939563 | K135: 38.52531119 | L135: 50.65017842 | M135: 4.252572257 | N135: 2.962097257 | O135: 2.758562853 | P135: 5.85937726 | Q135: 4.458975288 | R135: N/A | BA135: Sanitation type | BB135: Sewer connection | BC135: N/A | BD135: N/A | BE135: N/A | BF135: N/A | BG135: N/A | BH135: N/A | BI135: N/A | BJ135: N/A | BK135: N/A | BL135: N/A | BM135: N/A | BN135: N/A | BO135: N/A | BP135: N/A | BQ135: N/A | BR135: N/A
B136: Septic tank connection | C136: N/A | D136: N/A | E136: N/A | F136: N/A | G136: N/A | H136: N/A | I136: N/A | J136: N/A | K136: N/A | L136: N/A | M136: N/A | N136: N/A | O136: N/A | P136: N/A | Q136: N/A | R136: N/A | BB136: Septic tank connection | BC136: N/A | BD136: N/A | BE136: N/A | BF136: N/A | BG136: N/A | BH136: N/A | BI136: N/A | BJ136: N/A | BK136: N/A | BL136: N/A | BM136: N/A | BN136: N/A | BO136: N/A | BP136: N/A | BQ136: N/A | BR136: N/A
B137: Improved latrines | C137: N/A | D137: N/A | E137: N/A | F137: N/A | G137: N/A | H137: N/A | I137: N/A | J137: N/A | K137: N/A | L137: N/A | M137: N/A | N137: N/A | O137: N/A | P137: N/A | Q137: N/A | R137: N/A | BB137: Improved latrines | BC137: N/A | BD137: N/A | BE137: N/A | BF137: N/A | BG137: N/A | BH137: N/A | BI137: N/A | BJ137: N/A | BK137: N/A | BL137: N/A | BM137: N/A | BN137: N/A | BO137: N/A | BP137: N/A | BQ137: N/A | BR137: N/A
B138: Unimproved facilities | C138: N/A | D138: N/A | E138: N/A | F138: N/A | G138: N/A | H138: N/A | I138: N/A | J138: N/A | K138: N/A | L138: N/A | M138: N/A | N138: N/A | O138: N/A | P138: N/A | Q138: N/A | R138: N/A | BB138: Unimproved facilities | BC138: N/A | BD138: N/A | BE138: N/A | BF138: N/A | BG138: N/A | BH138: N/A | BI138: N/A | BJ138: N/A | BK138: N/A | BL138: N/A | BM138: N/A | BN138: N/A | BO138: N/A | BP138: N/A | BQ138: N/A | BR138: N/A
B139: Open defecation | C139: =C157 -> 5.572041242 | D139: =D157 -> 1.600042755 | E139: 0.4011775723 | F139: 0.182251768 | G139: 0 | H139: 5.660324152 | I139: 1.261044149 | J139: 0.3220179345 | K139: 0 | L139: 0 | M139: 6.464926975 | N139: 1.528018361 | O139: 0.3035437239 | P139: 0 | Q139: 0 | R139: N/A | BB139: Open defecation | BC139: N/A | BD139: N/A | BE139: N/A | BF139: N/A | BG139: N/A | BH139: N/A | BI139: N/A | BJ139: N/A | BK139: N/A | BL139: N/A | BM139: N/A | BN139: N/A | BO139: N/A | BP139: N/A | BQ139: N/A | BR139: N/A
A140: Septic tank emptying practices | B140: Not emptied/treated and disposed in situ | C140: N/A | D140: N/A | E140: N/A | F140: N/A | G140: N/A | H140: N/A | I140: N/A | J140: N/A | K140: N/A | L140: N/A | M140: N/A | N140: N/A | O140: N/A | P140: N/A | Q140: N/A | R140: N/A | BA140: Septic tank emptying practices | BB140: Not emptied/treated and disposed in situ | BC140: N/A | BD140: N/A | BE140: N/A | BF140: N/A | BG140: N/A | BH140: N/A | BI140: N/A | BJ140: N/A | BK140: N/A | BL140: N/A | BM140: N/A | BN140: N/A | BO140: N/A | BP140: N/A | BQ140: N/A | BR140: N/A
B141: Emptied and buried on site | C141: N/A | D141: N/A | E141: N/A | F141: N/A | G141: N/A | H141: N/A | I141: N/A | J141: N/A | K141: N/A | L141: N/A | M141: N/A | N141: N/A | O141: N/A | P141: N/A | Q141: N/A | R141: N/A | BB141: Emptied and buried on site | BC141: N/A | BD141: N/A | BE141: N/A | BF141: N/A | BG141: N/A | BH141: N/A | BI141: N/A | BJ141: N/A | BK141: N/A | BL141: N/A | BM141: N/A | BN141: N/A | BO141: N/A | BP141: N/A | BQ141: N/A | BR141: N/A
B142: Emptied and discharged locally | C142: N/A | D142: N/A | E142: N/A | F142: N/A | G142: N/A | H142: N/A | I142: N/A | J142: N/A | K142: N/A | L142: N/A | M142: N/A | N142: N/A | O142: N/A | P142: N/A | Q142: N/A | R142: N/A | BB142: Emptied and discharged locally | BC142: N/A | BD142: N/A | BE142: N/A | BF142: N/A | BG142: N/A | BH142: N/A | BI142: N/A | BJ142: N/A | BK142: N/A | BL142: N/A | BM142: N/A | BN142: N/A | BO142: N/A | BP142: N/A | BQ142: N/A | BR142: N/A
B143: Emptied and removed offsite | C143: N/A | D143: N/A | E143: N/A | F143: N/A | G143: N/A | H143: N/A | I143: N/A | J143: N/A | K143: N/A | L143: N/A | M143: N/A | N143: N/A | O143: N/A | P143: N/A | Q143: N/A | R143: N/A | BB143: Emptied and removed offsite | BC143: N/A | BD143: N/A | BE143: N/A | BF143: N/A | BG143: N/A | BH143: N/A | BI143: N/A | BJ143: N/A | BK143: N/A | BL143: N/A | BM143: N/A | BN143: N/A | BO143: N/A | BP143: N/A | BQ143: N/A | BR143: N/A
A144: Latrine emptying practices | B144: Not emptied/treated and disposed in situ | C144: N/A | D144: N/A | E144: N/A | F144: N/A | G144: N/A | H144: N/A | I144: N/A | J144: N/A | K144: N/A | L144: N/A | M144: N/A | N144: N/A | O144: N/A | P144: N/A | Q144: N/A | R144: N/A | BA144: Latrine emptying practices | BB144: Not emptied/treated and disposed in situ | BC144: N/A | BD144: N/A | BE144: N/A | BF144: N/A | BG144: N/A | BH144: N/A | BI144: N/A | BJ144: N/A | BK144: N/A | BL144: N/A | BM144: N/A | BN144: N/A | BO144: N/A | BP144: N/A | BQ144: N/A | BR144: N/A
B145: Emptied and buried on site | C145: N/A | D145: N/A | E145: N/A | F145: N/A | G145: N/A | H145: N/A | I145: N/A | J145: N/A | K145: N/A | L145: N/A | M145: N/A | N145: N/A | O145: N/A | P145: N/A | Q145: N/A | R145: N/A | BB145: Emptied and buried on site | BC145: N/A | BD145: N/A | BE145: N/A | BF145: N/A | BG145: N/A | BH145: N/A | BI145: N/A | BJ145: N/A | BK145: N/A | BL145: N/A | BM145: N/A | BN145: N/A | BO145: N/A | BP145: N/A | BQ145: N/A | BR145: N/A
B146: Emptied and discharged locally | C146: N/A | D146: N/A | E146: N/A | F146: N/A | G146: N/A | H146: N/A | I146: N/A | J146: N/A | K146: N/A | L146: N/A | M146: N/A | N146: N/A | O146: N/A | P146: N/A | Q146: N/A | R146: N/A | BB146: Emptied and discharged locally | BC146: N/A | BD146: N/A | BE146: N/A | BF146: N/A | BG146: N/A | BH146: N/A | BI146: N/A | BJ146: N/A | BK146: N/A | BL146: N/A | BM146: N/A | BN146: N/A | BO146: N/A | BP146: N/A | BQ146: N/A | BR146: N/A
B147: Emptied and removed offsite | C147: N/A | D147: N/A | E147: N/A | F147: N/A | G147: N/A | H147: N/A | I147: N/A | J147: N/A | K147: N/A | L147: N/A | M147: N/A | N147: N/A | O147: N/A | P147: N/A | Q147: N/A | R147: N/A | BB147: Emptied and removed offsite | BC147: N/A | BD147: N/A | BE147: N/A | BF147: N/A | BG147: N/A | BH147: N/A | BI147: N/A | BJ147: N/A | BK147: N/A | BL147: N/A | BM147: N/A | BN147: N/A | BO147: N/A | BP147: N/A | BQ147: N/A | BR147: N/A
A148: Shared among improved sanitation facilities | B148: Yes | C148: N/A | D148: N/A | E148: N/A | F148: N/A | G148: N/A | H148: N/A | I148: N/A | J148: N/A | K148: N/A | L148: N/A | M148: N/A | N148: N/A | O148: N/A | P148: N/A | Q148: N/A | R148: N/A | BA148: Shared among improved sanitation facilities | BB148: Yes | BC148: N/A | BD148: N/A | BE148: N/A | BF148: N/A | BG148: N/A | BH148: N/A | BI148: N/A | BJ148: N/A | BK148: N/A | BL148: N/A | BM148: N/A | BN148: N/A | BO148: N/A | BP148: N/A | BQ148: N/A | BR148: N/A
B149: No | C149: N/A | D149: N/A | E149: N/A | F149: N/A | G149: N/A | H149: N/A | I149: N/A | J149: N/A | K149: N/A | L149: N/A | M149: N/A | N149: N/A | O149: N/A | P149: N/A | Q149: N/A | R149: N/A | BB149: No | BC149: N/A | BD149: N/A | BE149: N/A | BF149: N/A | BG149: N/A | BH149: N/A | BI149: N/A | BJ149: N/A | BK149: N/A | BL149: N/A | BM149: N/A | BN149: N/A | BO149: N/A | BP149: N/A | BQ149: N/A | BR149: N/A
B150: DK/missing | C150: N/A | D150: N/A | E150: N/A | F150: N/A | G150: N/A | H150: N/A | I150: N/A | J150: N/A | K150: N/A | L150: N/A | M150: N/A | N150: N/A | O150: N/A | P150: N/A | Q150: N/A | R150: N/A | BB150: DK/missing | BC150: N/A | BD150: N/A | BE150: N/A | BF150: N/A | BG150: N/A | BH150: N/A | BI150: N/A | BJ150: N/A | BK150: N/A | BL150: N/A | BM150: N/A | BN150: N/A | BO150: N/A | BP150: N/A | BQ150: N/A | BR150: N/A
A151: Shared among all sanitation facilities | B151: Yes | C151: 52.8678894 | D151: 21.1656685 | E151: 8.55634775 | F151: 2.550669678 | G151: 1.033328659 | H151: 60.94574556 | I151: 22.88135513 | J151: 5.536056898 | K151: 1.85814274 | L151: 0.3058220336 | M151: 47.71756236 | N151: 16.44184724 | O151: 7.472238105 | P151: 3.185608739 | Q151: 0.7665506846 | R151: N/A | BA151: Shared among all sanitation facilities | BB151: Yes | BC151: N/A | BD151: N/A | BE151: N/A | BF151: N/A | BG151: N/A | BH151: N/A | BI151: N/A | BJ151: N/A | BK151: N/A | BL151: N/A | BM151: N/A | BN151: N/A | BO151: N/A | BP151: N/A | BQ151: N/A | BR151: N/A
B152: No | C152: 47.1321106 | D152: 78.8343315 | E152: 91.44365225 | F152: 97.44933032 | G152: 98.96667134 | H152: 39.05425444 | I152: 77.11864487 | J152: 94.4639431 | K152: 98.14185726 | L152: 99.69417797 | M152: 52.28243764 | N152: 83.55815276 | O152: 92.5277619 | P152: 96.81439126 | Q152: 99.23344932 | R152: N/A | BB152: No | BC152: N/A | BD152: N/A | BE152: N/A | BF152: N/A | BG152: N/A | BH152: N/A | BI152: N/A | BJ152: N/A | BK152: N/A | BL152: N/A | BM152: N/A | BN152: N/A | BO152: N/A | BP152: N/A | BQ152: N/A | BR152: N/A
A153: sanitation | B153: WC linked to sewer | C153: 12.10261974 | D153: 19.89160352 | E153: 18.88087629 | F153: 19.74786184 | G153: 38.58385046 | H153: 23.60185738 | I153: 32.39978103 | J153: 34.70939563 | K153: 38.52531119 | L153: 50.65017842 | M153: 4.252572257 | N153: 2.962097257 | O153: 2.758562853 | P153: 5.85937726 | Q153: 4.458975288 | R153: N/A | BA153: sanitation | BB153: WC linked to sewer | BC153: 66.33458662 | BD153: 110.8813011 | BE153: 87.81364673 | BF153: 128.8277231 | BG153: 207.27852 | BH153: 71.21386582 | BI153: 100.5417309 | BJ153: 128.1527685 | BK153: 96.54385996 | BL153: 153.1834796 | BM153: 10.47867787 | BN153: 7.049747109 | BO153: 6.965617657 | BP153: 21.76590872 | BQ153: 5.240121484 | BR153: 0
B154: WC not linked | C154: 20.04979892 | D154: 38.65296012 | E154: 42.51409014 | F154: 50.92590637 | G154: 56.70658461 | H154: 35.46113275 | I154: 43.20136795 | J154: 51.71336681 | K154: 56.06567655 | L154: 44.84989344 | M154: 9.006099719 | N154: 24.70299942 | O154: 31.98516098 | P154: 51.0203755 | Q154: 85.54815772 | R154: N/A | BB154: WC not linked | BC154: 109.8931596 | BD154: 215.4622932 | BE154: 197.730086 | BF154: 332.2217169 | BG154: 304.6367015 | BH154: 106.9968481 | BI154: 134.0607922 | BJ154: 190.9342126 | BK154: 140.4997561 | BL154: 135.6414321 | BM154: 22.19174939 | BN154: 58.79276866 | BO154: 80.76538908 | BP154: 189.5260856 | BQ154: 100.5349234 | BR154: 0
B155: Pit | C155: 61.28527738 | D155: 39.12620164 | E155: 38.20385599 | F155: 29.14398002 | G155: 4.709564928 | H155: 33.47784508 | I155: 22.24290182 | J155: 13.25521963 | K155: 5.409012255 | L155: 4.499928146 | M155: 80.27640105 | N155: 70.80688496 | O155: 64.44277682 | P155: 43.12024724 | Q155: 9.992866991 | R155: N/A | BB155: Pit | BC155: 335.9052526 | BD155: 218.1002724 | BE155: 177.6834858 | BF155: 190.1245117 | BG155: 25.30052435 | BH155: 101.0126758 | BI155: 69.02330136 | BJ155: 48.94043994 | BK155: 13.5549047 | BL155: 13.60932326 | BM155: 197.8074672 | BN155: 168.5193257 | BO155: 162.7237689 | BP155: 160.1793712 | BQ155: 11.74346876 | BR155: 0
B156: Other | C156: 0.990262722 | D156: 0.7291919691 | E156: 0 | F156: 0 | G156: 0 | H156: 1.798840634 | I156: 0.8949050492 | J156: 0 | K156: 0 | L156: 0 | M156: 0 | N156: 0 | O156: 0.5099556146 | P156: 0 | Q156: 0 | R156: N/A | BB156: Other | BC156: 5.427640438 | BD156: 4.06471777 | BE156: 0 | BF156: 0 | BG156: 0 | BH156: 5.427640438 | BI156: 2.777034283 | BJ156: 0 | BK156: 0 | BL156: 0 | BM156: 0 | BN156: 0 | BO156: 1.287683487 | BP156: 0 | BQ156: 0 | BR156: 0
B157: None | C157: 5.572041242 | D157: 1.600042755 | E157: 0.4011775723 | F157: 0.182251768 | G157: 0 | H157: 5.660324152 | I157: 1.261044149 | J157: 0.3220179345 | K157: 0 | L157: 0 | M157: 6.464926975 | N157: 1.528018361 | O157: 0.3035437239 | P157: 0 | Q157: 0 | R157: N/A | BB157: None | BC157: 30.5404169 | BD157: 8.919080973 | BE157: 1.865849078 | BF157: 1.188942909 | BG157: 0 | BH157: 17.07889163 | BI157: 3.91322279 | BJ157: 1.188942909 | BK157: 0 | BL157: 0 | BM157: 15.93009669 | BN157: 3.636660814 | BO157: 0.7664750218 | BP157: 0 | BQ157: 0 | BR157: 0
BB158: Total | BC158: 548.1010562 | BD158: 557.4276654 | BE158: 465.0930676 | BF158: 652.3628947 | BG158: 537.2157459 | BH158: 301.7299218 | BI158: 310.3160816 | BJ158: 369.216364 | BK158: 250.5985208 | BL158: 302.434235 | BM158: 246.4079911 | BN158: 237.9985023 | BO158: 252.5089341 | BP158: 371.4713655 | BQ158: 117.5185137 | BR158: 0
A208: =A1026 -> Jamaica
A209: =A1034 -> 2007
A210: Access to hygiene facilities
A211: by wealth quintile and sub-national region
A212: Notes:
A213: WHO/UNICEF JMP customised wealth index excludes water,
A214: sanitation and hygiene assets.
A215: Survey used for analysis: | B215: =A1025 -> SLC07
A220: Access to handwashing | C220: NATIONAL wealth index quintile | H220: URBAN wealth index quintile | M220: RURAL wealth index quintile | R220: SUB-REGIONS: | BA220: Raw numbers of respondents: | BB220: Access to handwashing | BC220: NATIONAL wealth index quintile | BH220: URBAN wealth index quintile | BM220: RURAL wealth index quintile | BR220: SUB-REGIONS:
A221: Weighted percentage (used in graphs) | C221: Poorest | D221: Poor | E221: Middle | F221: Rich | G221: Richest | H221: Poorest | I221: Poor | J221: Middle | K221: Rich | L221: Richest | M221: Poorest | N221: Poor | O221: Middle | P221: Rich | Q221: Richest | R221: None valid | BA221: Hygiene data, raw numbers (weighted) | BC221: Poorest | BD221: Poor | BE221: Middle | BF221: Rich | BG221: Richest | BH221: Poorest | BI221: Poor | BJ221: Middle | BK221: Rich | BL221: Richest | BM221: Poorest | BN221: Poor | BO221: Middle | BP221: Rich | BQ221: Richest | BR221: None valid
A222: Hygiene ladder | B222: Basic | C222: N/A | D222: N/A | E222: N/A | F222: N/A | G222: N/A | H222: N/A | I222: N/A | J222: N/A | K222: N/A | L222: N/A | M222: N/A | N222: N/A | O222: N/A | P222: N/A | Q222: N/A | R222: N/A | BA222: Hygiene ladder | BB222: Basic | BC222: N/A | BD222: N/A | BE222: N/A | BF222: N/A | BG222: N/A | BH222: N/A | BI222: N/A | BJ222: N/A | BK222: N/A | BL222: N/A | BM222: N/A | BN222: N/A | BO222: N/A | BP222: N/A | BQ222: N/A | BR222: N/A
B223: Limited | C223: N/A | D223: N/A | E223: N/A | F223: N/A | G223: N/A | H223: N/A | I223: N/A | J223: N/A | K223: N/A | L223: N/A | M223: N/A | N223: N/A | O223: N/A | P223: N/A | Q223: N/A | R223: N/A | BB223: Limited | BC223: N/A | BD223: N/A | BE223: N/A | BF223: N/A | BG223: N/A | BH223: N/A | BI223: N/A | BJ223: N/A | BK223: N/A | BL223: N/A | BM223: N/A | BN223: N/A | BO223: N/A | BP223: N/A | BQ223: N/A | BR223: N/A
B224: No facility | C224: N/A | D224: N/A | E224: N/A | F224: N/A | G224: N/A | H224: N/A | I224: N/A | J224: N/A | K224: N/A | L224: N/A | M224: N/A | N224: N/A | O224: N/A | P224: N/A | Q224: N/A | R224: N/A | BB224: No facility | BC224: N/A | BD224: N/A | BE224: N/A | BF224: N/A | BG224: N/A | BH224: N/A | BI224: N/A | BJ224: N/A | BK224: N/A | BL224: N/A | BM224: N/A | BN224: N/A | BO224: N/A | BP224: N/A | BQ224: N/A | BR224: N/A
BA225: Observed handwashing place | BB225: Fixed | BC225: N/A | BD225: N/A | BE225: N/A | BF225: N/A | BG225: N/A | BH225: N/A | BI225: N/A | BJ225: N/A | BK225: N/A | BL225: N/A | BM225: N/A | BN225: N/A | BO225: N/A | BP225: N/A | BQ225: N/A | BR225: N/A
BB226: Mobile | BC226: N/A | BD226: N/A | BE226: N/A | BF226: N/A | BG226: N/A | BH226: N/A | BI226: N/A | BJ226: N/A | BK226: N/A | BL226: N/A | BM226: N/A | BN226: N/A | BO226: N/A | BP226: N/A | BQ226: N/A | BR226: N/A
BA227: Water / Soap | BB227: Water and soap | BC227: N/A | BD227: N/A | BE227: N/A | BF227: N/A | BG227: N/A | BH227: N/A | BI227: N/A | BJ227: N/A | BK227: N/A | BL227: N/A | BM227: N/A | BN227: N/A | BO227: N/A | BP227: N/A | BQ227: N/A | BR227: N/A
BB228: Water only | BC228: N/A | BD228: N/A | BE228: N/A | BF228: N/A | BG228: N/A | BH228: N/A | BI228: N/A | BJ228: N/A | BK228: N/A | BL228: N/A | BM228: N/A | BN228: N/A | BO228: N/A | BP228: N/A | BQ228: N/A | BR228: N/A
BB229: Soap only | BC229: N/A | BD229: N/A | BE229: N/A | BF229: N/A | BG229: N/A | BH229: N/A | BI229: N/A | BJ229: N/A | BK229: N/A | BL229: N/A | BM229: N/A | BN229: N/A | BO229: N/A | BP229: N/A | BQ229: N/A | BR229: N/A
BB230: Neither | BC230: N/A | BD230: N/A | BE230: N/A | BF230: N/A | BG230: N/A | BH230: N/A | BI230: N/A | BJ230: N/A | BK230: N/A | BL230: N/A | BM230: N/A | BN230: N/A | BO230: N/A | BP230: N/A | BQ230: N/A | BR230: N/A
BA259: Raw numbers of respondents: | BB259: Menstrual health and hygiene | BC259: NATIONAL wealth index quintile | BH259: URBAN wealth index quintile | BM259: RURAL wealth index quintile | BR259: SUB-REGIONS:
BA260: MHH data, raw numbers (weighted) | BC260: Poorest | BD260: Poor | BE260: Middle | BF260: Rich | BG260: Richest | BH260: Poorest | BI260: Poor | BJ260: Middle | BK260: Rich | BL260: Richest | BM260: Poorest | BN260: Poor | BO260: Middle | BP260: Rich | BQ260: Richest | BR260: None valid
BA261: Private place to wash and change | BB261: Yes | BC261: N/A | BD261: N/A | BE261: N/A | BF261: N/A | BG261: N/A | BH261: N/A | BI261: N/A | BJ261: N/A | BK261: N/A | BL261: N/A | BM261: N/A | BN261: N/A | BO261: N/A | BP261: N/A | BQ261: N/A | BR261: N/A
BB262: No | BC262: N/A | BD262: N/A | BE262: N/A | BF262: N/A | BG262: N/A | BH262: N/A | BI262: N/A | BJ262: N/A | BK262: N/A | BL262: N/A | BM262: N/A | BN262: N/A | BO262: N/A | BP262: N/A | BQ262: N/A | BR262: N/A
BB263: DK/not sure/missing | BC263: N/A | BD263: N/A | BE263: N/A | BF263: N/A | BG263: N/A | BH263: N/A | BI263: N/A | BJ263: N/A | BK263: N/A | BL263: N/A | BM263: N/A | BN263: N/A | BO263: N/A | BP263: N/A | BQ263: N/A | BR263: N/A
BA264: Use of menstrual materials | BB264: Materials reusable | BC264: N/A | BD264: N/A | BE264: N/A | BF264: N/A | BG264: N/A | BH264: N/A | BI264: N/A | BJ264: N/A | BK264: N/A | BL264: N/A | BM264: N/A | BN264: N/A | BO264: N/A | BP264: N/A | BQ264: N/A | BR264: N/A
BB265: Materials not reusable | BC265: N/A | BD265: N/A | BE265: N/A | BF265: N/A | BG265: N/A | BH265: N/A | BI265: N/A | BJ265: N/A | BK265: N/A | BL265: N/A | BM265: N/A | BN265: N/A | BO265: N/A | BP265: N/A | BQ265: N/A | BR265: N/A
BB266: No materials used | BC266: N/A | BD266: N/A | BE266: N/A | BF266: N/A | BG266: N/A | BH266: N/A | BI266: N/A | BJ266: N/A | BK266: N/A | BL266: N/A | BM266: N/A | BN266: N/A | BO266: N/A | BP266: N/A | BQ266: N/A | BR266: N/A
BB267: DK/not sure/missing | BC267: N/A | BD267: N/A | BE267: N/A | BF267: N/A | BG267: N/A | BH267: N/A | BI267: N/A | BJ267: N/A | BK267: N/A | BL267: N/A | BM267: N/A | BN267: N/A | BO267: N/A | BP267: N/A | BQ267: N/A | BR267: N/A
BA268: Use of menstrual materials with private place to wash and change | BB268: Materials reusable | BC268: N/A | BD268: N/A | BE268: N/A | BF268: N/A | BG268: N/A | BH268: N/A | BI268: N/A | BJ268: N/A | BK268: N/A | BL268: N/A | BM268: N/A | BN268: N/A | BO268: N/A | BP268: N/A | BQ268: N/A | BR268: N/A
BB269: Materials not reusable | BC269: N/A | BD269: N/A | BE269: N/A | BF269: N/A | BG269: N/A | BH269: N/A | BI269: N/A | BJ269: N/A | BK269: N/A | BL269: N/A | BM269: N/A | BN269: N/A | BO269: N/A | BP269: N/A | BQ269: N/A | BR269: N/A
BB270: No materials used | BC270: N/A | BD270: N/A | BE270: N/A | BF270: N/A | BG270: N/A | BH270: N/A | BI270: N/A | BJ270: N/A | BK270: N/A | BL270: N/A | BM270: N/A | BN270: N/A | BO270: N/A | BP270: N/A | BQ270: N/A | BR270: N/A
BA271: Awareness of menstruation before menarche | BB271: Yes | BC271: N/A | BD271: N/A | BE271: N/A | BF271: N/A | BG271: N/A | BH271: N/A | BI271: N/A | BJ271: N/A | BK271: N/A | BL271: N/A | BM271: N/A | BN271: N/A | BO271: N/A | BP271: N/A | BQ271: N/A | BR271: N/A
BB272: No | BC272: N/A | BD272: N/A | BE272: N/A | BF272: N/A | BG272: N/A | BH272: N/A | BI272: N/A | BJ272: N/A | BK272: N/A | BL272: N/A | BM272: N/A | BN272: N/A | BO272: N/A | BP272: N/A | BQ272: N/A | BR272: N/A
BB273: DK/not sure/missing | BC273: N/A | BD273: N/A | BE273: N/A | BF273: N/A | BG273: N/A | BH273: N/A | BI273: N/A | BJ273: N/A | BK273: N/A | BL273: N/A | BM273: N/A | BN273: N/A | BO273: N/A | BP273: N/A | BQ273: N/A | BR273: N/A
BA274: Participation in (all) activities during menstruation | BB274: Yes | BC274: N/A | BD274: N/A | BE274: N/A | BF274: N/A | BG274: N/A | BH274: N/A | BI274: N/A | BJ274: N/A | BK274: N/A | BL274: N/A | BM274: N/A | BN274: N/A | BO274: N/A | BP274: N/A | BQ274: N/A | BR274: N/A
BB275: No | BC275: N/A | BD275: N/A | BE275: N/A | BF275: N/A | BG275: N/A | BH275: N/A | BI275: N/A | BJ275: N/A | BK275: N/A | BL275: N/A | BM275: N/A | BN275: N/A | BO275: N/A | BP275: N/A | BQ275: N/A | BR275: N/A
BB276: DK/not sure/missing/no such activity | BC276: N/A | BD276: N/A | BE276: N/A | BF276: N/A | BG276: N/A | BH276: N/A | BI276: N/A | BJ276: N/A | BK276: N/A | BL276: N/A | BM276: N/A | BN276: N/A | BO276: N/A | BP276: N/A | BQ276: N/A | BR276: N/A
BA277: Participation in specific activities during menstruation | BB277: Did not go to school (amongst those usually attending school) | BC277: N/A | BD277: N/A | BE277: N/A | BF277: N/A | BG277: N/A | BH277: N/A | BI277: N/A | BJ277: N/A | BK277: N/A | BL277: N/A | BM277: N/A | BN277: N/A | BO277: N/A | BP277: N/A | BQ277: N/A | BR277: N/A
BB278: Did not go to work (amongst those who usually work) | BC278: N/A | BD278: N/A | BE278: N/A | BF278: N/A | BG278: N/A | BH278: N/A | BI278: N/A | BJ278: N/A | BK278: N/A | BL278: N/A | BM278: N/A | BN278: N/A | BO278: N/A | BP278: N/A | BQ278: N/A | BR278: N/A
BB279: Did not participate in social activities | BC279: N/A | BD279: N/A | BE279: N/A | BF279: N/A | BG279: N/A | BH279: N/A | BI279: N/A | BJ279: N/A | BK279: N/A | BL279: N/A | BM279: N/A | BN279: N/A | BO279: N/A | BP279: N/A | BQ279: N/A | BR279: N/A
BB280: Did not cook food | BC280: N/A | BD280: N/A | BE280: N/A | BF280: N/A | BG280: N/A | BH280: N/A | BI280: N/A | BJ280: N/A | BK280: N/A | BL280: N/A | BM280: N/A | BN280: N/A | BO280: N/A | BP280: N/A | BQ280: N/A | BR280: N/A
BB281: Did not eat with others | BC281: N/A | BD281: N/A | BE281: N/A | BF281: N/A | BG281: N/A | BH281: N/A | BI281: N/A | BJ281: N/A | BK281: N/A | BL281: N/A | BM281: N/A | BN281: N/A | BO281: N/A | BP281: N/A | BQ281: N/A | BR281: N/A
BB282: Did not bathe in regular place | BC282: N/A | BD282: N/A | BE282: N/A | BF282: N/A | BG282: N/A | BH282: N/A | BI282: N/A | BJ282: N/A | BK282: N/A | BL282: N/A | BM282: N/A | BN282: N/A | BO282: N/A | BP282: N/A | BQ282: N/A | BR282: N/A
BB283: Did not participate in other activities | BC283: N/A | BD283: N/A | BE283: N/A | BF283: N/A | BG283: N/A | BH283: N/A | BI283: N/A | BJ283: N/A | BK283: N/A | BL283: N/A | BM283: N/A | BN283: N/A | BO283: N/A | BP283: N/A | BQ283: N/A | BR283: N/A
BB284: DK/not sure/missing/no such activity | BC284: N/A | BD284: N/A | BE284: N/A | BF284: N/A | BG284: N/A | BH284: N/A | BI284: N/A | BJ284: N/A | BK284: N/A | BL284: N/A | BM284: N/A | BN284: N/A | BO284: N/A | BP284: N/A | BQ284: N/A | BR284: N/A
BA339: Raw numbers of respondents: | BB339: Basic water, sanitation and hygiene | BC339: NATIONAL wealth index quintile | BH339: URBAN wealth index quintile | BM339: RURAL wealth index quintile | BR339: SUB-REGIONS:
BA340: WatSan data, raw numbers (weighted) | BC340: Poorest | BD340: Poor | BE340: Middle | BF340: Rich | BG340: Richest | BH340: Poorest | BI340: Poor | BJ340: Middle | BK340: Rich | BL340: Richest | BM340: Poorest | BN340: Poor | BO340: Middle | BP340: Rich | BQ340: Richest | BR340: None valid
BA341: Use of Basic Water Sanitation and Hygiene | BB341: Yes | BC341: N/A | BD341: N/A | BE341: N/A | BF341: N/A | BG341: N/A | BH341: N/A | BI341: N/A | BJ341: N/A | BK341: N/A | BL341: N/A | BM341: N/A | BN341: N/A | BO341: N/A | BP341: N/A | BQ341: N/A | BR341: N/A
BB342: No | BC342: N/A | BD342: N/A | BE342: N/A | BF342: N/A | BG342: N/A | BH342: N/A | BI342: N/A | BJ342: N/A | BK342: N/A | BL342: N/A | BM342: N/A | BN342: N/A | BO342: N/A | BP342: N/A | BQ342: N/A | BR342: N/A
BA343: Use of Basic Water and Sanitation | BB343: Yes | BC343: N/A | BD343: N/A | BE343: N/A | BF343: N/A | BG343: N/A | BH343: N/A | BI343: N/A | BJ343: N/A | BK343: N/A | BL343: N/A | BM343: N/A | BN343: N/A | BO343: N/A | BP343: N/A | BQ343: N/A | BR343: N/A
BB344: No | BC344: N/A | BD344: N/A | BE344: N/A | BF344: N/A | BG344: N/A | BH344: N/A | BI344: N/A | BJ344: N/A | BK344: N/A | BL344: N/A | BM344: N/A | BN344: N/A | BO344: N/A | BP344: N/A | BQ344: N/A | BR344: N/A
BA345: Use of Basic Water and Hygiene | BB345: Yes | BC345: N/A | BD345: N/A | BE345: N/A | BF345: N/A | BG345: N/A | BH345: N/A | BI345: N/A | BJ345: N/A | BK345: N/A | BL345: N/A | BM345: N/A | BN345: N/A | BO345: N/A | BP345: N/A | BQ345: N/A | BR345: N/A
BB346: No | BC346: N/A | BD346: N/A | BE346: N/A | BF346: N/A | BG346: N/A | BH346: N/A | BI346: N/A | BJ346: N/A | BK346: N/A | BL346: N/A | BM346: N/A | BN346: N/A | BO346: N/A | BP346: N/A | BQ346: N/A | BR346: N/A
BA347: Use of Basic Sanitation and Hygiene | BB347: Yes | BC347: N/A | BD347: N/A | BE347: N/A | BF347: N/A | BG347: N/A | BH347: N/A | BI347: N/A | BJ347: N/A | BK347: N/A | BL347: N/A | BM347: N/A | BN347: N/A | BO347: N/A | BP347: N/A | BQ347: N/A | BR347: N/A
BB348: No | BC348: N/A | BD348: N/A | BE348: N/A | BF348: N/A | BG348: N/A | BH348: N/A | BI348: N/A | BJ348: N/A | BK348: N/A | BL348: N/A | BM348: N/A | BN348: N/A | BO348: N/A | BP348: N/A | BQ348: N/A | BR348: N/A
BA349: Use of Basic Water | BB349: Yes | BC349: N/A | BD349: N/A | BE349: N/A | BF349: N/A | BG349: N/A | BH349: N/A | BI349: N/A | BJ349: N/A | BK349: N/A | BL349: N/A | BM349: N/A | BN349: N/A | BO349: N/A | BP349: N/A | BQ349: N/A | BR349: N/A
BB350: No | BC350: N/A | BD350: N/A | BE350: N/A | BF350: N/A | BG350: N/A | BH350: N/A | BI350: N/A | BJ350: N/A | BK350: N/A | BL350: N/A | BM350: N/A | BN350: N/A | BO350: N/A | BP350: N/A | BQ350: N/A | BR350: N/A
BA351: Use of Basic Sanitation | BB351: Yes | BC351: N/A | BD351: N/A | BE351: N/A | BF351: N/A | BG351: N/A | BH351: N/A | BI351: N/A | BJ351: N/A | BK351: N/A | BL351: N/A | BM351: N/A | BN351: N/A | BO351: N/A | BP351: N/A | BQ351: N/A | BR351: N/A
BB352: No | BC352: N/A | BD352: N/A | BE352: N/A | BF352: N/A | BG352: N/A | BH352: N/A | BI352: N/A | BJ352: N/A | BK352: N/A | BL352: N/A | BM352: N/A | BN352: N/A | BO352: N/A | BP352: N/A | BQ352: N/A | BR352: N/A
BA353: Access to Basic Hygiene | BB353: Yes | BC353: N/A | BD353: N/A | BE353: N/A | BF353: N/A | BG353: N/A | BH353: N/A | BI353: N/A | BJ353: N/A | BK353: N/A | BL353: N/A | BM353: N/A | BN353: N/A | BO353: N/A | BP353: N/A | BQ353: N/A | BR353: N/A
BB354: No | BC354: N/A | BD354: N/A | BE354: N/A | BF354: N/A | BG354: N/A | BH354: N/A | BI354: N/A | BJ354: N/A | BK354: N/A | BL354: N/A | BM354: N/A | BN354: N/A | BO354: N/A | BP354: N/A | BQ354: N/A | BR354: N/A
C399: INITIAL (national) Wealth Index | H399: URBAN Wealth Index | M399: RURAL Wealth Index
C400: Component Matrix | H400: Component Matrix | M400: Component Matrix
E401: Component | J401: Component | O401: Component
B402: Note: The INITIAL (national) Wealth Index is based on the first component of the Principal Component Analysis (PCA) which has been obtained at national level. The final national-level (NATIONAL) Wealth Index is based on the URBAN and RURAL specific wealth indexes. Regression procedures are used to establish the relationships between the two sets of scores (urban and rural) and the initial (national) wealth factors. This allows best use of the available information for each area and a better precision of the FINAL (NATIONAL) Wealth Index. For dependency reasons, all WASH variables (contained in the generic MICS and DHS scripts) have been excluded from the sets of asset variables used in the PCAs. The PCA can extracts as many components as there are asset variables in the input. Only the first of the components is used to represent the Wealth Index. The scores represent the weights of the asset variables on the Wealth Index (correlations between the variables and the component). The communalities are the proportion of each variable's variance that can be explained by the component. Proportion of explained variance is the part of the model's total variance that is explained by the component. For more information on the procedure used: The DHS Wealth Index, DHS Comparative Reports No. 6, Shea Oscar Rutstein, Kiersten Johnson, ORC Macro International Inc., 2004. The DHS Wealth Index: Approaches for Rural and Urban Areas, Shea O. Rutstein, ORC Macro International Inc., 2008. MICS Methodological Paper No. 4, Review of options for reporting water, sanitation and hygiene coverage by wealth quintile, UNICEF, 2016. | E402: 1 | J402: 1 | O402: 1
C403: Household cooks in owm house | E403: 0.6405142918 | H403: Household cooks in owm house | J403: 0.6699674419 | M403: Household cooks in owm house | O403: 0.7057391343
C404: wall5 | E404: 0.628380845 | H404: wall5 | J404: 0.6275605725 | M404: light1 | O404: 0.6084668638
C405: light1 | E405: 0.6129052467 | H405: Household member owns: asset2a | J405: 0.577406445 | M405: Household cooks outside house | O405: -0.6010155927
C406: wall1 | E406: -0.5518139051 | H406: wall1 | J406: -0.5409953509 | M406: house1 | O406: 0.5232131491
C407: Household cooks outside house | E407: -0.5422543969 | H407: Household member owns: asset2c | J407: 0.5242680636 | M407: house3 | O407: -0.5164825889
C408: Household member owns: asset2a | E408: 0.5108833566 | H408: light1 | J408: 0.5026594504 | M408: light2 | O408: -0.4796773797
C409: Household member owns: asset2c | E409: 0.5091380285 | H409: Household cooks outside house | J409: -0.4846144466 | M409: owner1 | O409: 0.4703845687
C410: light2 | E410: -0.4682699111 | H410: Household member owns: asset2d | J410: 0.4829647633 | M410: wall5 | O410: 0.454628282
C411: Household member owns: asset2d | E411: 0.4428883664 | H411: Household cooks in other house | J411: -0.4223901899 | M411: Household member owns: asset2b | O411: 0.4436845106
C412: Household member owns: asset2b | E412: 0.3370280245 | H412: owner1 | J412: 0.4169643242 | M412: wall1 | O412: -0.3550300714
C413: light4 | E413: -0.3004249661 | H413: light4 | J413: -0.3238821543 | M413: Household member owns: asset2c | O413: 0.3257720495
C414: Household cooks in other house | E414: -0.2997482121 | H414: house3 | J414: -0.321957894 | M414: owner5 | O414: -0.308167652
C415: owner1 | E415: 0.2682975781 | H415: light2 | J415: -0.3057153577 | M415: Household cooks in other house | O415: -0.2961826149
C416: house3 | E416: -0.2406940539 | H416: owner5 | J416: -0.2584512957 | M416: Household member owns: asset2a | O416: 0.2902981166
C417: owner5 | E417: -0.2313577157 | H417: owner6 | J417: -0.2472797095 | M417: light4 | O417: -0.2852470952
C418: light3 | E418: -0.2103605951 | H418: wall4 | J418: -0.2397543035 | M418: owner3 | O418: -0.2836953014
C419: wall4 | E419: -0.1940060349 | H419: light3 | J419: -0.1790438785 | M419: light3 | O419: -0.2080626915
C420: house2 | E420: 0.1749451804 | H420: owner3 | J420: -0.1544427967 | M420: Household member owns: asset2d | O420: 0.2001269364
C421: owner6 | E421: -0.168058124 | H421: house5 | J421: 0.1349937158 | M421: wall4 | O421: -0.182467534
... 145 more rows

Sheet MICS11
A2: =A1026 -> Jamaica
A3: =A1034 -> 2011
A4: Use of drinking water sources
A5: by wealth quintile and sub-national region
A6: Notes:
A7: WHO/UNICEF JMP customised wealth index excludes water,
A8: sanitation and hygiene assets.
A9: Survey used for analysis: | B9: =A1025 -> MICS11
A10: =B1028 -> 
A11: =B1027 -> 
A14: Use of drinking water sources | C14: NATIONAL wealth index quintile | H14: URBAN wealth index quintile | M14: RURAL wealth index quintile | R14: SUB-REGIONS: | BA14: Raw numbers of respondents: | BB14: Use of drinking water sources | BC14: NATIONAL wealth index quintile | BH14: URBAN wealth index quintile | BM14: RURAL wealth index quintile | BR14: SUB-REGIONS:
A15: Weighted percentage (used in graphs) | C15: Poorest | D15: Poor | E15: Middle | F15: Rich | G15: Richest | H15: Poorest | I15: Poor | J15: Middle | K15: Rich | L15: Richest | M15: Poorest | N15: Poor | O15: Middle | P15: Rich | Q15: Richest | R15: KMA | S15: Other towns | T15: Rural | BA15: Water data, raw numbers (weighted) | BC15: Poorest | BD15: Poor | BE15: Middle | BF15: Rich | BG15: Richest | BH15: Poorest | BI15: Poor | BJ15: Middle | BK15: Rich | BL15: Richest | BM15: Poorest | BN15: Poor | BO15: Middle | BP15: Rich | BQ15: Richest | BR15: KMA | BS15: Other towns | BT15: Rural
A16: Water | B16: Improved | C16: 92 | D16: 96.1 | E16: 99.9 | F16: 96.8 | G16: 99.1 | H16: 98.7 | I16: 99.7 | J16: 100 | K16: 100 | L16: 99.3 | M16: 87.1 | N16: 95 | O16: 93.4 | P16: 97 | Q16: 98.6 | R16: 99.9 | S16: 99.6 | T16: 94.2 | BA16: Water | BB16: Improved | BC16: N/A | BD16: N/A | BE16: N/A | BF16: N/A | BG16: N/A | BH16: N/A | BI16: N/A | BJ16: N/A | BK16: N/A | BL16: N/A | BM16: N/A | BN16: N/A | BO16: N/A | BP16: N/A | BQ16: N/A | BR16: N/A | BS16: N/A | BT16: N/A
B17: Not Improved | C17: 8 | D17: 3.9 | E17: 0.1 | F17: 3.2 | G17: 0.9 | H17: 1.3 | I17: 0.3 | J17: 0 | K17: 0 | L17: 0.7 | M17: 12.9 | N17: 5 | O17: 6.6 | P17: 3 | Q17: 1.4 | R17: 0.1 | S17: 0.4 | T17: 5.8 | BB17: Not Improved | BC17: N/A | BD17: N/A | BE17: N/A | BF17: N/A | BG17: N/A | BH17: N/A | BI17: N/A | BJ17: N/A | BK17: N/A | BL17: N/A | BM17: N/A | BN17: N/A | BO17: N/A | BP17: N/A | BQ17: N/A | BR17: N/A | BS17: N/A | BT17: N/A
A18: Water ladder | B18: Basic | C18: 87.9 | D18: 92.8 | E18: 99.9 | F18: 95.4 | G18: 98.1 | H18: 97.6 | I18: 99.5 | J18: 99.1 | K18: 99 | L18: 99.3 | M18: 81.3 | N18: 92 | O18: 88.6 | P18: 95.4 | Q18: 97.2 | R18: 99.9 | S18: 98.9 | T18: 91.1 | BA18: Water ladder | BB18: Basic | BC18: N/A | BD18: N/A | BE18: N/A | BF18: N/A | BG18: N/A | BH18: N/A | BI18: N/A | BJ18: N/A | BK18: N/A | BL18: N/A | BM18: N/A | BN18: N/A | BO18: N/A | BP18: N/A | BQ18: N/A | BR18: N/A | BS18: N/A | BT18: N/A
B19: Limited | C19: 3.4 | D19: 3.1 | E19: 0 | F19: 1.4 | G19: 1 | H19: 1 | I19: 0.2 | J19: 0.9 | K19: 1 | L19: 0 | M19: 4.5 | N19: 2.7 | O19: 4.6 | P19: 1.5 | Q19: 1.4 | R19: 0 | S19: 0.6 | T19: 2.9 | BB19: Limited | BC19: N/A | BD19: N/A | BE19: N/A | BF19: N/A | BG19: N/A | BH19: N/A | BI19: N/A | BJ19: N/A | BK19: N/A | BL19: N/A | BM19: N/A | BN19: N/A | BO19: N/A | BP19: N/A | BQ19: N/A | BR19: N/A | BS19: N/A | BT19: N/A
B20: Unimproved | C20: 6.1 | D20: 3.6 | E20: 0.1 | F20: 3 | G20: 0.8 | H20: 1.4 | I20: 0.3 | J20: 0 | K20: 0 | L20: 0.7 | M20: 9.9 | N20: 3.9 | O20: 6 | P20: 2.5 | Q20: 1.1 | R20: 0.1 | S20: 0.5 | T20: 4.6 | BB20: Unimproved | BC20: N/A | BD20: N/A | BE20: N/A | BF20: N/A | BG20: N/A | BH20: N/A | BI20: N/A | BJ20: N/A | BK20: N/A | BL20: N/A | BM20: N/A | BN20: N/A | BO20: N/A | BP20: N/A | BQ20: N/A | BR20: N/A | BS20: N/A | BT20: N/A
B21: Surface water | C21: 2.6 | D21: 0.6 | E21: 0 | F21: 0.3 | G21: 0.2 | H21: 0 | I21: 0 | J21: 0 | K21: 0 | L21: 0 | M21: 4.3 | N21: 1.4 | O21: 0.8 | P21: 0.6 | Q21: 0.2 | R21: 0 | S21: 0 | T21: 1.4 | BB21: Surface water | BC21: N/A | BD21: N/A | BE21: N/A | BF21: N/A | BG21: N/A | BH21: N/A | BI21: N/A | BJ21: N/A | BK21: N/A | BL21: N/A | BM21: N/A | BN21: N/A | BO21: N/A | BP21: N/A | BQ21: N/A | BR21: N/A | BS21: N/A | BT21: N/A
A22: Improved water point at more than 30 minutes | B22: Yes | C22: 3.8 | D22: 3.2 | E22: 0 | F22: 1.4 | G22: 1 | H22: 1 | I22: 0.2 | J22: 0.9 | K22: 1 | L22: 0 | M22: 5.2 | N22: 2.8 | O22: 4.9 | P22: 1.6 | Q22: 1.4 | R22: 0 | S22: 0.6 | T22: 3.1 | BA22: Improved water point at more than 30 minutes | BB22: Yes | BC22: N/A | BD22: N/A | BE22: N/A | BF22: N/A | BG22: N/A | BH22: N/A | BI22: N/A | BJ22: N/A | BK22: N/A | BL22: N/A | BM22: N/A | BN22: N/A | BO22: N/A | BP22: N/A | BQ22: N/A | BR22: N/A | BS22: N/A | BT22: N/A
B23: No | C23: 96.2 | D23: 96.8 | E23: 100 | F23: 98.6 | G23: 99 | H23: 99 | I23: 99.8 | J23: 99.1 | K23: 99 | L23: 100 | M23: 94.8 | N23: 97.2 | O23: 95.1 | P23: 98.4 | Q23: 98.6 | R23: 100 | S23: 99.4 | T23: 96.9 | BB23: No | BC23: N/A | BD23: N/A | BE23: N/A | BF23: N/A | BG23: N/A | BH23: N/A | BI23: N/A | BJ23: N/A | BK23: N/A | BL23: N/A | BM23: N/A | BN23: N/A | BO23: N/A | BP23: N/A | BQ23: N/A | BR23: N/A | BS23: N/A | BT23: N/A
A24: Manually calculated ratios | B24: Improved wells | C24: =C63/(C63+C64)*100 -> 71.42857143 | D24: 83.33333333 | E24: 100 | F24: 100 | G24: 100 | H24: 100 | I24: 100 | J24: 100 | K24: 100 | L24: =L63/(L63+L64)*100 -> 100 | M24: 66.66666667 | N24: 0 | O24: 100 | P24: 100 | Q24: 100 | R24: 100 | S24: 100 | T24: 80
B25: Improved springs
B26: Other
C27: NATIONAL wealth index quintile | H27: URBAN wealth index quintile | M27: RURAL wealth index quintile | R27: SUB-REGIONS: | BA27: Raw numbers of respondents: | BB27: Use of drinking water sources | BC27: NATIONAL wealth index quintile | BH27: URBAN wealth index quintile | BM27: RURAL wealth index quintile | BR27: SUB-REGIONS:
A28: Percentage based on weighted population | C28: Poorest | D28: Poor | E28: Middle | F28: Rich | G28: Richest | H28: Poorest | I28: Poor | J28: Middle | K28: Rich | L28: Richest | M28: Poorest | N28: Poor | O28: Middle | P28: Rich | Q28: Richest | R28: KMA | S28: Other towns | T28: Rural | BA28: Water data, raw numbers (weighted) | BC28: Poorest | BD28: Poor | BE28: Middle | BF28: Rich | BG28: Richest | BH28: Poorest | BI28: Poor | BJ28: Middle | BK28: Rich | BL28: Richest | BM28: Poorest | BN28: Poor | BO28: Middle | BP28: Rich | BQ28: Richest | BR28: KMA | BS28: Other towns | BT28: Rural
A29: Piped water | B29: Yes | C29: 63.1 | D29: 73.8 | E29: 99.7 | F29: 73.8 | G29: 83.9 | H29: 91 | I29: 95.4 | J29: 90.6 | K29: 93.8 | L29: 93.4 | M29: 50.8 | N29: 64.6 | O29: 64.1 | P29: 65.7 | Q29: 79.5 | R29: 99.7 | S29: 92.8 | T29: 65 | BA29: Piped water | BB29: Yes | BC29: N/A | BD29: N/A | BE29: N/A | BF29: N/A | BG29: N/A | BH29: N/A | BI29: N/A | BJ29: N/A | BK29: N/A | BL29: N/A | BM29: N/A | BN29: N/A | BO29: N/A | BP29: N/A | BQ29: N/A | BR29: N/A | BS29: N/A | BT29: N/A
B30: No | C30: 36.9 | D30: 26.2 | E30: 0.3 | F30: 26.2 | G30: 16.1 | H30: 9 | I30: 4.6 | J30: 9.4 | K30: 6.2 | L30: 6.6 | M30: 49.2 | N30: 35.4 | O30: 35.9 | P30: 34.3 | Q30: 20.5 | R30: 0.3 | S30: 7.2 | T30: 35 | BB30: No | BC30: N/A | BD30: N/A | BE30: N/A | BF30: N/A | BG30: N/A | BH30: N/A | BI30: N/A | BJ30: N/A | BK30: N/A | BL30: N/A | BM30: N/A | BN30: N/A | BO30: N/A | BP30: N/A | BQ30: N/A | BR30: N/A | BS30: N/A | BT30: N/A
A31: Piped water on premises | B31: Yes | C31: 38.5 | D31: 57.3 | E31: 97 | F31: 67.3 | G31: 81.3 | H31: 69.1 | I31: 81.1 | J31: 89 | K31: 92.9 | L31: 93.4 | M31: 21.7 | N31: 42.9 | O31: 50.5 | P31: 58.6 | Q31: 75.1 | R31: 97 | S31: 85.1 | T31: 49.8 | BA31: Piped water on premises | BB31: Yes | BC31: N/A | BD31: N/A | BE31: N/A | BF31: N/A | BG31: N/A | BH31: N/A | BI31: N/A | BJ31: N/A | BK31: N/A | BL31: N/A | BM31: N/A | BN31: N/A | BO31: N/A | BP31: N/A | BQ31: N/A | BR31: N/A | BS31: N/A | BT31: N/A
B32: No | C32: 61.5 | D32: 42.7 | E32: 3 | F32: 32.7 | G32: 18.7 | H32: 30.9 | I32: 18.9 | J32: 11 | K32: 7.1 | L32: 6.6 | M32: 78.3 | N32: 57.1 | O32: 49.5 | P32: 41.4 | Q32: 24.9 | R32: 3 | S32: 14.9 | T32: 50.2 | BB32: No | BC32: N/A | BD32: N/A | BE32: N/A | BF32: N/A | BG32: N/A | BH32: N/A | BI32: N/A | BJ32: N/A | BK32: N/A | BL32: N/A | BM32: N/A | BN32: N/A | BO32: N/A | BP32: N/A | BQ32: N/A | BR32: N/A | BS32: N/A | BT32: N/A
A33: Piped water into dwelling | B33: Yes | C33: N/A | D33: N/A | E33: N/A | F33: N/A | G33: N/A | H33: N/A | I33: N/A | J33: N/A | K33: N/A | L33: N/A | M33: N/A | N33: N/A | O33: N/A | P33: N/A | Q33: N/A | R33: N/A | S33: N/A | T33: N/A | BA33: Piped water into dwelling | BB33: Yes | BC33: N/A | BD33: N/A | BE33: N/A | BF33: N/A | BG33: N/A | BH33: N/A | BI33: N/A | BJ33: N/A | BK33: N/A | BL33: N/A | BM33: N/A | BN33: N/A | BO33: N/A | BP33: N/A | BQ33: N/A | BR33: N/A | BS33: N/A | BT33: N/A
B34: No | C34: N/A | D34: N/A | E34: N/A | F34: N/A | G34: N/A | H34: N/A | I34: N/A | J34: N/A | K34: N/A | L34: N/A | M34: N/A | N34: N/A | O34: N/A | P34: N/A | Q34: N/A | R34: N/A | S34: N/A | T34: N/A | BB34: No | BC34: N/A | BD34: N/A | BE34: N/A | BF34: N/A | BG34: N/A | BH34: N/A | BI34: N/A | BJ34: N/A | BK34: N/A | BL34: N/A | BM34: N/A | BN34: N/A | BO34: N/A | BP34: N/A | BQ34: N/A | BR34: N/A | BS34: N/A | BT34: N/A
A35: Water source on premises | B35: Yes | C35: 60.8 | D35: 75 | E35: 97.1 | F35: 86.9 | G35: 93.9 | H35: 77.9 | I35: 83.5 | J35: 95.7 | K35: 97.8 | L35: 98.3 | M35: 47.6 | N35: 67 | O35: 75.1 | P35: 85.4 | Q35: 91.2 | R35: 97.1 | S35: 90.7 | T35: 73.3 | BA35: Water source on premises | BB35: Yes | BC35: N/A | BD35: N/A | BE35: N/A | BF35: N/A | BG35: N/A | BH35: N/A | BI35: N/A | BJ35: N/A | BK35: N/A | BL35: N/A | BM35: N/A | BN35: N/A | BO35: N/A | BP35: N/A | BQ35: N/A | BR35: N/A | BS35: N/A | BT35: N/A
B36: No | C36: 39.2 | D36: 25 | E36: 2.9 | F36: 13.1 | G36: 6.1 | H36: 22.1 | I36: 16.5 | J36: 4.3 | K36: 2.2 | L36: 1.7 | M36: 52.4 | N36: 33 | O36: 24.9 | P36: 14.6 | Q36: 8.8 | R36: 2.9 | S36: 9.3 | T36: 26.7 | BB36: No | BC36: N/A | BD36: N/A | BE36: N/A | BF36: N/A | BG36: N/A | BH36: N/A | BI36: N/A | BJ36: N/A | BK36: N/A | BL36: N/A | BM36: N/A | BN36: N/A | BO36: N/A | BP36: N/A | BQ36: N/A | BR36: N/A | BS36: N/A | BT36: N/A
A37: Improved Water source on premises | B37: Yes | C37: 59.8 | D37: 74.6 | E37: 97.1 | F37: 86.1 | G37: 93.5 | H37: 77.5 | I37: 83.5 | J37: 95.7 | K37: 97.8 | L37: 97.6 | M37: 46.8 | N37: 65.8 | O37: 74.4 | P37: 84.1 | Q37: 90.7 | R37: 97.1 | S37: 90.4 | T37: 72.4 | BA37: Improved water source on premises | BB37: Yes | BC37: N/A | BD37: N/A | BE37: N/A | BF37: N/A | BG37: N/A | BH37: N/A | BI37: N/A | BJ37: N/A | BK37: N/A | BL37: N/A | BM37: N/A | BN37: N/A | BO37: N/A | BP37: N/A | BQ37: N/A | BR37: N/A | BS37: N/A | BT37: N/A
B38: No | C38: 40.2 | D38: 25.4 | E38: 2.9 | F38: 13.9 | G38: 6.5 | H38: 22.5 | I38: 16.5 | J38: 4.3 | K38: 2.2 | L38: 2.4 | M38: 53.2 | N38: 34.2 | O38: 25.6 | P38: 15.9 | Q38: 9.3 | R38: 2.9 | S38: 9.6 | T38: 27.6 | BB38: No | BC38: N/A | BD38: N/A | BE38: N/A | BF38: N/A | BG38: N/A | BH38: N/A | BI38: N/A | BJ38: N/A | BK38: N/A | BL38: N/A | BM38: N/A | BN38: N/A | BO38: N/A | BP38: N/A | BQ38: N/A | BR38: N/A | BS38: N/A | BT38: N/A
A39: Piped water on premises available when needed | B39: Yes | C39: N/A | D39: N/A | E39: N/A | F39: N/A | G39: N/A | H39: N/A | I39: N/A | J39: N/A | K39: N/A | L39: N/A | M39: N/A | N39: N/A | O39: N/A | P39: N/A | Q39: N/A | R39: N/A | S39: N/A | T39: N/A | BA39: Piped water on premises available when needed | BB39: Yes | BC39: N/A | BD39: N/A | BE39: N/A | BF39: N/A | BG39: N/A | BH39: N/A | BI39: N/A | BJ39: N/A | BK39: N/A | BL39: N/A | BM39: N/A | BN39: N/A | BO39: N/A | BP39: N/A | BQ39: N/A | BR39: N/A | BS39: N/A | BT39: N/A
B40: No | C40: N/A | D40: N/A | E40: N/A | F40: N/A | G40: N/A | H40: N/A | I40: N/A | J40: N/A | K40: N/A | L40: N/A | M40: N/A | N40: N/A | O40: N/A | P40: N/A | Q40: N/A | R40: N/A | S40: N/A | T40: N/A | BB40: No | BC40: N/A | BD40: N/A | BE40: N/A | BF40: N/A | BG40: N/A | BH40: N/A | BI40: N/A | BJ40: N/A | BK40: N/A | BL40: N/A | BM40: N/A | BN40: N/A | BO40: N/A | BP40: N/A | BQ40: N/A | BR40: N/A | BS40: N/A | BT40: N/A
A41: Water point at more than 30 minutes | B41: Yes | C41: 4.8 | D41: 3.5 | E41: 0 | F41: 1.9 | G41: 1.2 | H41: 1 | I41: 0.2 | J41: 0.9 | K41: 1 | L41: 0 | M41: 7.5 | N41: 2.7 | O41: 5.7 | P41: 1.9 | Q41: 1.6 | R41: 0 | S41: 0.6 | T41: 3.8 | BA41: Water point at more than 30 minutes | BB41: Yes | BC41: N/A | BD41: N/A | BE41: N/A | BF41: N/A | BG41: N/A | BH41: N/A | BI41: N/A | BJ41: N/A | BK41: N/A | BL41: N/A | BM41: N/A | BN41: N/A | BO41: N/A | BP41: N/A | BQ41: N/A | BR41: N/A | BS41: N/A | BT41: N/A
B42: No | C42: 95.2 | D42: 96.5 | E42: 100 | F42: 98.1 | G42: 98.8 | H42: 99 | I42: 99.8 | J42: 99.1 | K42: 99 | L42: 100 | M42: 92.5 | N42: 97.3 | O42: 94.3 | P42: 98.1 | Q42: 98.4 | R42: 100 | S42: 99.4 | T42: 96.2 | BB42: No | BC42: N/A | BD42: N/A | BE42: N/A | BF42: N/A | BG42: N/A | BH42: N/A | BI42: N/A | BJ42: N/A | BK42: N/A | BL42: N/A | BM42: N/A | BN42: N/A | BO42: N/A | BP42: N/A | BQ42: N/A | BR42: N/A | BS42: N/A | BT42: N/A
A43: Water source available when needed | B43: Yes | C43: N/A | D43: N/A | E43: N/A | F43: N/A | G43: N/A | H43: N/A | I43: N/A | J43: N/A | K43: N/A | L43: N/A | M43: N/A | N43: N/A | O43: N/A | P43: N/A | Q43: N/A | R43: N/A | S43: N/A | T43: N/A | BA43: Water source available when needed | BB43: Yes | BC43: N/A | BD43: N/A | BE43: N/A | BF43: N/A | BG43: N/A | BH43: N/A | BI43: N/A | BJ43: N/A | BK43: N/A | BL43: N/A | BM43: N/A | BN43: N/A | BO43: N/A | BP43: N/A | BQ43: N/A | BR43: N/A | BS43: N/A | BT43: N/A
B44: No | C44: N/A | D44: N/A | E44: N/A | F44: N/A | G44: N/A | H44: N/A | I44: N/A | J44: N/A | K44: N/A | L44: N/A | M44: N/A | N44: N/A | O44: N/A | P44: N/A | Q44: N/A | R44: N/A | S44: N/A | T44: N/A | BB44: No | BC44: N/A | BD44: N/A | BE44: N/A | BF44: N/A | BG44: N/A | BH44: N/A | BI44: N/A | BJ44: N/A | BK44: N/A | BL44: N/A | BM44: N/A | BN44: N/A | BO44: N/A | BP44: N/A | BQ44: N/A | BR44: N/A | BS44: N/A | BT44: N/A
A45: Improved water source available when needed | B45: Yes | C45: N/A | D45: N/A | E45: N/A | F45: N/A | G45: N/A | H45: N/A | I45: N/A | J45: N/A | K45: N/A | L45: N/A | M45: N/A | N45: N/A | O45: N/A | P45: N/A | Q45: N/A | R45: N/A | S45: N/A | T45: N/A | BA45: Improved water source available when needed | BB45: Yes | BC45: N/A | BD45: N/A | BE45: N/A | BF45: N/A | BG45: N/A | BH45: N/A | BI45: N/A | BJ45: N/A | BK45: N/A | BL45: N/A | BM45: N/A | BN45: N/A | BO45: N/A | BP45: N/A | BQ45: N/A | BR45: N/A | BS45: N/A | BT45: N/A
B46: No | C46: N/A | D46: N/A | E46: N/A | F46: N/A | G46: N/A | H46: N/A | I46: N/A | J46: N/A | K46: N/A | L46: N/A | M46: N/A | N46: N/A | O46: N/A | P46: N/A | Q46: N/A | R46: N/A | S46: N/A | T46: N/A | BB46: No | BC46: N/A | BD46: N/A | BE46: N/A | BF46: N/A | BG46: N/A | BH46: N/A | BI46: N/A | BJ46: N/A | BK46: N/A | BL46: N/A | BM46: N/A | BN46: N/A | BO46: N/A | BP46: N/A | BQ46: N/A | BR46: N/A | BS46: N/A | BT46: N/A
A47: Microbiological quality at point of collection | B47: Not contaminated (No E. coli in 100 mL) | C47: N/A | D47: N/A | E47: N/A | F47: N/A | G47: N/A | H47: N/A | I47: N/A | J47: N/A | K47: N/A | L47: N/A | M47: N/A | N47: N/A | O47: N/A | P47: N/A | Q47: N/A | R47: N/A | S47: N/A | T47: N/A | BA47: Microbiological quality at point of collection | BB47: Not contaminated (No E. coli in 100 mL) | BC47: N/A | BD47: N/A | BE47: N/A | BF47: N/A | BG47: N/A | BH47: N/A | BI47: N/A | BJ47: N/A | BK47: N/A | BL47: N/A | BM47: N/A | BN47: N/A | BO47: N/A | BP47: N/A | BQ47: N/A | BR47: N/A | BS47: N/A | BT47: N/A
B48: Contaminated (E. coli detected in 100 mL) | C48: N/A | D48: N/A | E48: N/A | F48: N/A | G48: N/A | H48: N/A | I48: N/A | J48: N/A | K48: N/A | L48: N/A | M48: N/A | N48: N/A | O48: N/A | P48: N/A | Q48: N/A | R48: N/A | S48: N/A | T48: N/A | BB48: Contaminated (E. coli detected in 100 mL) | BC48: N/A | BD48: N/A | BE48: N/A | BF48: N/A | BG48: N/A | BH48: N/A | BI48: N/A | BJ48: N/A | BK48: N/A | BL48: N/A | BM48: N/A | BN48: N/A | BO48: N/A | BP48: N/A | BQ48: N/A | BR48: N/A | BS48: N/A | BT48: N/A
B49: Highly contaminated (>100 CFU/100 mL) | C49: N/A | D49: N/A | E49: N/A | F49: N/A | G49: N/A | H49: N/A | I49: N/A | J49: N/A | K49: N/A | L49: N/A | M49: N/A | N49: N/A | O49: N/A | P49: N/A | Q49: N/A | R49: N/A | S49: N/A | T49: N/A | BB49: Highly contaminated (>100 CFU/100 mL) | BC49: N/A | BD49: N/A | BE49: N/A | BF49: N/A | BG49: N/A | BH49: N/A | BI49: N/A | BJ49: N/A | BK49: N/A | BL49: N/A | BM49: N/A | BN49: N/A | BO49: N/A | BP49: N/A | BQ49: N/A | BR49: N/A | BS49: N/A | BT49: N/A
A50: Microbiological quality of improved water sources at point of collection | B50: Not contaminated (No E. coli in 100 mL) | C50: N/A | D50: N/A | E50: N/A | F50: N/A | G50: N/A | H50: N/A | I50: N/A | J50: N/A | K50: N/A | L50: N/A | M50: N/A | N50: N/A | O50: N/A | P50: N/A | Q50: N/A | R50: N/A | S50: N/A | T50: N/A | BA50: Microbiological quality of improved water sources at point of collection | BB50: Not contaminated (No E. coli in 100 mL) | BC50: N/A | BD50: N/A | BE50: N/A | BF50: N/A | BG50: N/A | BH50: N/A | BI50: N/A | BJ50: N/A | BK50: N/A | BL50: N/A | BM50: N/A | BN50: N/A | BO50: N/A | BP50: N/A | BQ50: N/A | BR50: N/A | BS50: N/A | BT50: N/A
B51: Contaminated (E. coli detected in 100 mL) | C51: N/A | D51: N/A | E51: N/A | F51: N/A | G51: N/A | H51: N/A | I51: N/A | J51: N/A | K51: N/A | L51: N/A | M51: N/A | N51: N/A | O51: N/A | P51: N/A | Q51: N/A | R51: N/A | S51: N/A | T51: N/A | BB51: Contaminated (E. coli detected in 100 mL) | BC51: N/A | BD51: N/A | BE51: N/A | BF51: N/A | BG51: N/A | BH51: N/A | BI51: N/A | BJ51: N/A | BK51: N/A | BL51: N/A | BM51: N/A | BN51: N/A | BO51: N/A | BP51: N/A | BQ51: N/A | BR51: N/A | BS51: N/A | BT51: N/A
B52: Highly contaminated (>100 CFU/100 mL) | C52: N/A | D52: N/A | E52: N/A | F52: N/A | G52: N/A | H52: N/A | I52: N/A | J52: N/A | K52: N/A | L52: N/A | M52: N/A | N52: N/A | O52: N/A | P52: N/A | Q52: N/A | R52: N/A | S52: N/A | T52: N/A | BB52: Highly contaminated (>100 CFU/100 mL) | BC52: N/A | BD52: N/A | BE52: N/A | BF52: N/A | BG52: N/A | BH52: N/A | BI52: N/A | BJ52: N/A | BK52: N/A | BL52: N/A | BM52: N/A | BN52: N/A | BO52: N/A | BP52: N/A | BQ52: N/A | BR52: N/A | BS52: N/A | BT52: N/A
A53: Microbiological quality of piped on premises at point of collection | B53: Not contaminated (No E. coli in 100 mL) | C53: N/A | D53: N/A | E53: N/A | F53: N/A | G53: N/A | H53: N/A | I53: N/A | J53: N/A | K53: N/A | L53: N/A | M53: N/A | N53: N/A | O53: N/A | P53: N/A | Q53: N/A | R53: N/A | S53: N/A | T53: N/A | BA53: Microbiological quality of piped on premises at point of collection | BB53: Not contaminated (No E. coli in 100 mL) | BC53: N/A | BD53: N/A | BE53: N/A | BF53: N/A | BG53: N/A | BH53: N/A | BI53: N/A | BJ53: N/A | BK53: N/A | BL53: N/A | BM53: N/A | BN53: N/A | BO53: N/A | BP53: N/A | BQ53: N/A | BR53: N/A | BS53: N/A | BT53: N/A
B54: Contaminated (E. coli detected in 100 mL) | C54: N/A | D54: N/A | E54: N/A | F54: N/A | G54: N/A | H54: N/A | I54: N/A | J54: N/A | K54: N/A | L54: N/A | M54: N/A | N54: N/A | O54: N/A | P54: N/A | Q54: N/A | R54: N/A | S54: N/A | T54: N/A | BB54: Contaminated (E. coli detected in 100 mL) | BC54: N/A | BD54: N/A | BE54: N/A | BF54: N/A | BG54: N/A | BH54: N/A | BI54: N/A | BJ54: N/A | BK54: N/A | BL54: N/A | BM54: N/A | BN54: N/A | BO54: N/A | BP54: N/A | BQ54: N/A | BR54: N/A | BS54: N/A | BT54: N/A
B55: Highly contaminated (>100 CFU/100 mL) | C55: N/A | D55: N/A | E55: N/A | F55: N/A | G55: N/A | H55: N/A | I55: N/A | J55: N/A | K55: N/A | L55: N/A | M55: N/A | N55: N/A | O55: N/A | P55: N/A | Q55: N/A | R55: N/A | S55: N/A | T55: N/A | BB55: Highly contaminated (>100 CFU/100 mL) | BC55: N/A | BD55: N/A | BE55: N/A | BF55: N/A | BG55: N/A | BH55: N/A | BI55: N/A | BJ55: N/A | BK55: N/A | BL55: N/A | BM55: N/A | BN55: N/A | BO55: N/A | BP55: N/A | BQ55: N/A | BR55: N/A | BS55: N/A | BT55: N/A
C56: NATIONAL wealth index quintile | H56: URBAN wealth index quintile | M56: RURAL wealth index quintile | R56: SUB-REGIONS: | BA56: Raw numbers of respondents: | BB56: Use of drinking water sources | BC56: NATIONAL wealth index quintile | BH56: URBAN wealth index quintile | BM56: RURAL wealth index quintile | BR56: SUB-REGIONS:
A57: Percentage based on weighted population | C57: Poorest | D57: Poor | E57: Middle | F57: Rich | G57: Richest | H57: Poorest | I57: Poor | J57: Middle | K57: Rich | L57: Richest | M57: Poorest | N57: Poor | O57: Middle | P57: Rich | Q57: Richest | R57: KMA | S57: Other towns | T57: Rural | BA57: Water data, raw numbers (weighted) | BC57: Poorest | BD57: Poor | BE57: Middle | BF57: Rich | BG57: Richest | BH57: Poorest | BI57: Poor | BJ57: Middle | BK57: Rich | BL57: Richest | BM57: Poorest | BN57: Poor | BO57: Middle | BP57: Rich | BQ57: Richest | BR57: KMA | BS57: Other towns | BT57: Rural
A58: Main source of drinking water | B58: Piped into dwelling | C58: 14 | D58: 30.9 | E58: 70.9 | F58: 52 | G58: 67.6 | H58: 21.7 | I58: 44.3 | J58: 67.8 | K58: 81.6 | L58: 78.1 | M58: 7.1 | N58: 18.9 | O58: 30.1 | P58: 46.4 | Q58: 61.6 | R58: 70.9 | S58: 58.7 | T58: 32.8
B59: Piped into compound, yard or plot | C59: 24.4 | D59: 26.2 | E59: 17.7 | F59: 14.4 | G59: 7.1 | H59: 47.3 | I59: 36.1 | J59: 19.8 | K59: 4.5 | L59: 1.6 | M59: 14.4 | N59: 23.9 | O59: 20.1 | P59: 11.1 | Q59: 9 | R59: 17.7 | S59: 21.8 | T59: 15.7
B60: Piped to neighbour | C60: 7.8 | D60: 4.6 | E60: 1.4 | F60: 1.4 | G60: 0.3 | H60: 9 | I60: 4.9 | J60: 1 | K60: 0.5 | L60: 0 | M60: 9 | N60: 6.2 | O60: 2.9 | P60: 1.1 | Q60: 0.4 | R60: 1.4 | S60: 3.1 | T60: 3.9
B61: Public tap / standpipe | C61: 16.8 | D61: 10.9 | E61: 1.2 | F61: 5 | G61: 2.3 | H61: 12.7 | I61: 8.7 | J61: 0.7 | K61: 0.4 | L61: 0 | M61: 20 | N61: 15.5 | O61: 9.6 | P61: 5.7 | Q61: 4 | R61: 1.2 | S61: 4.5 | T61: 11
B62: Tube well, Borehole | C62: 0 | D62: 0 | E62: 0 | F62: 0 | G62: 0 | H62: 0 | I62: 0 | J62: 0 | K62: 0 | L62: 0 | M62: 0.1 | N62: 0 | O62: 0 | P62: 0 | Q62: 0 | R62: 0 | S62: 0 | T62: 0
B63: Protected well | C63: 0.5 | D63: 0.5 | E63: 0.1 | F63: 0.7 | G63: 0.3 | H63: 0.8 | I63: 1 | J63: 0 | K63: 0 | L63: 0.6 | M63: 0.6 | N63: 0 | O63: 0.4 | P63: 0.9 | Q63: 0.2 | R63: 0.1 | S63: 0.5 | T63: 0.4
B64: Unprotected well | C64: 0.2 | D64: 0.1 | E64: 0 | F64: 0 | G64: 0 | H64: 0 | I64: 0 | J64: 0 | K64: 0 | L64: 0 | M64: 0.3 | N64: 0.1 | O64: 0 | P64: 0 | Q64: 0 | R64: 0 | S64: 0 | T64: 0.1
B65: Protected spring | C65: 3.3 | D65: 1.6 | E65: 0 | F65: 0.9 | G65: 0.7 | H65: 0 | I65: 0.2 | J65: 0 | K65: 0 | L65: 0 | M65: 5.1 | N65: 3.6 | O65: 1 | P65: 2.1 | Q65: 0.7 | R65: 0 | S65: 0 | T65: 2.5
B66: Unprotected spring | C66: 3.4 | D66: 1.5 | E66: 0 | F66: 2.2 | G66: 0.3 | H66: 0.8 | I66: 0 | J66: 0 | K66: 0 | L66: 0 | M66: 6.6 | N66: 1 | O66: 3.7 | P66: 1.4 | Q66: 0.3 | R66: 0 | S66: 0.2 | T66: 2.6
B67: Rainwater collection | C67: 21.5 | D67: 15.6 | E67: 0 | F67: 16.2 | G67: 10.1 | H67: 6.4 | I67: 2 | J67: 6.6 | K67: 4.5 | L67: 3.1 | M67: 25.8 | N67: 23.2 | O67: 21.2 | P67: 22.6 | Q67: 11.9 | R67: 0 | S67: 4.5 | T67: 20.9
B68: Tanker-truck | C68: 1.5 | D68: 1.9 | E68: 0 | F68: 4.3 | G68: 1.6 | H68: 0.5 | I68: 0.5 | J68: 2.3 | K68: 1.1 | L68: 0.3 | M68: 1.8 | N68: 1.4 | O68: 3.4 | P68: 4.2 | Q68: 2.7 | R68: 0 | S68: 0.9 | T68: 2.7
B69: Cart with small tank / drum | C69: 1.7 | D69: 2.5 | E69: 0 | F69: 0.4 | G69: 0.2 | H69: 0 | I69: 0.3 | J69: 0 | K69: 0 | L69: 0 | M69: 2.3 | N69: 1.9 | O69: 3.3 | P69: 0.6 | Q69: 0.2 | R69: 0 | S69: 0.1 | T69: 1.7
B70: Surface water (river, stream, dam, lake, pond, canal, irrigation channel) | C70: 2.4 | D70: 0.5 | E70: 0 | F70: 0.3 | G70: 0.2 | H70: 0 | I70: 0 | J70: 0 | K70: 0 | L70: 0 | M70: 3.9 | N70: 1.3 | O70: 0.8 | P70: 0.5 | Q70: 0.2 | R70: 0 | S70: 0 | T70: 1.4
B71: Bottled water | C71: 0.5 | D71: 1.5 | E71: 8.5 | F71: 1.5 | G71: 8.8 | H71: 0.3 | I71: 1.8 | J71: 1.9 | K71: 7.6 | L71: 15.6 | M71: 0.9 | N71: 0.3 | O71: 1.5 | P71: 2.3 | Q71: 7.8 | R71: 8.5 | S71: 5.4 | T71: 2.6
B72: Other | C72: 2 | D72: 1.7 | E72: 0.1 | F72: 0.8 | G72: 0.5 | H72: 0.2 | I72: 0.3 | J72: 0 | K72: 0 | L72: 0.7 | M72: 2 | N72: 2.4 | O72: 2.2 | P72: 1.1 | Q72: 0.8 | R72: 0.1 | S72: 0.2 | T72: 1.7
B73: Missing | C73: 0.1 | D73: 0.1 | E73: 0 | F73: 0 | G73: 0 | H73: 0.2 | I73: 0 | J73: 0 | K73: 0 | L73: 0 | M73: 0 | N73: 0.1 | O73: 0 | P73: 0 | Q73: 0 | R73: 0 | S73: 0 | T73: 0
A108: =A1026 -> Jamaica
A109: =A1034 -> 2011
A110: Use of sanitation facilities
A111: by wealth quintile and sub-national region
A112: Notes:
A113: WHO/UNICEF JMP customised wealth index excludes water,
A114: sanitation and hygiene assets.
A115: Survey used for analysis: | B115: =A1025 -> MICS11
A116: =B1030 -> 
A117: =B1029 -> 
A120: Use of sanitation facilities | C120: NATIONAL wealth index quintile | H120: URBAN wealth index quintile | M120: RURAL wealth index quintile | R120: SUB-REGIONS: | BA120: Raw numbers of respondents: | BB120: Use of sanitation facilities | BC120: NATIONAL wealth index quintile | BH120: URBAN wealth index quintile | BM120: RURAL wealth index quintile | BR120: SUB-REGIONS:
A121: Weighted percentage (used in graphs) | C121: Poorest | D121: Poor | E121: Middle | F121: Rich | G121: Richest | H121: Poorest | I121: Poor | J121: Middle | K121: Rich | L121: Richest | M121: Poorest | N121: Poor | O121: Middle | P121: Rich | Q121: Richest | R121: KMA | S121: Other towns | T121: Rural | BA121: Sanitation data, raw numbers (weighted) | BC121: Poorest | BD121: Poor | BE121: Middle | BF121: Rich | BG121: Richest | BH121: Poorest | BI121: Poor | BJ121: Middle | BK121: Rich | BL121: Richest | BM121: Poorest | BN121: Poor | BO121: Middle | BP121: Rich | BQ121: Richest | BR121: KMA | BS121: Other towns | BT121: Rural
A122: Sanitation | B122: Improved | C122: 97.12658939 | D122: 98.70116465 | E122: 99.33824119 | F122: 99.64666087 | G122: 99.69986558 | H122: 96.39392278 | I122: 98.13483837 | J122: 99.66580016 | K122: 100 | L122: 100 | M122: 96.54335266 | N122: 98.55906176 | O122: 99.08958164 | P122: 99.44296516 | Q122: 99.56643663 | R122: 99.33824119 | S122: 98.84022795 | T122: 98.64034984 | BA122: Sanitation | BB122: Improved | BC122: 3680.328763 | BD122: 2493.303569 | BE122: 6474.096211 | BF122: 2316.090566 | BG122: 3778.32424 | BH122: 744.1969231 | BI122: 754.9015694 | BJ122: 775.3882254 | BK122: 769.9291956 | BL122: 772.5924745 | BM122: 1654.191283 | BN122: 1689.284799 | BO122: 1695.429787 | BP122: 1706.964079 | BQ122: 1705.168801 | BR122: 6474.096211 | BS122: 3817.008388 | BT122: 8451.03875
B123: Not Improved | C123: 2.873410613 | D123: 1.298835346 | E123: 0.6617588077 | F123: 0.3533391272 | G123: 0.3001344207 | H123: 3.60607722 | I123: 1.865161627 | J123: 0.3341998425 | K123: 0 | L123: 0 | M123: 3.456647344 | N123: 1.440938237 | O123: 0.9104183625 | P123: 0.557034844 | Q123: 0.4335633749 | R123: 0.6617588077 | S123: 1.159772046 | T123: 1.359650156 | BB123: Not Improved | BC123: 108.8795128 | BD123: 32.81005666 | BE123: 43.12830726 | BF123: 8.212672778 | BG123: 11.37418943 | BH123: 27.84025688 | BI123: 14.34774299 | BJ123: 2.600035542 | BK123: 0 | BL123: 0 | BM123: 59.22682141 | BN123: 24.69742524 | BO123: 15.57732292 | BP123: 9.561646399 | BQ123: 7.425180262 | BR123: 43.12830726 | BS123: 44.78803541 | BT123: 116.4883962
A124: Sanitation ladder | B124: Basic | C124: =C122*C129/100 -> 75.76329515 | D124: =D122*D129/100 -> 82.92233013 | E124: =E122*E129/100 -> 83.90019649 | F124: 94.53103418 | G124: 98.87907459 | H124: 65.90919172 | I124: 82.18562317 | J124: 92.37859698 | K124: 99.26922139 | L124: 99.77265618 | M124: 75.06770079 | N124: 80.09289567 | O124: 88.05134305 | P124: 96.77364417 | Q124: 98.58422204 | R124: 83.90019649 | S124: 87.91440916 | T124: 87.70663583 | BA124: Sanitation ladder | BB124: Basic | BC124: 2870.295317 | BD124: 2091.701181 | BE124: 5466.300605 | BF124: 2197.187889 | BG124: 3739.157416 | BH124: 508.8434651 | BI124: 629.2107708 | BJ124: 718.6946401 | BK124: 764.3027177 | BL124: 770.8360332 | BM124: 1286.223576 | BN124: 1372.221962 | BO124: 1506.56474 | BP124: 1661.144498 | BQ124: 1680.2994 | BR124: 5466.300605 | BS124: 3391.887627 | BT124: 7506.454176
B125: Limited | C125: =C122*C128/100 -> 21.36329423 | D125: =D122*D128/100 -> 15.77883452 | E125: =E122*E128/100 -> 15.4380447 | F125: 5.115626693 | G125: 0.8207909896 | H125: 30.48473106 | I125: 15.94921521 | J125: 7.287203178 | K125: 0.7307786133 | L125: 0.2273438219 | M125: 21.47565187 | N125: 18.46616609 | O125: 11.03823858 | P125: 2.669320991 | Q125: 0.9822145844 | R125: 15.4380447 | S125: 10.92581879 | T125: 10.93371401 | BB125: Limited | BC125: 809.3492143 | BD125: 398.0183232 | BE125: 1005.825929 | BF125: 118.9026769 | BG125: 31.03858656 | BH125: 235.353458 | BI125: 122.1067336 | BJ125: 56.69358528 | BK125: 5.626477899 | BL125: 1.756441259 | BM125: 367.9677071 | BN125: 316.3786058 | BO125: 188.865047 | BP125: 45.81958151 | BQ125: 16.74116347 | BR125: 1005.825929 | BS125: 421.5366961 | BT125: 935.7721049
B126: Unimproved | C126: =100-C124-C125-C127 -> 1.880194333 | D126: =100-D124-D125-D127 -> 1.127985768 | E126: =100-E124-E125-E127 -> 0.5229749429 | F126: 0.3533391272 | G126: 0.3001344207 | H126: 2.558176041 | I126: 1.865161627 | J126: 0.3341998425 | K126: 4.329869796e-14 | L126: -1.990074772e-14 | M126: 1.933627163 | N126: 1.240018876 | O126: 0.6585356498 | P126: 0.557034844 | Q126: 0.4335633749 | R126: 0.5229749429 | S126: 0.9500846069 | T126: 0.9641727592 | BB126: Unimproved | BC126: 71.25127516 | BD126: 28.50032554 | BE126: 34.08618479 | BF126: 8.212672778 | BG126: 11.37418943 | BH126: 19.75007017 | BI126: 14.34774299 | BJ126: 2.600035542 | BK126: 0 | BL126: 0 | BM126: 33.13111789 | BN126: 21.25507786 | BO126: 11.26759179 | BP126: 9.561646399 | BQ126: 7.425180262 | BR126: 34.08618479 | BS126: 36.6978487 | BT126: 82.6406142
B127: Open defecation | C127: 0.9932162807 | D127: 0.1708495786 | E127: 0.1387838648 | F127: 0 | G127: 0 | H127: 1.047901178 | I127: 0 | J127: 0 | K127: 0 | L127: 0 | M127: 1.523020181 | N127: 0.200919361 | O127: 0.2518827127 | P127: 0 | Q127: 0 | R127: 0.1387838648 | S127: 0.2096874396 | T127: 0.395477397 | BB127: Open defecation | BC127: 37.62823761 | BD127: 4.309731124 | BE127: 9.042122471 | BF127: 0 | BG127: 0 | BH127: 8.090186708 | BI127: 0 | BJ127: 0 | BK127: 0 | BL127: 0 | BM127: 26.09570352 | BN127: 3.44234738 | BO127: 4.309731124 | BP127: 0 | BQ127: 0 | BR127: 9.042122471 | BS127: 8.090186708 | BT127: 33.84778202
A128: Shared among Improved Sanitation | B128: Yes | C128: 21.9953098 | D128: 15.98647247 | E128: 15.54088789 | F128: 5.133766298 | G128: 0.8232618819 | H128: 31.62515871 | I128: 16.25234776 | J128: 7.311638663 | K128: 0.7307786133 | L128: 0.2273438219 | M128: 22.24456814 | N128: 18.73614233 | O128: 11.13965606 | P128: 2.684273328 | Q128: 0.9864916509 | R128: 15.54088789 | S128: 11.05402023 | T128: 11.08442339 | BA128: Shared among improved sanitation facilities | BB128: Yes | BC128: N/A | BD128: N/A | BE128: N/A | BF128: N/A | BG128: N/A | BH128: N/A | BI128: N/A | BJ128: N/A | BK128: N/A | BL128: N/A | BM128: N/A | BN128: N/A | BO128: N/A | BP128: N/A | BQ128: N/A | BR128: N/A | BS128: N/A | BT128: N/A
B129: No | C129: 78.0046902 | D129: 84.01352753 | E129: 84.45911211 | F129: 94.8662337 | G129: 99.17673812 | H129: 68.37484129 | I129: 83.74765224 | J129: 92.68836134 | K129: 99.26922139 | L129: 99.77265618 | M129: 77.75543186 | N129: 81.26385767 | O129: 88.86034394 | P129: 97.31572667 | Q129: 99.01350835 | R129: 84.45911211 | S129: 88.94597977 | T129: 88.91557661 | BB129: No | BC129: N/A | BD129: N/A | BE129: N/A | BF129: N/A | BG129: N/A | BH129: N/A | BI129: N/A | BJ129: N/A | BK129: N/A | BL129: N/A | BM129: N/A | BN129: N/A | BO129: N/A | BP129: N/A | BQ129: N/A | BR129: N/A | BS129: N/A | BT129: N/A
A130: Manually calculated ratios | B130: Improved latrines | C130: =C159/(C159+C160)*100 -> 98.53224624 | D130: =D159/(D159+D160)*100 -> 97.83593441 | E130: 99.10531415 | F130: 100 | G130: 100 | H130: 97.73902995 | I130: 95.50761833 | J130: 100 | K130: 100 | L130: 100 | M130: 98.25349402 | N130: 99.29613311 | O130: 98.85962026 | P130: 100 | Q130: 100 | R130: 99.10531415 | S130: 97.19189538 | T130: 98.81066517
B131: Other
B132: Other
C133: NATIONAL wealth index quintile | H133: URBAN wealth index quintile | M133: RURAL wealth index quintile | R133: SUB-REGIONS: | BA133: Raw numbers of respondents: | BB133: Use of sanitation facilities | BC133: NATIONAL wealth index quintile | BH133: URBAN wealth index quintile | BM133: RURAL wealth index quintile | BR133: SUB-REGIONS:
A134: Percentage based on weighted population | C134: Poorest | D134: Poor | E134: Middle | F134: Rich | G134: Richest | H134: Poorest | I134: Poor | J134: Middle | K134: Rich | L134: Richest | M134: Poorest | N134: Poor | O134: Middle | P134: Rich | Q134: Richest | R134: KMA | S134: Other towns | T134: Rural | BA134: Sanitation data, raw numbers (weighted) | BC134: Poorest | BD134: Poor | BE134: Middle | BF134: Rich | BG134: Richest | BH134: Poorest | BI134: Poor | BJ134: Middle | BK134: Rich | BL134: Richest | BM134: Poorest | BN134: Poor | BO134: Middle | BP134: Rich | BQ134: Richest | BR134: KMA | BS134: Other towns | BT134: Rural
A135: Sanitation type | B135: Sewer connection | C135: 2.732984 | D135: 6.07568621 | E135: 46.19159478 | F135: 10.28029581 | G135: 18.17002139 | H135: 3.644228923 | I135: 7.630089346 | J135: 13.13107314 | K135: 17.65722133 | L135: 30.39364127 | M135: 1.358873366 | N135: 3.709171535 | O135: 7.212472588 | P135: 9.65483495 | Q135: 14.52916365 | R135: 46.19159478 | S135: 14.49466635 | T135: 7.29285054 | BA135: Sanitation type | BB135: Sewer connection | BC135: N/A | BD135: N/A | BE135: N/A | BF135: N/A | BG135: N/A | BH135: N/A | BI135: N/A | BJ135: N/A | BK135: N/A | BL135: N/A | BM135: N/A | BN135: N/A | BO135: N/A | BP135: N/A | BQ135: N/A | BR135: N/A | BS135: N/A | BT135: N/A
B136: Septic tank connection | C136: 11.67911691 | D136: 24.13629356 | E136: 31.79181413 | F136: 31.02116658 | G136: 34.8749539 | H136: 20.48398745 | I136: 22.95328809 | J136: 40.26937682 | K136: 37.50544303 | L136: 38.2834713 | M136: 7.7915516 | N136: 12.68231709 | O136: 26.5908269 | P136: 29.20279394 | Q136: 32.42305513 | R136: 31.79181413 | S136: 31.91632787 | T136: 21.73782685 | BB136: Septic tank connection | BC136: N/A | BD136: N/A | BE136: N/A | BF136: N/A | BG136: N/A | BH136: N/A | BI136: N/A | BJ136: N/A | BK136: N/A | BL136: N/A | BM136: N/A | BN136: N/A | BO136: N/A | BP136: N/A | BQ136: N/A | BR136: N/A | BS136: N/A | BT136: N/A
B137: Improved latrines | C137: 82.71448847 | D137: 68.48918488 | E137: 21.35483228 | F137: 58.34519848 | G137: 46.6548903 | H137: 72.26570641 | I137: 67.55146094 | J137: 46.2653502 | K137: 44.83733564 | L137: 31.32288744 | M137: 87.39292769 | N137: 82.16757314 | O137: 65.28628215 | P137: 60.58533627 | Q137: 52.61421784 | R137: 21.35483228 | S137: 52.42923373 | T137: 69.60967245 | BB137: Improved latrines | BC137: N/A | BD137: N/A | BE137: N/A | BF137: N/A | BG137: N/A | BH137: N/A | BI137: N/A | BJ137: N/A | BK137: N/A | BL137: N/A | BM137: N/A | BN137: N/A | BO137: N/A | BP137: N/A | BQ137: N/A | BR137: N/A | BS137: N/A | BT137: N/A
B138: Unimproved facilities | C138: 1.880373682 | D138: 1.12822817 | E138: 0.523016887 | F138: 0.3533391272 | G138: 0.3001344207 | H138: 2.558176041 | I138: 1.865161627 | J138: 0.3341998425 | K138: 0 | L138: 0 | M138: 1.933627163 | N138: 1.240099084 | O138: 0.6585356498 | P138: 0.557034844 | Q138: 0.4335633749 | R138: 0.523016887 | S138: 0.9502792141 | T138: 0.9645795431 | BB138: Unimproved facilities | BC138: N/A | BD138: N/A | BE138: N/A | BF138: N/A | BG138: N/A | BH138: N/A | BI138: N/A | BJ138: N/A | BK138: N/A | BL138: N/A | BM138: N/A | BN138: N/A | BO138: N/A | BP138: N/A | BQ138: N/A | BR138: N/A | BS138: N/A | BT138: N/A
B139: Open defecation | C139: 0.9930369319 | D139: 0.1706071762 | E139: 0.1387419207 | F139: 0 | G139: 0 | H139: 1.047901178 | I139: 0 | J139: 0 | K139: 0 | L139: 0 | M139: 1.523020181 | N139: 0.2008391529 | O139: 0.2518827127 | P139: 0 | Q139: 0 | R139: 0.1387419207 | S139: 0.2094928324 | T139: 0.3950706131 | BB139: Open defecation | BC139: N/A | BD139: N/A | BE139: N/A | BF139: N/A | BG139: N/A | BH139: N/A | BI139: N/A | BJ139: N/A | BK139: N/A | BL139: N/A | BM139: N/A | BN139: N/A | BO139: N/A | BP139: N/A | BQ139: N/A | BR139: N/A | BS139: N/A | BT139: N/A
A140: Septic tank emptying practices | B140: Not emptied/treated and disposed in situ | C140: N/A | D140: N/A | E140: N/A | F140: N/A | G140: N/A | H140: N/A | I140: N/A | J140: N/A | K140: N/A | L140: N/A | M140: N/A | N140: N/A | O140: N/A | P140: N/A | Q140: N/A | R140: N/A | S140: N/A | T140: N/A | BA140: Septic tank emptying practices | BB140: Not emptied/treated and disposed in situ | BC140: N/A | BD140: N/A | BE140: N/A | BF140: N/A | BG140: N/A | BH140: N/A | BI140: N/A | BJ140: N/A | BK140: N/A | BL140: N/A | BM140: N/A | BN140: N/A | BO140: N/A | BP140: N/A | BQ140: N/A | BR140: N/A | BS140: N/A | BT140: N/A
B141: Emptied and buried on site | C141: N/A | D141: N/A | E141: N/A | F141: N/A | G141: N/A | H141: N/A | I141: N/A | J141: N/A | K141: N/A | L141: N/A | M141: N/A | N141: N/A | O141: N/A | P141: N/A | Q141: N/A | R141: N/A | S141: N/A | T141: N/A | BB141: Emptied and buried on site | BC141: N/A | BD141: N/A | BE141: N/A | BF141: N/A | BG141: N/A | BH141: N/A | BI141: N/A | BJ141: N/A | BK141: N/A | BL141: N/A | BM141: N/A | BN141: N/A | BO141: N/A | BP141: N/A | BQ141: N/A | BR141: N/A | BS141: N/A | BT141: N/A
B142: Emptied and discharged locally | C142: N/A | D142: N/A | E142: N/A | F142: N/A | G142: N/A | H142: N/A | I142: N/A | J142: N/A | K142: N/A | L142: N/A | M142: N/A | N142: N/A | O142: N/A | P142: N/A | Q142: N/A | R142: N/A | S142: N/A | T142: N/A | BB142: Emptied and discharged locally | BC142: N/A | BD142: N/A | BE142: N/A | BF142: N/A | BG142: N/A | BH142: N/A | BI142: N/A | BJ142: N/A | BK142: N/A | BL142: N/A | BM142: N/A | BN142: N/A | BO142: N/A | BP142: N/A | BQ142: N/A | BR142: N/A | BS142: N/A | BT142: N/A
B143: Emptied and removed offsite | C143: N/A | D143: N/A | E143: N/A | F143: N/A | G143: N/A | H143: N/A | I143: N/A | J143: N/A | K143: N/A | L143: N/A | M143: N/A | N143: N/A | O143: N/A | P143: N/A | Q143: N/A | R143: N/A | S143: N/A | T143: N/A | BB143: Emptied and removed offsite | BC143: N/A | BD143: N/A | BE143: N/A | BF143: N/A | BG143: N/A | BH143: N/A | BI143: N/A | BJ143: N/A | BK143: N/A | BL143: N/A | BM143: N/A | BN143: N/A | BO143: N/A | BP143: N/A | BQ143: N/A | BR143: N/A | BS143: N/A | BT143: N/A
A144: Latrine emptying practices | B144: Not emptied/treated and disposed in situ | C144: N/A | D144: N/A | E144: N/A | F144: N/A | G144: N/A | H144: N/A | I144: N/A | J144: N/A | K144: N/A | L144: N/A | M144: N/A | N144: N/A | O144: N/A | P144: N/A | Q144: N/A | R144: N/A | S144: N/A | T144: N/A | BA144: Latrine emptying practices | BB144: Not emptied/treated and disposed in situ | BC144: N/A | BD144: N/A | BE144: N/A | BF144: N/A | BG144: N/A | BH144: N/A | BI144: N/A | BJ144: N/A | BK144: N/A | BL144: N/A | BM144: N/A | BN144: N/A | BO144: N/A | BP144: N/A | BQ144: N/A | BR144: N/A | BS144: N/A | BT144: N/A
B145: Emptied and buried on site | C145: N/A | D145: N/A | E145: N/A | F145: N/A | G145: N/A | H145: N/A | I145: N/A | J145: N/A | K145: N/A | L145: N/A | M145: N/A | N145: N/A | O145: N/A | P145: N/A | Q145: N/A | R145: N/A | S145: N/A | T145: N/A | BB145: Emptied and buried on site | BC145: N/A | BD145: N/A | BE145: N/A | BF145: N/A | BG145: N/A | BH145: N/A | BI145: N/A | BJ145: N/A | BK145: N/A | BL145: N/A | BM145: N/A | BN145: N/A | BO145: N/A | BP145: N/A | BQ145: N/A | BR145: N/A | BS145: N/A | BT145: N/A
B146: Emptied and discharged locally | C146: N/A | D146: N/A | E146: N/A | F146: N/A | G146: N/A | H146: N/A | I146: N/A | J146: N/A | K146: N/A | L146: N/A | M146: N/A | N146: N/A | O146: N/A | P146: N/A | Q146: N/A | R146: N/A | S146: N/A | T146: N/A | BB146: Emptied and discharged locally | BC146: N/A | BD146: N/A | BE146: N/A | BF146: N/A | BG146: N/A | BH146: N/A | BI146: N/A | BJ146: N/A | BK146: N/A | BL146: N/A | BM146: N/A | BN146: N/A | BO146: N/A | BP146: N/A | BQ146: N/A | BR146: N/A | BS146: N/A | BT146: N/A
B147: Emptied and removed offsite | C147: N/A | D147: N/A | E147: N/A | F147: N/A | G147: N/A | H147: N/A | I147: N/A | J147: N/A | K147: N/A | L147: N/A | M147: N/A | N147: N/A | O147: N/A | P147: N/A | Q147: N/A | R147: N/A | S147: N/A | T147: N/A | BB147: Emptied and removed offsite | BC147: N/A | BD147: N/A | BE147: N/A | BF147: N/A | BG147: N/A | BH147: N/A | BI147: N/A | BJ147: N/A | BK147: N/A | BL147: N/A | BM147: N/A | BN147: N/A | BO147: N/A | BP147: N/A | BQ147: N/A | BR147: N/A | BS147: N/A | BT147: N/A
A148: Shared among improved sanitation facilities | B148: Yes | C148: 21.35932246 | D148: 15.75615282 | E148: 15.43334783 | F148: 5.115626693 | G148: 0.8190252374 | H148: 30.48473106 | I148: 15.87349272 | J148: 7.287203178 | K148: 0.7307786133 | L148: 0.2273438219 | M148: 21.47565187 | N148: 18.45868652 | O148: 11.03823858 | P148: 2.669320991 | Q148: 0.9775325416 | R148: 15.43334783 | S148: 10.91555975 | T148: 10.92231269 | BA148: Shared among improved sanitation facilities | BB148: Yes | BC148: N/A | BD148: N/A | BE148: N/A | BF148: N/A | BG148: N/A | BH148: N/A | BI148: N/A | BJ148: N/A | BK148: N/A | BL148: N/A | BM148: N/A | BN148: N/A | BO148: N/A | BP148: N/A | BQ148: N/A | BR148: N/A | BS148: N/A | BT148: N/A
B149: No | C149: 75.74920955 | D149: 82.80313124 | E149: 83.87467073 | F149: 94.53103418 | G149: 98.66635791 | H149: 65.90919172 | I149: 81.79542843 | J149: 92.37859698 | K149: 99.26922139 | L149: 99.77265618 | M149: 75.06770079 | N149: 80.06045467 | O149: 88.05134305 | P149: 96.77364417 | Q149: 98.11428853 | R149: 83.87467073 | S149: 87.83185997 | T149: 87.61517819 | BB149: No | BC149: N/A | BD149: N/A | BE149: N/A | BF149: N/A | BG149: N/A | BH149: N/A | BI149: N/A | BJ149: N/A | BK149: N/A | BL149: N/A | BM149: N/A | BN149: N/A | BO149: N/A | BP149: N/A | BQ149: N/A | BR149: N/A | BS149: N/A | BT149: N/A
B150: DK/missing | C150: 2.89146799 | D150: 1.44071594 | E150: 0.6919814332 | F150: 0.3533391272 | G150: 0.5146168547 | H150: 3.60607722 | I150: 2.331078846 | J150: 0.3341998425 | K150: 0 | L150: 0 | M150: 3.456647344 | N150: 1.480858815 | O150: 0.9104183625 | P150: 0.557034844 | Q150: 0.9081789301 | R150: 0.6919814332 | S150: 1.252580279 | T150: 1.462509113 | BB150: DK/missing | BC150: N/A | BD150: N/A | BE150: N/A | BF150: N/A | BG150: N/A | BH150: N/A | BI150: N/A | BJ150: N/A | BK150: N/A | BL150: N/A | BM150: N/A | BN150: N/A | BO150: N/A | BP150: N/A | BQ150: N/A | BR150: N/A | BS150: N/A | BT150: N/A
A151: Shared among all sanitation facilities | B151: Yes | C151: 22.31343234 | D151: 16.13957382 | E151: 15.48505335 | F151: 5.115626693 | G151: 0.8190252374 | H151: 33.01469482 | I151: 16.66713494 | J151: 7.287203178 | K151: 0.7307786133 | L151: 0.2273438219 | M151: 22.0446984 | N151: 19.06777636 | O151: 11.06611221 | P151: 2.669320991 | Q151: 0.9775325416 | R151: 15.48505335 | S151: 11.53443118 | T151: 11.12712119 | BA151: Shared among all sanitation facilities | BB151: Yes | BC151: N/A | BD151: N/A | BE151: N/A | BF151: N/A | BG151: N/A | BH151: N/A | BI151: N/A | BJ151: N/A | BK151: N/A | BL151: N/A | BM151: N/A | BN151: N/A | BO151: N/A | BP151: N/A | BQ151: N/A | BR151: N/A | BS151: N/A | BT151: N/A
B152: No | C152: 77.48287546 | D152: 83.71830311 | E152: 84.48468204 | F152: 94.88437331 | G152: 98.96649233 | H152: 66.73620516 | I152: 82.86694785 | J152: 92.71279682 | K152: 99.26922139 | L152: 99.77265618 | M152: 77.65574699 | N152: 80.89222273 | O152: 88.93388779 | P152: 97.33067901 | Q152: 98.5478519 | R152: 84.48468204 | S152: 88.32318492 | T152: 88.71038242 | BB152: No | BC152: N/A | BD152: N/A | BE152: N/A | BF152: N/A | BG152: N/A | BH152: N/A | BI152: N/A | BJ152: N/A | BK152: N/A | BL152: N/A | BM152: N/A | BN152: N/A | BO152: N/A | BP152: N/A | BQ152: N/A | BR152: N/A | BS152: N/A | BT152: N/A
A153: Type of toilet facility | B153: Flush to piped sewer system | C153: 2.732984 | D153: 6.07568621 | E153: 46.19159478 | F153: 10.28029581 | G153: 18.17002139 | H153: 3.644228923 | I153: 7.630089346 | J153: 13.13107314 | K153: 17.65722133 | L153: 30.39364127 | M153: 1.358873366 | N153: 3.709171535 | O153: 7.212472588 | P153: 9.65483495 | Q153: 14.52916365 | R153: 46.19159478 | S153: 14.49466635 | T153: 7.29285054 | BA153: Type of toilet facility | BB153: Flush to piped sewer system | BC153: 103.5584559 | BD153: 153.4787372 | BE153: 3010.40994 | BF153: 238.9452484 | BG153: 688.589015 | BH153: 28.13480221 | BI153: 58.69440983 | BJ153: 102.1582075 | BK153: 135.9481021 | BL153: 234.8189851 | BM153: 23.28318227 | BN153: 63.57454079 | BO153: 123.4059188 | BP153: 165.7277257 | BQ153: 248.8255822 | BR153: 3010.40994 | BS153: 559.7545068 | BT153: 624.8169498
B154: Flush to septic tank | C154: 11.67911691 | D154: 24.13629356 | E154: 31.79181413 | F154: 31.02116658 | G154: 34.8749539 | H154: 20.48398745 | I154: 22.95328809 | J154: 40.26937682 | K154: 37.50544303 | L154: 38.2834713 | M154: 7.7915516 | N154: 12.68231709 | O154: 26.5908269 | P154: 29.20279394 | Q154: 32.42305513 | R154: 31.79181413 | S154: 31.91632787 | T154: 21.73782685 | BB154: Flush to septic tank | BC154: 442.5460647 | BD154: 609.7102004 | BE154: 2071.943905 | BF154: 721.0259796 | BG154: 1321.65558 | BH154: 158.1439991 | BI154: 176.5680108 | BJ154: 313.2910245 | BK154: 288.7653558 | BL154: 295.7752182 | BM154: 133.5018557 | BN154: 217.3726606 | BO154: 454.9709389 | BP154: 501.2734706 | BQ154: 555.2752907 | BR154: 2071.943905 | BS154: 1232.543608 | BT154: 1862.394216
B155: Flush to pit (latrine) | C155: 16.22157685 | D155: 29.40075381 | E155: 19.92588016 | F155: 44.79002496 | G155: 45.1534611 | H155: 19.04563362 | I155: 32.78051679 | J155: 37.21679906 | K155: 42.45153702 | L155: 31.32288744 | M155: 9.717095174 | N155: 22.67421418 | O155: 32.97850032 | P155: 50.48516026 | Q155: 50.56828591 | R155: 19.92588016 | S155: 32.56491309 | T155: 33.28861514 | BB155: Flush to pit (latrine) | BC155: 614.6693326 | BD155: 742.6964481 | BE155: 1298.614347 | BF155: 1041.056001 | BG155: 1711.180006 | BH155: 147.0393727 | BI155: 252.1639 | BJ155: 289.5423278 | BK155: 326.8467775 | BL155: 241.9982711 | BM155: 166.4944679 | BN155: 388.6320006 | BO155: 564.2644853 | BP155: 866.5907636 | BQ155: 866.0294208 | BR155: 1298.614347 | BS155: 1257.590649 | BT155: 2852.011138
B156: Flush to somewhere else | C156: 0.3340387159 | D156: 0.2136113349 | E156: 0.05318967917 | F156: 0.215863259 | G156: 0.09590054076 | H156: 0 | I156: 0 | J156: 0.3341998425 | K156: 0 | L156: 0 | M156: 0.2076686641 | N156: 0.5308800786 | O156: 0.3153736185 | P156: 0.1408240576 | Q156: 0.2122126626 | R156: 0.05318967917 | S156: 0.06732710007 | T156: 0.2813543483 | BB156: Flush to somewhere else | BC156: 12.65742267 | BD156: 5.396065036 | BE156: 3.466490812 | BF156: 5.017316719 | BG156: 3.634341287 | BH156: 0 | BI156: 0 | BJ156: 2.600035542 | BK156: 0 | BL156: 0 | BM156: 3.558232489 | BN156: 9.09919018 | BO156: 5.396065036 | BP156: 2.417281177 | BQ156: 3.634341287 | BR156: 3.466490812 | BS156: 2.600035542 | BT156: 24.10511017
B157: Flush to unknown place / Not sure / DK where | C157: 0 | D157: 0 | E157: 0.2440952382 | F157: 0.3292872667 | G157: 0.2188915054 | H157: 0 | I157: 0 | J157: 0.9837725051 | K157: 0.3313566428 | L157: 0 | M157: 0 | N157: 0 | O157: 0 | P157: 0 | Q157: 0.3354044491 | R157: 0.2440952382 | S157: 0.2642512712 | T157: 0.06704520813 | BB157: Flush to unknown place / Not sure / DK where | BC157: 0 | BD157: 0 | BE157: 15.90823471 | BF157: 7.653634604 | BG157: 8.295327942 | BH157: 0 | BI157: 0 | BJ157: 7.653634604 | BK157: 2.551211535 | BL157: 0 | BM157: 0 | BN157: 0 | BO157: 0 | BP157: 0 | BQ157: 5.744116407 | BR157: 15.90823471 | BS157: 10.20484614 | BT157: 5.744116407
B158: Ventilated Improved Pit latrine (VIP) | C158: 3.740568022 | D158: 2.542642113 | E158: 0.06897664023 | F158: 0.7473477944 | G158: 0.3096983921 | H158: 1.693507193 | I158: 2.535483012 | J158: 0.2745130563 | K158: 0 | L158: 0 | M158: 4.718967249 | N158: 2.844156803 | O158: 2.559034944 | P158: 0.8875456632 | Q158: 0.6853133451 | R158: 0.06897664023 | S158: 0.8989176632 | T158: 2.33860754 | BB158: Ventilated Improved Pit latrine (VIP) | BC158: 141.737913 | BD158: 64.23002886 | BE158: 4.495362509 | BF158: 17.37062899 | BG158: 11.7366351 | BH158: 13.07450518 | BI158: 19.50418564 | BJ158: 2.135679353 | BK158: 0 | BL158: 0 | BM158: 80.85563919 | BN158: 48.74834204 | BO158: 43.78526985 | BP158: 15.23494964 | BQ158: 11.7366351 | BR158: 4.495362509 | BS158: 34.71437017 | BT158: 200.3608358
B159: Pit latrine with slab | C159: 62.7523436 | D159: 36.54578895 | E159: 1.115880246 | F159: 12.47853846 | G159: 0.9728393019 | H159: 51.5265656 | I159: 32.23546113 | J159: 7.790265572 | K159: 2.054441978 | L159: 0 | M159: 72.95686527 | N159: 56.64920216 | O159: 29.74874689 | P159: 9.212630345 | Q159: 1.025214134 | R159: 1.115880246 | S159: 18.7011517 | T159: 33.91540457 | BB159: Pit latrine with slab | BC159: 2377.816997 | BD159: 923.1881543 | BE159: 72.72442099 | BF159: 290.0390735 | BG159: 36.86767574 | BH159: 397.804244 | BI159: 247.9710631 | BJ159: 60.60735164 | BK159: 15.8177486 | BL159: 0 | BM159: 1250.056138 | BN159: 970.9572553 | BO159: 509.0031745 | BP159: 158.1371699 | BQ159: 17.55775556 | BR159: 72.72442099 | BS159: 722.2004074 | BT159: 2905.711493
B160: Pit latrine without slab / Open pit | C160: 0.9347700055 | D160: 0.8083684673 | E160: 0.01007375108 | F160: 0 | G160: 0 | H160: 1.191949844 | I160: 1.516255953 | J160: 0 | K160: 0 | L160: 0 | M160: 1.296845498 | N160: 0.4015614372 | O160: 0.3431620313 | P160: 0 | Q160: 0 | R160: 0.01007375108 | S160: 0.5403206737 | T160: 0.4082228554 | BB160: Pit latrine without slab / Open pit | BC160: 35.42038241 | BD160: 20.420306 | BE160: 0.6565289753 | BF160: 0 | BG160: 0 | BH160: 9.202295963 | BI160: 11.66378849 | BJ160: 0 | BK160: 0 | BL160: 0 | BM160: 22.22038555 | BN160: 6.882691654 | BO160: 5.871526755 | BP160: 0 | BQ160: 0 | BR160: 0.6565289753 | BS160: 20.86608445 | BT160: 34.97460396
B161: Bucket | C161: 0.0188375202 | D161: 0 | E161: 0.01243837965 | F161: 0 | G161: 0 | H161: 0 | I161: 0 | J161: 0 | K161: 0 | L161: 0 | M161: 0.04165900153 | N161: 0 | O161: 0 | P161: 0 | Q161: 0 | R161: 0.01243837965 | S161: 0 | T161: 0.008331375695 | BB161: Bucket | BC161: 0.7137928743 | BD161: 0 | BE161: 0.8106371284 | BF161: 0 | BG161: 0 | BH161: 0 | BI161: 0 | BJ161: 0 | BK161: 0 | BL161: 0 | BM161: 0.7137928743 | BN161: 0 | BO161: 0 | BP161: 0 | BQ161: 0 | BR161: 0.8106371284 | BS161: 0 | BT161: 0.7137928743
B162: No facility, Bush, Field | C162: 0.9930369319 | D162: 0.1706071762 | E162: 0.1387419207 | F162: 0 | G162: 0 | H162: 1.047901178 | I162: 0 | J162: 0 | K162: 0 | L162: 0 | M162: 1.523020181 | N162: 0.2008391529 | O162: 0.2518827127 | P162: 0 | Q162: 0 | R162: 0.1387419207 | S162: 0.2094928324 | T162: 0.3950706131 | BB162: No facility, Bush, Field | BC162: 37.62823761 | BD162: 4.309731124 | BE162: 9.042122471 | BF162: 0 | BG162: 0 | BH162: 8.090186708 | BI162: 0 | BJ162: 0 | BK162: 0 | BL162: 0 | BM162: 26.09570352 | BN162: 3.44234738 | BO162: 4.309731124 | BP162: 0 | BQ162: 0 | BR162: 9.042122471 | BS162: 8.090186708 | BT162: 33.84778202
B163: Other | C163: 0.4091153603 | D163: 0.106248368 | E163: 0.03022125324 | F163: 0 | G163: 0 | H163: 1.119736494 | I163: 0.3489056744 | J163: 0 | K163: 0 | L163: 0 | M163: 0.09246167105 | N163: 0.3076575679 | O163: 0 | P163: 0 | Q163: 0 | R163: 0.03022125324 | S163: 0.2933540589 | T163: 0.08004002696 | BB163: Other | BC163: 15.50223309 | BD163: 2.683954501 | BE163: 1.969586926 | BF163: 0 | BG163: 0 | BH163: 8.644782054 | BI163: 2.683954501 | BJ163: 0 | BK163: 0 | BL163: 0 | BM163: 1.584255012 | BN163: 5.273196026 | BO163: 0 | BP163: 0 | BQ163: 0 | BR163: 1.969586926 | BS163: 11.32873656 | BT163: 6.857451038
B164: Missing | C164: 0.1836120797 | D164: 0 | E164: 0.4170938238 | F164: 0.1374758683 | G164: 0.2042338799 | H164: 0.2464897031 | I164: 0 | J164: 0 | K164: 0 | L164: 0 | M164: 0.2949923287 | N164: 0 | O164: 0 | P164: 0.4162107864 | Q164: 0.2213507123 | R164: 0.4170938238 | S164: 0.04927738142 | T164: 0.1866309367 | BB164: Missing | BC164: 6.957444121 | BD164: 0 | BE164: 27.18294095 | BF164: 3.195356059 | BG164: 7.739848139 | BH164: 1.902992153 | BI164: 0 | BJ164: 0 | BK164: 0 | BL164: 0 | BM164: 5.054451967 | BN164: 0 | BO164: 0 | BP164: 7.144365222 | BQ164: 3.790838976 | BR164: 27.18294095 | BS164: 1.902992153 | BT164: 15.98965617
BB165: Total | BC165: 3789.208276 | BD165: 2526.113626 | BE165: 6517.224518 | BF165: 2324.303239 | BG165: 3789.698429 | BH165: 772.03718 | BI165: 769.2493124 | BJ165: 777.9882609 | BK165: 769.9291956 | BL165: 772.5924745 | BM165: 1713.418105 | BN165: 1713.982224 | BO165: 1711.00711 | BP165: 1716.525726 | BQ165: 1712.593981 | BR165: 6517.224518 | BS165: 3861.796423 | BT165: 8567.527146
A208: =A1026 -> Jamaica
A209: =A1034 -> 2011
A210: Access to hygiene facilities
A211: by wealth quintile and sub-national region
A212: Notes:
A213: WHO/UNICEF JMP customised wealth index excludes water,
A214: sanitation and hygiene assets.
A215: Survey used for analysis: | B215: =A1025 -> MICS11
A220: Access to handwashing | C220: NATIONAL wealth index quintile | H220: URBAN wealth index quintile | M220: RURAL wealth index quintile | R220: SUB-REGIONS: | BA220: Raw numbers of respondents: | BB220: Access to handwashing | BC220: NATIONAL wealth index quintile | BH220: URBAN wealth index quintile | BM220: RURAL wealth index quintile | BR220: SUB-REGIONS:
A221: Weighted percentage (used in graphs) | C221: Poorest | D221: Poor | E221: Middle | F221: Rich | G221: Richest | H221: Poorest | I221: Poor | J221: Middle | K221: Rich | L221: Richest | M221: Poorest | N221: Poor | O221: Middle | P221: Rich | Q221: Richest | R221: KMA | S221: Other towns | T221: Rural | BA221: Hygiene data, raw numbers (weighted) | BC221: Poorest | BD221: Poor | BE221: Middle | BF221: Rich | BG221: Richest | BH221: Poorest | BI221: Poor | BJ221: Middle | BK221: Rich | BL221: Richest | BM221: Poorest | BN221: Poor | BO221: Middle | BP221: Rich | BQ221: Richest | BR221: KMA | BS221: Other towns | BT221: Rural
A222: Hygiene ladder | B222: Basic | C222: 52.80439641 | D222: 60.32484007 | E222: 66.78001081 | F222: 71.39163792 | G222: 81.91020626 | H222: 66.58600344 | I222: 59.12173839 | J222: 79.27732753 | K222: 79.08972494 | L222: 87.20010129 | M222: 44.37245748 | N222: 56.8282106 | O222: 64.52532157 | P222: 69.19613367 | Q222: 82.78055211 | R222: 66.78001081 | S222: 74.12163743 | T222: 63.07755349 | BA222: Hygiene ladder | BB222: Basic | BC222: 1733.234786 | BD222: 1232.549401 | BE222: 3516.529023 | BF222: 1306.939618 | BG222: 2383.254319 | BH222: 399.3696138 | BI222: 327.925587 | BJ222: 419.9874348 | BK222: 408.1723719 | BL222: 503.0125308 | BM222: 675.607085 | BN222: 861.199726 | BO222: 928.8072528 | BP222: 994.424737 | BQ222: 1137.471786 | BR222: 3516.529023 | BS222: 2058.467538 | BT222: 4597.510586
B223: Limited | C223: 24.30003277 | D223: 18.8654707 | E223: 16.73556257 | F223: 13.7689961 | G223: 6.900567599 | H223: 13.66696347 | I223: 19.8729108 | J223: 8.828085525 | K223: 5.27339726 | L223: 2.976114023 | M223: 30.23563676 | N223: 20.42964493 | O223: 17.75084653 | P223: 14.46671372 | Q223: 8.673892577 | R223: 16.73556257 | S223: 10.20293882 | T223: 18.55710636 | BB223: Limited | BC223: 797.6165804 | BD223: 385.4568796 | BE223: 881.2680736 | BF223: 252.0637854 | BG223: 200.7784901 | BH223: 81.97173039 | BI223: 110.2274073 | BJ223: 46.76854164 | BK223: 27.2153566 | BL223: 17.16767096 | BM223: 460.3623864 | BN223: 309.5998349 | BO223: 255.5138757 | BP223: 207.9026273 | BQ223: 119.1863044 | BR223: 881.2680736 | BS223: 283.3507069 | BT223: 1352.565029
B224: No facility | C224: 22.89557082 | D224: 20.80968923 | E224: 16.48442662 | F224: 14.83936599 | G224: 11.18922614 | H224: 19.7470331 | I224: 21.00535081 | J224: 11.89458694 | K224: 15.6368778 | L224: 9.823784684 | M224: 25.39190576 | N224: 22.74214447 | O224: 17.7238319 | P224: 16.33715261 | Q224: 8.545555317 | R224: 16.48442662 | S224: 15.67542375 | T224: 18.36534015 | BB224: No facility | BC224: 751.516966 | BD224: 425.1809036 | BE224: 868.0436546 | BF224: 271.6586407 | BG224: 325.561035 | BH224: 118.4387795 | BI224: 116.5086173 | BJ224: 63.01394375 | BK224: 80.70000885 | BL224: 56.66836073 | BM224: 386.6126063 | BN224: 344.644471 | BO224: 255.1250147 | BP224: 234.7828965 | BQ224: 117.4228465 | BR224: 868.0436546 | BS224: 435.3297102 | BT224: 1338.587835
A225: Place where household members most often wash their hands | B225: Observed | C225: 66.79103343 | D225: 64.05120754 | E225: 67.47960093 | F225: 67.07401072 | G225: 68.18571075 | H225: 62.34691238 | I225: 56.95851621 | J225: 59.9952467 | K225: 56.54906075 | L225: 67.3291831 | M225: 66.29843985 | N225: 68.30873414 | O225: 69.21777948 | P225: 70.04423798 | Q225: 73.37746739 | R225: 67.47960093 | S225: 60.64064462 | T225: 69.44915976 | BA225: Observed handwashing place | BB225: Fixed | BC225: N/A | BD225: N/A | BE225: N/A | BF225: N/A | BG225: N/A | BH225: N/A | BI225: N/A | BJ225: N/A | BK225: N/A | BL225: N/A | BM225: N/A | BN225: N/A | BO225: N/A | BP225: N/A | BQ225: N/A | BR225: N/A | BS225: N/A | BT225: N/A
B226: Not in dwelling/plot/yard | C226: 5.610938987 | D226: 3.354033677 | E226: 6.35340745 | F226: 3.984895532 | G226: 1.87226609 | H226: 6.692138055 | I226: 5.560759761 | J226: 4.473044065 | K226: 3.072022624 | L226: 1.484222862 | M226: 5.347659889 | N226: 4.72175282 | O226: 2.997143355 | P226: 2.752905769 | Q226: 1.48643879 | R226: 6.35340745 | S226: 4.256077563 | T226: 3.461326758 | BB226: Mobile | BC226: N/A | BD226: N/A | BE226: N/A | BF226: N/A | BG226: N/A | BH226: N/A | BI226: N/A | BJ226: N/A | BK226: N/A | BL226: N/A | BM226: N/A | BN226: N/A | BO226: N/A | BP226: N/A | BQ226: N/A | BR226: N/A | BS226: N/A | BT226: N/A
B227: No permission to see | C227: 13.32029133 | D227: 19.11736812 | E227: 19.12279413 | F227: 21.0629402 | G227: 23.10898152 | H227: 22.1244653 | I227: 27.85501029 | J227: 31.4216789 | K227: 32.96945481 | L227: 24.77373819 | M227: 11.13773844 | N227: 11.54503155 | O227: 15.87141079 | P227: 16.27796547 | Q227: 19.76610033 | R227: 19.12279413 | S227: 27.83114187 | T227: 14.91918578 | BA227: Water / Soap | BB227: Water and soap | BC227: N/A | BD227: N/A | BE227: N/A | BF227: N/A | BG227: N/A | BH227: N/A | BI227: N/A | BJ227: N/A | BK227: N/A | BL227: N/A | BM227: N/A | BN227: N/A | BO227: N/A | BP227: N/A | BQ227: N/A | BR227: N/A | BS227: N/A | BT227: N/A
B228: Other reason | C228: 14.2221478 | D228: 13.47739066 | E228: 6.965815361 | F228: 7.702849689 | G228: 6.718418395 | H228: 8.648933928 | I228: 9.584995389 | J228: 3.62655678 | K228: 7.409461817 | L228: 5.850609226 | M228: 17.21616182 | N228: 15.38606779 | O228: 11.91366638 | P228: 10.92489078 | Q228: 5.36999349 | R228: 6.965815361 | S228: 7.016647938 | T228: 12.16264282 | BB228: Water only | BC228: N/A | BD228: N/A | BE228: N/A | BF228: N/A | BG228: N/A | BH228: N/A | BI228: N/A | BJ228: N/A | BK228: N/A | BL228: N/A | BM228: N/A | BN228: N/A | BO228: N/A | BP228: N/A | BQ228: N/A | BR228: N/A | BS228: N/A | BT228: N/A
B229: Missing | C229: 0.05558845467 | D229: 0 | E229: 0.07838213297 | F229: 0.1753038518 | G229: 0.1146232396 | H229: 0.1875503418 | I229: 0.04071834421 | J229: 0.4834735575 | K229: 0 | L229: 0.5622466247 | M229: 0 | N229: 0.03841369795 | O229: 0 | P229: 0 | Q229: 0 | R229: 0.07838213297 | S229: 0.2554880036 | T229: 0.007684877368 | BB229: Soap only | BC229: N/A | BD229: N/A | BE229: N/A | BF229: N/A | BG229: N/A | BH229: N/A | BI229: N/A | BJ229: N/A | BK229: N/A | BL229: N/A | BM229: N/A | BN229: N/A | BO229: N/A | BP229: N/A | BQ229: N/A | BR229: N/A | BS229: N/A | BT229: N/A
BB230: Neither | BC230: N/A | BD230: N/A | BE230: N/A | BF230: N/A | BG230: N/A | BH230: N/A | BI230: N/A | BJ230: N/A | BK230: N/A | BL230: N/A | BM230: N/A | BN230: N/A | BO230: N/A | BP230: N/A | BQ230: N/A | BR230: N/A | BS230: N/A | BT230: N/A
BA231: Place where household members most often wash their hands | BB231: Observed | BC231: 2530.851366 | BD231: 1618.006281 | BE231: 4397.797096 | BF231: 1559.003404 | BG231: 2584.032809 | BH231: 481.3413442 | BI231: 438.1529943 | BJ231: 466.7559764 | BK231: 435.3877285 | BL231: 520.1802018 | BM231: 1135.969471 | BN231: 1170.799561 | BO231: 1184.321129 | BP231: 1202.327364 | BQ231: 1256.65809 | BR231: 4397.797096 | BS231: 2341.818245 | BT231: 5950.075615
BB232: Not in dwelling/plot/yard | BC232: 212.6101645 | BD232: 84.72670172 | BE232: 414.0658281 | BF232: 92.62105591 | BG232: 70.9532386 | BH232: 51.66579393 | BI232: 42.77610623 | BJ232: 34.79975773 | BK232: 23.65239908 | BL232: 11.46699413 | BM232: 91.6277727 | BN232: 80.93000401 | BO232: 51.2813359 | BP232: 47.25433573 | BQ232: 25.45666125 | BR232: 414.0658281 | BS232: 164.3610511 | BT232: 296.5501096
BB233: No permission to see | BC233: 504.7335813 | BD233: 482.9264409 | BE233: 1246.275428 | BF233: 489.5666013 | BG233: 875.7607098 | BH233: 170.809098 | BI233: 214.2744752 | BJ233: 244.4569732 | BK233: 253.8414582 | BL233: 191.4000369 | BM233: 190.8360269 | BN233: 197.8797887 | BO233: 271.560967 | BP233: 279.415465 | BQ233: 338.5130445 | BR233: 1246.275428 | BS233: 1074.782041 | BT233: 1278.205292
BB234: Other reason | BC234: 538.9068015 | BD234: 340.4542019 | BE234: 453.9778266 | BF234: 179.0375848 | BG234: 254.6077964 | BH234: 66.7729856 | BI234: 73.73251112 | BJ234: 28.21418602 | BK234: 57.04760977 | BL234: 45.20136659 | BM234: 294.9848336 | BN234: 263.714467 | BO234: 203.8436788 | BP234: 187.5285608 | BQ234: 91.96618529 | BR234: 453.9778266 | BS234: 270.9686591 | BT234: 1042.037725
BB235: Missing | BC235: 2.106362325 | BD235: 0 | BE235: 5.108339588 | BF235: 4.074593105 | BG235: 4.34387511 | BH235: 1.44795837 | BI235: 0.3132255829 | BJ235: 3.761367522 | BK235: 0 | BL235: 4.34387511 | BM235: 0 | BN235: 0.6584039547 | BO235: 0 | BP235: 0 | BQ235: 0 | BR235: 5.108339588 | BS235: 9.866426586 | BT235: 0.6584039547
BB236: Total | BC236: 3789.208276 | BD236: 2526.113626 | BE236: 6517.224518 | BF236: 2324.303239 | BG236: 3789.698429 | BH236: 772.03718 | BI236: 769.2493124 | BJ236: 777.9882609 | BK236: 769.9291956 | BL236: 772.5924745 | BM236: 1713.418105 | BN236: 1713.982224 | BO236: 1711.00711 | BP236: 1716.525726 | BQ236: 1712.593981 | BR236: 6517.224518 | BS236: 3861.796423 | BT236: 8567.527146
BA259: Raw numbers of respondents: | BB259: Menstrual health and hygiene | BC259: NATIONAL wealth index quintile | BH259: URBAN wealth index quintile | BM259: RURAL wealth index quintile | BR259: SUB-REGIONS:
BA260: MHH data, raw numbers (weighted) | BC260: Poorest | BD260: Poor | BE260: Middle | BF260: Rich | BG260: Richest | BH260: Poorest | BI260: Poor | BJ260: Middle | BK260: Rich | BL260: Richest | BM260: Poorest | BN260: Poor | BO260: Middle | BP260: Rich | BQ260: Richest | BR260: KMA | BS260: Other towns | BT260: Rural
BA261: Private place to wash and change | BB261: Yes | BC261: N/A | BD261: N/A | BE261: N/A | BF261: N/A | BG261: N/A | BH261: N/A | BI261: N/A | BJ261: N/A | BK261: N/A | BL261: N/A | BM261: N/A | BN261: N/A | BO261: N/A | BP261: N/A | BQ261: N/A | BR261: N/A | BS261: N/A | BT261: N/A
BB262: No | BC262: N/A | BD262: N/A | BE262: N/A | BF262: N/A | BG262: N/A | BH262: N/A | BI262: N/A | BJ262: N/A | BK262: N/A | BL262: N/A | BM262: N/A | BN262: N/A | BO262: N/A | BP262: N/A | BQ262: N/A | BR262: N/A | BS262: N/A | BT262: N/A
BB263: DK/not sure/missing | BC263: N/A | BD263: N/A | BE263: N/A | BF263: N/A | BG263: N/A | BH263: N/A | BI263: N/A | BJ263: N/A | BK263: N/A | BL263: N/A | BM263: N/A | BN263: N/A | BO263: N/A | BP263: N/A | BQ263: N/A | BR263: N/A | BS263: N/A | BT263: N/A
BA264: Use of menstrual materials | BB264: Materials reusable | BC264: N/A | BD264: N/A | BE264: N/A | BF264: N/A | BG264: N/A | BH264: N/A | BI264: N/A | BJ264: N/A | BK264: N/A | BL264: N/A | BM264: N/A | BN264: N/A | BO264: N/A | BP264: N/A | BQ264: N/A | BR264: N/A | BS264: N/A | BT264: N/A
BB265: Materials not reusable | BC265: N/A | BD265: N/A | BE265: N/A | BF265: N/A | BG265: N/A | BH265: N/A | BI265: N/A | BJ265: N/A | BK265: N/A | BL265: N/A | BM265: N/A | BN265: N/A | BO265: N/A | BP265: N/A | BQ265: N/A | BR265: N/A | BS265: N/A | BT265: N/A
BB266: No materials used | BC266: N/A | BD266: N/A | BE266: N/A | BF266: N/A | BG266: N/A | BH266: N/A | BI266: N/A | BJ266: N/A | BK266: N/A | BL266: N/A | BM266: N/A | BN266: N/A | BO266: N/A | BP266: N/A | BQ266: N/A | BR266: N/A | BS266: N/A | BT266: N/A
BB267: DK/not sure/missing | BC267: N/A | BD267: N/A | BE267: N/A | BF267: N/A | BG267: N/A | BH267: N/A | BI267: N/A | BJ267: N/A | BK267: N/A | BL267: N/A | BM267: N/A | BN267: N/A | BO267: N/A | BP267: N/A | BQ267: N/A | BR267: N/A | BS267: N/A | BT267: N/A
BA268: Use of menstrual materials with private place to wash and change | BB268: Materials reusable | BC268: N/A | BD268: N/A | BE268: N/A | BF268: N/A | BG268: N/A | BH268: N/A | BI268: N/A | BJ268: N/A | BK268: N/A | BL268: N/A | BM268: N/A | BN268: N/A | BO268: N/A | BP268: N/A | BQ268: N/A | BR268: N/A | BS268: N/A | BT268: N/A
BB269: Materials not reusable | BC269: N/A | BD269: N/A | BE269: N/A | BF269: N/A | BG269: N/A | BH269: N/A | BI269: N/A | BJ269: N/A | BK269: N/A | BL269: N/A | BM269: N/A | BN269: N/A | BO269: N/A | BP269: N/A | BQ269: N/A | BR269: N/A | BS269: N/A | BT269: N/A
BB270: No materials used | BC270: N/A | BD270: N/A | BE270: N/A | BF270: N/A | BG270: N/A | BH270: N/A | BI270: N/A | BJ270: N/A | BK270: N/A | BL270: N/A | BM270: N/A | BN270: N/A | BO270: N/A | BP270: N/A | BQ270: N/A | BR270: N/A | BS270: N/A | BT270: N/A
BA271: Awareness of menstruation before menarche | BB271: Yes | BC271: N/A | BD271: N/A | BE271: N/A | BF271: N/A | BG271: N/A | BH271: N/A | BI271: N/A | BJ271: N/A | BK271: N/A | BL271: N/A | BM271: N/A | BN271: N/A | BO271: N/A | BP271: N/A | BQ271: N/A | BR271: N/A | BS271: N/A | BT271: N/A
BB272: No | BC272: N/A | BD272: N/A | BE272: N/A | BF272: N/A | BG272: N/A | BH272: N/A | BI272: N/A | BJ272: N/A | BK272: N/A | BL272: N/A | BM272: N/A | BN272: N/A | BO272: N/A | BP272: N/A | BQ272: N/A | BR272: N/A | BS272: N/A | BT272: N/A
BB273: DK/not sure/missing | BC273: N/A | BD273: N/A | BE273: N/A | BF273: N/A | BG273: N/A | BH273: N/A | BI273: N/A | BJ273: N/A | BK273: N/A | BL273: N/A | BM273: N/A | BN273: N/A | BO273: N/A | BP273: N/A | BQ273: N/A | BR273: N/A | BS273: N/A | BT273: N/A
BA274: Participation in (all) activities during menstruation | BB274: Yes | BC274: N/A | BD274: N/A | BE274: N/A | BF274: N/A | BG274: N/A | BH274: N/A | BI274: N/A | BJ274: N/A | BK274: N/A | BL274: N/A | BM274: N/A | BN274: N/A | BO274: N/A | BP274: N/A | BQ274: N/A | BR274: N/A | BS274: N/A | BT274: N/A
BB275: No | BC275: N/A | BD275: N/A | BE275: N/A | BF275: N/A | BG275: N/A | BH275: N/A | BI275: N/A | BJ275: N/A | BK275: N/A | BL275: N/A | BM275: N/A | BN275: N/A | BO275: N/A | BP275: N/A | BQ275: N/A | BR275: N/A | BS275: N/A | BT275: N/A
BB276: DK/not sure/missing/no such activity | BC276: N/A | BD276: N/A | BE276: N/A | BF276: N/A | BG276: N/A | BH276: N/A | BI276: N/A | BJ276: N/A | BK276: N/A | BL276: N/A | BM276: N/A | BN276: N/A | BO276: N/A | BP276: N/A | BQ276: N/A | BR276: N/A | BS276: N/A | BT276: N/A
BA277: Participation in specific activities during menstruation | BB277: Did not go to school (amongst those usually attending school) | BC277: N/A | BD277: N/A | BE277: N/A | BF277: N/A | BG277: N/A | BH277: N/A | BI277: N/A | BJ277: N/A | BK277: N/A | BL277: N/A | BM277: N/A | BN277: N/A | BO277: N/A | BP277: N/A | BQ277: N/A | BR277: N/A | BS277: N/A | BT277: N/A
BB278: Did not go to work (amongst those who usually work) | BC278: N/A | BD278: N/A | BE278: N/A | BF278: N/A | BG278: N/A | BH278: N/A | BI278: N/A | BJ278: N/A | BK278: N/A | BL278: N/A | BM278: N/A | BN278: N/A | BO278: N/A | BP278: N/A | BQ278: N/A | BR278: N/A | BS278: N/A | BT278: N/A
BB279: Did not participate in social activities | BC279: N/A | BD279: N/A | BE279: N/A | BF279: N/A | BG279: N/A | BH279: N/A | BI279: N/A | BJ279: N/A | BK279: N/A | BL279: N/A | BM279: N/A | BN279: N/A | BO279: N/A | BP279: N/A | BQ279: N/A | BR279: N/A | BS279: N/A | BT279: N/A
BB280: Did not cook food | BC280: N/A | BD280: N/A | BE280: N/A | BF280: N/A | BG280: N/A | BH280: N/A | BI280: N/A | BJ280: N/A | BK280: N/A | BL280: N/A | BM280: N/A | BN280: N/A | BO280: N/A | BP280: N/A | BQ280: N/A | BR280: N/A | BS280: N/A | BT280: N/A
BB281: Did not eat with others | BC281: N/A | BD281: N/A | BE281: N/A | BF281: N/A | BG281: N/A | BH281: N/A | BI281: N/A | BJ281: N/A | BK281: N/A | BL281: N/A | BM281: N/A | BN281: N/A | BO281: N/A | BP281: N/A | BQ281: N/A | BR281: N/A | BS281: N/A | BT281: N/A
BB282: Did not bathe in regular place | BC282: N/A | BD282: N/A | BE282: N/A | BF282: N/A | BG282: N/A | BH282: N/A | BI282: N/A | BJ282: N/A | BK282: N/A | BL282: N/A | BM282: N/A | BN282: N/A | BO282: N/A | BP282: N/A | BQ282: N/A | BR282: N/A | BS282: N/A | BT282: N/A
BB283: Did not participate in other activities | BC283: N/A | BD283: N/A | BE283: N/A | BF283: N/A | BG283: N/A | BH283: N/A | BI283: N/A | BJ283: N/A | BK283: N/A | BL283: N/A | BM283: N/A | BN283: N/A | BO283: N/A | BP283: N/A | BQ283: N/A | BR283: N/A | BS283: N/A | BT283: N/A
BB284: DK/not sure/missing/no such activity | BC284: N/A | BD284: N/A | BE284: N/A | BF284: N/A | BG284: N/A | BH284: N/A | BI284: N/A | BJ284: N/A | BK284: N/A | BL284: N/A | BM284: N/A | BN284: N/A | BO284: N/A | BP284: N/A | BQ284: N/A | BR284: N/A | BS284: N/A | BT284: N/A
BA339: Raw numbers of respondents: | BB339: Basic water, sanitation and hygiene | BC339: NATIONAL wealth index quintile | BH339: URBAN wealth index quintile | BM339: RURAL wealth index quintile | BR339: SUB-REGIONS:
BA340: WatSan data, raw numbers (weighted) | BC340: Poorest | BD340: Poor | BE340: Middle | BF340: Rich | BG340: Richest | BH340: Poorest | BI340: Poor | BJ340: Middle | BK340: Rich | BL340: Richest | BM340: Poorest | BN340: Poor | BO340: Middle | BP340: Rich | BQ340: Richest | BR340: KMA | BS340: Other towns | BT340: Rural
BA341: Use of Basic Water Sanitation and Hygiene | BB341: Yes | BC341: N/A | BD341: N/A | BE341: N/A | BF341: N/A | BG341: N/A | BH341: N/A | BI341: N/A | BJ341: N/A | BK341: N/A | BL341: N/A | BM341: N/A | BN341: N/A | BO341: N/A | BP341: N/A | BQ341: N/A | BR341: N/A | BS341: N/A | BT341: N/A
BB342: No | BC342: N/A | BD342: N/A | BE342: N/A | BF342: N/A | BG342: N/A | BH342: N/A | BI342: N/A | BJ342: N/A | BK342: N/A | BL342: N/A | BM342: N/A | BN342: N/A | BO342: N/A | BP342: N/A | BQ342: N/A | BR342: N/A | BS342: N/A | BT342: N/A
BA343: Use of Basic Water and Sanitation | BB343: Yes | BC343: N/A | BD343: N/A | BE343: N/A | BF343: N/A | BG343: N/A | BH343: N/A | BI343: N/A | BJ343: N/A | BK343: N/A | BL343: N/A | BM343: N/A | BN343: N/A | BO343: N/A | BP343: N/A | BQ343: N/A | BR343: N/A | BS343: N/A | BT343: N/A
BB344: No | BC344: N/A | BD344: N/A | BE344: N/A | BF344: N/A | BG344: N/A | BH344: N/A | BI344: N/A | BJ344: N/A | BK344: N/A | BL344: N/A | BM344: N/A | BN344: N/A | BO344: N/A | BP344: N/A | BQ344: N/A | BR344: N/A | BS344: N/A | BT344: N/A
BA345: Use of Basic Water and Hygiene | BB345: Yes | BC345: N/A | BD345: N/A | BE345: N/A | BF345: N/A | BG345: N/A | BH345: N/A | BI345: N/A | BJ345: N/A | BK345: N/A | BL345: N/A | BM345: N/A | BN345: N/A | BO345: N/A | BP345: N/A | BQ345: N/A | BR345: N/A | BS345: N/A | BT345: N/A
BB346: No | BC346: N/A | BD346: N/A | BE346: N/A | BF346: N/A | BG346: N/A | BH346: N/A | BI346: N/A | BJ346: N/A | BK346: N/A | BL346: N/A | BM346: N/A | BN346: N/A | BO346: N/A | BP346: N/A | BQ346: N/A | BR346: N/A | BS346: N/A | BT346: N/A
BA347: Use of Basic Sanitation and Hygiene | BB347: Yes | BC347: N/A | BD347: N/A | BE347: N/A | BF347: N/A | BG347: N/A | BH347: N/A | BI347: N/A | BJ347: N/A | BK347: N/A | BL347: N/A | BM347: N/A | BN347: N/A | BO347: N/A | BP347: N/A | BQ347: N/A | BR347: N/A | BS347: N/A | BT347: N/A
BB348: No | BC348: N/A | BD348: N/A | BE348: N/A | BF348: N/A | BG348: N/A | BH348: N/A | BI348: N/A | BJ348: N/A | BK348: N/A | BL348: N/A | BM348: N/A | BN348: N/A | BO348: N/A | BP348: N/A | BQ348: N/A | BR348: N/A | BS348: N/A | BT348: N/A
BA349: Use of Basic Water | BB349: Yes | BC349: N/A | BD349: N/A | BE349: N/A | BF349: N/A | BG349: N/A | BH349: N/A | BI349: N/A | BJ349: N/A | BK349: N/A | BL349: N/A | BM349: N/A | BN349: N/A | BO349: N/A | BP349: N/A | BQ349: N/A | BR349: N/A | BS349: N/A | BT349: N/A
BB350: No | BC350: N/A | BD350: N/A | BE350: N/A | BF350: N/A | BG350: N/A | BH350: N/A | BI350: N/A | BJ350: N/A | BK350: N/A | BL350: N/A | BM350: N/A | BN350: N/A | BO350: N/A | BP350: N/A | BQ350: N/A | BR350: N/A | BS350: N/A | BT350: N/A
BA351: Use of Basic Sanitation | BB351: Yes | BC351: N/A | BD351: N/A | BE351: N/A | BF351: N/A | BG351: N/A | BH351: N/A | BI351: N/A | BJ351: N/A | BK351: N/A | BL351: N/A | BM351: N/A | BN351: N/A | BO351: N/A | BP351: N/A | BQ351: N/A | BR351: N/A | BS351: N/A | BT351: N/A
BB352: No | BC352: N/A | BD352: N/A | BE352: N/A | BF352: N/A | BG352: N/A | BH352: N/A | BI352: N/A | BJ352: N/A | BK352: N/A | BL352: N/A | BM352: N/A | BN352: N/A | BO352: N/A | BP352: N/A | BQ352: N/A | BR352: N/A | BS352: N/A | BT352: N/A
BA353: Access to Basic Hygiene | BB353: Yes | BC353: N/A | BD353: N/A | BE353: N/A | BF353: N/A | BG353: N/A | BH353: N/A | BI353: N/A | BJ353: N/A | BK353: N/A | BL353: N/A | BM353: N/A | BN353: N/A | BO353: N/A | BP353: N/A | BQ353: N/A | BR353: N/A | BS353: N/A | BT353: N/A
